Workbook

Sheet Total（RDS vs nonRDS）
A1: groups(1case 2control) | B1: sequence number | C1: recordnumber | D1: maternal age | E1: elderly pregnancy | F1: GDM+PGDM | G1: GDM | H1: PGDM | I1: diagnosis time | J1: OGTT 0h | K1: 1h | L1: 2h | M1: management | N1: Corticosteroid | O1: Asphyxia | P1: fetal distress | Q1: PROM time | R1: PROM>8h | S1: GBS（+） | T1: Placental abnormality | U1: Umbilical cord abnormality | V1: gestational hypertension | W1: Eclampsia | X1: Maternal prenatal fever | Y1: other | Z1: gender | AA1: GA | AB1: premature birth | AC1: delivery | AD1: biethweight | AE1: LBW | AF1: BA-GA | AG1: Apgar scores | AH1: diagnosis | AI1: infection | AJ1: Hyperglycemia | AK1: Hypoglycemia | AL1: Neonatal jaundice | AM1: PAH | AN1: Anemia | AO1: complication
A2: 1 | B2: 1 | C2: 1136056 | D2: 36 | E2: 1 | F2: 1 | G2: 1 | H2: 0 | I2: 12 | J2: 4.0 | K2: 12.1 | L2: 6.5 | M2: 饮食控制 | N2: 1 | O2: 0 | P2: 0 | Q2: 0 | R2: 0 | S2: 0 | T2: 0 | U2: 0 | V2: 0 | W2: 0 | X2: 0 | Y2: 胚胎停育史 | Z2: 1 | AA2: 40 | AB2: 0 | AC2: 顺产 | AD2: 3250 | AE2: 0 | AF2: AGA | AG2: 999 | AH2: ———— | AI2: 0 | AJ2: 0 | AK2: 0 | AL2: 1 | AM2: 1 | AN2: 0 | AO2: 新生儿肺炎；肺动脉高压；头颅血肿；新生儿高胆红素血症
A3: 1 | B3: 2 | C3: 1127060 | D3: 37 | E3: 1 | F3: 0 | G3: 0 | H3: 0 | I3: 无 | J3: 无 | K3: 无 | L3: 无 | M3: 无 | N3: 1 | O3: 0 | P3: 0 | Q3: 8 | R3: 1 | S3: 0 | T3: 0 | U3: 0 | V3: 0 | W3: 0 | X3: 0 | Y3: 无 | Z3: 2 | AA3: 35.3 | AB3: 1 | AC3: 剖宫产 | AD3: 2780 | AE3: 0 | AF3: AGA | AG3: 999 | AH3: ———— | AI3: 0 | AJ3: 0 | AK3: 0 | AL3: 0 | AM3: 0 | AN3: 0 | AO3: 气胸
A4: 1 | B4: 3 | C4: 1134250 | D4: 37 | E4: 1 | F4: 0 | G4: 0 | H4: 0 | I4: 无 | J4: 无 | K4: 无 | L4: 无 | M4: 无 | N4: 0 | O4: 1 | P4: 1 | Q4: 0 | R4: 0 | S4: 0 | T4: 0 | U4: 0 | V4: 0 | W4: 0 | X4: 0 | Y4: 单绒双胎 | Z4: 1 | AA4: 36.3 | AB4: 1 | AC4: 剖宫产 | AD4: 2400 | AE4: 1 | AF4: AGA | AG4: 999 | AH4: ———— | AI4: 0 | AJ4: 0 | AK4: 0 | AL4: 0 | AM4: 0 | AN4: 0 | AO4: 呼吸性酸中毒；先天性心脏畸形；低出生体重儿
A5: 1 | B5: 4 | C5: 1109397 | D5: 31 | E5: 0 | F5: 1 | G5: 1 | H5: 0 | I5: 13 | J5: 4.6 | K5: 11.0 | L5: 5.0 | M5: 饮食控制 | N5: 1 | O5: 0 | P5: 0 | Q5: 0 | R5: 0 | S5: 0 | T5: 1 | U5: 0 | V5: 0 | W5: 0 | X5: 0 | Y5: 完全性前置胎盘伴出血；先兆早产；妊娠合并轻度贫血 | Z5: 1 | AA5: 35.6 | AB5: 1 | AC5: 剖宫产 | AD5: 2550 | AE5: 0 | AF5: AGA | AG5: 999 | AH5: ———— | AI5: 0 | AJ5: 0 | AK5: 0 | AL5: 1 | AM5: 0 | AN5: 0 | AO5: 呼吸性酸中毒；高胆红素血症
A6: 1 | B6: 5 | C6: 1114839 | D6: 29 | E6: 0 | F6: 0 | G6: 0 | H6: 0 | I6: 无 | J6: 无 | K6: 无 | L6: 无 | M6: 无 | N6: 1 | O6: 0 | P6: 0 | Q6: 0 | R6: 0 | S6: 0 | T6: 1 | U6: 1 | V6: 0 | W6: 1 | X6: 0 | Y6: 重度子痫前期；新生儿脐带绕颈；胎盘植入； | Z6: 1 | AA6: 34.6 | AB6: 1 | AC6: 剖宫产 | AD6: 2280 | AE6: 1 | AF6: AGA | AG6: 999 | AH6: ———— | AI6: 0 | AJ6: 0 | AK6: 0 | AL6: 1 | AM6: 0 | AN6: 0 | AO6: 呼吸性酸中毒；高胆红素血症
A7: 1 | B7: 6 | C7: 1125370 | D7: 26 | E7: 0 | F7: 0 | G7: 0 | H7: 0 | I7: 无 | J7: 无 | K7: 无 | L7: 无 | M7: 无 | N7: 0 | O7: 0 | P7: 0 | Q7: 0 | R7: 0 | S7: 0 | T7: 0 | U7: 1 | V7: 0 | W7: 1 | X7: 0 | Y7: 重度子痫前期；妊娠合并甲减；单绒双胎；脐带绕颈一圈 | Z7: 1 | AA7: 34.5 | AB7: 1 | AC7: 剖宫产 | AD7: 2420 | AE7: 1 | AF7: AGA | AG7: 999 | AH7: ———— | AI7: 0 | AJ7: 0 | AK7: 1 | AL7: 1 | AM7: 0 | AN7: 0 | AO7: 呼吸性酸中毒；新生儿低血糖症；高胆红素血症
A8: 1 | B8: 7 | C8: 1076010 | D8: 34 | E8: 0 | F8: 1 | G8: 0 | H8: 1 | I8: 7 | J8: 6.0 | K8: 12.0 | L8: 10.0 | M8: 胰岛素 | N8: 0 | O8: 0 | P8: 1 | Q8: 0 | R8: 0 | S8: 0 | T8: 0 | U8: 1 | V8: 1 | W8: 1 | X8: 0 | Y8: 慢性高血压并发子痫前期；脐带过短；臀先露；宫内生长受限 | Z8: 1 | AA8: 34.4 | AB8: 1 | AC8: 剖宫产 | AD8: 1800 | AE8: 1 | AF8: AGA | AG8: 999 | AH8: ———— | AI8: 0 | AJ8: 0 | AK8: 1 | AL8: 1 | AM8: 0 | AN8: 0 | AO8: 呼吸性酸中毒；高胆红素血症；新生儿低血糖
A9: 1 | B9: 8 | C9: 1116073 | D9: 31 | E9: 0 | F9: 0 | G9: 0 | H9: 0 | I9: 无 | J9: 无 | K9: 无 | L9: 无 | M9: 无 | N9: 0 | O9: 0 | P9: 0 | Q9: 14 | R9: 1 | S9: 0 | T9: 0 | U9: 0 | V9: 0 | W9: 0 | X9: 0 | Y9: 胎膜早破 | Z9: 2 | AA9: 36.2 | AB9: 1 | AC9: 顺产 | AD9: 2880 | AE9: 0 | AF9: AGA | AG9: 999 | AH9: ———— | AI9: 0 | AJ9: 0 | AK9: 0 | AL9: 0 | AM9: 0 | AN9: 0 | AO9: 新生儿败血症；消化道出血；
A10: 1 | B10: 9 | C10: 1022266 | D10: 39 | E10: 1 | F10: 0 | G10: 0 | H10: 0 | I10: 无 | J10: 无 | K10: 无 | L10: 无 | M10: 无 | N10: 0 | O10: 0 | P10: 0 | Q10: 0 | R10: 0 | S10: 0 | T10: 0 | U10: 0 | V10: 0 | W10: 0 | X10: 0 | Y10: 瘢痕子宫； | Z10: 1 | AA10: 37.6 | AB10: 0 | AC10: 剖宫产 | AD10: 3220 | AE10: 0 | AF10: AGA | AG10: 999 | AH10: ———— | AI10: 0 | AJ10: 1 | AK10: 0 | AL10: 0 | AM10: 1 | AN10: 1 | AO10: 先天性肺炎；肺动脉高压；新生儿高血糖；ABO溶血；溶血性贫血
A11: 1 | B11: 10 | C11: 1095068 | D11: 32 | E11: 0 | F11: 0 | G11: 0 | H11: 0 | I11: 无 | J11: 无 | K11: 无 | L11: 无 | M11: 无 | N11: 0 | O11: 0 | P11: 0 | Q11: 0 | R11: 0 | S11: 0 | T11: 0 | U11: 0 | V11: 0 | W11: 0 | X11: 0 | Y11: 先兆子宫破裂；瘢痕子宫； | Z11: 1 | AA11: 36.1 | AB11: 1 | AC11: 剖宫产 | AD11: 2740 | AE11: 0 | AF11: AGA | AG11: 999 | AH11: ———— | AI11: 0 | AJ11: 0 | AK11: 0 | AL11: 1 | AM11: 0 | AN11: 0 | AO11: 高胆红素血症
A12: 1 | B12: 11 | C12: 576873 | D12: 26 | E12: 0 | F12: 1 | G12: 1 | H12: 0 | I12: 24 | J12: 5.1 | K12: 8.5 | L12: 7.9 | M12: 饮食控制 | N12: 0 | O12: 1 | P12: 1 | Q12: 0 | R12: 0 | S12: 0 | T12: 0 | U12: 0 | V12: 0 | W12: 0 | X12: 0 | Y12: 血小板减少；免疫球蛋白缺乏；贫血；疤痕子宫 | Z12: 1 | AA12: 38 | AB12: 0 | AC12: 剖宫产 | AD12: 3570 | AE12: 0 | AF12: AGA | AG12: 818 | AH12: ———— | AI12: 1 | AJ12: 0 | AK12: 0 | AL12: 1 | AM12: 0 | AN12: 0 | AO12: 代谢性酸中毒；呼吸性酸中毒；高胆红素血症；感染
A13: 1 | B13: 12 | C13: 1092315 | D13: 25 | E13: 0 | F13: 0 | G13: 0 | H13: 0 | I13: 无 | J13: 无 | K13: 无 | L13: 无 | M13: 无 | N13: 0 | O13: 1 | P13: 1 | Q13: 0 | R13: 0 | S13: 0 | T13: 1 | U13: 0 | V13: 0 | W13: 0 | X13: 0 | Y13: 胎盘早剥；产后出血 | Z13: 1 | AA13: 34.4 | AB13: 1 | AC13: 剖宫产 | AD13: 2100 | AE13: 1 | AF13: AGA | AG13: 589 | AH13: ———— | AI13: 1 | AJ13: 0 | AK13: 0 | AL13: 1 | AM13: 0 | AN13: 0 | AO13: 代谢性酸中毒；新生儿感染；高胆红素血症
A14: 1 | B14: 13 | C14: 1084739 | D14: 36 | E14: 1 | F14: 0 | G14: 0 | H14: 0 | I14: 无 | J14: 无 | K14: 无 | L14: 无 | M14: 无 | N14: 0 | O14: 0 | P14: 1 | Q14: 0 | R14: 0 | S14: 0 | T14: 0 | U14: 0 | V14: 1 | W14: 1 | X14: 0 | Y14: 慢性高血压并发子痫前期； | Z14: 1 | AA14: 34.3 | AB14: 1 | AC14: 剖宫产 | AD14: 2740 | AE14: 0 | AF14: AGA | AG14: 999 | AH14: ———— | AI14: 0 | AJ14: 0 | AK14: 0 | AL14: 0 | AM14: 0 | AN14: 0 | AO14: 出生窒息；代谢性酸中毒
A15: 1 | B15: 14 | C15: 728742 | D15: 31 | E15: 0 | F15: 0 | G15: 0 | H15: 0 | I15: 无 | J15: 无 | K15: 无 | L15: 无 | M15: 无 | N15: 1 | O15: 0 | P15: 0 | Q15: 0 | R15: 0 | S15: 0 | T15: 1 | U15: 0 | V15: 0 | W15: 0 | X15: 0 | Y15: 胎盘早剥 | Z15: 1 | AA15: 34 | AB15: 1 | AC15: 剖宫产 | AD15: 2120 | AE15: 1 | AF15: AGA | AG15: 999 | AH15: ———— | AI15: 0 | AJ15: 0 | AK15: 0 | AL15: 1 | AM15: 0 | AN15: 0 | AO15: 新生儿肺炎；高胆红素血症；红细胞增多症
A16: 1 | B16: 15 | C16: 1081797 | D16: 39 | E16: 1 | F16: 0 | G16: 0 | H16: 0 | I16: 无 | J16: 无 | K16: 无 | L16: 无 | M16: 无 | N16: 1 | O16: 0 | P16: 0 | Q16: 0 | R16: 0 | S16: 0 | T16: 1 | U16: 0 | V16: 0 | W16: 0 | X16: 0 | Y16: 凶险性前置胎盘伴出血；瘢痕子宫；球拍状胎盘；中度贫血 | Z16: 1 | AA16: 34.6 | AB16: 1 | AC16: 剖宫产 | AD16: 2320 | AE16: 1 | AF16: AGA | AG16: 999 | AH16: ———— | AI16: 0 | AJ16: 0 | AK16: 0 | AL16: 1 | AM16: 0 | AN16: 0 | AO16: 混合型酸中毒；高胆红素血症
A17: 1 | B17: 16 | C17: 1090040 | D17: 30 | E17: 0 | F17: 0 | G17: 0 | H17: 0 | I17: 无 | J17: 无 | K17: 无 | L17: 无 | M17: 无 | N17: 0 | O17: 0 | P17: 0 | Q17: 0 | R17: 0 | S17: 0 | T17: 1 | U17: 0 | V17: 0 | W17: 0 | X17: 0 | Y17: 胎盘早剥；产前出血 | Z17: 2 | AA17: 34.3 | AB17: 1 | AC17: 剖宫产 | AD17: 1930 | AE17: 1 | AF17: AGA | AG17: 899 | AH17: ———— | AI17: 1 | AJ17: 0 | AK17: 0 | AL17: 0 | AM17: 0 | AN17: 0 | AO17: 新生儿感染
A18: 1 | B18: 17 | C18: 1077147 | D18: 39 | E18: 1 | F18: 0 | G18: 0 | H18: 0 | I18: 无 | J18: 无 | K18: 无 | L18: 无 | M18: 无 | N18: 0 | O18: 0 | P18: 0 | Q18: 0 | R18: 0 | S18: 0 | T18: 0 | U18: 1 | V18: 0 | W18: 0 | X18: 1 | Y18: 产前发热；新生儿脐带绕颈一周；NST异常 | Z18: 1 | AA18: 39 | AB18: 0 | AC18: 顺产 | AD18: 3460 | AE18: 0 | AF18: AGA | AG18: 999 | AH18: ———— | AI18: 1 | AJ18: 0 | AK18: 0 | AL18: 0 | AM18: 1 | AN18: 0 | AO18: 新生儿青紫发作；新生儿感染；新生儿持续性肺动脉高压
A19: 1 | B19: 18 | C19: 1076321 | D19: 35 | E19: 1 | F19: 0 | G19: 0 | H19: 0 | I19: 无 | J19: 无 | K19: 无 | L19: 无 | M19: 无 | N19: 0 | O19: 0 | P19: 0 | Q19: 0 | R19: 0 | S19: 0 | T19: 0 | U19: 0 | V19: 0 | W19: 0 | X19: 0 | Y19: 肝功能异常；乙肝病毒携带 | Z19: 1 | AA19: 39.5 | AB19: 0 | AC19: 顺产 | AD19: 3620 | AE19: 0 | AF19: AGA | AG19: 999 | AH19: ———— | AI19: 1 | AJ19: 0 | AK19: 0 | AL19: 1 | AM19: 0 | AN19: 0 | AO19: 新生儿感染；高胆红素血症
A20: 1 | B20: 19 | C20: 1069840 | D20: 27 | E20: 0 | F20: 0 | G20: 0 | H20: 0 | I20: 无 | J20: 无 | K20: 无 | L20: 无 | M20: 无 | N20: 0 | O20: 1 | P20: 0 | Q20: 0 | R20: 0 | S20: 0 | T20: 0 | U20: 0 | V20: 0 | W20: 0 | X20: 0 | Y20: 产后出血；中度贫血；瘢痕子宫 | Z20: 1 | AA20: 36.4 | AB20: 1 | AC20: 顺产 | AD20: 3050 | AE20: 0 | AF20: AGA | AG20: 688 | AH20: ———— | AI20: 1 | AJ20: 0 | AK20: 0 | AL20: 0 | AM20: 0 | AN20: 0 | AO20: 新生儿感染；先天性心脏畸形；ABO溶血
A21: 1 | B21: 20 | C21: 1080371 | D21: 36 | E21: 1 | F21: 0 | G21: 0 | H21: 0 | I21: 无 | J21: 无 | K21: 无 | L21: 无 | M21: 无 | N21: 1 | O21: 0 | P21: 0 | Q21: 0 | R21: 0 | S21: 0 | T21: 1 | U21: 0 | V21: 0 | W21: 0 | X21: 0 | Y21: 急产；妊娠合并亚临床甲减；胎盘粘连 | Z21: 2 | AA21: 34 | AB21: 1 | AC21: 顺产 | AD21: 1920 | AE21: 1 | AF21: AGA | AG21: 999 | AH21: ———— | AI21: 1 | AJ21: 0 | AK21: 0 | AL21: 1 | AM21: 0 | AN21: 0 | AO21: 新生儿感染；混合性酸中毒；高胆红素血症；低钾血症；
A22: 1 | B22: 21 | C22: 1081741 | D22: 30 | E22: 0 | F22: 1 | G22: 1 | H22: 0 | I22: 15 | J22: 5.0 | K22: 10.5 | L22: 7.6 | M22: 饮食控制 | N22: 0 | O22: 0 | P22: 0 | Q22: 0 | R22: 0 | S22: 0 | T22: 0 | U22: 0 | V22: 1 | W22: 0 | X22: 0 | Y22: 产后出血；妊娠期高血压；乙肝小三阳 | Z22: 1 | AA22: 36.5 | AB22: 1 | AC22: 顺产 | AD22: 3400 | AE22: 0 | AF22: LGA | AG22: 999 | AH22: ———— | AI22: 0 | AJ22: 0 | AK22: 0 | AL22: 1 | AM22: 0 | AN22: 0 | AO22: 先天性肺炎；高胆红素血症
A23: 1 | B23: 22 | C23: 1081100 | D23: 33 | E23: 0 | F23: 0 | G23: 0 | H23: 0 | I23: 无 | J23: 无 | K23: 无 | L23: 无 | M23: 无 | N23: 0 | O23: 0 | P23: 0 | Q23: 0 | R23: 0 | S23: 0 | T23: 0 | U23: 0 | V23: 0 | W23: 0 | X23: 0 | Y23: 瘢痕子宫 | Z23: 1 | AA23: 37.1 | AB23: 0 | AC23: 剖宫产 | AD23: 3020 | AE23: 0 | AF23: AGA | AG23: 999 | AH23: ———— | AI23: 1 | AJ23: 0 | AK23: 0 | AL23: 1 | AM23: 0 | AN23: 0 | AO23: ABO溶血；高胆红素血症；新生儿感染
A24: 1 | B24: 24 | C24: 1079422 | D24: 28 | E24: 0 | F24: 0 | G24: 0 | H24: 0 | I24: 无 | J24: 无 | K24: 无 | L24: 无 | M24: 无 | N24: 1 | O24: 0 | P24: 0 | Q24: 0 | R24: 0 | S24: 0 | T24: 0 | U24: 0 | V24: 0 | W24: 1 | X24: 1 | Y24: 产前发热；双绒双胎；胎儿期血流异常；重度子痫前期 | Z24: 1 | AA24: 34 | AB24: 1 | AC24: 剖宫产 | AD24: 2810 | AE24: 0 | AF24: AGA | AG24: 899 | AH24: ———— | AI24: 0 | AJ24: 0 | AK24: 1 | AL24: 0 | AM24: 0 | AN24: 1 | AO24: 呼吸性酸中毒；新生儿低血糖症；新生儿贫血
A25: 1 | B25: 25 | C25: 1079422 | D25: 28 | E25: 0 | F25: 0 | G25: 0 | H25: 0 | I25: 无 | J25: 无 | K25: 无 | L25: 无 | M25: 无 | N25: 1 | O25: 0 | P25: 0 | Q25: 0 | R25: 0 | S25: 0 | T25: 0 | U25: 0 | V25: 0 | W25: 1 | X25: 1 | Y25: 产前发热；双绒双胎；胎儿期血流异常；重度子痫前期 | Z25: 1 | AA25: 34 | AB25: 1 | AC25: 剖宫产 | AD25: 1690 | AE25: 1 | AF25: SGA | AG25: 899 | AH25: ———— | AI25: 0 | AJ25: 1 | AK25: 1 | AL25: 0 | AM25: 0 | AN25: 0 | AO25: 呼吸性酸中毒；新生儿低血糖；高血糖；低钾血症；隐睾；血小板减少；新生儿喂养问题
A26: 1 | B26: 26 | C26: 1075150 | D26: 36 | E26: 1 | F26: 0 | G26: 0 | H26: 0 | I26: 无 | J26: 无 | K26: 无 | L26: 无 | M26: 无 | N26: 1 | O26: 0 | P26: 0 | Q26: 0 | R26: 0 | S26: 0 | T26: 0 | U26: 0 | V26: 1 | W26: 1 | X26: 0 | Y26: 慢性高血压并发子痫前期；疤痕子宫 | Z26: 1 | AA26: 34.5 | AB26: 1 | AC26: 剖宫产 | AD26: 1980 | AE26: 1 | AF26: AGA | AG26: 996 | AH26: ———— | AI26: 1 | AJ26: 1 | AK26: 0 | AL26: 1 | AM26: 1 | AN26: 0 | AO26: 代谢性酸中毒；高胆红素血症；高血糖症；继发性肺动脉高压；新生儿感染
A27: 1 | B27: 27 | C27: 1067777 | D27: 36 | E27: 1 | F27: 0 | G27: 0 | H27: 0 | I27: 无 | J27: 无 | K27: 无 | L27: 无 | M27: 无 | N27: 1 | O27: 0 | P27: 0 | Q27: 0 | R27: 0 | S27: 0 | T27: 1 | U27: 0 | V27: 0 | W27: 0 | X27: 0 | Y27: 完全性胎盘植入；轻度贫血 | Z27: 1 | AA27: 34 | AB27: 1 | AC27: 剖宫产 | AD27: 2000 | AE27: 1 | AF27: AGA | AG27: 999 | AH27: ———— | AI27: 1 | AJ27: 0 | AK27: 1 | AL27: 0 | AM27: 0 | AN27: 0 | AO27: 新生儿低血糖；新生儿感染
A28: 1 | B28: 28 | C28: 1065196 | D28: 27 | E28: 0 | F28: 0 | G28: 0 | H28: 0 | I28: 无 | J28: 无 | K28: 无 | L28: 无 | M28: 无 | N28: 0 | O28: 0 | P28: 1 | Q28: 14 | R28: 1 | S28: 0 | T28: 0 | U28: 0 | V28: 0 | W28: 0 | X28: 0 | Y28: 羊水过少；未足月胎膜早破 | Z28: 1 | AA28: 35.2 | AB28: 1 | AC28: 剖宫产 | AD28: 2610 | AE28: 0 | AF28: AGA | AG28: 999 | AH28: ———— | AI28: 1 | AJ28: 0 | AK28: 0 | AL28: 1 | AM28: 1 | AN28: 0 | AO28: 呼吸性酸中毒；新生儿感染；新生儿持续性肺动脉高压；新生儿高胆红素血症
A29: 1 | B29: 29 | C29: 1063878 | D29: 29 | E29: 0 | F29: 0 | G29: 0 | H29: 0 | I29: 无 | J29: 无 | K29: 无 | L29: 无 | M29: 无 | N29: 0 | O29: 0 | P29: 0 | Q29: 0 | R29: 0 | S29: 0 | T29: 0 | U29: 0 | V29: 0 | W29: 0 | X29: 0 | Y29: 羊水过少 | Z29: 1 | AA29: 36 | AB29: 1 | AC29: 剖宫产 | AD29: 2550 | AE29: 0 | AF29: AGA | AG29: 999 | AH29: ———— | AI29: 0 | AJ29: 0 | AK29: 0 | AL29: 1 | AM29: 0 | AN29: 0 | AO29: 气胸；ABO溶血；高胆红素血症
A30: 1 | B30: 30 | C30: 1060009 | D30: 29 | E30: 0 | F30: 0 | G30: 0 | H30: 0 | I30: 无 | J30: 无 | K30: 无 | L30: 无 | M30: 无 | N30: 0 | O30: 0 | P30: 0 | Q30: 0 | R30: 0 | S30: 0 | T30: 0 | U30: 0 | V30: 0 | W30: 0 | X30: 0 | Y30: 无 | Z30: 1 | AA30: 35.6 | AB30: 1 | AC30: 顺产 | AD30: 2550 | AE30: 0 | AF30: AGA | AG30: 999 | AH30: ———— | AI30: 0 | AJ30: 0 | AK30: 0 | AL30: 1 | AM30: 0 | AN30: 0 | AO30: 肺炎；气胸；高胆红素血症
A31: 1 | B31: 31 | C31: 1004337 | D31: 30 | E31: 0 | F31: 0 | G31: 0 | H31: 0 | I31: 无 | J31: 无 | K31: 无 | L31: 无 | M31: 无 | N31: 0 | O31: 0 | P31: 1 | Q31: 0 | R31: 0 | S31: 0 | T31: 0 | U31: 0 | V31: 0 | W31: 0 | X31: 1 | Y31: 产前发热； | Z31: 1 | AA31: 40.5 | AB31: 0 | AC31: 剖宫产 | AD31: 4050 | AE31: 0 | AF31: LGA | AG31: 999 | AH31: ———— | AI31: 0 | AJ31: 0 | AK31: 0 | AL31: 0 | AM31: 0 | AN31: 0 | AO31: 新生儿败血症；肺炎；混合型酸中毒
A32: 1 | B32: 32 | C32: 1024248 | D32: 30 | E32: 0 | F32: 0 | G32: 0 | H32: 0 | I32: 无 | J32: 无 | K32: 无 | L32: 无 | M32: 无 | N32: 0 | O32: 0 | P32: 1 | Q32: 0 | R32: 0 | S32: 1 | T32: 0 | U32: 1 | V32: 1 | W32: 0 | X32: 0 | Y32: 急性胎儿宫内窘迫；GBS（+）；妊娠期高血压；脐带扭转；脐带过短 | Z32: 2 | AA32: 40.5 | AB32: 0 | AC32: 顺产 | AD32: 3260 | AE32: 0 | AF32: AGA | AG32: 999 | AH32: ———— | AI32: 0 | AJ32: 0 | AK32: 0 | AL32: 1 | AM32: 0 | AN32: 0 | AO32: 新生儿肺炎；高胆红素血症
A33: 1 | B33: 33 | C33: 1068991 | D33: 35 | E33: 1 | F33: 1 | G33: 1 | H33: 0 | I33: 26 | J33: 6.8 | K33: 12.1 | L33: 9.7 | M33: 胰岛素 | N33: 0 | O33: 0 | P33: 0 | Q33: 0 | R33: 0 | S33: 0 | T33: 0 | U33: 1 | V33: 0 | W33: 1 | X33: 0 | Y33: 轻度子痫前期；瘢痕子宫；脐带绕颈一周 | Z33: 2 | AA33: 37.6 | AB33: 0 | AC33: 剖宫产 | AD33: 3210 | AE33: 0 | AF33: AGA | AG33: 999 | AH33: ———— | AI33: 0 | AJ33: 0 | AK33: 0 | AL33: 0 | AM33: 0 | AN33: 0 | AO33: 新生儿败血症；肺炎；混合型酸中毒
A34: 1 | B34: 34 | C34: 1048753 | D34: 31 | E34: 0 | F34: 0 | G34: 0 | H34: 0 | I34: 无 | J34: 无 | K34: 无 | L34: 无 | M34: 无 | N34: 1 | O34: 0 | P34: 1 | Q34: 86.5 | R34: 1 | S34: 0 | T34: 0 | U34: 0 | V34: 0 | W34: 0 | X34: 0 | Y34: 新生儿单脐动脉 | Z34: 1 | AA34: 34 | AB34: 1 | AC34: 剖宫产 | AD34: 2380 | AE34: 1 | AF34: AGA | AG34: 999 | AH34: ———— | AI34: 0 | AJ34: 0 | AK34: 0 | AL34: 0 | AM34: 0 | AN34: 0 | AO34: 无
A35: 1 | B35: 35 | C35: 1033934 | D35: 32 | E35: 0 | F35: 1 | G35: 1 | H35: 0 | I35: 25 | J35: 4.8 | K35: 10.5 | L35: 8.8 | M35: 饮食控制 | N35: 0 | O35: 0 | P35: 0 | Q35: 0 | R35: 0 | S35: 0 | T35: 0 | U35: 0 | V35: 0 | W35: 0 | X35: 0 | Y35: 妊娠期蛋白尿；双绒双羊；双胎生长不一致；一胎SD升高 | Z35: 2 | AA35: 36.5 | AB35: 1 | AC35: 剖宫产 | AD35: 830 | AE35: 1 | AF35: SGA | AG35: 368 | AH35: ———— | AI35: 1 | AJ35: 0 | AK35: 0 | AL35: 0 | AM35: 1 | AN35: 0 | AO35: 持续性肺动脉高压；新生儿感染；红细胞增多症
A36: 1 | B36: 36 | C36: 1036914 | D36: 28 | E36: 0 | F36: 1 | G36: 1 | H36: 0 | I36: 13 | J36: 4.4 | K36: 11.1 | L36: 9.5 | M36: 饮食控制 | N36: 0 | O36: 0 | P36: 0 | Q36: 0 | R36: 0 | S36: 0 | T36: 0 | U36: 0 | V36: 0 | W36: 0 | X36: 0 | Y36: 无 | Z36: 2 | AA36: 37 | AB36: 0 | AC36: 剖宫产 | AD36: 2740 | AE36: 0 | AF36: AGA | AG36: 999 | AH36: ———— | AI36: 0 | AJ36: 0 | AK36: 0 | AL36: 1 | AM36: 0 | AN36: 0 | AO36: 呼吸性酸中毒；新生儿高胆红素血症
A37: 1 | B37: 37 | C37: 1033779 | D37: 29 | E37: 0 | F37: 0 | G37: 0 | H37: 0 | I37: 无 | J37: 无 | K37: 无 | L37: 无 | M37: 无 | N37: 0 | O37: 0 | P37: 0 | Q37: 0 | R37: 0 | S37: 0 | T37: 0 | U37: 0 | V37: 0 | W37: 0 | X37: 1 | Y37: 产前发热；中度贫血 | Z37: 1 | AA37: 40.4 | AB37: 0 | AC37: 顺产 | AD37: 3910 | AE37: 0 | AF37: AGA | AG37: 999 | AH37: ———— | AI37: 1 | AJ37: 0 | AK37: 0 | AL37: 0 | AM37: 0 | AN37: 0 | AO37: 新生儿感染
A38: 1 | B38: 38 | C38: 1035397 | D38: 37 | E38: 1 | F38: 0 | G38: 0 | H38: 0 | I38: 无 | J38: 无 | K38: 无 | L38: 无 | M38: 无 | N38: 1 | O38: 0 | P38: 0 | Q38: 8 | R38: 1 | S38: 0 | T38: 1 | U38: 0 | V38: 0 | W38: 0 | X38: 0 | Y38: 双绒双羊；双胎生长不一致；甲减合并妊娠；球拍状胎盘；一胎NST异常 | Z38: 2 | AA38: 34 | AB38: 1 | AC38: 剖宫产 | AD38: 2290 | AE38: 1 | AF38: SGA | AG38: 999 | AH38: ———— | AI38: 0 | AJ38: 0 | AK38: 0 | AL38: 0 | AM38: 1 | AN38: 0 | AO38: 新生儿肺炎；混合性酸中毒；房间隔缺损；动脉导管未闭；轻度肺动脉高压
A39: 1 | B39: 39 | C39: 753727 | D39: 40 | E39: 1 | F39: 0 | G39: 0 | H39: 0 | I39: 无 | J39: 无 | K39: 无 | L39: 无 | M39: 无 | N39: 1 | O39: 0 | P39: 0 | Q39: 0 | R39: 0 | S39: 0 | T39: 1 | U39: 0 | V39: 0 | W39: 1 | X39: 0 | Y39: 完全性前置胎盘植入；重度子痫前期；单绒双胎；帆状胎盘； | Z39: 2 | AA39: 34 | AB39: 1 | AC39: 剖宫产 | AD39: 1930 | AE39: 1 | AF39: AGA | AG39: 899 | AH39: ———— | AI39: 0 | AJ39: 0 | AK39: 0 | AL39: 0 | AM39: 0 | AN39: 1 | AO39: 呼吸暂停；贫血
A40: 1 | B40: 40 | C40: 753727 | D40: 40 | E40: 1 | F40: 0 | G40: 0 | H40: 0 | I40: 无 | J40: 无 | K40: 无 | L40: 无 | M40: 无 | N40: 1 | O40: 0 | P40: 0 | Q40: 0 | R40: 0 | S40: 0 | T40: 1 | U40: 0 | V40: 0 | W40: 1 | X40: 0 | Y40: 完全性前置胎盘植入；重度子痫前期；单绒双胎；帆状胎盘； | Z40: 2 | AA40: 34 | AB40: 1 | AC40: 剖宫产 | AD40: 1760 | AE40: 1 | AF40: AGA | AG40: 899 | AH40: ———— | AI40: 0 | AJ40: 0 | AK40: 0 | AL40: 0 | AM40: 0 | AN40: 1 | AO40: 呼吸暂停；贫血
A41: 1 | B41: 41 | C41: 1035837 | D41: 27 | E41: 0 | F41: 0 | G41: 0 | H41: 0 | I41: 无 | J41: 无 | K41: 无 | L41: 无 | M41: 无 | N41: 1 | O41: 0 | P41: 0 | Q41: 0 | R41: 0 | S41: 0 | T41: 0 | U41: 0 | V41: 0 | W41: 1 | X41: 0 | Y41: 轻度子痫前期；妊娠合并甲亢；单绒双胎 | Z41: 1 | AA41: 35.3 | AB41: 1 | AC41: 剖宫产 | AD41: 2580 | AE41: 0 | AF41: AGA | AG41: 999 | AH41: ———— | AI41: 0 | AJ41: 0 | AK41: 0 | AL41: 1 | AM41: 0 | AN41: 0 | AO41: 气胸；红细胞增多症；新生儿肺炎；高胆红素血症
A42: 1 | B42: 42 | C42: 1035837 | D42: 27 | E42: 0 | F42: 0 | G42: 0 | H42: 0 | I42: 无 | J42: 无 | K42: 无 | L42: 无 | M42: 无 | N42: 1 | O42: 0 | P42: 0 | Q42: 0 | R42: 0 | S42: 0 | T42: 0 | U42: 0 | V42: 0 | W42: 1 | X42: 0 | Y42: 轻度子痫前期；妊娠合并甲亢；单绒双胎 | Z42: 1 | AA42: 35.3 | AB42: 1 | AC42: 剖宫产 | AD42: 2300 | AE42: 1 | AF42: AGA | AG42: 999 | AH42: ———— | AI42: 0 | AJ42: 0 | AK42: 0 | AL42: 0 | AM42: 0 | AN42: 0 | AO42: 混合型酸中毒；新生儿肺炎；气胸
A43: 1 | B43: 43 | C43: 1032991 | D43: 39 | E43: 1 | F43: 0 | G43: 0 | H43: 0 | I43: 无 | J43: 无 | K43: 无 | L43: 无 | M43: 无 | N43: 0 | O43: 0 | P43: 1 | Q43: 0 | R43: 0 | S43: 0 | T43: 0 | U43: 0 | V43: 0 | W43: 0 | X43: 0 | Y43: 无 | Z43: 2 | AA43: 39 | AB43: 0 | AC43: 顺产 | AD43: 2790 | AE43: 0 | AF43: SGA | AG43: 888 | AH43: ———— | AI43: 0 | AJ43: 0 | AK43: 0 | AL43: 0 | AM43: 0 | AN43: 0 | AO43: 肺静脉异位引流；代谢性酸中毒；气胸
A44: 1 | B44: 44 | C44: 894367 | D44: 33 | E44: 0 | F44: 0 | G44: 0 | H44: 0 | I44: 无 | J44: 无 | K44: 无 | L44: 无 | M44: 无 | N44: 0 | O44: 1 | P44: 1 | Q44: 3 | R44: 1 | S44: 0 | T44: 1 | U44: 1 | V44: 0 | W44: 0 | X44: 0 | Y44: 胎盘早剥；新生儿窒息；新生儿脐带绕颈一周； | Z44: 1 | AA44: 35.5 | AB44: 1 | AC44: 剖宫产 | AD44: 2770 | AE44: 0 | AF44: AGA | AG44: 488 | AH44: ———— | AI44: 0 | AJ44: 0 | AK44: 0 | AL44: 1 | AM44: 0 | AN44: 0 | AO44: 高胆红素血症；中毒性红斑；混合性酸中毒
A45: 1 | B45: 45 | C45: 1029385 | D45: 31 | E45: 0 | F45: 0 | G45: 0 | H45: 0 | I45: 无 | J45: 无 | K45: 无 | L45: 无 | M45: 无 | N45: 0 | O45: 1 | P45: 0 | Q45: 0 | R45: 0 | S45: 0 | T45: 0 | U45: 0 | V45: 0 | W45: 0 | X45: 0 | Y45: 疤痕子宫 | Z45: 2 | AA45: 37 | AB45: 0 | AC45: 剖宫产 | AD45: 3110 | AE45: 0 | AF45: AGA | AG45: 999 | AH45: ———— | AI45: 0 | AJ45: 0 | AK45: 0 | AL45: 0 | AM45: 1 | AN45: 0 | AO45: 先天性肺动脉高压
A46: 1 | B46: 46 | C46: 1027998 | D46: 33 | E46: 0 | F46: 0 | G46: 0 | H46: 0 | I46: 无 | J46: 无 | K46: 无 | L46: 无 | M46: 无 | N46: 0 | O46: 1 | P46: 0 | Q46: 0 | R46: 0 | S46: 0 | T46: 0 | U46: 0 | V46: 0 | W46: 0 | X46: 0 | Y46: 双绒双胎 | Z46: 2 | AA46: 35.2 | AB46: 1 | AC46: 剖宫产 | AD46: 2010 | AE46: 1 | AF46: AGA | AG46: 888 | AH46: ———— | AI46: 1 | AJ46: 0 | AK46: 0 | AL46: 0 | AM46: 1 | AN46: 0 | AO46: 持续性肺动脉高压；新生儿感染；红细胞增多症
A47: 1 | B47: 47 | C47: 1027998 | D47: 33 | E47: 0 | F47: 0 | G47: 0 | H47: 0 | I47: 无 | J47: 无 | K47: 无 | L47: 无 | M47: 无 | N47: 0 | O47: 1 | P47: 0 | Q47: 0 | R47: 0 | S47: 0 | T47: 0 | U47: 0 | V47: 0 | W47: 0 | X47: 0 | Y47: 双绒双胎 | Z47: 1 | AA47: 35.2 | AB47: 1 | AC47: 剖宫产 | AD47: 2300 | AE47: 1 | AF47: AGA | AG47: 888 | AH47: ———— | AI47: 1 | AJ47: 0 | AK47: 0 | AL47: 0 | AM47: 0 | AN47: 0 | AO47: 新生儿感染
A48: 1 | B48: 48 | C48: 747824 | D48: 29 | E48: 0 | F48: 0 | G48: 0 | H48: 0 | I48: 无 | J48: 无 | K48: 无 | L48: 无 | M48: 无 | N48: 0 | O48: 0 | P48: 0 | Q48: 0 | R48: 0 | S48: 0 | T48: 1 | U48: 0 | V48: 0 | W48: 1 | X48: 0 | Y48: 重度子痫前期；双绒双胎；轻度贫血；帆状胎盘 | Z48: 1 | AA48: 34.1 | AB48: 1 | AC48: 剖宫产 | AD48: 2200 | AE48: 1 | AF48: AGA | AG48: 999 | AH48: ———— | AI48: 1 | AJ48: 0 | AK48: 0 | AL48: 0 | AM48: 0 | AN48: 1 | AO48: 泌尿系统感染；呼吸暂停；贫血；喂养不耐受
A49: 1 | B49: 49 | C49: 747824 | D49: 29 | E49: 0 | F49: 0 | G49: 0 | H49: 0 | I49: 无 | J49: 无 | K49: 无 | L49: 无 | M49: 无 | N49: 0 | O49: 0 | P49: 0 | Q49: 0 | R49: 0 | S49: 0 | T49: 1 | U49: 0 | V49: 0 | W49: 1 | X49: 0 | Y49: 重度子痫前期；双绒双胎；轻度贫血；球拍状胎盘 | Z49: 1 | AA49: 34.1 | AB49: 1 | AC49: 剖宫产 | AD49: 2730 | AE49: 0 | AF49: AGA | AG49: 999 | AH49: ———— | AI49: 0 | AJ49: 0 | AK49: 0 | AL49: 1 | AM49: 0 | AN49: 0 | AO49: 呼吸暂停；新生儿高胆红素血症
A50: 1 | B50: 50 | C50: 717168 | D50: 30 | E50: 0 | F50: 0 | G50: 0 | H50: 0 | I50: 无 | J50: 无 | K50: 无 | L50: 无 | M50: 无 | N50: 1 | O50: 0 | P50: 0 | Q50: 0 | R50: 0 | S50: 0 | T50: 0 | U50: 0 | V50: 0 | W50: 0 | X50: 0 | Y50: 无 | Z50: 2 | AA50: 34 | AB50: 1 | AC50: 剖宫产 | AD50: 2220 | AE50: 1 | AF50: AGA | AG50: 999 | AH50: ———— | AI50: 0 | AJ50: 0 | AK50: 0 | AL50: 0 | AM50: 0 | AN50: 1 | AO50: 呼吸暂停；贫血
A51: 1 | B51: 51 | C51: 1024578 | D51: 33 | E51: 0 | F51: 0 | G51: 0 | H51: 0 | I51: 无 | J51: 无 | K51: 无 | L51: 无 | M51: 无 | N51: 0 | O51: 0 | P51: 0 | Q51: 6 | R51: 1 | S51: 1 | T51: 1 | U51: 0 | V51: 0 | W51: 0 | X51: 0 | Y51: PROM；双绒双胎；GBS（+）；球拍状胎盘 | Z51: 2 | AA51: 36 | AB51: 1 | AC51: 剖宫产 | AD51: 2140 | AE51: 1 | AF51: AGA | AG51: 999 | AH51: ———— | AI51: 0 | AJ51: 0 | AK51: 0 | AL51: 1 | AM51: 0 | AN51: 0 | AO51: ABO溶血；高胆红素血症
A52: 1 | B52: 52 | C52: 1019390 | D52: 33 | E52: 0 | F52: 0 | G52: 0 | H52: 0 | I52: 无 | J52: 无 | K52: 无 | L52: 无 | M52: 无 | N52: 0 | O52: 0 | P52: 0 | Q52: 0 | R52: 0 | S52: 0 | T52: 1 | U52: 0 | V52: 0 | W52: 0 | X52: 0 | Y52: 完全性前置胎盘；胎盘植入；产后出血 | Z52: 2 | AA52: 37.5 | AB52: 0 | AC52: 剖宫产 | AD52: 2720 | AE52: 0 | AF52: AGA | AG52: 999 | AH52: ———— | AI52: 0 | AJ52: 0 | AK52: 0 | AL52: 0 | AM52: 0 | AN52: 0 | AO52: 纵膈气肿；新生儿肺炎
A53: 1 | B53: 53 | C53: 1023318 | D53: 27 | E53: 0 | F53: 0 | G53: 0 | H53: 0 | I53: 无 | J53: 无 | K53: 无 | L53: 无 | M53: 无 | N53: 0 | O53: 0 | P53: 0 | Q53: 0 | R53: 0 | S53: 0 | T53: 0 | U53: 1 | V53: 0 | W53: 0 | X53: 0 | Y53: 新生儿脐带绕颈一周； | Z53: 1 | AA53: 40.1 | AB53: 0 | AC53: 顺产 | AD53: 3660 | AE53: 0 | AF53: AGA | AG53: 999 | AH53: ———— | AI53: 0 | AJ53: 0 | AK53: 0 | AL53: 1 | AM53: 0 | AN53: 0 | AO53: 肺炎；高胆红素血症
A54: 1 | B54: 54 | C54: 751727 | D54: 33 | E54: 0 | F54: 0 | G54: 0 | H54: 0 | I54: 无 | J54: 无 | K54: 无 | L54: 无 | M54: 无 | N54: 0 | O54: 1 | P54: 0 | Q54: 0 | R54: 0 | S54: 0 | T54: 1 | U54: 0 | V54: 0 | W54: 0 | X54: 0 | Y54: 凶险性前置胎盘；胎盘植入；轻度贫血；疤痕子宫 | Z54: 1 | AA54: 35.6 | AB54: 1 | AC54: 剖宫产 | AD54: 2710 | AE54: 0 | AF54: AGA | AG54: 588 | AH54: ———— | AI54: 0 | AJ54: 0 | AK54: 0 | AL54: 0 | AM54: 0 | AN54: 0 | AO54: 混合性酸中毒
A55: 1 | B55: 55 | C55: 1019085 | D55: 33 | E55: 0 | F55: 0 | G55: 0 | H55: 0 | I55: 无 | J55: 无 | K55: 无 | L55: 无 | M55: 无 | N55: 1 | O55: 0 | P55: 1 | Q55: 45 | R55: 1 | S55: 0 | T55: 1 | U55: 0 | V55: 0 | W55: 0 | X55: 0 | Y55: PROM；疤痕子宫；胎盘粘连 | Z55: 1 | AA55: 34.5 | AB55: 1 | AC55: 剖宫产 | AD55: 2570 | AE55: 0 | AF55: AGA | AG55: 999 | AH55: ———— | AI55: 0 | AJ55: 0 | AK55: 0 | AL55: 1 | AM55: 0 | AN55: 0 | AO55: 新生儿呼吸性酸中毒；高胆红素血症
A56: 1 | B56: 56 | C56: 1020454 | D56: 26 | E56: 0 | F56: 0 | G56: 0 | H56: 0 | I56: 无 | J56: 无 | K56: 无 | L56: 无 | M56: 无 | N56: 0 | O56: 0 | P56: 0 | Q56: 0 | R56: 0 | S56: 0 | T56: 0 | U56: 1 | V56: 0 | W56: 0 | X56: 0 | Y56: 脐带绕颈一周 | Z56: 1 | AA56: 34.6 | AB56: 1 | AC56: 顺产 | AD56: 2500 | AE56: 0 | AF56: AGA | AG56: 999 | AH56: ———— | AI56: 0 | AJ56: 0 | AK56: 0 | AL56: 1 | AM56: 0 | AN56: 0 | AO56: 呼吸性酸中毒；高胆红素血症
A57: 1 | B57: 57 | C57: 1015359 | D57: 27 | E57: 0 | F57: 0 | G57: 0 | H57: 0 | I57: 无 | J57: 无 | K57: 无 | L57: 无 | M57: 无 | N57: 0 | O57: 0 | P57: 0 | Q57: 6w9h | R57: 1 | S57: 0 | T57: 0 | U57: 0 | V57: 0 | W57: 0 | X57: 0 | Y57: 双绒双胎 | Z57: 2 | AA57: 34.1 | AB57: 1 | AC57: 剖宫产 | AD57: 3140 | AE57: 0 | AF57: AGA | AG57: 999 | AH57: ———— | AI57: 0 | AJ57: 0 | AK57: 0 | AL57: 1 | AM57: 0 | AN57: 0 | AO57: 呼吸性酸中毒；高胆红素血症
A58: 1 | B58: 58 | C58: 1019064 | D58: 29 | E58: 0 | F58: 0 | G58: 0 | H58: 0 | I58: 无 | J58: 无 | K58: 无 | L58: 无 | M58: 无 | N58: 0 | O58: 0 | P58: 0 | Q58: 0 | R58: 0 | S58: 0 | T58: 0 | U58: 0 | V58: 0 | W58: 0 | X58: 0 | Y58: 双绒双胎 | Z58: 1 | AA58: 34.5 | AB58: 1 | AC58: 剖宫产 | AD58: 2470 | AE58: 1 | AF58: AGA | AG58: 999 | AH58: ———— | AI58: 0 | AJ58: 0 | AK58: 0 | AL58: 1 | AM58: 0 | AN58: 0 | AO58: 高胆红素血症
A59: 1 | B59: 59 | C59: 749422 | D59: 35 | E59: 1 | F59: 1 | G59: 1 | H59: 0 | I59: 18 | J59: 4.2 | K59: 9.4 | L59: 9.3 | M59: 饮食控制 | N59: 0 | O59: 1 | P59: 0 | Q59: 0 | R59: 0 | S59: 0 | T59: 0 | U59: 1 | V59: 0 | W59: 0 | X59: 0 | Y59: 新生儿脐带绕颈一周；疤痕子宫；不良孕产史 | Z59: 1 | AA59: 36.4 | AB59: 1 | AC59: 剖宫产 | AD59: 2950 | AE59: 0 | AF59: AGA | AG59: 959 | AH59: ———— | AI59: 0 | AJ59: 0 | AK59: 0 | AL59: 1 | AM59: 0 | AN59: 0 | AO59: 高胆红素血症，混合性酸中毒
A60: 1 | B60: 60 | C60: 1017639 | D60: 29 | E60: 0 | F60: 0 | G60: 0 | H60: 0 | I60: 无 | J60: 无 | K60: 无 | L60: 无 | M60: 无 | N60: 0 | O60: 1 | P60: 1 | Q60: 0 | R60: 0 | S60: 1 | T60: 0 | U60: 0 | V60: 0 | W60: 0 | X60: 0 | Y60: GBS（+） | Z60: 1 | AA60: 40.4 | AB60: 0 | AC60: 顺产 | AD60: 3670 | AE60: 0 | AF60: AGA | AG60: 799 | AH60: ———— | AI60: 1 | AJ60: 0 | AK60: 0 | AL60: 0 | AM60: 0 | AN60: 0 | AO60: 新生儿感染；凝血功能障碍
A61: 1 | B61: 61 | C61: 747743 | D61: 41 | E61: 1 | F61: 0 | G61: 0 | H61: 0 | I61: 无 | J61: 无 | K61: 无 | L61: 无 | M61: 无 | N61: 0 | O61: 0 | P61: 0 | Q61: 7 | R61: 1 | S61: 0 | T61: 0 | U61: 0 | V61: 0 | W61: 0 | X61: 0 | Y61: 无 | Z61: 2 | AA61: 35 | AB61: 1 | AC61: 顺产 | AD61: 2970 | AE61: 0 | AF61: AGA | AG61: 999 | AH61: ———— | AI61: 0 | AJ61: 0 | AK61: 0 | AL61: 1 | AM61: 0 | AN61: 0 | AO61: 呼吸性酸中毒；高胆红素血症
A62: 1 | B62: 62 | C62: 749840 | D62: 37 | E62: 1 | F62: 1 | G62: 1 | H62: 0 | I62: 13 | J62: 4.7 | K62: 9.9 | L62: 9.8 | M62: 饮食控制 | N62: 0 | O62: 0 | P62: 1 | Q62: 0 | R62: 0 | S62: 0 | T62: 0 | U62: 0 | V62: 0 | W62: 0 | X62: 0 | Y62: 无 | Z62: 2 | AA62: 35.2 | AB62: 1 | AC62: 顺产 | AD62: 2650 | AE62: 0 | AF62: AGA | AG62: 999 | AH62: ———— | AI62: 0 | AJ62: 0 | AK62: 0 | AL62: 1 | AM62: 0 | AN62: 0 | AO62: 呼吸性酸中毒；高胆红素血症
A63: 1 | B63: 63 | C63: 1013577 | D63: 32 | E63: 0 | F63: 0 | G63: 0 | H63: 0 | I63: 无 | J63: 无 | K63: 无 | L63: 无 | M63: 无 | N63: 0 | O63: 0 | P63: 0 | Q63: 0 | R63: 0 | S63: 0 | T63: 0 | U63: 0 | V63: 0 | W63: 1 | X63: 0 | Y63: 重度子痫前期；双绒双胎；瘢痕子宫 | Z63: 2 | AA63: 34.2 | AB63: 1 | AC63: 剖宫产 | AD63: 1830 | AE63: 1 | AF63: AGA | AG63: 998 | AH63: ———— | AI63: 0 | AJ63: 0 | AK63: 0 | AL63: 1 | AM63: 0 | AN63: 0 | AO63: 呼吸性酸中毒；新生儿高胆红素血症
A64: 1 | B64: 64 | C64: 1011455 | D64: 32 | E64: 0 | F64: 0 | G64: 0 | H64: 0 | I64: 无 | J64: 无 | K64: 无 | L64: 无 | M64: 无 | N64: 0 | O64: 0 | P64: 1 | Q64: 0 | R64: 0 | S64: 0 | T64: 0 | U64: 0 | V64: 0 | W64: 0 | X64: 0 | Y64: 双绒双胎；一胎FGR； | Z64: 1 | AA64: 36.3 | AB64: 1 | AC64: 剖宫产 | AD64: 2560 | AE64: 0 | AF64: AGA | AG64: 998 | AH64: ———— | AI64: 0 | AJ64: 0 | AK64: 0 | AL64: 1 | AM64: 0 | AN64: 0 | AO64: 呼吸性酸中毒；新生儿高胆红素血症
A65: 1 | B65: 65 | C65: 749124 | D65: 26 | E65: 0 | F65: 0 | G65: 0 | H65: 0 | I65: 无 | J65: 无 | K65: 无 | L65: 无 | M65: 无 | N65: 0 | O65: 1 | P65: 1 | Q65: 9 | R65: 1 | S65: 0 | T65: 0 | U65: 0 | V65: 0 | W65: 0 | X65: 1 | Y65: 产时发热 | Z65: 1 | AA65: 35.2 | AB65: 1 | AC65: 顺产 | AD65: 2720 | AE65: 0 | AF65: AGA | AG65: 588 | AH65: ———— | AI65: 0 | AJ65: 0 | AK65: 0 | AL65: 0 | AM65: 0 | AN65: 0 | AO65: 代偿性代谢性酸中毒；
A66: 1 | B66: 66 | C66: 747282 | D66: 26 | E66: 0 | F66: 1 | G66: 1 | H66: 0 | I66: 16 | J66: 4.2 | K66: 11.1 | L66: 9.5 | M66: 饮食控制 | N66: 0 | O66: 0 | P66: 0 | Q66: 0 | R66: 0 | S66: 0 | T66: 0 | U66: 1 | V66: 0 | W66: 0 | X66: 0 | Y66: 单绒三胎；脐带绕颈一圈 | Z66: 2 | AA66: 34 | AB66: 1 | AC66: 剖宫产 | AD66: 1810 | AE66: 1 | AF66: AGA | AG66: 999 | AH66: ———— | AI66: 0 | AJ66: 0 | AK66: 0 | AL66: 0 | AM66: 0 | AN66: 0 | AO66: 混合性酸中毒；
A67: 1 | B67: 67 | C67: 747282 | D67: 26 | E67: 0 | F67: 1 | G67: 1 | H67: 0 | I67: 16 | J67: 4.2 | K67: 11.1 | L67: 9.5 | M67: 饮食控制 | N67: 0 | O67: 0 | P67: 0 | Q67: 0 | R67: 0 | S67: 0 | T67: 0 | U67: 0 | V67: 0 | W67: 0 | X67: 0 | Y67: 单绒三胎； | Z67: 2 | AA67: 34 | AB67: 1 | AC67: 剖宫产 | AD67: 1580 | AE67: 1 | AF67: SGA | AG67: 999 | AH67: ———— | AI67: 0 | AJ67: 0 | AK67: 0 | AL67: 0 | AM67: 0 | AN67: 0 | AO67: 呼吸性酸中毒；卵圆孔未闭；动脉导管未闭；脑积水；脐疝
A68: 1 | B68: 68 | C68: 747282 | D68: 26 | E68: 0 | F68: 1 | G68: 1 | H68: 0 | I68: 16 | J68: 4.2 | K68: 11.1 | L68: 9.5 | M68: 饮食控制 | N68: 0 | O68: 0 | P68: 0 | Q68: 0 | R68: 0 | S68: 0 | T68: 0 | U68: 0 | V68: 0 | W68: 0 | X68: 0 | Y68: 单绒三胎； | Z68: 2 | AA68: 34 | AB68: 1 | AC68: 剖宫产 | AD68: 1600 | AE68: 1 | AF68: SGA | AG68: 999 | AH68: ———— | AI68: 0 | AJ68: 0 | AK68: 0 | AL68: 0 | AM68: 0 | AN68: 0 | AO68: 混合性酸中毒；动脉导管未闭；卵圆孔未闭；呼吸暂停；脐疝
A69: 1 | B69: 69 | C69: 747822 | D69: 28 | E69: 0 | F69: 0 | G69: 0 | H69: 0 | I69: 无 | J69: 无 | K69: 无 | L69: 无 | M69: 无 | N69: 1 | O69: 0 | P69: 0 | Q69: 0 | R69: 0 | S69: 0 | T69: 0 | U69: 0 | V69: 0 | W69: 1 | X69: 0 | Y69: 重度子痫前期；轻度贫血 | Z69: 1 | AA69: 34.2 | AB69: 1 | AC69: 剖宫产 | AD69: 2250 | AE69: 1 | AF69: AGA | AG69: 999 | AH69: ———— | AI69: 0 | AJ69: 0 | AK69: 0 | AL69: 1 | AM69: 0 | AN69: 0 | AO69: 高胆红素血症
A70: 1 | B70: 70 | C70: 1012299 | D70: 32 | E70: 0 | F70: 0 | G70: 0 | H70: 0 | I70: 无 | J70: 无 | K70: 无 | L70: 无 | M70: 无 | N70: 0 | O70: 0 | P70: 0 | Q70: 0 | R70: 0 | S70: 0 | T70: 0 | U70: 0 | V70: 0 | W70: 0 | X70: 0 | Y70: 血小板减少； | Z70: 1 | AA70: 35.1 | AB70: 1 | AC70: 顺产 | AD70: 2480 | AE70: 1 | AF70: AGA | AG70: 999 | AH70: ———— | AI70: 1 | AJ70: 0 | AK70: 0 | AL70: 0 | AM70: 0 | AN70: 0 | AO70: 新生儿感染；呼吸性酸中毒
A71: 1 | B71: 71 | C71: 1002517 | D71: 28 | E71: 0 | F71: 0 | G71: 0 | H71: 0 | I71: 无 | J71: 无 | K71: 无 | L71: 无 | M71: 无 | N71: 0 | O71: 0 | P71: 0 | Q71: 0 | R71: 0 | S71: 0 | T71: 0 | U71: 0 | V71: 0 | W71: 1 | X71: 0 | Y71: 轻度子痫前期 | Z71: 2 | AA71: 38.1 | AB71: 0 | AC71: 剖宫产 | AD71: 3900 | AE71: 0 | AF71: LGA | AG71: 999 | AH71: ———— | AI71: 1 | AJ71: 0 | AK71: 0 | AL71: 0 | AM71: 1 | AN71: 0 | AO71: 新生儿感染；肺动脉高压
A72: 1 | B72: 72 | C72: 747646 | D72: 30 | E72: 0 | F72: 0 | G72: 0 | H72: 0 | I72: 无 | J72: 无 | K72: 无 | L72: 无 | M72: 无 | N72: 0 | O72: 0 | P72: 1 | Q72: 0 | R72: 0 | S72: 0 | T72: 0 | U72: 0 | V72: 0 | W72: 0 | X72: 0 | Y72: 中度贫血 | Z72: 2 | AA72: 38.6 | AB72: 0 | AC72: 顺产 | AD72: 3600 | AE72: 0 | AF72: AGA | AG72: 999 | AH72: ———— | AI72: 0 | AJ72: 0 | AK72: 0 | AL72: 1 | AM72: 0 | AN72: 0 | AO72: 新生儿肺炎；高胆红素血症
A73: 1 | B73: 73 | C73: 746507 | D73: 31 | E73: 0 | F73: 0 | G73: 0 | H73: 0 | I73: 无 | J73: 无 | K73: 无 | L73: 无 | M73: 无 | N73: 0 | O73: 1 | P73: 1 | Q73: 0 | R73: 0 | S73: 0 | T73: 0 | U73: 0 | V73: 0 | W73: 0 | X73: 0 | Y73: 不良孕产史； | Z73: 1 | AA73: 35.4 | AB73: 1 | AC73: 剖宫产 | AD73: 2800 | AE73: 0 | AF73: AGA | AG73: 578 | AH73: ———— | AI73: 1 | AJ73: 0 | AK73: 0 | AL73: 0 | AM73: 0 | AN73: 0 | AO73: 新生儿感染；呼吸性酸中毒；代谢性酸中毒；先天性神经肌肉疾病
A74: 1 | B74: 74 | C74: 747504 | D74: 27 | E74: 0 | F74: 0 | G74: 0 | H74: 0 | I74: 无 | J74: 无 | K74: 无 | L74: 无 | M74: 无 | N74: 0 | O74: 0 | P74: 0 | Q74: 0 | R74: 0 | S74: 0 | T74: 0 | U74: 0 | V74: 0 | W74: 0 | X74: 0 | Y74: 无 | Z74: 2 | AA74: 34.3 | AB74: 1 | AC74: 剖宫产 | AD74: 2570 | AE74: 0 | AF74: AGA | AG74: 999 | AH74: ———— | AI74: 0 | AJ74: 0 | AK74: 0 | AL74: 1 | AM74: 0 | AN74: 0 | AO74: 呼吸性酸中毒；高胆红素血症
A75: 1 | B75: 75 | C75: 1010357 | D75: 43 | E75: 1 | F75: 0 | G75: 0 | H75: 0 | I75: 无 | J75: 无 | K75: 无 | L75: 无 | M75: 无 | N75: 0 | O75: 0 | P75: 0 | Q75: 0 | R75: 0 | S75: 0 | T75: 0 | U75: 0 | V75: 0 | W75: 0 | X75: 0 | Y75: 疤痕子宫；乙肝病毒携带；多次人流史 | Z75: 2 | AA75: 37.2 | AB75: 0 | AC75: 剖宫产 | AD75: 3570 | AE75: 0 | AF75: AGA | AG75: 999 | AH75: ———— | AI75: 0 | AJ75: 0 | AK75: 0 | AL75: 0 | AM75: 1 | AN75: 0 | AO75: 肺动脉高压；呼吸性酸中毒
A76: 1 | B76: 76 | C76: 1007992 | D76: 31 | E76: 0 | F76: 0 | G76: 0 | H76: 0 | I76: 无 | J76: 无 | K76: 无 | L76: 无 | M76: 无 | N76: 0 | O76: 0 | P76: 0 | Q76: 0 | R76: 0 | S76: 0 | T76: 1 | U76: 0 | V76: 1 | W76: 0 | X76: 0 | Y76: 羊水偏少；妊娠期高血压；球拍状胎盘 | Z76: 2 | AA76: 40.1 | AB76: 0 | AC76: 顺产 | AD76: 3220 | AE76: 0 | AF76: AGA | AG76: 899 | AH76: ———— | AI76: 1 | AJ76: 0 | AK76: 0 | AL76: 0 | AM76: 0 | AN76: 0 | AO76: 新生儿感染
A77: 1 | B77: 77 | C77: 1006953 | D77: 27 | E77: 0 | F77: 0 | G77: 0 | H77: 0 | I77: 无 | J77: 无 | K77: 无 | L77: 无 | M77: 无 | N77: 0 | O77: 0 | P77: 1 | Q77: 0 | R77: 0 | S77: 0 | T77: 0 | U77: 0 | V77: 0 | W77: 0 | X77: 0 | Y77: 无 | Z77: 2 | AA77: 39.4 | AB77: 0 | AC77: 顺产 | AD77: 3100 | AE77: 0 | AF77: AGA | AG77: 999 | AH77: ———— | AI77: 0 | AJ77: 1 | AK77: 0 | AL77: 1 | AM77: 0 | AN77: 0 | AO77: 新生儿高血糖；新生儿肺炎；呼吸性酸中毒；高胆红素血症
A78: 1 | B78: 78 | C78: 744626 | D78: 20 | E78: 0 | F78: 0 | G78: 0 | H78: 0 | I78: 无 | J78: 无 | K78: 无 | L78: 无 | M78: 无 | N78: 1 | O78: 0 | P78: 0 | Q78: 0 | R78: 0 | S78: 0 | T78: 1 | U78: 0 | V78: 0 | W78: 1 | X78: 0 | Y78: 胎盘早剥；重度子痫前期；胎盘植入；FGR | Z78: 1 | AA78: 34.2 | AB78: 1 | AC78: 剖宫产 | AD78: 1610 | AE78: 1 | AF78: SGA | AG78: 999 | AH78: ———— | AI78: 1 | AJ78: 0 | AK78: 0 | AL78: 1 | AM78: 0 | AN78: 0 | AO78: 呼吸性酸中毒；高胆红素血症；房间隔缺损；右手软组织感染
A79: 1 | B79: 79 | C79: 744078 | D79: 27 | E79: 0 | F79: 0 | G79: 0 | H79: 0 | I79: 无 | J79: 无 | K79: 无 | L79: 无 | M79: 无 | N79: 0 | O79: 0 | P79: 0 | Q79: 4 | R79: 1 | S79: 0 | T79: 1 | U79: 0 | V79: 1 | W79: 0 | X79: 0 | Y79: 帆状胎盘；妊娠期高血压； | Z79: 1 | AA79: 37.2 | AB79: 0 | AC79: 顺产 | AD79: 3040 | AE79: 0 | AF79: AGA | AG79: 999 | AH79: ———— | AI79: 1 | AJ79: 0 | AK79: 0 | AL79: 0 | AM79: 1 | AN79: 0 | AO79: 持续性肺动脉高压；新生儿感染；红细胞增多症
A80: 1 | B80: 80 | C80: 1003296 | D80: 36 | E80: 1 | F80: 0 | G80: 0 | H80: 0 | I80: 无 | J80: 无 | K80: 无 | L80: 无 | M80: 无 | N80: 0 | O80: 0 | P80: 0 | Q80: 0 | R80: 0 | S80: 0 | T80: 0 | U80: 0 | V80: 0 | W80: 0 | X80: 0 | Y80: 疤痕子宫；心率失常 | Z80: 2 | AA80: 38.5 | AB80: 0 | AC80: 剖宫产 | AD80: 3140 | AE80: 0 | AF80: AGA | AG80: 999 | AH80: ———— | AI80: 0 | AJ80: 0 | AK80: 0 | AL80: 0 | AM80: 1 | AN80: 0 | AO80: 红细胞增多症；肺动脉高压；动脉导管未闭；卵圆孔未闭
A81: 1 | B81: 81 | C81: 1002742 | D81: 32 | E81: 0 | F81: 1 | G81: 1 | H81: 0 | I81: 23 | J81: 5.6 | K81: 8.4 | L81: 5.4 | M81: 饮食控制 | N81: 0 | O81: 0 | P81: 0 | Q81: 0 | R81: 0 | S81: 0 | T81: 0 | U81: 0 | V81: 0 | W81: 0 | X81: 0 | Y81: 妊娠期糖尿病；疤痕子宫 | Z81: 1 | AA81: 38.6 | AB81: 0 | AC81: 剖宫产 | AD81: 3820 | AE81: 0 | AF81: LGA | AG81: 999 | AH81: ———— | AI81: 0 | AJ81: 0 | AK81: 0 | AL81: 1 | AM81: 0 | AN81: 0 | AO81: 高胆红素血症
A82: 1 | B82: 82 | C82: 1098849 | D82: 42 | E82: 1 | F82: 0 | G82: 0 | H82: 0 | I82: 无 | J82: 无 | K82: 无 | L82: 无 | M82: 无 | N82: 1 | O82: 0 | P82: 0 | Q82: 0 | R82: 0 | S82: 0 | T82: 1 | U82: 0 | V82: 1 | W82: 1 | X82: 0 | Y82: 慢性高血压并发子痫前期；双绒双胎；双胎FGR；胎盘植入；妊娠合并贫血 | Z82: 2 | AA82: 35 | AB82: 1 | AC82: 剖宫产 | AD82: 1230 | AE82: 1 | AF82: SGA | AG82: 999 | AH82: ———— | AI82: 0 | AJ82: 0 | AK82: 1 | AL82: 0 | AM82: 0 | AN82: 0 | AO82: 新生儿低血糖；呼吸性酸中毒
A83: 1 | B83: 83 | C83: 1098849 | D83: 42 | E83: 1 | F83: 0 | G83: 0 | H83: 0 | I83: 无 | J83: 无 | K83: 无 | L83: 无 | M83: 无 | N83: 1 | O83: 0 | P83: 0 | Q83: 0 | R83: 0 | S83: 0 | T83: 1 | U83: 0 | V83: 1 | W83: 1 | X83: 0 | Y83: 慢性高血压并发子痫前期；双绒双胎；双胎FGR；胎盘植入；妊娠合并贫血 | Z83: 1 | AA83: 35 | AB83: 1 | AC83: 剖宫产 | AD83: 1970 | AE83: 1 | AF83: SGA | AG83: 999 | AH83: ———— | AI83: 0 | AJ83: 0 | AK83: 1 | AL83: 0 | AM83: 0 | AN83: 0 | AO83: 新生儿低血糖；呼吸性酸中毒
A84: 1 | B84: 84 | C84: 1109362 | D84: 26 | E84: 0 | F84: 1 | G84: 1 | H84: 0 | I84: 16 | J84: 4.2 | K84: 12.5 | L84: 9.5 | M84: 饮食控制 | N84: 0 | O84: 0 | P84: 0 | Q84: 0 | R84: 0 | S84: 0 | T84: 0 | U84: 0 | V84: 0 | W84: 0 | X84: 0 | Y84: 无 | Z84: 2 | AA84: 37 | AB84: 0 | AC84: 剖宫产 | AD84: 2740 | AE84: 0 | AF84: AGA | AG84: 999 | AH84: ———— | AI84: 0 | AJ84: 0 | AK84: 0 | AL84: 1 | AM84: 0 | AN84: 0 | AO84: 呼吸性酸中毒；新生儿高胆红素血症
A85: 1 | B85: 85 | C85: 1109248 | D85: 28 | E85: 0 | F85: 0 | G85: 0 | H85: 0 | I85: 无 | J85: 无 | K85: 无 | L85: 无 | M85: 无 | N85: 1 | O85: 0 | P85: 0 | Q85: 0 | R85: 0 | S85: 0 | T85: 0 | U85: 0 | V85: 0 | W85: 0 | X85: 0 | Y85: 无 | Z85: 1 | AA85: 34.1 | AB85: 1 | AC85: 剖宫产 | AD85: 2040 | AE85: 1 | AF85: AGA | AG85: 999 | AH85: ———— | AI85: 1 | AJ85: 0 | AK85: 0 | AL85: 0 | AM85: 0 | AN85: 0 | AO85: 新生儿感染；呼吸性酸中毒
A86: 1 | B86: 86 | C86: 748386 | D86: 32 | E86: 0 | F86: 0 | G86: 0 | H86: 0 | I86: 无 | J86: 无 | K86: 无 | L86: 无 | M86: 无 | N86: 1 | O86: 0 | P86: 0 | Q86: 0 | R86: 0 | S86: 0 | T86: 0 | U86: 0 | V86: 1 | W86: 0 | X86: 0 | Y86: 先兆子宫破裂；妊娠期高血压；中度贫血；瘢痕子宫 | Z86: 1 | AA86: 35.4 | AB86: 1 | AC86: 剖宫产 | AD86: 2540 | AE86: 0 | AF86: AGA | AG86: 999 | AH86: ———— | AI86: 0 | AJ86: 1 | AK86: 0 | AL86: 0 | AM86: 0 | AN86: 1 | AO86: 呼吸性酸中毒；新生儿高血糖症；新生儿贫血
A87: 1 | B87: 87 | C87: 702310 | D87: 33 | E87: 0 | F87: 0 | G87: 0 | H87: 0 | I87: 无 | J87: 无 | K87: 无 | L87: 无 | M87: 无 | N87: 1 | O87: 0 | P87: 0 | Q87: 0 | R87: 0 | S87: 0 | T87: 0 | U87: 0 | V87: 0 | W87: 1 | X87: 0 | Y87: 双绒双胎；瘢痕子宫；轻度子痫前期；BMI>28 | Z87: 2 | AA87: 39.3 | AB87: 0 | AC87: 剖宫产 | AD87: 2050 | AE87: 1 | AF87: AGA | AG87: 999 | AH87: ———— | AI87: 0 | AJ87: 1 | AK87: 0 | AL87: 1 | AM87: 0 | AN87: 1 | AO87: 呼吸性酸中毒；高血糖症；高胆红素血症；贫血
A88: 1 | B88: 88 | C88: 1106216 | D88: 35 | E88: 1 | F88: 1 | G88: 0 | H88: 1 | I88: 7 | J88: 6.0 | K88: 12.0 | L88: 10.0 | M88: 胰岛素 | N88: 0 | O88: 0 | P88: 1 | Q88: 0 | R88: 0 | S88: 0 | T88: 0 | U88: 1 | V88: 1 | W88: 1 | X88: 0 | Y88: 慢性高血压并发子痫前期；脐带过短；臀先露；宫内生长受限 | Z88: 1 | AA88: 34.4 | AB88: 1 | AC88: 剖宫产 | AD88: 1800 | AE88: 1 | AF88: AGA | AG88: 999 | AH88: ———— | AI88: 0 | AJ88: 0 | AK88: 1 | AL88: 1 | AM88: 0 | AN88: 0 | AO88: 呼吸性酸中毒；高胆红素血症；新生儿低血糖
A89: 1 | B89: 89 | C89: 814410 | D89: 35 | E89: 1 | F89: 0 | G89: 0 | H89: 0 | I89: 无 | J89: 无 | K89: 无 | L89: 无 | M89: 无 | N89: 0 | O89: 0 | P89: 0 | Q89: 0 | R89: 0 | S89: 0 | T89: 0 | U89: 0 | V89: 0 | W89: 0 | X89: 0 | Y89: 疤痕子宫 | Z89: 2 | AA89: 37 | AB89: 0 | AC89: 剖宫产 | AD89: 2900 | AE89: 0 | AF89: AGA | AG89: 999 | AH89: ———— | AI89: 0 | AJ89: 0 | AK89: 0 | AL89: 1 | AM89: 0 | AN89: 0 | AO89: 新生儿高胆红素血症
A90: 1 | B90: 90 | C90: 1103133 | D90: 33 | E90: 0 | F90: 0 | G90: 0 | H90: 0 | I90: 无 | J90: 无 | K90: 无 | L90: 无 | M90: 无 | N90: 1 | O90: 0 | P90: 0 | Q90: 0 | R90: 0 | S90: 0 | T90: 1 | U90: 0 | V90: 0 | W90: 0 | X90: 0 | Y90: 完全性前置胎盘伴出血； | Z90: 2 | AA90: 36.3 | AB90: 1 | AC90: 剖宫产 | AD90: 3800 | AE90: 0 | AF90: LGA | AG90: 999 | AH90: ———— | AI90: 1 | AJ90: 0 | AK90: 0 | AL90: 0 | AM90: 0 | AN90: 0 | AO90: 呼吸性酸中毒；新生儿感染；
A91: 1 | B91: 91 | C91: 1096916 | D91: 36 | E91: 1 | F91: 0 | G91: 0 | H91: 0 | I91: 无 | J91: 无 | K91: 无 | L91: 无 | M91: 无 | N91: 1 | O91: 0 | P91: 0 | Q91: 0 | R91: 0 | S91: 0 | T91: 1 | U91: 0 | V91: 0 | W91: 0 | X91: 0 | Y91: 凶险性前置胎盘；胎盘植入；球拍状胎盘 | Z91: 1 | AA91: 34.6 | AB91: 1 | AC91: 剖宫产 | AD91: 2780 | AE91: 0 | AF91: AGA | AG91: 899 | AH91: ———— | AI91: 0 | AJ91: 0 | AK91: 0 | AL91: 1 | AM91: 0 | AN91: 0 | AO91: 新生儿高胆红素血症
A92: 1 | B92: 92 | C92: 1104742 | D92: 35 | E92: 1 | F92: 0 | G92: 0 | H92: 0 | I92: 无 | J92: 无 | K92: 无 | L92: 无 | M92: 无 | N92: 1 | O92: 0 | P92: 0 | Q92: 2 | R92: 1 | S92: 0 | T92: 0 | U92: 0 | V92: 0 | W92: 0 | X92: 0 | Y92: 无 | Z92: 1 | AA92: 34.3 | AB92: 1 | AC92: 顺产 | AD92: 2910 | AE92: 0 | AF92: AGA | AG92: 999 | AH92: ———— | AI92: 1 | AJ92: 1 | AK92: 0 | AL92: 1 | AM92: 0 | AN92: 1 | AO92: 混合性酸中毒；高血糖症；新生儿感染；喂养不耐受；高胆红素血症；新生儿贫血
A93: 1 | B93: 93 | C93: 1098809 | D93: 37 | E93: 1 | F93: 1 | G93: 1 | H93: 0 | I93: 26 | J93: 4.7 | K93: 10.2 | L93: 6.9 | M93: 饮食控制 | N93: 0 | O93: 0 | P93: 0 | Q93: 0 | R93: 0 | S93: 0 | T93: 0 | U93: 0 | V93: 0 | W93: 0 | X93: 0 | Y93: 双绒双羊；FGR；高脂血症； | Z93: 2 | AA93: 34.3 | AB93: 1 | AC93: 剖宫产 | AD93: 1880 | AE93: 1 | AF93: AGA | AG93: 999 | AH93: ———— | AI93: 0 | AJ93: 0 | AK93: 0 | AL93: 1 | AM93: 0 | AN93: 0 | AO93: 新生儿高胆红素血症；
A94: 1 | B94: 94 | C94: 1103212 | D94: 32 | E94: 0 | F94: 0 | G94: 0 | H94: 0 | I94: 无 | J94: 无 | K94: 无 | L94: 无 | M94: 无 | N94: 0 | O94: 0 | P94: 0 | Q94: 0 | R94: 0 | S94: 0 | T94: 1 | U94: 0 | V94: 0 | W94: 0 | X94: 0 | Y94: 完全性前置胎盘；胎盘植入；产后出血 | Z94: 2 | AA94: 37.5 | AB94: 0 | AC94: 剖宫产 | AD94: 2720 | AE94: 0 | AF94: AGA | AG94: 999 | AH94: ———— | AI94: 0 | AJ94: 0 | AK94: 0 | AL94: 0 | AM94: 0 | AN94: 0 | AO94: 纵膈气肿；新生儿肺炎
A95: 1 | B95: 95 | C95: 701679 | D95: 33 | E95: 0 | F95: 0 | G95: 0 | H95: 0 | I95: 无 | J95: 无 | K95: 无 | L95: 无 | M95: 无 | N95: 1 | O95: 0 | P95: 0 | Q95: 0 | R95: 0 | S95: 0 | T95: 0 | U95: 0 | V95: 0 | W95: 0 | X95: 0 | Y95: 先兆子宫破裂；产后出血；瘢痕子宫 | Z95: 1 | AA95: 36 | AB95: 1 | AC95: 剖宫产 | AD95: 2920 | AE95: 0 | AF95: AGA | AG95: 999 | AH95: ———— | AI95: 0 | AJ95: 0 | AK95: 1 | AL95: 0 | AM95: 0 | AN95: 0 | AO95: 新生儿低血糖；呼吸性酸中毒
A96: 1 | B96: 96 | C96: 1096181 | D96: 34 | E96: 0 | F96: 1 | G96: 1 | H96: 0 | I96: 18 | J96: 3.8 | K96: 10.0 | L96: 10.5 | M96: 饮食控制 | N96: 1 | O96: 0 | P96: 0 | Q96: 0 | R96: 0 | S96: 0 | T96: 1 | U96: 0 | V96: 0 | W96: 0 | X96: 0 | Y96: 凶险性前置胎盘；胎盘植入；产后出血；轻度贫血 | Z96: 2 | AA96: 34.2 | AB96: 1 | AC96: 剖宫产 | AD96: 2530 | AE96: 0 | AF96: AGA | AG96: 999 | AH96: ———— | AI96: 0 | AJ96: 0 | AK96: 1 | AL96: 0 | AM96: 0 | AN96: 0 | AO96: 新生儿呼吸性酸中毒；新生儿低血糖症；
A97: 1 | B97: 97 | C97: 1094465 | D97: 27 | E97: 0 | F97: 0 | G97: 0 | H97: 0 | I97: 无 | J97: 无 | K97: 无 | L97: 无 | M97: 无 | N97: 1 | O97: 0 | P97: 0 | Q97: 0 | R97: 0 | S97: 0 | T97: 0 | U97: 0 | V97: 0 | W97: 1 | X97: 0 | Y97: 选择性宫内生长受限；单绒双羊；轻度子痫前期 | Z97: 2 | AA97: 35 | AB97: 1 | AC97: 剖宫产 | AD97: 1440 | AE97: 1 | AF97: SGA | AG97: 499 | AH97: ———— | AI97: 0 | AJ97: 1 | AK97: 0 | AL97: 1 | AM97: 0 | AN97: 1 | AO97: 混合性酸中毒；败血症；高血糖症；高胆红素血症；房间隔缺损；早产儿视网膜病变；贫血
A98: 1 | B98: 98 | C98: 1094465 | D98: 27 | E98: 0 | F98: 0 | G98: 0 | H98: 0 | I98: 无 | J98: 无 | K98: 无 | L98: 无 | M98: 无 | N98: 1 | O98: 1 | P98: 0 | Q98: 0 | R98: 0 | S98: 0 | T98: 0 | U98: 0 | V98: 0 | W98: 1 | X98: 0 | Y98: 选择性宫内生长受限；单绒双羊；轻度子痫前期 | Z98: 2 | AA98: 35 | AB98: 1 | AC98: 剖宫产 | AD98: 2160 | AE98: 1 | AF98: AGA | AG98: 999 | AH98: ———— | AI98: 0 | AJ98: 1 | AK98: 1 | AL98: 1 | AM98: 0 | AN98: 0 | AO98: 新生儿肺炎；新生儿低血糖；新生儿高血糖；高胆红素血症；动脉导管未闭；卵圆孔未闭
A99: 1 | B99: 99 | C99: 1089965 | D99: 24 | E99: 0 | F99: 0 | G99: 0 | H99: 0 | I99: 无 | J99: 无 | K99: 无 | L99: 无 | M99: 无 | N99: 0 | O99: 0 | P99: 0 | Q99: 0 | R99: 0 | S99: 0 | T99: 1 | U99: 0 | V99: 0 | W99: 1 | X99: 0 | Y99: 选择性宫内生长受限；重度子痫前期；单绒双羊；球拍状胎盘；脐动脉血流异常 | Z99: 2 | AA99: 34.1 | AB99: 1 | AC99: 剖宫产 | AD99: 1910 | AE99: 1 | AF99: SGA | AG99: 999 | AH99: ———— | AI99: 0 | AJ99: 1 | AK99: 0 | AL99: 1 | AM99: 0 | AN99: 1 | AO99: 呼吸性酸中毒；高血糖症；高胆红素血症；贫血
A100: 1 | B100: 100 | C100: 1089965 | D100: 24 | E100: 0 | F100: 0 | G100: 0 | H100: 0 | I100: 无 | J100: 无 | K100: 无 | L100: 无 | M100: 无 | N100: 0 | O100: 0 | P100: 0 | Q100: 0 | R100: 0 | S100: 0 | T100: 1 | U100: 0 | V100: 0 | W100: 1 | X100: 0 | Y100: 选择性宫内生长受限；重度子痫前期；单绒双羊；球拍状胎盘；脐动脉血流异常 | Z100: 2 | AA100: 34.1 | AB100: 1 | AC100: 剖宫产 | AD100: 2250 | AE100: 1 | AF100: AGA | AG100: 999 | AH100: ———— | AI100: 0 | AJ100: 0 | AK100: 1 | AL100: 0 | AM100: 0 | AN100: 0 | AO100: 新生儿呼吸性酸中毒；新生儿低血糖症；
A101: 1 | B101: 101 | C101: 1071408 | D101: 37 | E101: 1 | F101: 0 | G101: 0 | H101: 0 | I101: 无 | J101: 无 | K101: 无 | L101: 无 | M101: 无 | N101: 1 | O101: 1 | P101: 0 | Q101: 0 | R101: 0 | S101: 0 | T101: 1 | U101: 1 | V101: 0 | W101: 1 | X101: 0 | Y101: 脐带先露；轻度子痫前期；球拍状胎盘； | Z101: 1 | AA101: 34.5 | AB101: 1 | AC101: 剖宫产 | AD101: 2040 | AE101: 1 | AF101: AGA | AG101: 699 | AH101: ———— | AI101: 1 | AJ101: 0 | AK101: 0 | AL101: 1 | AM101: 0 | AN101: 0 | AO101: 化脓性脑膜炎；新生儿肺炎；红细胞增多症；室间隔缺损；新生儿感染；高胆红素血症；新生儿低磷血症
A102: 0 | B102: 1 | C102: 1097916 | D102: 27 | E102: 0 | F102: 0 | G102: 0 | H102: 0 | I102: 无 | J102: 无 | K102: 无 | L102: 无 | M102: 无 | N102: 0 | O102: 0 | P102: 0 | Q102: 0 | R102: 0 | S102: 0 | T102: 0 | U102: 0 | V102: 0 | W102: 0 | X102: 0 | Y102: 无 | Z102: 2 | AA102: 34.1 | AB102: 1 | AC102: 顺产 | AD102: 1620 | AE102: 1 | AF102: SGA | AG102: 999 | AH102: 湿肺 | AI102: 0 | AJ102: 0 | AK102: 0 | AL102: 0 | AM102: 0 | AN102: 0 | AO102: PDA；肺炎；低出生体重
A103: 0 | B103: 2 | C103: 1133538 | D103: 32 | E103: 0 | F103: 0 | G103: 0 | H103: 0 | I103: 无 | J103: 无 | K103: 无 | L103: 无 | M103: 无 | N103: 0 | O103: 0 | P103: 0 | Q103: 13+ | R103: 1 | S103: 1 | T103: 0 | U103: 0 | V103: 0 | W103: 0 | X103: 0 | Y103: GBS（+）；胎心监护异常 | Z103: 2 | AA103: 35.1 | AB103: 1 | AC103: 顺产 | AD103: 2370 | AE103: 1 | AF103: AGA | AG103: 899 | AH103: 湿肺 | AI103: 0 | AJ103: 0 | AK103: 0 | AL103: 1 | AM103: 0 | AN103: 0 | AO103: 呼吸性酸中毒；高胆红素血症；室间隔缺损；低出生体重儿
A104: 0 | B104: 3 | C104: 1131911 | D104: 27 | E104: 0 | F104: 0 | G104: 0 | H104: 0 | I104: 无 | J104: 无 | K104: 无 | L104: 无 | M104: 无 | N104: 0 | O104: 0 | P104: 1 | Q104: 125 | R104: 1 | S104: 0 | T104: 1 | U104: 0 | V104: 0 | W104: 0 | X104: 0 | Y104: 重度胎盘早剥；双子宫动脉切迹 | Z104: 2 | AA104: 35.4 | AB104: 1 | AC104: 顺产 | AD104: 1880 | AE104: 1 | AF104: SGA | AG104: 999 | AH104: 湿肺 | AI104: 0 | AJ104: 0 | AK104: 0 | AL104: 1 | AM104: 0 | AN104: 0 | AO104: 高胆红素血症
A105: 0 | B105: 4 | C105: 1064566 | D105: 26 | E105: 0 | F105: 0 | G105: 0 | H105: 0 | I105: 无 | J105: 无 | K105: 无 | L105: 无 | M105: 无 | N105: 0 | O105: 1 | P105: 0 | Q105: 0 | R105: 0 | S105: 0 | T105: 0 | U105: 0 | V105: 0 | W105: 0 | X105: 0 | Y105: 双绒双胎；妊娠期血小板减少 | Z105: 1 | AA105: 37 | AB105: 0 | AC105: 剖宫产 | AD105: 2450 | AE105: 1 | AF105: SGA | AG105: 868 | AH105: 湿肺 | AI105: 0 | AJ105: 0 | AK105: 0 | AL105: 0 | AM105: 0 | AN105: 0 | AO105: 胆红素血症；轻度窒息
A106: 0 | B106: 5 | C106: 1064566 | D106: 26 | E106: 0 | F106: 0 | G106: 0 | H106: 0 | I106: 无 | J106: 无 | K106: 无 | L106: 无 | M106: 无 | N106: 0 | O106: 1 | P106: 0 | Q106: 0 | R106: 0 | S106: 0 | T106: 0 | U106: 0 | V106: 0 | W106: 0 | X106: 0 | Y106: 双绒双胎；妊娠期血小板减少 | Z106: 1 | AA106: 37 | AB106: 0 | AC106: 剖宫产 | AD106: 2260 | AE106: 1 | AF106: SGA | AG106: 868 | AH106: 湿肺 | AI106: 0 | AJ106: 0 | AK106: 0 | AL106: 0 | AM106: 0 | AN106: 0 | AO106: 新生儿胆红素血症；轻度窒息
A107: 0 | B107: 6 | C107: 1133642 | D107: 30 | E107: 0 | F107: 1 | G107: 1 | H107: 0 | I107: 12 | J107: 5.1 | K107: 7 | L107: 9.5 | M107: 饮食控制 | N107: 0 | O107: 0 | P107: 1 | Q107: 0 | R107: 0 | S107: 0 | T107: 1 | U107: 0 | V107: 0 | W107: 0 | X107: 1 | Y107: 产前发热；帆状胎盘；低钾血症；菌血症 | Z107: 1 | AA107: 34 | AB107: 1 | AC107: 剖宫产 | AD107: 2400 | AE107: 1 | AF107: AGA | AG107: 999 | AH107: 湿肺 | AI107: 0 | AJ107: 0 | AK107: 0 | AL107: 1 | AM107: 0 | AN107: 0 | AO107: 高胆红素血症
A108: 0 | B108: 7 | C108: 1126899 | D108: 31 | E108: 0 | F108: 0 | G108: 0 | H108: 0 | I108: 无 | J108: 无 | K108: 无 | L108: 无 | M108: 无 | N108: 0 | O108: 0 | P108: 0 | Q108: 0 | R108: 0 | S108: 0 | T108: 0 | U108: 0 | V108: 0 | W108: 0 | X108: 0 | Y108: 双绒双胎；子宫瘢痕 | Z108: 2 | AA108: 35 | AB108: 1 | AC108: 剖宫产 | AD108: 2300 | AE108: 1 | AF108: AGA | AG108: 999 | AH108: 湿肺 | AI108: 0 | AJ108: 0 | AK108: 0 | AL108: 0 | AM108: 0 | AN108: 0 | AO108: 无
A109: 0 | B109: 8 | C109: 1124836 | D109: 27 | E109: 0 | F109: 1 | G109: 1 | H109: 0 | I109: 26 | J109: 5 | K109: 9 | L109: 8.6 | M109: 饮食控制 | N109: 0 | O109: 0 | P109: 0 | Q109: 0 | R109: 0 | S109: 0 | T109: 0 | U109: 1 | V109: 0 | W109: 0 | X109: 0 | Y109: 三胎妊娠；脐带绕颈一周；胎儿宫内生长受限 | Z109: 1 | AA109: 34.5 | AB109: 1 | AC109: 剖宫产 | AD109: 1580 | AE109: 1 | AF109: SGA | AG109: 999 | AH109: 湿肺 | AI109: 0 | AJ109: 0 | AK109: 0 | AL109: 1 | AM109: 0 | AN109: 1 | AO109: 小于胎龄儿；高胆红素血症；早产性贫血
A110: 0 | B110: 9 | C110: 1019396 | D110: 38 | E110: 1 | F110: 0 | G110: 0 | H110: 0 | I110: 无 | J110: 无 | K110: 无 | L110: 无 | M110: 无 | N110: 1 | O110: 0 | P110: 1 | Q110: 0 | R110: 0 | S110: 0 | T110: 0 | U110: 0 | V110: 1 | W110: 1 | X110: 0 | Y110: 慢性高血压并发重度子痫前期； | Z110: 2 | AA110: 35.6 | AB110: 1 | AC110: 剖宫产 | AD110: 2170 | AE110: 1 | AF110: AGA | AG110: 999 | AH110: 湿肺 | AI110: 0 | AJ110: 0 | AK110: 0 | AL110: 1 | AM110: 0 | AN110: 0 | AO110: 高胆红素血症
A111: 0 | B111: 10 | C111: 1130130 | D111: 32 | E111: 0 | F111: 0 | G111: 0 | H111: 0 | I111: 无 | J111: 无 | K111: 无 | L111: 无 | M111: 无 | N111: 0 | O111: 0 | P111: 0 | Q111: 0 | R111: 0 | S111: 0 | T111: 0 | U111: 0 | V111: 0 | W111: 0 | X111: 0 | Y111: 单绒双胎 | Z111: 2 | AA111: 36.5 | AB111: 1 | AC111: 剖宫产 | AD111: 2360 | AE111: 1 | AF111: AGA | AG111: 999 | AH111: 湿肺 | AI111: 0 | AJ111: 0 | AK111: 0 | AL111: 1 | AM111: 0 | AN111: 0 | AO111: 高胆红素血症
A112: 0 | B112: 11 | C112: 1124836 | D112: 27 | E112: 0 | F112: 1 | G112: 1 | H112: 0 | I112: 26 | J112: 5 | K112: 9 | L112: 8.6 | M112: 饮食控制 | N112: 0 | O112: 0 | P112: 0 | Q112: 0 | R112: 0 | S112: 0 | T112: 0 | U112: 1 | V112: 0 | W112: 0 | X112: 0 | Y112: 脐带绕颈一周；胎儿宫内生长受限 | Z112: 2 | AA112: 34.5 | AB112: 1 | AC112: 剖宫产 | AD112: 2020 | AE112: 1 | AF112: AGA | AG112: 999 | AH112: 湿肺 | AI112: 0 | AJ112: 0 | AK112: 0 | AL112: 1 | AM112: 0 | AN112: 0 | AO112: 高胆红素血症
A113: 0 | B113: 12 | C113: 1124836 | D113: 27 | E113: 0 | F113: 1 | G113: 1 | H113: 0 | I113: 26 | J113: 5 | K113: 9 | L113: 8.6 | M113: 饮食控制 | N113: 0 | O113: 0 | P113: 0 | Q113: 0 | R113: 0 | S113: 0 | T113: 0 | U113: 1 | V113: 0 | W113: 0 | X113: 0 | Y113: 脐带绕颈一周；胎儿宫内生长受限 | Z113: 1 | AA113: 34.5 | AB113: 1 | AC113: 剖宫产 | AD113: 2130 | AE113: 1 | AF113: AGA | AG113: 999 | AH113: 湿肺 | AI113: 0 | AJ113: 0 | AK113: 0 | AL113: 1 | AM113: 0 | AN113: 0 | AO113: 呼吸性酸中毒；高胆红素血症；喂养不耐受；呼吸暂停
A114: 0 | B114: 13 | C114: 1126241 | D114: 35 | E114: 1 | F114: 0 | G114: 0 | H114: 0 | I114: 无 | J114: 无 | K114: 无 | L114: 无 | M114: 无 | N114: 0 | O114: 1 | P114: 0 | Q114: 0 | R114: 0 | S114: 0 | T114: 0 | U114: 0 | V114: 0 | W114: 1 | X114: 0 | Y114: 重度子痫前期；子宫瘢痕；BMI>24； | Z114: 1 | AA114: 37 | AB114: 0 | AC114: 剖宫产 | AD114: 3410 | AE114: 0 | AF114: AGA | AG114: 598 | AH114: 湿肺 | AI114: 0 | AJ114: 0 | AK114: 0 | AL114: 1 | AM114: 0 | AN114: 0 | AO114: 呼吸性酸中毒；高胆红素血症
A115: 0 | B115: 14 | C115: 1114539 | D115: 31 | E115: 0 | F115: 0 | G115: 0 | H115: 0 | I115: 无 | J115: 无 | K115: 无 | L115: 无 | M115: 无 | N115: 1 | O115: 0 | P115: 0 | Q115: 0 | R115: 0 | S115: 0 | T115: 1 | U115: 0 | V115: 0 | W115: 0 | X115: 0 | Y115: 完全性前置胎盘； | Z115: 2 | AA115: 35.5 | AB115: 1 | AC115: 剖宫产 | AD115: 2800 | AE115: 0 | AF115: AGA | AG115: 999 | AH115: 湿肺 | AI115: 0 | AJ115: 0 | AK115: 0 | AL115: 1 | AM115: 0 | AN115: 0 | AO115: 呼吸性酸中毒；高胆红素血症
A116: 0 | B116: 15 | C116: 1122604 | D116: 29 | E116: 0 | F116: 0 | G116: 0 | H116: 0 | I116: 无 | J116: 无 | K116: 无 | L116: 无 | M116: 无 | N116: 1 | O116: 0 | P116: 0 | Q116: 3 | R116: 1 | S116: 0 | T116: 0 | U116: 1 | V116: 0 | W116: 0 | X116: 0 | Y116: 提前自然临产伴早产；急产；新生儿脐带绕颈一周 | Z116: 2 | AA116: 34 | AB116: 1 | AC116: 顺产 | AD116: 2040 | AE116: 1 | AF116: AGA | AG116: 999 | AH116: 湿肺 | AI116: 0 | AJ116: 0 | AK116: 0 | AL116: 1 | AM116: 0 | AN116: 0 | AO116: 高胆红素血症
A117: 0 | B117: 16 | C117: 1125370 | D117: 26 | E117: 0 | F117: 0 | G117: 0 | H117: 0 | I117: 无 | J117: 无 | K117: 无 | L117: 无 | M117: 无 | N117: 0 | O117: 0 | P117: 0 | Q117: 0 | R117: 0 | S117: 0 | T117: 0 | U117: 1 | V117: 0 | W117: 1 | X117: 0 | Y117: 重度子痫前期；妊娠合并甲减；单绒双胎；脐带绕颈一圈 | Z117: 1 | AA117: 34.5 | AB117: 1 | AC117: 剖宫产 | AD117: 2610 | AE117: 0 | AF117: AGA | AG117: 999 | AH117: 湿肺 | AI117: 0 | AJ117: 0 | AK117: 0 | AL117: 1 | AM117: 0 | AN117: 0 | AO117: 高胆红素血症
A118: 0 | B118: 17 | C118: 1109938 | D118: 41 | E118: 1 | F118: 0 | G118: 0 | H118: 0 | I118: 无 | J118: 无 | K118: 无 | L118: 无 | M118: 无 | N118: 1 | O118: 0 | P118: 0 | Q118: 6 | R118: 1 | S118: 0 | T118: 0 | U118: 0 | V118: 0 | W118: 0 | X118: 0 | Y118: 双绒双胎 | Z118: 1 | AA118: 35.3 | AB118: 1 | AC118: 剖宫产 | AD118: 2600 | AE118: 0 | AF118: AGA | AG118: 999 | AH118: 湿肺 | AI118: 0 | AJ118: 1 | AK118: 0 | AL118: 0 | AM118: 0 | AN118: 0 | AO118: 新生儿高血糖
A119: 0 | B119: 18 | C119: 1079443 | D119: 36 | E119: 1 | F119: 1 | G119: 0 | H119: 1 | I119: 10 | J119: 5.1 | K119: 12.9 | L119: 11.3 | M119: 胰岛素控制 | N119: 0 | O119: 0 | P119: 0 | Q119: 5 | R119: 1 | S119: 0 | T119: 0 | U119: 0 | V119: 0 | W119: 1 | X119: 1 | Y119: 产间发热；轻度子痫前期 | Z119: 2 | AA119: 34.2 | AB119: 1 | AC119: 顺产 | AD119: 2400 | AE119: 1 | AF119: AGA | AG119: 999 | AH119: 湿肺 | AI119: 0 | AJ119: 0 | AK119: 0 | AL119: 1 | AM119: 0 | AN119: 0 | AO119: 高胆红素血症
A120: 0 | B120: 19 | C120: 1111900 | D120: 29 | E120: 0 | F120: 0 | G120: 0 | H120: 0 | I120: 无 | J120: 无 | K120: 无 | L120: 无 | M120: 无 | N120: 0 | O120: 0 | P120: 0 | Q120: 7 | R120: 1 | S120: 0 | T120: 0 | U120: 1 | V120: 0 | W120: 0 | X120: 0 | Y120: 先兆早产；脐带绕颈一圈；脐带真结 | Z120: 1 | AA120: 34.6 | AB120: 1 | AC120: 顺产 | AD120: 2110 | AE120: 1 | AF120: AGA | AG120: 999 | AH120: 呼吸暂停 | AI120: 0 | AJ120: 0 | AK120: 0 | AL120: 1 | AM120: 0 | AN120: 0 | AO120: 高胆红素血症
A121: 0 | B121: 20 | C121: 896235 | D121: 41 | E121: 1 | F121: 0 | G121: 0 | H121: 0 | I121: 无 | J121: 无 | K121: 无 | L121: 无 | M121: 无 | N121: 0 | O121: 0 | P121: 0 | Q121: 31 | R121: 1 | S121: 0 | T121: 0 | U121: 0 | V121: 0 | W121: 0 | X121: 0 | Y121: 妊娠期蛋白尿；亚临床甲减； | Z121: 2 | AA121: 36.5 | AB121: 1 | AC121: 剖宫产 | AD121: 2830 | AE121: 0 | AF121: AGA | AG121: 999 | AH121: 湿肺 | AI121: 1 | AJ121: 0 | AK121: 0 | AL121: 1 | AM121: 0 | AN121: 0 | AO121: 新生儿感染；高胆红素血症
A122: 0 | B122: 21 | C122: 1113493 | D122: 28 | E122: 0 | F122: 0 | G122: 0 | H122: 0 | I122: 无 | J122: 无 | K122: 无 | L122: 无 | M122: 无 | N122: 0 | O122: 0 | P122: 0 | Q122: 0 | R122: 0 | S122: 0 | T122: 1 | U122: 1 | V122: 0 | W122: 1 | X122: 0 | Y122: 轻度子痫前期；胎盘早剥；产前出血；抗磷脂抗体综合征；脐带过短 | Z122: 2 | AA122: 35.6 | AB122: 1 | AC122: 剖宫产 | AD122: 1780 | AE122: 1 | AF122: SGA | AG122: 999 | AH122: 新生儿湿肺 | AI122: 0 | AJ122: 0 | AK122: 0 | AL122: 1 | AM122: 0 | AN122: 0 | AO122: 高胆红素血症
A123: 0 | B123: 22 | C123: 1112101 | D123: 32 | E123: 0 | F123: 1 | G123: 1 | H123: 0 | I123: 19 | J123: 4.9 | K123: 9.3 | L123: 9 | M123: 饮食控制 | N123: 0 | O123: 0 | P123: 0 | Q123: 0 | R123: 0 | S123: 0 | T123: 0 | U123: 0 | V123: 0 | W123: 1 | X123: 0 | Y123: TAPS可能；重度子痫前期；单绒双胎；妊娠合并高脂血症； | Z123: 1 | AA123: 34.1 | AB123: 1 | AC123: 剖宫产 | AD123: 2040 | AE123: 1 | AF123: AGA | AG123: 999 | AH123: 湿肺 | AI123: 0 | AJ123: 0 | AK123: 0 | AL123: 1 | AM123: 0 | AN123: 1 | AO123: 早产性贫血；高胆红素血症；TAPS
A124: 0 | B124: 23 | C124: 1085091 | D124: 36 | E124: 1 | F124: 0 | G124: 0 | H124: 0 | I124: 无 | J124: 无 | K124: 无 | L124: 无 | M124: 无 | N124: 0 | O124: 0 | P124: 0 | Q124: 8 | R124: 1 | S124: 0 | T124: 1 | U124: 0 | V124: 0 | W124: 0 | X124: 0 | Y124: 单绒双胎；一胎生长发育迟缓；一胎球拍状胎盘 | Z124: 1 | AA124: 34.6 | AB124: 1 | AC124: 顺产 | AD124: 2060 | AE124: 1 | AF124: AGA | AG124: 899 | AH124: 湿肺 | AI124: 0 | AJ124: 0 | AK124: 0 | AL124: 1 | AM124: 0 | AN124: 0 | AO124: 呼吸性酸中毒；高胆红素血症
A125: 0 | B125: 24 | C125: 1115001 | D125: 33 | E125: 0 | F125: 0 | G125: 0 | H125: 0 | I125: 无 | J125: 无 | K125: 无 | L125: 无 | M125: 无 | N125: 0 | O125: 1 | P125: 0 | Q125: 0 | R125: 0 | S125: 1 | T125: 1 | U125: 0 | V125: 0 | W125: 1 | X125: 0 | Y125: 完全性前置胎盘伴出血；轻度子痫前期；GBS（+）； | Z125: 1 | AA125: 37 | AB125: 0 | AC125: 剖宫产 | AD125: 2670 | AE125: 0 | AF125: AGA | AG125: 389 | AH125: 湿肺 | AI125: 0 | AJ125: 0 | AK125: 0 | AL125: 0 | AM125: 0 | AN125: 0 | AO125: 湿肺
A126: 0 | B126: 25 | C126: 1112101 | D126: 32 | E126: 0 | F126: 1 | G126: 1 | H126: 0 | I126: 19 | J126: 4.9 | K126: 9.3 | L126: 9 | M126: 饮食控制 | N126: 1 | O126: 0 | P126: 0 | Q126: 0 | R126: 0 | S126: 0 | T126: 0 | U126: 0 | V126: 0 | W126: 1 | X126: 0 | Y126: TAPS可能；重度子痫前期；单绒双胎；妊娠合并高脂血症； | Z126: 1 | AA126: 34.1 | AB126: 1 | AC126: 剖宫产 | AD126: 1870 | AE126: 1 | AF126: SGA | AG126: 999 | AH126: 湿肺 | AI126: 0 | AJ126: 0 | AK126: 0 | AL126: 1 | AM126: 0 | AN126: 0 | AO126: 呼吸性酸中毒；高胆红素血症；红细胞增多
A127: 0 | B127: 26 | C127: 890622 | D127: 35 | E127: 1 | F127: 0 | G127: 0 | H127: 0 | I127: 无 | J127: 无 | K127: 无 | L127: 无 | M127: 无 | N127: 0 | O127: 0 | P127: 0 | Q127: 0 | R127: 0 | S127: 0 | T127: 0 | U127: 0 | V127: 0 | W127: 0 | X127: 0 | Y127: 双绒双胎 | Z127: 1 | AA127: 37 | AB127: 0 | AC127: 剖宫产 | AD127: 2430 | AE127: 1 | AF127: SGA | AG127: 999 | AH127: 湿肺 | AI127: 0 | AJ127: 0 | AK127: 0 | AL127: 1 | AM127: 0 | AN127: 0 | AO127: 呼吸性酸中毒；高胆红素血症
A128: 0 | B128: 27 | C128: 1112519 | D128: 33 | E128: 0 | F128: 0 | G128: 0 | H128: 0 | I128: 无 | J128: 无 | K128: 无 | L128: 无 | M128: 无 | N128: 1 | O128: 0 | P128: 0 | Q128: 0 | R128: 0 | S128: 0 | T128: 1 | U128: 1 | V128: 0 | W128: 0 | X128: 0 | Y128: 完全性前置胎盘；羊水过少；脐带扭转； | Z128: 2 | AA128: 34.6 | AB128: 1 | AC128: 剖宫产 | AD128: 2060 | AE128: 1 | AF128: AGA | AG128: 998 | AH128: 湿肺 | AI128: 0 | AJ128: 0 | AK128: 0 | AL128: 1 | AM128: 0 | AN128: 0 | AO128: 高胆红素血症
A129: 0 | B129: 28 | C129: 1112937 | D129: 26 | E129: 0 | F129: 0 | G129: 0 | H129: 0 | I129: 无 | J129: 无 | K129: 无 | L129: 无 | M129: 无 | N129: 1 | O129: 0 | P129: 0 | Q129: 9 | R129: 1 | S129: 0 | T129: 0 | U129: 1 | V129: 0 | W129: 0 | X129: 1 | Y129: 脐带扭转；产前发热；脐带绕颈一周 | Z129: 1 | AA129: 34.2 | AB129: 1 | AC129: 顺产 | AD129: 1530 | AE129: 1 | AF129: SGA | AG129: 899 | AH129: 湿肺 | AI129: 0 | AJ129: 0 | AK129: 0 | AL129: 1 | AM129: 0 | AN129: 0 | AO129: 呼吸暂停；高胆红素血症
A130: 0 | B130: 29 | C130: 890622 | D130: 35 | E130: 1 | F130: 0 | G130: 0 | H130: 0 | I130: 无 | J130: 无 | K130: 无 | L130: 无 | M130: 无 | N130: 0 | O130: 0 | P130: 0 | Q130: 0 | R130: 0 | S130: 0 | T130: 0 | U130: 0 | V130: 0 | W130: 0 | X130: 0 | Y130: 双绒双胎 | Z130: 1 | AA130: 37 | AB130: 0 | AC130: 剖宫产 | AD130: 2430 | AE130: 1 | AF130: SGA | AG130: 999 | AH130: 湿肺 | AI130: 0 | AJ130: 0 | AK130: 0 | AL130: 1 | AM130: 0 | AN130: 0 | AO130: 呼吸性酸中毒；高胆红素血症
A131: 0 | B131: 30 | C131: 1085091 | D131: 36 | E131: 1 | F131: 0 | G131: 0 | H131: 0 | I131: 无 | J131: 无 | K131: 无 | L131: 无 | M131: 无 | N131: 0 | O131: 0 | P131: 0 | Q131: 8 | R131: 1 | S131: 0 | T131: 1 | U131: 0 | V131: 0 | W131: 0 | X131: 0 | Y131: 单绒双胎；一胎生长发育迟缓；一胎球拍状胎盘 | Z131: 1 | AA131: 34.6 | AB131: 1 | AC131: 剖宫产 | AD131: 1700 | AE131: 1 | AF131: SGA | AG131: 999 | AH131: 湿肺 | AI131: 0 | AJ131: 0 | AK131: 0 | AL131: 1 | AM131: 0 | AN131: 1 | AO131: 呼吸性酸中毒；高胆红素血症；早产儿贫血
A132: 0 | B132: 31 | C132: 841437 | D132: 27 | E132: 0 | F132: 0 | G132: 0 | H132: 0 | I132: 无 | J132: 无 | K132: 无 | L132: 无 | M132: 无 | N132: 0 | O132: 0 | P132: 0 | Q132: 0 | R132: 0 | S132: 0 | T132: 0 | U132: 0 | V132: 0 | W132: 0 | X132: 0 | Y132: 瘢痕子宫；妊娠蛋白尿； | Z132: 2 | AA132: 37.6 | AB132: 0 | AC132: 剖宫产 | AD132: 3740 | AE132: 0 | AF132: LGA | AG132: 999 | AH132: 湿肺 | AI132: 0 | AJ132: 0 | AK132: 0 | AL132: 1 | AM132: 0 | AN132: 0 | AO132: 呼吸性酸中毒；ABO溶血；高胆红素血症
A133: 0 | B133: 32 | C133: 1120535 | D133: 37 | E133: 1 | F133: 0 | G133: 0 | H133: 0 | I133: 无 | J133: 无 | K133: 无 | L133: 无 | M133: 无 | N133: 1 | O133: 0 | P133: 0 | Q133: 0 | R133: 0 | S133: 0 | T133: 0 | U133: 0 | V133: 0 | W133: 1 | X133: 0 | Y133: 轻度子痫前期；双绒双胎； | Z133: 1 | AA133: 35 | AB133: 1 | AC133: 剖宫产 | AD133: 2000 | AE133: 1 | AF133: AGA | AG133: 998 | AH133: 湿肺 | AI133: 0 | AJ133: 0 | AK133: 0 | AL133: 1 | AM133: 0 | AN133: 0 | AO133: 新生儿高胆红素血症
A134: 0 | B134: 33 | C134: 1111402 | D134: 34 | E134: 0 | F134: 0 | G134: 0 | H134: 0 | I134: 无 | J134: 无 | K134: 无 | L134: 无 | M134: 无 | N134: 0 | O134: 0 | P134: 0 | Q134: 0 | R134: 0 | S134: 0 | T134: 0 | U134: 1 | V134: 1 | W134: 1 | X134: 0 | Y134: 慢性高血压并发子痫前期；脐带水肿 | Z134: 1 | AA134: 37 | AB134: 0 | AC134: 剖宫产 | AD134: 3050 | AE134: 0 | AF134: AGA | AG134: 999 | AH134: 湿肺 | AI134: 0 | AJ134: 0 | AK134: 0 | AL134: 1 | AM134: 0 | AN134: 0 | AO134: 新生儿高胆红素血症
A135: 0 | B135: 34 | C135: 1046980 | D135: 35 | E135: 1 | F135: 0 | G135: 0 | H135: 0 | I135: 无 | J135: 无 | K135: 无 | L135: 无 | M135: 无 | N135: 0 | O135: 0 | P135: 0 | Q135: 0 | R135: 0 | S135: 0 | T135: 0 | U135: 0 | V135: 1 | W135: 1 | X135: 0 | Y135: 慢性高血压并发子痫前期； | Z135: 2 | AA135: 36.2 | AB135: 1 | AC135: 剖宫产 | AD135: 2440 | AE135: 1 | AF135: AGA | AG135: 999 | AH135: 湿肺 | AI135: 0 | AJ135: 0 | AK135: 0 | AL135: 1 | AM135: 0 | AN135: 0 | AO135: 呼吸性酸中毒；高胆红素血症
A136: 0 | B136: 35 | C136: 1118140 | D136: 29 | E136: 0 | F136: 0 | G136: 0 | H136: 0 | I136: 无 | J136: 无 | K136: 无 | L136: 无 | M136: 无 | N136: 0 | O136: 1 | P136: 0 | Q136: 0 | R136: 0 | S136: 0 | T136: 0 | U136: 0 | V136: 0 | W136: 1 | X136: 0 | Y136: 重度子痫前期；BMI>24；急产 | Z136: 1 | AA136: 34.6 | AB136: 1 | AC136: 顺产 | AD136: 1770 | AE136: 1 | AF136: AGA | AG136: 589 | AH136: 湿肺 | AI136: 0 | AJ136: 0 | AK136: 0 | AL136: 1 | AM136: 0 | AN136: 0 | AO136: 混合性酸中毒；高胆红素血症
A137: 0 | B137: 36 | C137: 1084881 | D137: 32 | E137: 0 | F137: 0 | G137: 0 | H137: 0 | I137: 无 | J137: 无 | K137: 无 | L137: 无 | M137: 无 | N137: 0 | O137: 0 | P137: 0 | Q137: 20 | R137: 1 | S137: 0 | T137: 0 | U137: 0 | V137: 0 | W137: 0 | X137: 0 | Y137: 无 | Z137: 1 | AA137: 36 | AB137: 1 | AC137: 顺产 | AD137: 2800 | AE137: 0 | AF137: AGA | AG137: 999 | AH137: 新生儿高胆红素血症 | AI137: 0 | AJ137: 0 | AK137: 0 | AL137: 0 | AM137: 0 | AN137: 0 | AO137: 无
A138: 0 | B138: 37 | C138: 1035714 | D138: 40 | E138: 1 | F138: 0 | G138: 0 | H138: 0 | I138: 无 | J138: 无 | K138: 无 | L138: 无 | M138: 无 | N138: 0 | O138: 0 | P138: 0 | Q138: 0 | R138: 0 | S138: 1 | T138: 0 | U138: 1 | V138: 0 | W138: 1 | X138: 0 | Y138: 重度子痫前期；疤痕子宫；GBS（+）；脐带螺旋；脐带绕颈两周 | Z138: 1 | AA138: 37 | AB138: 0 | AC138: 剖宫产 | AD138: 2110 | AE138: 1 | AF138: SGA | AG138: 999 | AH138: 低出生体重 | AI138: 0 | AJ138: 0 | AK138: 0 | AL138: 1 | AM138: 0 | AN138: 0 | AO138: 高胆红素血症
A139: 0 | B139: 38 | C139: 736094 | D139: 32 | E139: 0 | F139: 0 | G139: 0 | H139: 0 | I139: 无 | J139: 无 | K139: 无 | L139: 无 | M139: 无 | N139: 0 | O139: 0 | P139: 0 | Q139: 15 | R139: 1 | S139: 0 | T139: 0 | U139: 1 | V139: 0 | W139: 0 | X139: 0 | Y139: 脐带绕颈一周 | Z139: 1 | AA139: 37 | AB139: 0 | AC139: 顺产 | AD139: 2320 | AE139: 1 | AF139: SGA | AG139: 899 | AH139: 湿肺 | AI139: 0 | AJ139: 1 | AK139: 0 | AL139: 1 | AM139: 0 | AN139: 0 | AO139: 高血糖；新生儿高胆红素血症
A140: 0 | B140: 39 | C140: 1014806 | D140: 43 | E140: 1 | F140: 1 | G140: 1 | H140: 0 | I140: 18 | J140: 4.2 | K140: 9.9 | L140: 10.1 | M140: 饮食控制 | N140: 0 | O140: 0 | P140: 0 | Q140: 11 | R140: 1 | S140: 0 | T140: 0 | U140: 0 | V140: 0 | W140: 0 | X140: 0 | Y140: 无 | Z140: 2 | AA140: 35 | AB140: 1 | AC140: 顺产 | AD140: 2560 | AE140: 0 | AF140: AGA | AG140: 999 | AH140: 新生儿高胆红素血症 | AI140: 0 | AJ140: 0 | AK140: 0 | AL140: 0 | AM140: 0 | AN140: 0 | AO140: ABO溶血
A141: 0 | B141: 40 | C141: 741047 | D141: 37 | E141: 1 | F141: 0 | G141: 0 | H141: 0 | I141: 无 | J141: 无 | K141: 无 | L141: 无 | M141: 无 | N141: 0 | O141: 0 | P141: 1 | Q141: 0 | R141: 0 | S141: 1 | T141: 0 | U141: 0 | V141: 0 | W141: 0 | X141: 0 | Y141: 疤痕子宫;GBS（+） | Z141: 1 | AA141: 34 | AB141: 1 | AC141: 顺产 | AD141: 2410 | AE141: 1 | AF141: AGA | AG141: 899 | AH141: 湿肺 | AI141: 0 | AJ141: 0 | AK141: 0 | AL141: 0 | AM141: 0 | AN141: 0 | AO141: 无
A142: 0 | B142: 41 | C142: 1006952 | D142: 26 | E142: 0 | F142: 0 | G142: 0 | H142: 0 | I142: 无 | J142: 无 | K142: 无 | L142: 无 | M142: 无 | N142: 0 | O142: 0 | P142: 0 | Q142: 0 | R142: 0 | S142: 0 | T142: 0 | U142: 0 | V142: 0 | W142: 0 | X142: 1 | Y142: 产前发热 | Z142: 2 | AA142: 37 | AB142: 0 | AC142: 顺产 | AD142: 2860 | AE142: 0 | AF142: AGA | AG142: 999 | AH142: 母亲产前发热 | AI142: 0 | AJ142: 0 | AK142: 0 | AL142: 0 | AM142: 0 | AN142: 0 | AO142: 无
A143: 0 | B143: 42 | C143: 1081837 | D143: 36 | E143: 1 | F143: 0 | G143: 0 | H143: 0 | I143: 无 | J143: 无 | K143: 无 | L143: 无 | M143: 无 | N143: 0 | O143: 0 | P143: 0 | Q143: 0 | R143: 0 | S143: 0 | T143: 1 | U143: 0 | V143: 0 | W143: 0 | X143: 0 | Y143: 双绒双胎；疤痕子宫；中度贫血；胎盘早剥 | Z143: 2 | AA143: 36 | AB143: 1 | AC143: 剖宫产 | AD143: 2490 | AE143: 1 | AF143: AGA | AG143: 999 | AH143: 低出生体重 | AI143: 0 | AJ143: 0 | AK143: 0 | AL143: 0 | AM143: 0 | AN143: 0 | AO143: 无
A144: 0 | B144: 43 | C144: 744270 | D144: 31 | E144: 0 | F144: 0 | G144: 0 | H144: 0 | I144: 无 | J144: 无 | K144: 无 | L144: 无 | M144: 无 | N144: 0 | O144: 0 | P144: 0 | Q144: 7 | R144: 1 | S144: 0 | T144: 0 | U144: 0 | V144: 0 | W144: 0 | X144: 0 | Z144: 2 | AA144: 37 | AB144: 0 | AC144: 剖宫产 | AD144: 2370 | AE144: 1 | AF144: SGA | AG144: 999 | AH144: 低出生体重 | AI144: 0 | AJ144: 0 | AK144: 0 | AL144: 1 | AM144: 0 | AN144: 0 | AO144: 代谢性酸中毒；高胆红素血症
A145: 0 | B145: 44 | C145: 1021300 | D145: 30 | E145: 0 | F145: 0 | G145: 0 | H145: 0 | I145: 无 | J145: 无 | K145: 无 | L145: 无 | M145: 无 | N145: 1 | O145: 0 | P145: 0 | Q145: 0 | R145: 0 | S145: 0 | T145: 0 | U145: 1 | V145: 0 | W145: 1 | X145: 0 | Y145: 重度子痫前期；新生儿脐带绕颈两圈 | Z145: 1 | AA145: 34 | AB145: 1 | AC145: 剖宫产 | AD145: 2250 | AE145: 1 | AF145: AGA | AG145: 899 | AH145: 湿肺 | AI145: 0 | AJ145: 0 | AK145: 1 | AL145: 1 | AM145: 0 | AN145: 0 | AO145: 新生儿低血糖；高胆红素血症；新生儿眼炎
A146: 0 | B146: 45 | C146: 1082220 | D146: 43 | E146: 1 | F146: 0 | G146: 0 | H146: 0 | I146: 无 | J146: 无 | K146: 无 | L146: 无 | M146: 无 | N146: 0 | O146: 1 | P146: 0 | Q146: 0 | R146: 0 | S146: 0 | T146: 1 | U146: 0 | V146: 0 | W146: 0 | X146: 0 | Y146: 胎盘粘连；球拍状胎盘；疤痕子宫 | Z146: 1 | AA146: 37 | AB146: 0 | AC146: 剖宫产 | AD146: 3020 | AE146: 0 | AF146: AGA | AG146: 588 | AH146: 湿肺 | AI146: 0 | AJ146: 0 | AK146: 1 | AL146: 0 | AM146: 0 | AN146: 0 | AO146: 低血糖症；呼吸性酸中毒
A147: 0 | B147: 46 | C147: 751386 | D147: 24 | E147: 0 | F147: 0 | G147: 0 | H147: 0 | I147: 无 | J147: 无 | K147: 无 | L147: 无 | M147: 无 | N147: 0 | O147: 0 | P147: 0 | Q147: 0 | R147: 0 | S147: 1 | T147: 0 | U147: 1 | V147: 1 | W147: 1 | X147: 0 | Y147: 慢性高血压并发子痫前期；GBS（+）；新生儿脐带绕颈一周 | Z147: 2 | AA147: 37 | AB147: 0 | AC147: 顺产 | AD147: 3060 | AE147: 0 | AF147: AGA | AG147: 999 | AH147: 高胆红素血症 | AI147: 0 | AJ147: 0 | AK147: 0 | AL147: 0 | AM147: 0 | AN147: 0 | AO147: 无
A148: 0 | B148: 47 | C148: 745826 | D148: 30 | E148: 0 | F148: 0 | G148: 0 | H148: 0 | I148: 无 | J148: 无 | K148: 无 | L148: 无 | M148: 无 | N148: 1 | O148: 0 | P148: 0 | Q148: 0 | R148: 0 | S148: 0 | T148: 1 | U148: 0 | V148: 0 | W148: 0 | X148: 0 | Y148: 凶险性前置胎盘；胎盘植入；疤痕子宫 | Z148: 2 | AA148: 35 | AB148: 1 | AC148: 剖宫产 | AD148: 2600 | AE148: 0 | AF148: AGA | AG148: 899 | AH148: 湿肺 | AI148: 0 | AJ148: 0 | AK148: 1 | AL148: 1 | AM148: 0 | AN148: 0 | AO148: 新生儿低血糖；高胆红素血症；呼吸性酸中毒；呼吸暂停；喂养不耐受
A149: 0 | B149: 48 | C149: 750010 | D149: 29 | E149: 0 | F149: 0 | G149: 0 | H149: 0 | I149: 无 | J149: 无 | K149: 无 | L149: 无 | M149: 无 | N149: 0 | O149: 0 | P149: 0 | Q149: 0 | R149: 0 | S149: 0 | T149: 0 | U149: 0 | V149: 0 | W149: 0 | X149: 0 | Y149: 单绒双胎；重度肝内胆汁淤积 | Z149: 2 | AA149: 36 | AB149: 1 | AC149: 剖宫产 | AD149: 2180 | AE149: 1 | AF149: SGA | AG149: 999 | AH149: 低出生体重 | AI149: 0 | AJ149: 0 | AK149: 0 | AL149: 0 | AM149: 0 | AN149: 0 | AO149: 代谢性酸中毒
A150: 0 | B150: 49 | C150: 1045445 | D150: 36 | E150: 1 | F150: 0 | G150: 0 | H150: 0 | I150: 无 | J150: 无 | K150: 无 | L150: 无 | M150: 无 | N150: 0 | O150: 1 | P150: 0 | Q150: 0 | R150: 0 | S150: 0 | T150: 1 | U150: 0 | V150: 0 | W150: 0 | X150: 0 | Y150: 胎盘植入；疤痕子宫；凶险性前置胎盘；轻度贫血 | Z150: 1 | AA150: 36 | AB150: 1 | AC150: 剖宫产 | AD150: 3120 | AE150: 0 | AF150: AGA | AG150: 589 | AH150: 湿肺 | AI150: 0 | AJ150: 0 | AK150: 0 | AL150: 0 | AM150: 0 | AN150: 0 | AO150: 呼吸性酸中毒
A151: 0 | B151: 50 | C151: 1033041 | D151: 33 | E151: 0 | F151: 0 | G151: 0 | H151: 0 | I151: 无 | J151: 无 | K151: 无 | L151: 无 | M151: 无 | N151: 1 | O151: 0 | P151: 1 | Q151: 13 | R151: 1 | S151: 0 | T151: 0 | U151: 0 | V151: 0 | W151: 0 | X151: 1 | Y151: 产时发热； | Z151: 2 | AA151: 36 | AB151: 1 | AC151: 剖宫产 | AD151: 2830 | AE151: 0 | AF151: AGA | AG151: 999 | AH151: 母亲产时发热38℃ | AI151: 0 | AJ151: 0 | AK151: 1 | AL151: 0 | AM151: 0 | AN151: 0 | AO151: 新生儿低血糖；房间隔缺损
A152: 0 | B152: 51 | C152: 1034923 | D152: 31 | E152: 0 | F152: 0 | G152: 0 | H152: 0 | I152: 无 | J152: 无 | K152: 无 | L152: 无 | M152: 无 | N152: 1 | O152: 0 | P152: 0 | Q152: 5 | R152: 1 | S152: 0 | T152: 0 | U152: 0 | V152: 0 | W152: 0 | X152: 0 | Y152: 双绒双胎；妊娠期蛋白尿 | Z152: 2 | AA152: 35 | AB152: 1 | AC152: 剖宫产 | AD152: 2350 | AE152: 1 | AF152: AGA | AG152: 999 | AH152: 低出生体重 | AI152: 0 | AJ152: 1 | AK152: 0 | AL152: 1 | AM152: 0 | AN152: 0 | AO152: 高胆红素血症；喂养不耐受；新生儿高血糖
A153: 0 | B153: 52 | C153: 1076899 | D153: 30 | E153: 0 | F153: 0 | G153: 0 | H153: 0 | I153: 无 | J153: 无 | K153: 无 | L153: 无 | M153: 无 | N153: 0 | O153: 0 | P153: 0 | Q153: 0 | R153: 0 | S153: 0 | T153: 0 | U153: 0 | V153: 0 | W153: 0 | X153: 0 | Y153: 双绒双胎 | Z153: 1 | AA153: 37 | AB153: 0 | AC153: 剖宫产 | AD153: 2400 | AE153: 1 | AF153: AGA | AG153: 999 | AH153: 低出生体重 | AI153: 0 | AJ153: 0 | AK153: 0 | AL153: 0 | AM153: 0 | AN153: 0 | AO153: ABO溶血
A154: 0 | B154: 53 | C154: 1106820 | D154: 29 | E154: 0 | F154: 0 | G154: 0 | H154: 0 | I154: 无 | J154: 无 | K154: 无 | L154: 无 | M154: 无 | N154: 0 | O154: 0 | P154: 0 | Q154: 82 | R154: 1 | S154: 0 | T154: 0 | U154: 1 | V154: 0 | W154: 0 | X154: 1 | Y154: 产时发热（37.8℃）；脐带绕颈一周 | Z154: 1 | AA154: 37 | AB154: 0 | AC154: 顺产 | AD154: 2820 | AE154: 0 | AF154: AGA | AG154: 999 | AH154: 败血症 | AI154: 0 | AJ154: 0 | AK154: 0 | AL154: 1 | AM154: 0 | AN154: 0 | AO154: 高胆红素血症
A155: 0 | B155: 54 | C155: 1033670 | D155: 36 | E155: 1 | F155: 1 | G155: 1 | H155: 0 | I155: 26 | J155: 4.8 | K155: 10.4 | L155: 8.3 | M155: 饮食控制 | N155: 0 | O155: 0 | P155: 0 | Q155: 0 | R155: 0 | S155: 0 | T155: 0 | U155: 0 | V155: 0 | W155: 0 | X155: 0 | Y155: 双绒双胎； | Z155: 2 | AA155: 37 | AB155: 0 | AC155: 剖宫产 | AD155: 2380 | AE155: 1 | AF155: SGA | AG155: 999 | AH155: 低出生体重 | AI155: 0 | AJ155: 0 | AK155: 0 | AL155: 0 | AM155: 0 | AN155: 0 | AO155: 无
A156: 0 | B156: 55 | C156: 1061134 | D156: 31 | E156: 0 | F156: 0 | G156: 0 | H156: 0 | I156: 无 | J156: 无 | K156: 无 | L156: 无 | M156: 无 | N156: 0 | O156: 0 | P156: 0 | Q156: 0 | R156: 0 | S156: 0 | T156: 0 | U156: 1 | V156: 0 | W156: 1 | X156: 0 | Y156: 轻度子痫前期；双绒双胎；脐带扭转；重度肝内胆汁淤积 | Z156: 1 | AA156: 37 | AB156: 0 | AC156: 剖宫产 | AD156: 2300 | AE156: 1 | AF156: SGA | AG156: 999 | AH156: 低出生体重 | AI156: 0 | AJ156: 0 | AK156: 1 | AL156: 1 | AM156: 0 | AN156: 0 | AO156: 新生儿低血糖；高胆红素血症
A157: 0 | B157: 56 | C157: 753720 | D157: 24 | E157: 0 | F157: 1 | G157: 1 | H157: 0 | I157: 23 | J157: 5.5 | K157: 10.9 | L157: 9.6 | M157: 饮食控制 | N157: 1 | O157: 0 | P157: 0 | Q157: 0 | R157: 0 | S157: 0 | T157: 1 | U157: 0 | V157: 0 | W157: 1 | X157: 0 | Y157: 完全性前置胎盘；羊水过少；子痫前期 | Z157: 2 | AA157: 36 | AB157: 1 | AC157: 剖宫产 | AD157: 2600 | AE157: 0 | AF157: AGA | AG157: 999 | AH157: 低出生体重 | AI157: 0 | AJ157: 0 | AK157: 0 | AL157: 1 | AM157: 0 | AN157: 0 | AO157: 高胆红素血症
A158: 0 | B158: 57 | C158: 1063882 | D158: 28 | E158: 0 | F158: 0 | G158: 0 | H158: 0 | I158: 无 | J158: 无 | K158: 无 | L158: 无 | M158: 无 | N158: 0 | O158: 0 | P158: 0 | Q158: 0 | R158: 0 | S158: 0 | T158: 0 | U158: 1 | V158: 0 | W158: 0 | X158: 0 | Y158: 双绒双胎；脐带真结 | Z158: 1 | AA158: 37 | AB158: 0 | AC158: 剖宫产 | AD158: 2430 | AE158: 1 | AF158: AGA | AG158: 999 | AH158: 湿肺 | AI158: 0 | AJ158: 0 | AK158: 0 | AL158: 1 | AM158: 0 | AN158: 0 | AO158: 高胆红素血症；
A159: 0 | B159: 58 | C159: 1078941 | D159: 28 | E159: 0 | F159: 0 | G159: 0 | H159: 0 | I159: 无 | J159: 无 | K159: 无 | L159: 无 | M159: 无 | N159: 0 | O159: 0 | P159: 0 | Q159: 12.5 | R159: 1 | S159: 0 | T159: 0 | U159: 0 | V159: 0 | W159: 0 | X159: 0 | Y159: 无 | Z159: 1 | AA159: 37 | AB159: 0 | AC159: 顺产 | AD159: 3080 | AE159: 0 | AF159: AGA | AG159: 999 | AH159: 高胆红素血症 | AI159: 0 | AJ159: 0 | AK159: 0 | AL159: 0 | AM159: 0 | AN159: 0 | AO159: 无
A160: 0 | B160: 59 | C160: 744244 | D160: 27 | E160: 0 | F160: 0 | G160: 0 | H160: 0 | I160: 无 | J160: 无 | K160: 无 | L160: 无 | M160: 无 | N160: 1 | O160: 0 | P160: 0 | Q160: 9 | R160: 1 | S160: 0 | T160: 0 | U160: 0 | V160: 0 | W160: 0 | X160: 1 | Y160: 产时发热（37.7℃）； | Z160: 2 | AA160: 34 | AB160: 1 | AC160: 剖宫产 | AD160: 2320 | AE160: 1 | AF160: AGA | AG160: 999 | AH160: 湿肺 | AI160: 0 | AJ160: 0 | AK160: 0 | AL160: 1 | AM160: 0 | AN160: 0 | AO160: 呼吸暂停；高胆红素血症
A161: 0 | B161: 60 | C161: 1018659 | D161: 33 | E161: 0 | F161: 0 | G161: 0 | H161: 0 | I161: 无 | J161: 无 | K161: 无 | L161: 无 | M161: 无 | N161: 0 | O161: 0 | P161: 0 | Q161: 0 | R161: 0 | S161: 0 | T161: 1 | U161: 0 | V161: 0 | W161: 0 | X161: 0 | Y161: 羊水过少；球拍状胎盘 | Z161: 2 | AA161: 37 | AB161: 0 | AC161: 顺产 | AD161: 3010 | AE161: 0 | AF161: AGA | AG161: 999 | AH161: 高胆红素血症 | AI161: 0 | AJ161: 0 | AK161: 0 | AL161: 0 | AM161: 0 | AN161: 0 | AO161: 无
A162: 0 | B162: 61 | C162: 1100824 | D162: 31 | E162: 0 | F162: 0 | G162: 0 | H162: 0 | I162: 无 | J162: 无 | K162: 无 | L162: 无 | M162: 无 | N162: 0 | O162: 0 | P162: 0 | Q162: 0 | R162: 0 | S162: 0 | T162: 0 | U162: 1 | V162: 0 | W162: 0 | X162: 1 | Y162: 产前发热（37.8℃）；新生儿脐带绕颈一周 | Z162: 2 | AA162: 37 | AB162: 0 | AC162: 顺产 | AD162: 3390 | AE162: 0 | AF162: AGA | AG162: 999 | AH162: 新生儿感染 | AI162: 0 | AJ162: 0 | AK162: 0 | AL162: 1 | AM162: 0 | AN162: 0 | AO162: 高胆红素血症
A163: 0 | B163: 62 | C163: 1008568 | D163: 38 | E163: 1 | F163: 0 | G163: 0 | H163: 0 | I163: 无 | J163: 无 | K163: 无 | L163: 无 | M163: 无 | N163: 0 | O163: 0 | P163: 0 | Q163: 0 | R163: 0 | S163: 1 | T163: 0 | U163: 1 | V163: 0 | W163: 0 | X163: 0 | Y163: 疤痕子宫；GBS（+）；脐带绕颈一周；肝内胆汁淤积 | Z163: 2 | AA163: 37 | AB163: 0 | AC163: 顺产 | AD163: 2690 | AE163: 0 | AF163: AGA | AG163: 999 | AH163: 高胆红素血症 | AI163: 0 | AJ163: 0 | AK163: 0 | AL163: 0 | AM163: 0 | AN163: 0 | AO163: 新生儿ABO溶血；
A164: 0 | B164: 63 | C164: 1079319 | D164: 36 | E164: 1 | F164: 0 | G164: 0 | H164: 0 | I164: 无 | J164: 无 | K164: 无 | L164: 无 | M164: 无 | N164: 1 | O164: 0 | P164: 1 | Q164: 0 | R164: 0 | S164: 0 | T164: 1 | U164: 1 | V164: 0 | W164: 0 | X164: 0 | Y164: 双绒双胎；脐带绕颈一周；帆状胎盘 | Z164: 1 | AA164: 35 | AB164: 1 | AC164: 顺产 | AD164: 2150 | AE164: 1 | AF164: AGA | AG164: 999 | AH164: 湿肺 | AI164: 0 | AJ164: 0 | AK164: 0 | AL164: 1 | AM164: 0 | AN164: 0 | AO164: 高胆红素血症；
A165: 0 | B165: 64 | C165: 1021548 | D165: 30 | E165: 0 | F165: 1 | G165: 0 | H165: 1 | I165: 0 | J165: 无 | K165: 无 | L165: 无 | M165: 胰岛素控制 | N165: 1 | O165: 0 | P165: 0 | Q165: 0 | R165: 0 | S165: 0 | T165: 1 | U165: 0 | V165: 0 | W165: 0 | X165: 0 | Y165: 双绒双胎；胎盘粘连 | Z165: 2 | AA165: 35 | AB165: 1 | AC165: 剖宫产 | AD165: 2080 | AE165: 1 | AF165: AGA | AG165: 999 | AH165: 湿肺 | AI165: 0 | AJ165: 0 | AK165: 0 | AL165: 1 | AM165: 0 | AN165: 0 | AO165: 高胆红素血症
A166: 0 | B166: 65 | C166: 1021861 | D166: 34 | E166: 0 | F166: 0 | G166: 0 | H166: 0 | I166: 无 | J166: 无 | K166: 无 | L166: 无 | M166: 无 | N166: 0 | O166: 0 | P166: 0 | Q166: 0 | R166: 0 | S166: 0 | T166: 0 | U166: 0 | V166: 0 | W166: 0 | X166: 0 | Y166: 双绒双胎 | Z166: 2 | AA166: 37 | AB166: 0 | AC166: 剖宫产 | AD166: 2270 | AE166: 1 | AF166: SGA | AG166: 999 | AH166: 低出生体重 | AI166: 0 | AJ166: 0 | AK166: 0 | AL166: 0 | AM166: 0 | AN166: 0 | AO166: 无
A167: 0 | B167: 66 | C167: 899025 | D167: 33 | E167: 0 | F167: 1 | G167: 1 | H167: 1 | I167: 22 | J167: 4.8 | K167: 10.4 | L167: 8.3 | M167: 胰岛素控制 | N167: 1 | O167: 0 | P167: 0 | Q167: 0 | R167: 0 | S167: 0 | T167: 1 | U167: 0 | V167: 0 | W167: 0 | X167: 0 | Y167: 疤痕子宫；凶险性前置胎盘 | Z167: 1 | AA167: 36 | AB167: 1 | AC167: 剖宫产 | AD167: 2630 | AE167: 0 | AF167: AGA | AG167: 899 | AH167: 高胆红素血症 | AI167: 0 | AJ167: 0 | AK167: 0 | AL167: 0 | AM167: 0 | AN167: 0 | AO167: 无
A168: 0 | B168: 67 | C168: 1070588 | D168: 31 | E168: 0 | F168: 0 | G168: 0 | H168: 0 | I168: 无 | J168: 无 | K168: 无 | L168: 无 | M168: 无 | N168: 0 | O168: 0 | P168: 0 | Q168: 0 | R168: 0 | S168: 0 | T168: 0 | U168: 0 | V168: 0 | W168: 0 | X168: 0 | Y168: 无 | Z168: 2 | AA168: 37 | AB168: 0 | AC168: 顺产 | AD168: 2990 | AE168: 0 | AF168: AGA | AG168: 999 | AH168: 高胆红素血症 | AI168: 0 | AJ168: 0 | AK168: 0 | AL168: 0 | AM168: 0 | AN168: 0 | AO168: 高钙血症
A169: 0 | B169: 68 | C169: 1063341 | D169: 31 | E169: 0 | F169: 0 | G169: 0 | H169: 0 | I169: 无 | J169: 无 | K169: 无 | L169: 无 | M169: 无 | N169: 1 | O169: 0 | P169: 0 | Q169: 0 | R169: 0 | S169: 0 | T169: 0 | U169: 0 | V169: 0 | W169: 0 | X169: 0 | Y169: 无 | Z169: 2 | AA169: 34 | AB169: 1 | AC169: 剖宫产 | AD169: 2310 | AE169: 1 | AF169: AGA | AG169: 999 | AH169: 湿肺 | AI169: 0 | AJ169: 0 | AK169: 0 | AL169: 1 | AM169: 0 | AN169: 0 | AO169: 高胆红素血症；ABO溶血
A170: 0 | B170: 69 | C170: 1033292 | D170: 31 | E170: 0 | F170: 0 | G170: 0 | H170: 0 | I170: 无 | J170: 无 | K170: 无 | L170: 无 | M170: 无 | N170: 0 | O170: 0 | P170: 1 | Q170: 0 | R170: 0 | S170: 0 | T170: 0 | U170: 1 | V170: 0 | W170: 1 | X170: 0 | Y170: 轻度子痫前期；脐带真结 | Z170: 2 | AA170: 37 | AB170: 0 | AC170: 剖宫产 | AD170: 2910 | AE170: 0 | AF170: AGA | AG170: 899 | AH170: 湿肺 | AI170: 0 | AJ170: 0 | AK170: 0 | AL170: 1 | AM170: 0 | AN170: 0 | AO170: 高胆红素血症；呼吸性酸中毒
A171: 0 | B171: 70 | C171: 1078795 | D171: 34 | E171: 0 | F171: 1 | G171: 1 | H171: 0 | I171: 12 | J171: 4 | K171: 9.3 | L171: 8.6 | M171: 饮食控制 | N171: 0 | O171: 0 | P171: 0 | Q171: 0 | R171: 0 | S171: 0 | T171: 0 | U171: 0 | V171: 0 | W171: 1 | X171: 0 | Y171: 双绒双羊；妊娠期生殖道感染；轻度子痫前期 | Z171: 2 | AA171: 35 | AB171: 1 | AC171: 剖宫产 | AD171: 2170 | AE171: 1 | AF171: AGA | AG171: 999 | AH171: 低出生体重 | AI171: 0 | AJ171: 0 | AK171: 1 | AL171: 0 | AM171: 0 | AN171: 0 | AO171: 低血糖症
A172: 0 | B172: 71 | C172: 896089 | D172: 31 | E172: 0 | F172: 0 | G172: 0 | H172: 0 | I172: 无 | J172: 无 | K172: 无 | L172: 无 | M172: 无 | N172: 0 | O172: 0 | P172: 0 | Q172: 0 | R172: 0 | S172: 0 | T172: 0 | U172: 0 | V172: 1 | W172: 1 | X172: 0 | Y172: 妊娠期高血压；疤痕子宫；轻度子痫前期 | Z172: 1 | AA172: 37 | AB172: 0 | AC172: 剖宫产 | AD172: 2900 | AE172: 0 | AF172: AGA | AG172: 999 | AH172: 高胆红素血症 | AI172: 0 | AJ172: 0 | AK172: 0 | AL172: 0 | AM172: 0 | AN172: 0 | AO172: 无
A173: 0 | B173: 72 | C173: 1066678 | D173: 30 | E173: 0 | F173: 0 | G173: 0 | H173: 0 | I173: 无 | J173: 无 | K173: 无 | L173: 无 | M173: 无 | N173: 0 | O173: 0 | P173: 1 | Q173: 0 | R173: 0 | S173: 1 | T173: 0 | U173: 0 | V173: 0 | W173: 0 | X173: 0 | Y173: GBS（+）；中度贫血 | Z173: 2 | AA173: 37 | AB173: 0 | AC173: 顺产 | AD173: 2950 | AE173: 0 | AF173: AGA | AG173: 799 | AH173: 湿肺 | AI173: 0 | AJ173: 0 | AK173: 0 | AL173: 1 | AM173: 0 | AN173: 0 | AO173: 混合性酸中毒；高胆红素血症
A174: 0 | B174: 73 | C174: 744615 | D174: 32 | E174: 0 | F174: 0 | G174: 0 | H174: 0 | I174: 无 | J174: 无 | K174: 无 | L174: 无 | M174: 无 | N174: 0 | O174: 0 | P174: 1 | Q174: 0 | R174: 0 | S174: 0 | T174: 0 | U174: 1 | V174: 0 | W174: 0 | X174: 0 | Y174: 脐带扭转 | Z174: 1 | AA174: 37 | AB174: 0 | AC174: 顺产 | AD174: 2650 | AE174: 0 | AF174: AGA | AG174: 999 | AH174: 湿肺 | AI174: 0 | AJ174: 0 | AK174: 0 | AL174: 1 | AM174: 0 | AN174: 0 | AO174: 高胆红素血症
A175: 0 | B175: 74 | C175: 1067643 | D175: 33 | E175: 0 | F175: 1 | G175: 1 | H175: 0 | I175: 11 | J175: 4.8 | K175: 10.1 | L175: 10.4 | M175: 饮食控制 | N175: 0 | O175: 0 | P175: 0 | Q175: 0 | R175: 0 | S175: 0 | T175: 0 | U175: 1 | V175: 0 | W175: 0 | X175: 1 | Y175: 脐带绕颈一周；产时发热（38.5℃） | Z175: 1 | AA175: 37 | AB175: 0 | AC175: 顺产 | AD175: 2670 | AE175: 0 | AF175: AGA | AG175: 999 | AH175: 母亲产时发热38℃ | AI175: 0 | AJ175: 0 | AK175: 0 | AL175: 1 | AM175: 0 | AN175: 0 | AO175: 高胆红素血症
A176: 0 | B176: 53 | C176: 1018577 | D176: 43 | E176: 1 | F176: 0 | G176: 0 | H176: 0 | I176: 无 | J176: 无 | K176: 无 | L176: 无 | M176: 无 | N176: 1 | O176: 0 | P176: 0 | Q176: 0 | R176: 0 | S176: 0 | T176: 0 | U176: 0 | V176: 0 | W176: 0 | X176: 0 | Y176: 无 | Z176: 1 | AA176: 34 | AB176: 1 | AC176: 剖宫产 | AD176: 2080 | AE176: 1 | AF176: AGA | AG176: 999 | AH176: 湿肺 | AI176: 0 | AJ176: 0 | AK176: 0 | AL176: 1 | AM176: 0 | AN176: 0 | AO176: 呼吸性酸中毒；新生儿高胆红素血症
A177: 0 | B177: 76 | C177: 1008999 | D177: 29 | E177: 0 | F177: 0 | G177: 0 | H177: 0 | I177: 无 | J177: 无 | K177: 无 | L177: 无 | M177: 无 | N177: 0 | O177: 0 | P177: 0 | Q177: 0 | R177: 0 | S177: 0 | T177: 0 | U177: 0 | V177: 1 | W177: 0 | X177: 0 | Y177: 双绒双胎；妊娠期高血压 | Z177: 1 | AA177: 36 | AB177: 1 | AC177: 剖宫产 | AD177: 2290 | AE177: 1 | AF177: AGA | AG177: 999 | AH177: 高胆红素血症 | AI177: 0 | AJ177: 0 | AK177: 0 | AL177: 0 | AM177: 0 | AN177: 0 | AO177: 无
A178: 0 | B178: 77 | C178: 743821 | D178: 28 | E178: 0 | F178: 0 | G178: 0 | H178: 0 | I178: 无 | J178: 无 | K178: 无 | L178: 无 | M178: 无 | N178: 1 | O178: 0 | P178: 0 | Q178: 0 | R178: 0 | S178: 0 | T178: 0 | U178: 0 | V178: 0 | W178: 1 | X178: 0 | Y178: 重度子痫前期；胎儿宫内生长受限；羊水过少 | Z178: 2 | AA178: 37 | AB178: 0 | AC178: 剖宫产 | AD178: 2180 | AE178: 1 | AF178: SGA | AG178: 999 | AH178: 低出生体重 | AI178: 0 | AJ178: 0 | AK178: 0 | AL178: 0 | AM178: 0 | AN178: 0 | AO178: 无
A179: 0 | B179: 78 | C179: 1074016 | D179: 21 | E179: 0 | F179: 0 | G179: 0 | H179: 0 | I179: 无 | J179: 无 | K179: 无 | L179: 无 | M179: 无 | N179: 0 | O179: 0 | P179: 0 | Q179: 0 | R179: 0 | S179: 0 | T179: 0 | U179: 0 | V179: 0 | W179: 0 | X179: 0 | Y179: 双绒双胎 | Z179: 2 | AA179: 37 | AB179: 0 | AC179: 剖宫产 | AD179: 2420 | AE179: 1 | AF179: SGA | AG179: 999 | AH179: 高胆红素血症 | AI179: 0 | AJ179: 0 | AK179: 0 | AL179: 0 | AM179: 0 | AN179: 0 | AO179: 无
A180: 0 | B180: 79 | C180: 1046438 | D180: 26 | E180: 0 | F180: 0 | G180: 0 | H180: 0 | I180: 无 | J180: 无 | K180: 无 | L180: 无 | M180: 无 | N180: 0 | O180: 0 | P180: 0 | Q180: 0 | R180: 0 | S180: 0 | T180: 0 | U180: 1 | V180: 0 | W180: 0 | X180: 0 | Y180: 胎儿宫内生长受限；脐带螺旋；羊水过少 | Z180: 2 | AA180: 37 | AB180: 0 | AC180: 剖宫产 | AD180: 2340 | AE180: 1 | AF180: SGA | AG180: 999 | AH180: 湿肺 | AI180: 0 | AJ180: 0 | AK180: 0 | AL180: 0 | AM180: 0 | AN180: 0 | AO180: 无
A181: 0 | B181: 80 | C181: 571174 | D181: 29 | E181: 0 | F181: 0 | G181: 0 | H181: 0 | I181: 0 | J181: 无 | K181: 无 | L181: 无 | M181: 无 | N181: 0 | O181: 1 | P181: 0 | Q181: 0 | R181: 0 | S181: 0 | T181: 0 | U181: 0 | V181: 0 | W181: 0 | X181: 0 | Y181: 疤痕子宫 | Z181: 1 | AA181: 37 | AB181: 0 | AC181: 剖宫产 | AD181: 3110 | AE181: 0 | AF181: AGA | AG181: 588 | AH181: 湿肺 | AI181: 0 | AJ181: 0 | AK181: 0 | AL181: 1 | AM181: 0 | AN181: 0 | AO181: 高胆红素血症
A182: 0 | B182: 81 | C182: 1042648 | D182: 29 | E182: 0 | F182: 0 | G182: 0 | H182: 0 | I182: 无 | J182: 无 | K182: 无 | L182: 无 | M182: 无 | N182: 0 | O182: 0 | P182: 0 | Q182: 0 | R182: 0 | S182: 0 | T182: 0 | U182: 0 | V182: 0 | W182: 1 | X182: 0 | Y182: 重度子痫前期；双绒双胎 | Z182: 2 | AA182: 36 | AB182: 1 | AC182: 剖宫产 | AD182: 2230 | AE182: 1 | AF182: SGA | AG182: 999 | AH182: 低出生体重 | AI182: 0 | AJ182: 0 | AK182: 0 | AL182: 0 | AM182: 0 | AN182: 0 | AO182: 无
A183: 0 | B183: 82 | C183: 1084194 | D183: 29 | E183: 0 | F183: 0 | G183: 0 | H183: 0 | I183: 0 | J183: 无 | K183: 无 | L183: 无 | M183: 无 | N183: 0 | O183: 0 | P183: 0 | Q183: 0 | R183: 0 | S183: 0 | T183: 0 | U183: 0 | V183: 0 | W183: 0 | X183: 0 | Y183: 无 | Z183: 2 | AA183: 35 | AB183: 1 | AC183: 剖宫产 | AD183: 2510 | AE183: 0 | AF183: AGA | AG183: 999 | AH183: 高胆红素血症 | AI183: 0 | AJ183: 0 | AK183: 0 | AL183: 0 | AM183: 0 | AN183: 0 | AO183: 无
A184: 0 | B184: 83 | C184: 1011501 | D184: 32 | E184: 0 | F184: 0 | G184: 0 | H184: 0 | I184: 无 | J184: 无 | K184: 无 | L184: 无 | M184: 无 | N184: 0 | O184: 0 | P184: 0 | Q184: 0 | R184: 0 | S184: 1 | T184: 1 | U184: 0 | V184: 1 | W184: 0 | X184: 0 | Y184: 妊娠期高血压；GBS（+）；胎盘早剥 | Z184: 1 | AA184: 37 | AB184: 0 | AC184: 剖宫产 | AD184: 3070 | AE184: 0 | AF184: AGA | AG184: 899 | AH184: 高胆红素血症 | AI184: 0 | AJ184: 0 | AK184: 0 | AL184: 0 | AM184: 0 | AN184: 0 | AO184: 无
A185: 0 | B185: 84 | C185: 1089403 | D185: 31 | E185: 0 | F185: 0 | G185: 0 | H185: 0 | I185: 0 | J185: 无 | K185: 无 | L185: 无 | M185: 无 | N185: 0 | O185: 0 | P185: 1 | Q185: 0 | R185: 0 | S185: 0 | T185: 0 | U185: 1 | V185: 0 | W185: 0 | X185: 0 | Y185: 新生儿脐带绕颈一周 | Z185: 1 | AA185: 37 | AB185: 0 | AC185: 顺产 | AD185: 2600 | AE185: 0 | AF185: AGA | AG185: 999 | AH185: 高胆红素血症 | AI185: 0 | AJ185: 0 | AK185: 0 | AL185: 0 | AM185: 0 | AN185: 0 | AO185: 无
A186: 0 | B186: 85 | C186: 743426 | D186: 27 | E186: 0 | F186: 0 | G186: 0 | H186: 0 | I186: 0 | J186: 无 | K186: 无 | L186: 无 | M186: 无 | N186: 0 | O186: 0 | P186: 0 | Q186: 0 | R186: 0 | S186: 1 | T186: 0 | U186: 1 | V186: 0 | W186: 0 | X186: 1 | Y186: GBS（+）；产时发热；脐带绕颈一周 | Z186: 2 | AA186: 36 | AB186: 1 | AC186: 顺产 | AD186: 3210 | AE186: 0 | AF186: AGA | AG186: 999 | AH186: 高胆红素血症 | AI186: 0 | AJ186: 0 | AK186: 0 | AL186: 0 | AM186: 0 | AN186: 0 | AO186: 无
A187: 0 | B187: 86 | C187: 753660 | D187: 27 | E187: 0 | F187: 0 | G187: 0 | H187: 0 | I187: 0 | J187: 无 | K187: 无 | L187: 无 | M187: 无 | N187: 0 | O187: 0 | P187: 0 | Q187: 0 | R187: 0 | S187: 0 | T187: 0 | U187: 0 | V187: 0 | W187: 1 | X187: 0 | Y187: 重度子痫前期； | Z187: 1 | AA187: 37 | AB187: 0 | AC187: 顺产 | AD187: 2280 | AE187: 1 | AF187: SGA | AG187: 999 | AH187: 低出生体重 | AI187: 0 | AJ187: 0 | AK187: 0 | AL187: 0 | AM187: 0 | AN187: 0 | AO187: 无
A188: 0 | B188: 87 | C188: 748170 | D188: 33 | E188: 0 | F188: 0 | G188: 0 | H188: 0 | I188: 0 | J188: 无 | K188: 无 | L188: 无 | M188: 无 | N188: 0 | O188: 0 | P188: 0 | Q188: 0 | R188: 0 | S188: 0 | T188: 0 | U188: 0 | V188: 0 | W188: 1 | X188: 0 | Y188: 单绒双羊；重度子痫前期；疤痕子宫 | Z188: 1 | AA188: 36 | AB188: 1 | AC188: 剖宫产 | AD188: 2260 | AE188: 1 | AF188: SGA | AG188: 999 | AH188: 低出生体重 | AI188: 0 | AJ188: 0 | AK188: 0 | AL188: 0 | AM188: 0 | AN188: 0 | AO188: 无
A189: 0 | B189: 88 | C189: 1080700 | D189: 35 | E189: 1 | F189: 0 | G189: 0 | H189: 0 | I189: 0 | J189: 无 | K189: 无 | L189: 无 | M189: 无 | N189: 1 | O189: 0 | P189: 0 | Q189: 0 | R189: 0 | S189: 0 | T189: 0 | U189: 0 | V189: 1 | W189: 1 | X189: 0 | Y189: 慢性高血压并发重度子痫前期； | Z189: 2 | AA189: 34 | AB189: 1 | AC189: 剖宫产 | AD189: 2360 | AE189: 1 | AF189: AGA | AG189: 999 | AH189: 湿肺 | AI189: 0 | AJ189: 0 | AK189: 0 | AL189: 1 | AM189: 0 | AN189: 0 | AO189: 高胆红素血症
A190: 0 | B190: 89 | C190: 1057910 | D190: 27 | E190: 0 | F190: 1 | G190: 1 | H190: 0 | I190: 25 | J190: 5.0 | K190: 8.9 | L190: 9.4 | M190: 饮食控制 | N190: 1 | O190: 0 | P190: 0 | Q190: 0 | R190: 0 | S190: 0 | T190: 0 | U190: 1 | V190: 0 | W190: 0 | X190: 0 | Y190: 轻度贫血；妊娠期蛋白尿；胎儿宫内生长受限；脐带扭转 | Z190: 2 | AA190: 36 | AB190: 1 | AC190: 剖宫产 | AD190: 2190 | AE190: 1 | AF190: SGA | AG190: 999 | AH190: 低出生体重 | AI190: 0 | AJ190: 0 | AK190: 0 | AL190: 0 | AM190: 0 | AN190: 0 | AO190: 无
A191: 0 | B191: 90 | C191: 1078419 | D191: 27 | E191: 0 | F191: 0 | G191: 0 | H191: 0 | I191: 0 | J191: 无 | K191: 无 | L191: 无 | M191: 无 | N191: 1 | O191: 0 | P191: 0 | Q191: 0 | R191: 0 | S191: 0 | T191: 0 | U191: 0 | V191: 0 | W191: 1 | X191: 0 | Y191: 双绒双胎；重度子痫前期 | Z191: 1 | AA191: 35 | AB191: 1 | AC191: 剖宫产 | AD191: 2400 | AE191: 1 | AF191: AGA | AG191: 999 | AH191: 低出生体重 | AI191: 0 | AJ191: 0 | AK191: 0 | AL191: 0 | AM191: 0 | AN191: 0 | AO191: 无
A192: 0 | B192: 91 | C192: 1078870 | D192: 34 | E192: 0 | F192: 0 | G192: 0 | H192: 0 | I192: 0 | J192: 无 | K192: 无 | L192: 无 | M192: 无 | N192: 0 | O192: 0 | P192: 0 | Q192: 0 | R192: 0 | S192: 0 | T192: 0 | U192: 0 | V192: 0 | W192: 0 | X192: 1 | Y192: 双绒双胎；贫血；产后发热 | Z192: 2 | AA192: 35 | AB192: 1 | AC192: 剖宫产 | AD192: 2130 | AE192: 1 | AF192: SGA | AG192: 999 | AH192: 湿肺 | AI192: 0 | AJ192: 0 | AK192: 0 | AL192: 1 | AM192: 0 | AN192: 0 | AO192: 高胆红素血症
A193: 0 | B193: 92 | C193: 1011961 | D193: 26 | E193: 0 | F193: 0 | G193: 0 | H193: 0 | I193: 0 | J193: 无 | K193: 无 | L193: 无 | M193: 无 | N193: 1 | O193: 0 | P193: 0 | Q193: 0 | R193: 0 | S193: 0 | T193: 0 | U193: 0 | V193: 0 | W193: 1 | X193: 0 | Y193: 重度子痫前期；双绒双胎 | Z193: 2 | AA193: 35 | AB193: 1 | AC193: 顺产 | AD193: 2160 | AE193: 1 | AF193: SGA | AG193: 999 | AH193: 低出生体重 | AI193: 0 | AJ193: 0 | AK193: 0 | AL193: 0 | AM193: 0 | AN193: 0 | AO193: 无
A194: 0 | B194: 93 | C194: 1074161 | D194: 30 | E194: 0 | F194: 0 | G194: 0 | H194: 0 | I194: 0 | J194: 无 | K194: 无 | L194: 无 | M194: 无 | N194: 0 | O194: 0 | P194: 1 | Q194: 0 | R194: 0 | S194: 0 | T194: 0 | U194: 0 | V194: 0 | W194: 0 | X194: 1 | Y194: 产前发热；羊水过少 | Z194: 2 | AA194: 37 | AB194: 0 | AC194: 顺产 | AD194: 3510 | AE194: 0 | AF194: AGA | AG194: 899 | AH194: 高胆红素血症 | AI194: 0 | AJ194: 0 | AK194: 0 | AL194: 0 | AM194: 0 | AN194: 0 | AO194: 无
A195: 0 | B195: 94 | C195: 1022880 | D195: 40 | E195: 1 | F195: 0 | G195: 0 | H195: 0 | I195: 0 | J195: 无 | K195: 无 | L195: 无 | M195: 无 | N195: 0 | O195: 1 | P195: 0 | Q195: 0 | R195: 0 | S195: 0 | T195: 0 | U195: 0 | V195: 0 | W195: 0 | X195: 0 | Y195: 疤痕子宫；中度贫血 | Z195: 1 | AA195: 36 | AB195: 1 | AC195: 剖宫产 | AD195: 2970 | AE195: 0 | AF195: AGA | AG195: 699 | AH195: 湿肺 | AI195: 0 | AJ195: 0 | AK195: 0 | AL195: 1 | AM195: 0 | AN195: 0 | AO195: 高胆红素血症
A196: 0 | B196: 95 | C196: 1060093 | D196: 31 | E196: 0 | F196: 0 | G196: 0 | H196: 0 | I196: 0 | J196: 无 | K196: 无 | L196: 无 | M196: 无 | N196: 0 | O196: 1 | P196: 1 | Q196: 0 | R196: 0 | S196: 0 | T196: 0 | U196: 1 | V196: 0 | W196: 0 | X196: 0 | Y196: 脐带绕脚一周 | Z196: 1 | AA196: 35 | AB196: 1 | AC196: 剖宫产 | AD196: 2760 | AE196: 0 | AF196: AGA | AG196: 688 | AH196: 湿肺 | AI196: 0 | AJ196: 0 | AK196: 0 | AL196: 1 | AM196: 0 | AN196: 0 | AO196: 高胆红素血症
A197: 0 | B197: 96 | C197: 1069979 | D197: 40 | E197: 1 | F197: 0 | G197: 0 | H197: 0 | I197: 0 | J197: 无 | K197: 无 | L197: 无 | M197: 无 | N197: 0 | O197: 0 | P197: 0 | Q197: 0 | R197: 0 | S197: 0 | T197: 0 | U197: 1 | V197: 0 | W197: 1 | X197: 0 | Y197: 疤痕子宫；双绒双胎；子痫前期；脐带绕颈一周 | Z197: 1 | AA197: 36 | AB197: 1 | AC197: 剖宫产 | AD197: 2120 | AE197: 1 | AF197: SGA | AG197: 999 | AH197: 低出生体重 | AI197: 0 | AJ197: 0 | AK197: 0 | AL197: 0 | AM197: 0 | AN197: 0 | AO197: 无
A198: 0 | B198: 97 | C198: 1021585 | D198: 31 | E198: 0 | F198: 0 | G198: 0 | H198: 0 | I198: 0 | J198: 无 | K198: 无 | L198: 无 | M198: 无 | N198: 1 | O198: 0 | P198: 0 | Q198: 0 | R198: 0 | S198: 0 | T198: 0 | U198: 0 | V198: 0 | W198: 1 | X198: 0 | Y198: 重度子痫前期；双绒双胎 | Z198: 2 | AA198: 35 | AB198: 1 | AC198: 剖宫产 | AD198: 2190 | AE198: 1 | AF198: AGA | AG198: 999 | AH198: 湿肺 | AI198: 0 | AJ198: 0 | AK198: 0 | AL198: 1 | AM198: 0 | AN198: 0 | AO198: 高胆红素血症
A199: 0 | B199: 98 | C199: 1108254 | D199: 29 | E199: 0 | F199: 1 | G199: 1 | H199: 0 | I199: 12 | J199: 4.5 | K199: 13.3 | L199: 10.4 | M199: 饮食控制 | N199: 0 | O199: 0 | P199: 1 | Q199: 0 | R199: 0 | S199: 0 | T199: 0 | U199: 0 | V199: 0 | W199: 0 | X199: 0 | Y199: 无 | Z199: 2 | AA199: 37 | AB199: 0 | AC199: 顺产 | AD199: 3400 | AE199: 0 | AF199: AGA | AG199: 999 | AH199: 湿肺 | AI199: 0 | AJ199: 0 | AK199: 0 | AL199: 1 | AM199: 0 | AN199: 0 | AO199: 高胆红素血症
A200: 0 | B200: 99 | C200: 1144007 | D200: 21 | E200: 0 | F200: 0 | G200: 0 | H200: 0 | I200: 0 | J200: 无 | K200: 无 | L200: 无 | M200: 无 | N200: 0 | O200: 0 | P200: 1 | Q200: 0 | R200: 0 | S200: 0 | T200: 0 | U200: 0 | V200: 0 | W200: 0 | X200: 0 | Y200: 无 | Z200: 2 | AA200: 40 | AB200: 0 | AC200: 顺产 | AD200: 4400 | AE200: 0 | AF200: LGA | AG200: 999 | AH200: 肺炎 | AI200: 0 | AJ200: 0 | AK200: 0 | AL200: 1 | AM200: 0 | AN200: 0 | AO200: 高胆红素血症；ABO溶血
... 2 more rows

Sheet total（GDM vs nonGDM）
A1: groups（1GDM；2non GDM） | B1: sequence number | C1: GDM+PGDM | D1: initial symptoms | E1: tachypnea | F1: subcostal retractions | G1: groan | H1: syanosis | I1: initial time of symptoms | J1: times of PS use | K1: total dose | L1: birthday | N1: average dose | O1: time1 | P1: dose1 | Q1: time2 | R1: dose2 | S1: hood oxygen | T1: CPAP | U1: MV | V1: duration of respiratory support | W1: duration of hospitalization | X1: transfer | Y1: PPHN | Z1: pneumonia | AA1: metabolic acidosis | AB1: pneumothorax | AC1: sepsis | AD1: other infection | AE1: complications
A2: 1 | B2: 96 | C2: 1 | D2: 气促；吸气性凹陷 | E2: 1 | F2: 1 | G2: 0 | H2: 0 | I2: 0 | J2: 1 | K2: =P2+R2 -> 360 | L2: 2530 | M2: 2.53 | N2: =K2/M2 -> 142 | O2: 1 | P2: 360 | Q2: 0 | R2: 0 | S2: 0 | T2: 92 | U2: 0 | V2: =U2+T2+S2 -> 92 | W2: 10 | X2: 0 | Y2: 0 | Z2: 0 | AA2: 0 | AB2: 0 | AC2: 0 | AD2: 0 | AE2: 新生儿呼吸性酸中毒；新生儿低血糖症；
A3: 1 | B3: 66 | C3: 1 | D3: 气促；吸气性凹陷 | E3: 1 | F3: 1 | G3: 0 | H3: 0 | I3: 0 | J3: 1 | K3: 180 | L3: 1810 | M3: 1.81 | N3: 99 | O3: 2 | P3: 180 | Q3: 0 | R3: 0 | S3: 0 | T3: 430 | U3: 0 | V3: =U3+T3+S3 -> 430 | W3: 21 | X3: 0 | Y3: 0 | Z3: 0 | AA3: 1 | AB3: 0 | AC3: 0 | AD3: 0 | AE3: 混合性酸中毒；
A4: 1 | B4: 68 | C4: 1 | D4: 气促；吸气性凹陷 | E4: 1 | F4: 1 | G4: 0 | H4: 0 | I4: 0 | J4: 1 | K4: 160 | L4: 1600 | M4: 1.6 | N4: 100 | O4: 2 | P4: 160 | Q4: 0 | R4: 0 | S4: 0 | T4: 520 | U4: 0 | V4: =U4+T4+S4 -> 520 | W4: 28 | X4: 0 | Y4: 0 | Z4: 0 | AA4: 1 | AB4: 0 | AC4: 0 | AD4: 0 | AE4: 混合性酸中毒；动脉导管未闭；卵圆孔未闭；呼吸暂停；脐疝
A5: 1 | B5: 67 | C5: 1 | D5: 气促；吸气性凹陷 | E5: 1 | F5: 1 | G5: 0 | H5: 0 | I5: 0 | J5: 1 | K5: 160 | L5: 1580 | M5: 1.58 | N5: 101 | O5: 2 | P5: 160 | Q5: 0 | R5: 0 | S5: 0 | T5: 640 | U5: 0 | V5: =U5+T5+S5 -> 640 | W5: 28 | X5: 0 | Y5: 0 | Z5: 0 | AA5: 0 | AB5: 0 | AC5: 0 | AD5: 0 | AE5: 呼吸性酸中毒；卵圆孔未闭；动脉导管未闭；脑积水；脐疝
A6: 1 | B6: 59 | C6: 1 | D6: 气促；呻吟；呼吸不规则 | E6: 1 | F6: 0 | G6: 1 | H6: 0 | I6: 0 | J6: 1 | K6: 360 | L6: 2950 | M6: 2.95 | N6: 122 | O6: 2 | P6: 360 | Q6: 0 | R6: 0 | S6: 10 | T6: 18 | U6: 0 | V6: =U6+T6+S6 -> 28 | W6: 8 | X6: 0 | Y6: 0 | Z6: 0 | AA6: 1 | AB6: 0 | AC6: 0 | AD6: 0 | AE6: 高胆红素血症，混合性酸中毒
A7: 1 | B7: 35 | C7: 1 | D7: 气促 | E7: 1 | F7: 0 | G7: 0 | H7: 0 | I7: 0 | J7: 1 | K7: 160 | L7: 830 | M7: 0.83 | N7: 193 | O7: 3 | P7: 160 | Q7: 0 | R7: 0 | S7: ———— | T7: ———— | U7: ———— | V7: ———— | W7: 转院 | X7: 1 | Y7: 1 | Z7: 0 | AA7: 0 | AB7: 0 | AC7: 0 | AD7: 1 | AE7: 持续性肺动脉高压；新生儿感染；红细胞增多症
A8: 1 | B8: 4 | C8: 1 | D8: 气促 | E8: 1 | F8: 0 | G8: 0 | H8: 0 | I8: 0 | J8: 1 | K8: 480 | L8: 2550 | M8: 2.55 | N8: 188 | O8: 4 | P8: 480 | Q8: 0 | R8: 0 | S8: 2 | T8: 25 | U8: 0 | V8: =U8+T8+S8 -> 27 | W8: 6 | X8: 0 | Y8: 0 | Z8: 0 | AA8: 0 | AB8: 0 | AC8: 0 | AD8: 0 | AE8: 呼吸性酸中毒；高胆红素血症
A9: 1 | B9: 7 | C9: 1 | D9: 气促；吸气性凹陷；呻吟 | E9: 1 | F9: 1 | G9: 1 | H9: 0 | I9: 2 | J9: 1 | K9: 360 | L9: 1800 | M9: 1.8 | N9: 200 | O9: 4 | P9: 360 | Q9: 0 | R9: 0 | S9: 3 | T9: 63 | U9: 0 | V9: =U9+T9+S9 -> 66 | W9: 21 | X9: 0 | Y9: 0 | Z9: 0 | AA9: 0 | AB9: 0 | AC9: 0 | AD9: 0 | AE9: 呼吸性酸中毒；高胆红素血症；新生儿低血糖
A10: 1 | B10: 88 | C10: 1 | D10: 气促；吸气性凹陷；呻吟 | E10: 1 | F10: 1 | G10: 1 | H10: 0 | I10: 2 | J10: 1 | K10: 360 | L10: 1800 | M10: 1.8 | N10: 200 | O10: 4 | P10: 360 | Q10: 0 | R10: 0 | S10: 3 | T10: 63 | U10: 0 | V10: =U10+T10+S10 -> 66 | W10: 21 | X10: 0 | Y10: 0 | Z10: 0 | AA10: 0 | AB10: 0 | AC10: 0 | AD10: 0 | AE10: 呼吸性酸中毒；高胆红素血症；新生儿低血糖
A11: 1 | B11: 11 | C11: 1 | D11: 青紫 | E11: 0 | F11: 0 | G11: 0 | H11: 1 | I11: 0 | J11: 2 | K11: 960 | L11: 3570 | M11: 3.57 | N11: 269 | O11: 4 | P11: 480 | Q11: 28 | R11: 480 | S11: 108 | T11: 0 | U11: 59 | V11: =U11+T11+S11 -> 167 | W11: 8 | X11: 0 | Y11: 0 | Z11: 0 | AA11: 1 | AB11: 0 | AC11: 0 | AD11: 1 | AE11: 代谢性酸中毒；呼吸性酸中毒；高胆红素血症；感染
A12: 1 | B12: 33 | C12: 1 | D12: 气促 | E12: 1 | F12: 0 | G12: 0 | H12: 0 | I12: 2 | J12: 1 | K12: 360 | L12: 3210 | M12: 3.21 | N12: 112 | O12: 4.5 | P12: 360 | Q12: 0 | R12: 0 | S12: ———— | T12: ———— | U12: ———— | V12: ———— | W12: 转院 | X12: 1 | Y12: 0 | Z12: 1 | AA12: 1 | AB12: 0 | AC12: 1 | AD12: 0 | AE12: 新生儿败血症；肺炎；混合型酸中毒
A13: 1 | B13: 36 | C13: 1 | D13: 气促；吸气性凹陷 | E13: 1 | F13: 1 | G13: 0 | H13: 0 | I13: 1 | J13: 1 | K13: 360 | L13: 2740 | M13: 2.74 | N13: 131 | O13: 5 | P13: 360 | Q13: 0 | R13: 0 | S13: 4 | T13: 61 | U13: 54 | V13: =U13+T13+S13 -> 119 | W13: 11 | X13: 0 | Y13: 0 | Z13: 0 | AA13: 0 | AB13: 0 | AC13: 0 | AD13: 0 | AE13: 呼吸性酸中毒；新生儿高胆红素血症
A14: 1 | B14: 81 | C14: 1 | D14: 气促；吸气性凹陷 | E14: 1 | F14: 1 | G14: 0 | H14: 0 | I14: 4 | J14: 1 | K14: 360 | L14: 3820 | M14: 3.82 | N14: 94 | O14: 6 | P14: 360 | Q14: 0 | R14: 0 | S14: 3 | T14: 5 | U14: 22 | V14: =U14+T14+S14 -> 30 | W14: 4 | X14: 0 | Y14: 0 | Z14: 0 | AA14: 0 | AB14: 0 | AC14: 0 | AD14: 0 | AE14: 高胆红素血症
A15: 1 | B15: 62 | C15: 1 | D15: 气促；吸气性凹陷；呻吟 | E15: 1 | F15: 1 | G15: 1 | H15: 0 | I15: 5 | J15: 1 | K15: 360 | L15: 2650 | M15: 2.65 | N15: 136 | O15: 8 | P15: 360 | Q15: 0 | R15: 0 | S15: 5 | T15: 48 | U15: 0 | V15: =U15+T15+S15 -> 53 | W15: 6 | X15: 0 | Y15: 0 | Z15: 0 | AA15: 0 | AB15: 0 | AC15: 0 | AD15: 0 | AE15: 呼吸性酸中毒；高胆红素血症
A16: 1 | B16: 93 | C16: 1 | D16: 气促；吸气性凹陷 | E16: 1 | F16: 1 | G16: 0 | H16: 0 | I16: 0 | J16: 1 | K16: 360 | L16: 1880 | M16: 1.88 | N16: 191 | O16: 13 | P16: 360 | Q16: 0 | R16: 0 | S16: 0 | T16: 84 | U16: 0 | V16: =U16+T16+S16 -> 84 | W16: 15 | X16: 0 | Y16: 0 | Z16: 0 | AA16: 0 | AB16: 0 | AC16: 0 | AD16: 0 | AE16: 新生儿高胆红素血症；
A17: 1 | B17: 23 | C17: 1 | D17: 气促；吸气性凹陷 | E17: 1 | F17: 1 | G17: 0 | H17: 0 | I17: 2 | J17: 1 | K17: 360 | L17: 2810 | M17: 2.81 | N17: 128 | O17: 14 | P17: 360 | Q17: 0 | R17: 0 | S17: 36 | T17: 0 | U17: 12 | V17: 42 | W17: 8 | X17: 0 | Y17: 0 | Z17: 1 | AA17: 0 | AB17: 0 | AC17: 0 | AD17: 0 | AE17: 先天性肺炎；高胆红素血症
A18: 1 | B18: 1 | C18: 1 | D18: 气促；吸气性凹陷 | E18: 1 | F18: 1 | G18: 0 | H18: 0 | I18: 2 | J18: 1 | K18: 360 | L18: 3250 | M18: 3.25 | N18: 111 | O18: 16 | P18: 360 | Q18: 0 | R18: 0 | S18: 2 | T18: 36 | U18: 0 | V18: =U18+T18+S18 -> 38 | W18: 9 | X18: 0 | Y18: 1 | Z18: 1 | AA18: 0 | AB18: 0 | AC18: 0 | AD18: 0 | AE18: 新生儿肺炎；肺动脉高压；头颅血肿；新生儿高胆红素血症
A19: 1 | B19: 21 | C19: 1 | D19: 气促；吸气性凹陷 | E19: 1 | F19: 1 | G19: 0 | H19: 0 | I19: 2 | J19: 1 | K19: 360 | L19: 3400 | M19: 3.4 | N19: 106 | O19: 20.5 | P19: 360 | Q19: 0 | R19: 0 | S19: 24 | T19: 0 | U19: 10 | V19: =U19+T19+S19 -> 34 | W19: 6 | X19: 0 | Y19: 0 | Z19: 1 | AA19: 0 | AB19: 0 | AC19: 0 | AD19: 0 | AE19: 先天性肺炎；高胆红素血症
A20: 0 | B20: 19 | C20: 0 | D20: 生后呼吸不规则 | E20: 1 | F20: 0 | G20: 0 | H20: 0 | I20: 0 | J20: 1 | K20: 240 | L20: 3050 | M20: 3.05 | N20: 79 | O20: 10 | P20: 240 | Q20: 0 | R20: 0 | S20: ———— | T20: ———— | U20: ———— | V20: ———— | W20: 转院 | X20: 1 | Y20: 0 | Z20: 0 | AA20: 0 | AB20: 0 | AC20: 0 | AD20: 1 | AE20: 新生儿感染；先天性心脏畸形；ABO溶血
A21: 0 | B21: 78 | C21: 0 | D21: 气促；吸气性凹陷；呻吟 | E21: 1 | F21: 1 | G21: 1 | H21: 0 | I21: 0 | J21: 1 | K21: 240 | L21: 1610 | M21: 1.61 | N21: 149 | O21: 1 | P21: 240 | Q21: 0 | R21: 0 | S21: 1 | T21: 21 | U21: 0 | V21: =U21+T21+S21 -> 22 | W21: 转院 | X21: 1 | Y21: 0 | Z21: 0 | AA21: 0 | AB21: 0 | AC21: 0 | AD21: 1 | AE21: 呼吸性酸中毒；高胆红素血症；房间隔缺损；右手软组织感染
A22: 0 | B22: 15 | C22: 0 | D22: 气促；吸气性凹陷；呻吟 | E22: 1 | F22: 1 | G22: 1 | H22: 0 | I22: 2 | J22: 1 | K22: 360 | L22: 2320 | M22: 2.32 | N22: 155 | O22: 1 | P22: 360 | Q22: 0 | R22: 0 | S22: 0 | T22: 21 | U22: 0 | V22: =U22+T22+S22 -> 21 | W22: 8 | X22: 0 | Y22: 0 | Z22: 0 | AA22: 1 | AB22: 0 | AC22: 0 | AD22: 0 | AE22: 混合型酸中毒；高胆红素血症
A23: 0 | B23: 98 | C23: 0 | D23: 气促；吸气性凹陷 | E23: 1 | F23: 1 | G23: 0 | H23: 0 | I23: 0 | J23: 1 | K23: 360 | L23: 2160 | M23: 2.16 | N23: 167 | O23: 1 | P23: 360 | Q23: 0 | R23: 0 | S23: 0 | T23: 97 | U23: 0 | V23: =U23+T23+S23 -> 97 | W23: 8 | X23: 0 | Y23: 0 | Z23: 1 | AA23: 0 | AB23: 0 | AC23: 0 | AD23: 0 | AE23: 新生儿肺炎；新生儿低血糖；新生儿高血糖；高胆红素血症；动脉导管未闭；卵圆孔未闭
A24: 0 | B24: 14 | C24: 0 | D24: 气促；吸气性凹陷 | E24: 1 | F24: 1 | G24: 0 | H24: 0 | I24: 0 | J24: 1 | K24: 360 | L24: 2120 | M24: 2.12 | N24: 170 | O24: 1 | P24: 360 | Q24: 0 | R24: 0 | S24: 0 | T24: 74 | U24: 26 | V24: =U24+T24+S24 -> 100 | W24: 13 | X24: 0 | Y24: 0 | Z24: 1 | AA24: 0 | AB24: 0 | AC24: 0 | AD24: 0 | AE24: 新生儿肺炎；高胆红素血症；红细胞增多症
A25: 0 | B25: 27 | C25: 0 | D25: 气促；吸气性凹陷；呻吟 | E25: 1 | F25: 1 | G25: 1 | H25: 0 | I25: 0 | J25: 1 | K25: 360 | L25: 2000 | M25: 2 | N25: 180 | O25: 1 | P25: 360 | Q25: 0 | R25: 0 | S25: ———— | T25: ———— | U25: ———— | V25: ———— | W25: 转院 | X25: 1 | Y25: 0 | Z25: 0 | AA25: 0 | AB25: 0 | AC25: 0 | AD25: 1 | AE25: 新生儿低血糖；新生儿感染
A26: 0 | B26: 83 | C26: 0 | D26: 气促 | E26: 1 | F26: 0 | G26: 0 | H26: 0 | I26: 0 | J26: 1 | K26: 360 | L26: 1970 | M26: 1.97 | N26: 183 | O26: 1 | P26: 360 | Q26: 0 | R26: 0 | S26: ———— | T26: ———— | U26: ———— | V26: ———— | W26: 转院 | X26: 1 | Y26: 0 | Z26: 0 | AA26: 0 | AB26: 0 | AC26: 0 | AD26: 0 | AE26: 新生儿低血糖；呼吸性酸中毒
A27: 0 | B27: 20 | C27: 0 | D27: 气促；吸气性凹陷 | E27: 1 | F27: 1 | G27: 0 | H27: 0 | I27: 0 | J27: 1 | K27: 360 | L27: 1920 | M27: 1.92 | N27: 188 | O27: 1 | P27: 360 | Q27: 0 | R27: 0 | S27: 135 | T27: 224 | U27: 0 | V27: =U27+T27+S27 -> 359 | W27: 18 | X27: 0 | Y27: 0 | Z27: 0 | AA27: 1 | AB27: 0 | AC27: 0 | AD27: 1 | AE27: 新生儿感染；混合性酸中毒；高胆红素血症；低钾血症；
A28: 0 | B28: 97 | C28: 0 | D28: 气促；吸气性凹陷 | E28: 1 | F28: 1 | G28: 0 | H28: 0 | I28: 0 | J28: 1 | K28: 280 | L28: 1440 | M28: 1.44 | N28: 194 | O28: 1 | P28: 280 | Q28: 0 | R28: 0 | S28: 0 | T28: 281 | U28: 0 | V28: =U28+T28+S28 -> 281 | W28: 27 | X28: 0 | Y28: 0 | Z28: 0 | AA28: 1 | AB28: 0 | AC28: 1 | AD28: 0 | AE28: 混合性酸中毒；败血症；高血糖症；高胆红素血症；房间隔缺损；早产儿视网膜病变；贫血
A29: 0 | B29: 82 | C29: 0 | D29: 气促 | E29: 1 | F29: 0 | G29: 0 | H29: 0 | I29: 0 | J29: 1 | K29: 360 | L29: 1230 | M29: 1.23 | N29: 293 | O29: 1 | P29: 360 | Q29: 0 | R29: 0 | S29: ———— | T29: ———— | U29: ———— | V29: ———— | W29: 转院 | X29: 1 | Y29: 0 | Z29: 0 | AA29: 0 | AB29: 0 | AC29: 0 | AD29: 0 | AE29: 新生儿低血糖；呼吸性酸中毒
A30: 0 | B30: 55 | C30: 0 | D30: 气促 | E30: 1 | F30: 0 | G30: 0 | H30: 0 | I30: 0 | J30: 1 | K30: 360 | L30: 2570 | M30: 2.57 | N30: 140 | O30: 1.5 | P30: 360 | Q30: 0 | R30: 0 | S30: 0 | T30: 41 | U30: 0 | V30: =U30+T30+S30 -> 41 | W30: 7 | X30: 0 | Y30: 0 | Z30: 0 | AA30: 0 | AB30: 0 | AC30: 0 | AD30: 0 | AE30: 新生儿呼吸性酸中毒；高胆红素血症
A31: 0 | B31: 90 | C31: 0 | D31: 气促 | E31: 1 | F31: 0 | G31: 0 | H31: 0 | I31: 0 | J31: 1 | K31: 360 | L31: 3800 | M31: 3.8 | N31: 95 | O31: 2 | P31: 360 | Q31: 0 | R31: 0 | S31: ———— | T31: ———— | U31: ———— | V31: ———— | W31: 转院 | X31: 1 | Y31: 0 | Z31: 0 | AA31: 0 | AB31: 0 | AC31: 0 | AD31: 1 | AE31: 呼吸性酸中毒；新生儿感染；
A32: 0 | B32: 69 | C32: 0 | D32: 气促；吸气性凹陷；呻吟 | E32: 1 | F32: 1 | G32: 1 | H32: 0 | I32: 0 | J32: 1 | K32: 240 | L32: 2250 | M32: 2.25 | N32: 107 | O32: 2 | P32: 240 | Q32: 0 | R32: 0 | S32: 0 | T32: 163 | U32: 0 | V32: =U32+T32+S32 -> 163 | W32: 13 | X32: 0 | Y32: 0 | Z32: 0 | AA32: 0 | AB32: 0 | AC32: 0 | AD32: 0 | AE32: 高胆红素血症
A33: 0 | B33: 92 | C33: 0 | D33: 气促；吸气性凹陷；呻吟 | E33: 1 | F33: 1 | G33: 1 | H33: 0 | I33: 0 | J33: 1 | K33: 360 | L33: 2910 | M33: 2.91 | N33: 124 | O33: 2 | P33: 360 | Q33: 0 | R33: 0 | S33: 0 | T33: 25 | U33: 20 | V33: 45 | W33: 10 | X33: 0 | Y33: 0 | Z33: 0 | AA33: 1 | AB33: 0 | AC33: 0 | AD33: 1 | AE33: 混合性酸中毒；高血糖症；新生儿感染；喂养不耐受；高胆红素血症；新生儿贫血
A34: 0 | B34: 64 | C34: 0 | D34: 气促 | E34: 1 | F34: 0 | G34: 0 | H34: 0 | I34: 0 | J34: 1 | K34: 360 | L34: 2560 | M34: 2.56 | N34: 141 | O34: 2 | P34: 360 | Q34: 0 | R34: 0 | S34: 0 | T34: 20 | U34: 0 | V34: 20 | W34: 6 | X34: 0 | Y34: 0 | Z34: 0 | AA34: 0 | AB34: 0 | AC34: 0 | AD34: 0 | AE34: 呼吸性酸中毒；新生儿高胆红素血症
A35: 0 | B35: 56 | C35: 0 | D35: 气促；吸气性凹陷；呻吟 | E35: 1 | F35: 1 | G35: 1 | H35: 0 | I35: 0 | J35: 1 | K35: 360 | L35: 2500 | M35: 2.5 | N35: 144 | O35: 2 | P35: 360 | Q35: 0 | R35: 0 | S35: 0 | T35: 28 | U35: 0 | V35: 28 | W35: 7 | X35: 0 | Y35: 0 | Z35: 0 | AA35: 0 | AB35: 0 | AC35: 0 | AD35: 0 | AE35: 呼吸性酸中毒；高胆红素血症
A36: 0 | B36: 34 | C36: 0 | D36: 气促；吸气性凹陷 | E36: 1 | F36: 1 | G36: 0 | H36: 0 | I36: 0 | J36: 1 | K36: 360 | L36: 2380 | M36: 2.38 | N36: 151 | O36: 2 | P36: 360 | Q36: 0 | R36: 0 | S36: 0 | T36: 10 | U36: 0 | V36: 10 | W36: 7 | X36: 0 | Y36: 0 | Z36: 0 | AA36: 0 | AB36: 0 | AC36: 0 | AD36: 0 | AE36: 无
A37: 0 | B37: 100 | C37: 0 | D37: 气促；吸气性凹陷 | E37: 1 | F37: 1 | G37: 0 | H37: 0 | I37: 0 | J37: 1 | K37: 360 | L37: 2250 | M37: 2.25 | N37: 160 | O37: 2 | P37: 360 | Q37: 0 | R37: 0 | S37: 0 | T37: 25 | U37: 20 | V37: 45 | W37: 10 | X37: 0 | Y37: 0 | Z37: 0 | AA37: 0 | AB37: 0 | AC37: 0 | AD37: 0 | AE37: 新生儿呼吸性酸中毒；新生儿低血糖症；
A38: 0 | B38: 39 | C38: 0 | D38: 气促；吸气性凹陷；呻吟 | E38: 1 | F38: 1 | G38: 1 | H38: 0 | I38: 0 | J38: 1 | K38: 360 | L38: 1930 | M38: 1.93 | N38: 187 | O38: 2 | P38: 360 | Q38: 0 | R38: 0 | S38: 0 | T38: 45 | U38: 0 | V38: 45 | W38: 21 | X38: 0 | Y38: 0 | Z38: 0 | AA38: 0 | AB38: 0 | AC38: 0 | AD38: 0 | AE38: 呼吸暂停；贫血
A39: 0 | B39: 40 | C39: 0 | D39: 气促；吸气性凹陷；呻吟 | E39: 1 | F39: 1 | G39: 1 | H39: 0 | I39: 0 | J39: 1 | K39: 340 | L39: 1760 | M39: 1.76 | N39: 193 | O39: 2 | P39: 340 | Q39: 0 | R39: 0 | S39: 0 | T39: 45 | U39: 0 | V39: 45 | W39: 23 | X39: 0 | Y39: 0 | Z39: 0 | AA39: 0 | AB39: 0 | AC39: 0 | AD39: 0 | AE39: 呼吸暂停；贫血
A40: 0 | B40: 25 | C40: 0 | D40: 气促；吸气性凹陷；呻吟 | E40: 1 | F40: 1 | G40: 1 | H40: 0 | I40: 0 | J40: 1 | K40: 335 | L40: 1690 | M40: 1.69 | N40: 198 | O40: 2 | P40: 335 | Q40: 0 | R40: 0 | S40: ———— | T40: ———— | U40: ———— | V40: ———— | W40: 转院 | X40: 1 | Y40: 0 | Z40: 0 | AA40: 0 | AB40: 0 | AC40: 0 | AD40: 0 | AE40: 呼吸性酸中毒；新生儿低血糖；高血糖；低钾血症；隐睾；血小板减少；新生儿喂养问题
A41: 0 | B41: 12 | C41: 0 | D41: 呼吸不规则 | E41: 1 | F41: 0 | G41: 0 | H41: 0 | I41: 0 | J41: 1 | K41: 420 | L41: 2100 | M41: 2.1 | N41: 200 | O41: 2 | P41: 420 | Q41: 0 | R41: 0 | S41: 0 | T41: 56 | U41: 0 | V41: =U41+T41+S41 -> 56 | W41: 7 | X41: 0 | Y41: 0 | Z41: 0 | AA41: 1 | AB41: 0 | AC41: 0 | AD41: 1 | AE41: 代谢性酸中毒；新生儿感染；高胆红素血症
A42: 0 | B42: 5 | C42: 0 | D42: 气促 | E42: 1 | F42: 0 | G42: 0 | H42: 0 | I42: 4 | J42: 1 | K42: 480 | L42: 2280 | M42: 2.28 | N42: 211 | O42: 2 | P42: 480 | Q42: 0 | R42: 0 | S42: 4 | T42: 20 | U42: 0 | V42: =U42+T42+S42 -> 24 | W42: 6 | X42: 0 | Y42: 0 | Z42: 0 | AA42: 0 | AB42: 0 | AC42: 0 | AD42: 0 | AE42: 呼吸性酸中毒；高胆红素血症
A43: 0 | B43: 26 | C43: 0 | D43: 气促 | E43: 1 | F43: 0 | G43: 0 | H43: 0 | I43: 0 | J43: 1 | K43: 480 | L43: 1980 | M43: 1.98 | N43: 242 | O43: 2 | P43: 240 | Q43: 22 | R43: 240 | S43: 0 | T43: 15.5 | U43: 20 | V43: =U43+T43+S43 -> 35.5 | W43: 转院 | X43: 1 | Y43: 1 | Z43: 0 | AA43: 1 | AB43: 0 | AC43: 0 | AD43: 1 | AE43: 代谢性酸中毒；高胆红素血症；高血糖症；继发性肺动脉高压；新生儿感染
A44: 0 | B44: 95 | C44: 0 | D44: 气促；吸气性凹陷 | E44: 1 | F44: 1 | G44: 0 | H44: 0 | I44: 0 | J44: 1 | K44: 360 | L44: 2920 | M44: 2.92 | N44: 123 | O44: 2.5 | P44: 360 | Q44: 0 | R44: 0 | S44: ———— | T44: ———— | U44: ———— | V44: ———— | W44: 转院 | X44: 1 | Y44: 0 | Z44: 0 | AA44: 0 | AB44: 0 | AC44: 0 | AD44: 0 | AE44: 新生儿低血糖；呼吸性酸中毒
A45: 0 | B45: 43 | C45: 0 | D45: 气促；青紫 | E45: 1 | F45: 0 | G45: 0 | H45: 0 | I45: 0 | J45: 1 | K45: 360 | L45: 2790 | M45: 2.79 | N45: 129 | O45: 2.5 | P45: 360 | Q45: 0 | R45: 0 | S45: ———— | T45: ———— | U45: ———— | V45: ———— | W45: 转院 | X45: 1 | Y45: 0 | Z45: 0 | AA45: 1 | AB45: 1 | AC45: 0 | AD45: 0 | AE45: 肺静脉异位引流；代谢性酸中毒；气胸
A46: 0 | B46: 38 | C46: 0 | D46: 气促；吸气性凹陷；呻吟 | E46: 1 | F46: 1 | G46: 1 | H46: 0 | I46: 0 | J46: 2 | K46: 360 | L46: 2290 | M46: 2.29 | N46: 157 | O46: 2.5 | P46: 360 | Q46: 0 | R46: 0 | S46: 0 | T46: 141 | U46: 0 | V46: =U46+T46+S46 -> 141 | W46: 13 | X46: 0 | Y46: 1 | Z46: 1 | AA46: 1 | AB46: 0 | AC46: 0 | AD46: 0 | AE46: 新生儿肺炎；混合性酸中毒；房间隔缺损；动脉导管未闭；轻度肺动脉高压
A47: 0 | B47: 58 | C47: 0 | D47: 气促 | E47: 1 | F47: 0 | G47: 0 | H47: 0 | I47: 0 | J47: 1 | K47: 480 | L47: 2470 | M47: 2.47 | N47: 194 | O47: 2.5 | P47: 480 | Q47: 0 | R47: 0 | S47: 0 | T47: 24 | U47: 0 | V47: =U47+T47+S47 -> 24 | W47: 8 | X47: 0 | Y47: 0 | Z47: 0 | AA47: 0 | AB47: 0 | AC47: 0 | AD47: 0 | AE47: 高胆红素血症
A48: 0 | B48: 63 | C48: 0 | D48: 气促 | E48: 1 | F48: 0 | G48: 0 | H48: 0 | I48: 0 | J48: 1 | K48: 360 | L48: 1830 | M48: 1.83 | N48: 197 | O48: 2.5 | P48: 360 | Q48: 0 | R48: 0 | S48: 0 | T48: 46 | U48: 0 | V48: =U48+T48+S48 -> 46 | W48: 20 | X48: 0 | Y48: 0 | Z48: 0 | AA48: 0 | AB48: 0 | AC48: 0 | AD48: 0 | AE48: 呼吸性酸中毒；新生儿高胆红素血症
A49: 0 | B49: 89 | C49: 0 | D49: 气促 | E49: 1 | F49: 0 | G49: 0 | H49: 0 | I49: 3 | J49: 1 | K49: 580 | L49: 2900 | M49: 2.9 | N49: 200 | O49: 2.5 | P49: 580 | Q49: 0 | R49: 0 | S49: 29 | T49: 0 | U49: 14 | V49: =U49+T49+S49 -> 43 | W49: 24 | X49: 0 | Y49: 0 | Z49: 0 | AA49: 0 | AB49: 0 | AC49: 0 | AD49: 0 | AE49: 新生儿高胆红素血症
A50: 0 | B50: 71 | C50: 0 | D50: 气促 | E50: 1 | F50: 0 | G50: 0 | H50: 0 | I50: 2 | J50: 1 | K50: 360 | L50: 3900 | M50: 3.9 | N50: 92 | O50: 3 | P50: 360 | Q50: 0 | R50: 0 | S50: ———— | T50: ———— | U50: ———— | V50: ———— | W50: 转院 | X50: 1 | Y50: 1 | Z50: 0 | AA50: 0 | AB50: 0 | AC50: 0 | AD50: 1 | AE50: 新生儿感染；肺动脉高压
A51: 0 | B51: 54 | C51: 0 | D51: 气促；吸气性凹陷；呻吟； | E51: 1 | F51: 1 | G51: 1 | H51: 0 | I51: 0 | J51: 1 | K51: 360 | L51: 2710 | M51: 2.71 | N51: 133 | O51: 3 | P51: 360 | Q51: 0 | R51: 0 | S51: 22 | T51: 0 | U51: 49 | V51: =U51+T51+S51 -> 71 | W51: 6 | X51: 0 | Y51: 0 | Z51: 0 | AA51: 1 | AB51: 0 | AC51: 0 | AD51: 0 | AE51: 混合性酸中毒
A52: 0 | B52: 57 | C52: 0 | D52: 气促 | E52: 1 | F52: 0 | G52: 0 | H52: 0 | I52: 0 | J52: 1 | K52: 420 | L52: 3140 | M52: 3.14 | N52: 134 | O52: 3 | P52: 420 | Q52: 0 | R52: 0 | S52: 0 | T52: 29 | U52: 0 | V52: =U52+T52+S52 -> 29 | W52: 6 | X52: 0 | Y52: 0 | Z52: 0 | AA52: 0 | AB52: 0 | AC52: 0 | AD52: 0 | AE52: 呼吸性酸中毒；高胆红素血症
A53: 0 | B53: 51 | C53: 0 | D53: 气促 | E53: 1 | F53: 0 | G53: 0 | H53: 0 | I53: 0 | J53: 1 | K53: 360 | L53: 2140 | M53: 2.14 | N53: 168 | O53: 3 | P53: 360 | Q53: 0 | R53: 0 | S53: 0 | T53: 44 | U53: 0 | V53: =U53+T53+S53 -> 44 | W53: 7 | X53: 0 | Y53: 0 | Z53: 0 | AA53: 0 | AB53: 0 | AC53: 0 | AD53: 0 | AE53: ABO溶血；高胆红素血症
A54: 0 | B54: 46 | C54: 0 | D54: 气促 | E54: 1 | F54: 0 | G54: 0 | H54: 0 | I54: 0 | J54: 1 | K54: 360 | L54: 2010 | M54: 2.01 | N54: 179 | O54: 3 | P54: 360 | Q54: 0 | R54: 0 | S54: ———— | T54: ———— | U54: ———— | V54: ———— | W54: 转院 | X54: 1 | Y54: 1 | Z54: 0 | AA54: 0 | AB54: 0 | AC54: 0 | AD54: 1 | AE54: 持续性肺动脉高压；新生儿感染；红细胞增多症
A55: 0 | B55: 10 | C55: 0 | D55: 气促 | E55: 1 | F55: 0 | G55: 0 | H55: 0 | I55: 0 | J55: 2 | K55: 600 | L55: 2740 | M55: 2.74 | N55: 219 | O55: 3 | P55: 360 | Q55: 22 | R55: 240 | S55: 119 | T55: 19 | U55: 0 | V55: =U55+T55+S55 -> 138 | W55: 11 | X55: 0 | Y55: 0 | Z55: 0 | AA55: 0 | AB55: 0 | AC55: 0 | AD55: 0 | AE55: 高胆红素血症
A56: 0 | B56: 61 | C56: 0 | D56: 气促；吸气性凹陷 | E56: 1 | F56: 1 | G56: 0 | H56: 0 | I56: 2 | J56: 1 | K56: 360 | L56: 2970 | M56: 2.97 | N56: 121 | O56: 3.5 | P56: 360 | Q56: 0 | R56: 0 | S56: 3 | T56: 43 | U56: 0 | V56: =U56+T56+S56 -> 46 | W56: 5 | X56: 0 | Y56: 0 | Z56: 0 | AA56: 0 | AB56: 0 | AC56: 0 | AD56: 0 | AE56: 呼吸性酸中毒；高胆红素血症
A57: 0 | B57: 79 | C57: 0 | D57: 气促；呻吟 | E57: 1 | F57: 0 | G57: 1 | H57: 0 | I57: 1 | J57: 1 | K57: 360 | L57: 3040 | M57: 3.04 | N57: 118 | O57: 4 | P57: 360 | Q57: 0 | R57: 0 | S57: ———— | T57: ———— | U57: ———— | V57: ———— | W57: 转院 | X57: 1 | Y57: 1 | Z57: 0 | AA57: 0 | AB57: 0 | AC57: 0 | AD57: 1 | AE57: 持续性肺动脉高压；新生儿感染；红细胞增多症
A58: 0 | B58: 47 | C58: 0 | D58: 气促 | E58: 1 | F58: 0 | G58: 0 | H58: 0 | I58: 0 | J58: 1 | K58: 360 | L58: 2300 | M58: 2.3 | N58: 157 | O58: 4 | P58: 360 | Q58: 0 | R58: 0 | S58: ———— | T58: ———— | U58: ———— | V58: ———— | W58: 转院 | X58: 1 | Y58: 0 | Z58: 0 | AA58: 0 | AB58: 0 | AC58: 0 | AD58: 1 | AE58: 新生儿感染
A59: 0 | B59: 87 | C59: 0 | D59: 气促；吸气性凹陷 | E59: 1 | F59: 1 | G59: 0 | H59: 0 | I59: 0 | J59: 1 | K59: 360 | L59: 2050 | M59: 2.05 | N59: 176 | O59: 4 | P59: 360 | Q59: 0 | R59: 0 | S59: 0 | T59: 55 | U59: 0 | V59: =U59+T59+S59 -> 55 | W59: 12 | X59: 0 | Y59: 0 | Z59: 0 | AA59: 0 | AB59: 0 | AC59: 0 | AD59: 0 | AE59: 呼吸性酸中毒；高血糖症；高胆红素血症；贫血
A60: 0 | B60: 29 | C60: 0 | D60: 气促；吸气性凹陷；呻吟 | E60: 1 | F60: 1 | G60: 1 | H60: 0 | I60: 0 | J60: 1 | K60: 480 | L60: 2550 | M60: 2.55 | N60: 188 | O60: 4 | P60: 480 | Q60: 0 | R60: 0 | S60: 50 | T60: 25 | U60: 57 | V60: =U60+T60+S60 -> 132 | W60: 9 | X60: 0 | Y60: 0 | Z60: 0 | AA60: 0 | AB60: 1 | AC60: 0 | AD60: 0 | AE60: 气胸；ABO溶血；高胆红素血症
A61: 0 | B61: 99 | C61: 0 | D61: 气促；吸气性凹陷 | E61: 1 | F61: 1 | G61: 0 | H61: 0 | I61: 0 | J61: 1 | K61: 360 | L61: 1910 | M61: 1.91 | N61: 188 | O61: 4 | P61: 360 | Q61: 0 | R61: 0 | S61: 0 | T61: 55 | U61: 0 | V61: =U61+T61+S61 -> 55 | W61: 12 | X61: 0 | Y61: 0 | Z61: 0 | AA61: 0 | AB61: 0 | AC61: 0 | AD61: 0 | AE61: 呼吸性酸中毒；高血糖症；高胆红素血症；贫血
A62: 0 | B62: 22 | C62: 0 | D62: 气促 | E62: 1 | F62: 0 | G62: 0 | H62: 0 | I62: 1 | J62: 2 | K62: 600 | L62: 3020 | M62: 3.02 | N62: 199 | O62: 4 | P62: 360 | Q62: 21 | R62: 240 | S62: 0 | T62: 22 | U62: 15.5 | V62: =U62+T62+S62 -> 37.5 | W62: 6 | X62: 0 | Y62: 0 | Z62: 0 | AA62: 0 | AB62: 0 | AC62: 0 | AD62: 1 | AE62: ABO溶血；高胆红素血症；新生儿感染
A63: 0 | B63: 45 | C63: 0 | D63: 气促 | E63: 1 | F63: 0 | G63: 0 | H63: 0 | I63: 3 | J63: 1 | K63: 360 | L63: 3110 | M63: 3.11 | N63: 116 | O63: 4.5 | P63: 360 | Q63: 0 | R63: 0 | S63: ———— | T63: ———— | U63: ———— | V63: ———— | W63: 转院 | X63: 1 | Y63: 1 | Z63: 0 | AA63: 0 | AB63: 0 | AC63: 0 | AD63: 0 | AE63: 先天性肺动脉高压
A64: 0 | B64: 30 | C64: 0 | D64: 气促；吸气性凹陷 | E64: 1 | F64: 1 | G64: 0 | H64: 0 | I64: 2 | J64: 1 | K64: 360 | L64: 2550 | M64: 2.55 | N64: 141 | O64: 4.5 | P64: 360 | Q64: 0 | R64: 0 | S64: 96 | T64: 19 | U64: 71 | V64: =U64+T64+S64 -> 186 | W64: 10 | X64: 0 | Y64: 0 | Z64: 1 | AA64: 0 | AB64: 1 | AC64: 0 | AD64: 0 | AE64: 肺炎；气胸；高胆红素血症
A65: 0 | B65: 17 | C65: 0 | D65: 青紫 | E65: 0 | F65: 0 | G65: 0 | H65: 1 | I65: 5 | J65: 2 | K65: 360 | L65: 3460 | M65: 3.46 | N65: 104 | O65: 5 | P65: 360 | Q65: 0 | R65: 0 | S65: ———— | T65: ———— | U65: ———— | V65: ———— | W65: 转院 | X65: 1 | Y65: 1 | Z65: 0 | AA65: 0 | AB65: 0 | AC65: 0 | AD65: 1 | AE65: 新生儿青紫发作；新生儿感染；新生儿持续性肺动脉高压
A66: 0 | B66: 76 | C66: 0 | D66: 气促 | E66: 1 | F66: 0 | G66: 0 | H66: 0 | I66: 2 | J66: 1 | K66: =P66+R66 -> 360 | L66: 3220 | M66: 3.22 | N66: =K66/M66 -> 112 | O66: 5 | P66: 360 | Q66: 0 | R66: 0 | S66: ———— | T66: ———— | U66: ———— | V66: ———— | W66: 转院 | X66: 1 | Y66: 0 | Z66: 0 | AA66: 0 | AB66: 0 | AC66: 0 | AD66: 1 | AE66: 新生儿感染
A67: 0 | B67: 24 | C67: 0 | D67: 气促；吸气性凹陷 | E67: 1 | F67: 1 | G67: 0 | H67: 0 | I67: 0 | J67: 1 | K67: 360 | L67: 2810 | M67: 2.81 | N67: 128 | O67: 5 | P67: 360 | Q67: 0 | R67: 0 | S67: 0 | T67: 44 | U67: 0 | V67: =U67+T67+S67 -> 44 | W67: 10 | X67: 0 | Y67: 0 | Z67: 0 | AA67: 0 | AB67: 0 | AC67: 0 | AD67: 0 | AE67: 呼吸性酸中毒；新生儿低血糖症；新生儿贫血
A68: 0 | B68: 84 | C68: 0 | D68: 气促；吸气性凹陷 | E68: 1 | F68: 1 | G68: 0 | H68: 0 | I68: 1 | J68: 1 | K68: 360 | L68: 2740 | M68: 2.74 | N68: 131 | O68: 5 | P68: 360 | Q68: 0 | R68: 0 | S68: 4 | T68: 61 | U68: 54 | V68: 119 | W68: 11 | X68: 0 | Y68: 0 | Z68: 0 | AA68: 0 | AB68: 0 | AC68: 0 | AD68: 0 | AE68: 呼吸性酸中毒；新生儿高胆红素血症
A69: 0 | B69: 49 | C69: 0 | D69: 气促；吸气性凹陷 | E69: 1 | F69: 1 | G69: 0 | H69: 0 | I69: 0 | J69: 1 | K69: 360 | L69: 2730 | M69: 2.73 | N69: 132 | O69: 5 | P69: 360 | Q69: 0 | R69: 0 | S69: 0 | T69: 18 | U69: 0 | V69: 18 | W69: 14 | X69: 0 | Y69: 0 | Z69: 0 | AA69: 0 | AB69: 0 | AC69: 0 | AD69: 0 | AE69: 呼吸暂停；新生儿高胆红素血症
A70: 0 | B70: 52 | C70: 0 | D70: 气促 | E70: 1 | F70: 0 | G70: 0 | H70: 0 | I70: 3.5 | J70: 1 | K70: 360 | L70: 2720 | M70: 2.72 | N70: 132 | O70: 5 | P70: 360 | Q70: 0 | R70: 0 | S70: 1 | T70: 0 | U70: 109 | V70: 110 | W70: 9 | X70: 0 | Y70: 0 | Z70: 1 | AA70: 0 | AB70: 1 | AC70: 0 | AD70: 0 | AE70: 纵膈气肿；新生儿肺炎
A71: 0 | B71: 94 | C71: 0 | D71: 气促 | E71: 1 | F71: 0 | G71: 0 | H71: 0 | I71: 3.5 | J71: 1 | K71: 360 | L71: 2720 | M71: 2.72 | N71: 132 | O71: 5 | P71: 360 | Q71: 0 | R71: 0 | S71: 1 | T71: 0 | U71: 109 | V71: 110 | W71: 9 | X71: 0 | Y71: 0 | Z71: 1 | AA71: 0 | AB71: 1 | AC71: 0 | AD71: 0 | AE71: 纵膈气肿；新生儿肺炎
A72: 0 | B72: 74 | C72: 0 | D72: 气促；吸气性凹陷 | E72: 1 | F72: 1 | G72: 0 | H72: 0 | I72: 3 | J72: 1 | K72: 360 | L72: 2570 | M72: 2.57 | N72: 140 | O72: 5 | P72: 360 | Q72: 0 | R72: 0 | S72: 5 | T72: 16 | U72: 0 | V72: 21 | W72: 7 | X72: 0 | Y72: 0 | Z72: 0 | AA72: 0 | AB72: 0 | AC72: 0 | AD72: 0 | AE72: 呼吸性酸中毒；高胆红素血症
A73: 0 | B73: 42 | C73: 0 | D73: 气促；吸气性凹陷 | E73: 1 | F73: 1 | G73: 0 | H73: 0 | I73: 2 | J73: 1 | K73: 360 | L73: 2300 | M73: 2.3 | N73: 157 | O73: 5 | P73: 360 | Q73: 0 | R73: 0 | S73: ———— | T73: ———— | U73: ———— | V73: ———— | W73: 转院 | X73: 1 | Y73: 0 | Z73: 1 | AA73: 1 | AB73: 1 | AC73: 0 | AD73: 0 | AE73: 混合型酸中毒；新生儿肺炎；气胸
A74: 0 | B74: 48 | C74: 0 | D74: 气促；吸气性凹陷 | E74: 1 | F74: 1 | G74: 0 | H74: 0 | I74: 0 | J74: 1 | K74: 360 | L74: 2200 | M74: 2.2 | N74: 164 | O74: 5 | P74: 360 | Q74: 0 | R74: 0 | S74: 0 | T74: 20 | U74: 0 | V74: =U74+T74+S74 -> 20 | W74: 21 | X74: 0 | Y74: 0 | Z74: 0 | AA74: 0 | AB74: 0 | AC74: 0 | AD74: 1 | AE74: 泌尿系统感染；呼吸暂停；贫血；喂养不耐受
A75: 0 | B75: 13 | C75: 0 | D75: 气促 | E75: 1 | F75: 0 | G75: 0 | H75: 0 | I75: 2 | J75: 1 | K75: 480 | L75: 2740 | M75: 2.74 | N75: 175 | O75: 5 | P75: 480 | Q75: 0 | R75: 0 | S75: ———— | T75: ———— | U75: ———— | V75: ———— | W75: 转院 | X75: 1 | Y75: 0 | Z75: 0 | AA75: 1 | AB75: 0 | AC75: 0 | AD75: 0 | AE75: 出生窒息；代谢性酸中毒
A76: 0 | B76: 16 | C76: 0 | D76: 气促；吸气性凹陷；呻吟 | E76: 1 | F76: 1 | G76: 1 | H76: 0 | I76: 0 | J76: 2 | K76: 360 | L76: 1930 | M76: 1.93 | N76: 187 | O76: 5 | P76: 360 | Q76: 0 | R76: 0 | S76: ———— | T76: ———— | U76: ———— | V76: ———— | W76: 转院 | X76: 1 | Y76: 0 | Z76: 0 | AA76: 0 | AB76: 0 | AC76: 0 | AD76: 1 | AE76: 新生儿感染
A77: 0 | B77: 70 | C77: 0 | D77: 气促；吸气性凹陷 | E77: 1 | F77: 1 | G77: 0 | H77: 0 | I77: 2 | J77: 2 | K77: 480 | L77: 2480 | M77: 2.48 | N77: 194 | O77: 5 | P77: 240 | Q77: 8 | R77: 240 | S77: 0 | T77: 79 | U77: 0 | V77: =U77+T77+S77 -> 79 | W77: 8 | X77: 0 | Y77: 0 | Z77: 0 | AA77: 0 | AB77: 0 | AC77: 0 | AD77: 1 | AE77: 新生儿感染；呼吸性酸中毒
A78: 0 | B78: 6 | C78: 0 | D78: 气促；吸气性凹陷 | E78: 1 | F78: 1 | G78: 0 | H78: 0 | I78: 0 | J78: 1 | K78: 480 | L78: 2420 | M78: 2.42 | N78: 198 | O78: 5 | P78: 480 | Q78: 0 | R78: 0 | S78: 2 | T78: 36 | U78: 0 | V78: =U78+T78+S78 -> 38 | W78: 10 | X78: 0 | Y78: 0 | Z78: 0 | AA78: 0 | AB78: 0 | AC78: 0 | AD78: 0 | AE78: 呼吸性酸中毒；新生儿低血糖症；高胆红素血症
A79: 0 | B79: 3 | C79: 0 | D79: 呼吸不规则 | E79: 1 | F79: 0 | G79: 0 | H79: 0 | I79: 2 | J79: 1 | K79: 480 | L79: 2400 | M79: 2.4 | N79: 200 | O79: 5 | P79: 480 | Q79: 0 | R79: 0 | S79: ———— | T79: ———— | U79: ———— | V79: ———— | W79: 转院 | X79: 1 | Y79: 0 | Z79: 0 | AA79: 0 | AB79: 0 | AC79: 0 | AD79: 0 | AE79: 呼吸性酸中毒；先天性心脏畸形；低出生体重儿
A80: 0 | B80: 37 | C80: 0 | D80: 气促 | E80: 1 | F80: 0 | G80: 0 | H80: 0 | I80: 2 | J80: 1 | K80: 480 | L80: 3910 | M80: 3.91 | N80: 123 | O80: 5.5 | P80: 480 | Q80: 0 | R80: 0 | S80: 96 | T80: 0 | U80: 9 | V80: =U80+T80+S80 -> 105 | W80: 9 | X80: 0 | Y80: 0 | Z80: 0 | AA80: 0 | AB80: 0 | AC80: 0 | AD80: 1 | AE80: 新生儿感染
A81: 0 | B81: 72 | C81: 0 | D81: 气促 | E81: 1 | F81: 0 | G81: 0 | H81: 0 | I81: 5 | J81: 1 | K81: 360 | L81: 3600 | M81: 3.6 | N81: 100 | O81: 6 | P81: 360 | Q81: 0 | R81: 0 | S81: 178 | T81: 0 | U81: 47 | V81: =U81+T81+S81 -> 225 | W81: 12 | X81: 0 | Y81: 0 | Z81: 1 | AA81: 0 | AB81: 0 | AC81: 0 | AD81: 0 | AE81: 新生儿肺炎；高胆红素血症
A82: 0 | B82: 41 | C82: 0 | D82: 气促 | E82: 1 | F82: 0 | G82: 0 | H82: 0 | I82: 3 | J82: 1 | K82: 360 | L82: 2580 | M82: 2.58 | N82: 140 | O82: 6 | P82: 360 | Q82: 0 | R82: 0 | S82: ———— | T82: ———— | U82: ———— | V82: ———— | W82: 转院 | X82: 1 | Y82: 0 | Z82: 1 | AA82: 0 | AB82: 1 | AC82: 0 | AD82: 0 | AE82: 气胸；红细胞增多症；新生儿肺炎；高胆红素血症
A83: 0 | B83: 18 | C83: 0 | D83: 气促 | E83: 1 | F83: 0 | G83: 0 | H83: 0 | I83: 2 | J83: 1 | K83: 360 | L83: 3620 | M83: 3.62 | N83: 99 | O83: 6.5 | P83: 360 | Q83: 0 | R83: 0 | S83: 25 | T83: 0 | U83: 19 | V83: =U83+T83+S83 -> 44 | W83: 9 | X83: 0 | Y83: 0 | Z83: 0 | AA83: 0 | AB83: 0 | AC83: 0 | AD83: 1 | AE83: 新生儿感染；高胆红素血症
A84: 0 | B84: 80 | C84: 0 | D84: 气促 | E84: 1 | F84: 0 | G84: 0 | H84: 0 | I84: 4 | J84: 1 | K84: 360 | L84: 3140 | M84: 3.14 | N84: 115 | O84: 7 | P84: 360 | Q84: 0 | R84: 0 | S84: ———— | T84: ———— | U84: ———— | V84: ———— | W84: 转院 | X84: 1 | Y84: 1 | Z84: 0 | AA84: 0 | AB84: 0 | AC84: 0 | AD84: 0 | AE84: 红细胞增多症；肺动脉高压；动脉导管未闭；卵圆孔未闭
A85: 0 | B85: 9 | C85: 0 | D85: 气促；吸气性凹陷；呻吟 | E85: 1 | F85: 1 | G85: 1 | H85: 0 | I85: 3 | J85: 1 | K85: 600 | L85: 3220 | M85: 3.22 | N85: 186 | O85: 7 | P85: 600 | Q85: 0 | R85: 0 | S85: 1 | T85: 0 | U85: 109 | V85: =U85+T85+S85 -> 110 | W85: 15 | X85: 0 | Y85: 1 | Z85: 1 | AA85: 0 | AB85: 0 | AC85: 0 | AD85: 0 | AE85: 先天性肺炎；肺动脉高压；新生儿高血糖；ABO溶血；溶血性贫血
A86: 0 | B86: 2 | C86: 0 | D86: 气促；吸气性凹陷；呻吟 | E86: 1 | F86: 1 | G86: 1 | H86: 0 | I86: 0 | J86: 2 | K86: 840 | L86: 2780 | M86: 2.78 | N86: 302 | O86: 7 | P86: 480 | Q86: 51 | R86: 360 | S86: 91.5 | T86: 35.5 | U86: 151 | V86: =U86+T86+S86 -> 278 | W86: 19 | X86: 0 | Y86: 0 | Z86: 0 | AA86: 0 | AB86: 1 | AC86: 0 | AD86: 0 | AE86: 气胸
A87: 0 | B87: 32 | C87: 0 | D87: 青紫发作 | E87: 0 | F87: 0 | G87: 0 | H87: 1 | I87: 4 | J87: 1 | K87: 360 | L87: 3260 | M87: 3.26 | N87: 110 | O87: 7.5 | P87: 360 | Q87: 0 | R87: 0 | S87: 47 | T87: 0 | U87: 15 | V87: =U87+T87+S87 -> 62 | W87: 6 | X87: 0 | Y87: 0 | Z87: 1 | AA87: 0 | AB87: 0 | AC87: 0 | AD87: 0 | AE87: 新生儿肺炎；高胆红素血症
A88: 0 | B88: 50 | C88: 0 | D88: 气促；吸气性凹陷 | E88: 1 | F88: 1 | G88: 0 | H88: 0 | I88: 0 | J88: 1 | K88: 360 | L88: 2220 | M88: 2.22 | N88: 162 | O88: 7.5 | P88: 360 | Q88: 0 | R88: 0 | S88: 0 | T88: 20 | U88: 0 | V88: =U88+T88+S88 -> 20 | W88: 21 | X88: 0 | Y88: 0 | Z88: 0 | AA88: 0 | AB88: 0 | AC88: 0 | AD88: 0 | AE88: 呼吸暂停；贫血
A89: 0 | B89: 85 | C89: 0 | D89: 气促；吸气性凹陷；呻吟 | E89: 1 | F89: 1 | G89: 1 | H89: 0 | I89: 0 | J89: 1 | K89: 360 | L89: 2040 | M89: 2.04 | N89: 176 | O89: 8 | P89: 360 | Q89: 0 | R89: 0 | S89: ———— | T89: ———— | U89: ———— | V89: ———— | W89: 转院 | X89: 1 | Y89: 0 | Z89: 0 | AA89: 0 | AB89: 0 | AC89: 0 | AD89: 1 | AE89: 新生儿感染；呼吸性酸中毒
A90: 0 | B90: 31 | C90: 0 | D90: 气促；呻吟 | E90: 1 | F90: 0 | G90: 1 | H90: 0 | I90: 3 | J90: 1 | K90: 360 | L90: 4050 | M90: 4.05 | N90: 89 | O90: 8.5 | P90: 360 | Q90: 0 | R90: 0 | S90: ———— | T90: ———— | U90: ———— | V90: ———— | W90: 转院 | X90: 1 | Y90: 0 | Z90: 1 | AA90: 1 | AB90: 0 | AC90: 1 | AD90: 0 | AE90: 新生儿败血症；肺炎；混合型酸中毒
A91: 0 | B91: 44 | C91: 0 | D91: 生后无呼吸 | E91: 1 | F91: 0 | G91: 0 | H91: 0 | I91: 0 | J91: 1 | K91: 360 | L91: 2770 | M91: 2.77 | N91: 130 | O91: 10 | P91: 360 | Q91: 0 | R91: 0 | S91: 4.5 | T91: 96 | U91: 0 | V91: =U91+T91+S91 -> 100.5 | W91: 7 | X91: 0 | Y91: 0 | Z91: 0 | AA91: 1 | AB91: 0 | AC91: 0 | AD91: 0 | AE91: 高胆红素血症；中毒性红斑；混合性酸中毒
A92: 0 | B92: 77 | C92: 0 | D92: 气促 | E92: 1 | F92: 0 | G92: 0 | H92: 0 | I92: 8 | J92: 1 | K92: 360 | L92: 3100 | M92: 3.1 | N92: 116 | O92: 12.5 | P92: 360 | Q92: 0 | R92: 0 | S92: 12 | T92: 0 | U92: 46 | V92: =U92+T92+S92 -> 58 | W92: 8 | X92: 0 | Y92: 0 | Z92: 1 | AA92: 0 | AB92: 0 | AC92: 0 | AD92: 0 | AE92: 新生儿高血糖；新生儿肺炎；呼吸性酸中毒；高胆红素血症
A93: 0 | B93: 8 | C93: 0 | D93: 气促 | E93: 1 | F93: 0 | G93: 0 | H93: 0 | I93: 0 | J93: 1 | K93: 480 | L93: 2880 | M93: 2.88 | N93: 167 | O93: 13 | P93: 480 | Q93: 0 | R93: 0 | S93: ———— | T93: ———— | U93: ———— | V93: ———— | W93: 转院 | X93: 1 | Y93: 0 | Z93: 0 | AA93: 0 | AB93: 0 | AC93: 1 | AD93: 0 | AE93: 新生儿败血症；消化道出血；
A94: 0 | B94: 65 | C94: 0 | D94: 气促 | E94: 1 | F94: 0 | G94: 0 | H94: 0 | I94: 0 | J94: 1 | K94: 360 | L94: 2720 | M94: 2.72 | N94: 132 | O94: 16 | P94: 360 | Q94: 0 | R94: 0 | S94: 0 | T94: 42 | U94: 0 | V94: =U94+T94+S94 -> 42 | W94: 9 | X94: 0 | Y94: 0 | Z94: 0 | AA94: 1 | AB94: 0 | AC94: 0 | AD94: 0 | AE94: 代偿性代谢性酸中毒；
A95: 0 | B95: 86 | C95: 0 | D95: 气促；吸气性凹陷；呻吟 | E95: 1 | F95: 1 | G95: 1 | H95: 0 | I95: 0 | J95: 1 | K95: 360 | L95: 2540 | M95: 2.54 | N95: 142 | O95: 17 | P95: 360 | Q95: 0 | R95: 0 | S95: 0 | T95: 47 | U95: 0 | V95: =U95+T95+S95 -> 47 | W95: 12 | X95: 0 | Y95: 0 | Z95: 0 | AA95: 0 | AB95: 0 | AC95: 0 | AD95: 0 | AE95: 呼吸性酸中毒；新生儿高血糖症；新生儿贫血
A96: 0 | B96: 28 | C96: 0 | D96: 气促 | E96: 1 | F96: 0 | G96: 0 | H96: 0 | I96: 2 | J96: 1 | K96: 480 | L96: 2610 | M96: 2.61 | N96: 184 | O96: 20 | P96: 480 | Q96: 0 | R96: 0 | S96: 95 | T96: 12 | U96: 5 | V96: =U96+T96+S96 -> 112 | W96: 9 | X96: 0 | Y96: 1 | Z96: 0 | AA96: 0 | AB96: 0 | AC96: 0 | AD96: 1 | AE96: 呼吸性酸中毒；新生儿感染；新生儿持续性肺动脉高压；新生儿高胆红素血症
A97: 0 | B97: 75 | C97: 0 | D97: 气促；吸气性凹陷 | E97: 1 | F97: 1 | G97: 0 | H97: 0 | I97: 0 | J97: 1 | K97: 360 | L97: 3570 | M97: 3.57 | N97: 101 | O97: 21 | P97: 360 | Q97: 0 | R97: 0 | S97: ———— | T97: ———— | U97: ———— | V97: ———— | W97: 转院 | X97: 1 | Y97: 1 | Z97: 0 | AA97: 0 | AB97: 0 | AC97: 0 | AD97: 0 | AE97: 肺动脉高压；呼吸性酸中毒
A98: 0 | B98: 73 | C98: 0 | D98: 呼吸不规则 | E98: 1 | F98: 0 | G98: 0 | H98: 0 | I98: 0 | J98: 1 | K98: 360 | L98: 2800 | M98: 2.8 | N98: 129 | O98: 21 | P98: 360 | Q98: 0 | R98: 0 | S98: ———— | T98: ———— | U98: ———— | V98: ———— | W98: 转院 | X98: 1 | Y98: 0 | Z98: 0 | AA98: 1 | AB98: 0 | AC98: 0 | AD98: 1 | AE98: 新生儿感染；呼吸性酸中毒；代谢性酸中毒；先天性神经肌肉疾病
A99: 0 | B99: 91 | C99: 0 | D99: 气促；吸气性凹陷 | E99: 1 | F99: 1 | G99: 0 | H99: 0 | I99: 3 | J99: 1 | K99: 556 | L99: 2780 | M99: 2.78 | N99: 200 | O99: 22.5 | P99: 556 | Q99: 0 | R99: 0 | S99: 29 | T99: 19 | U99: 20 | V99: =U99+T99+S99 -> 68 | W99: 6 | X99: 0 | Y99: 0 | Z99: 0 | AA99: 0 | AB99: 0 | AC99: 0 | AD99: 0 | AE99: 新生儿高胆红素血症
A100: 0 | B100: 101 | C100: 0 | D100: 气促；吸气性凹陷 | E100: 1 | F100: 1 | G100: 0 | H100: 0 | I100: 0 | J100: 1 | K100: 360 | L100: 2040 | M100: 2.04 | N100: 176 | O100: 25 | P100: 360 | Q100: 0 | R100: 0 | S100: 0 | T100: 117 | U100: 0 | V100: =U100+T100+S100 -> 117 | W100: 9 | X100: 0 | Y100: 0 | Z100: 1 | AA100: 0 | AB100: 0 | AC100: 0 | AD100: 1 | AE100: 化脓性脑膜炎；新生儿肺炎；红细胞增多症；室间隔缺损；新生儿感染；高胆红素血症；新生儿低磷血症
A101: 0 | B101: 60 | C101: 0 | D101: 生后呼吸不规则 | E101: 1 | F101: 0 | G101: 0 | H101: 0 | I101: 0 | J101: 1 | K101: 360 | L101: 3670 | M101: 3.67 | N101: 98 | O101: 29 | P101: 360 | Q101: 0 | R101: 0 | S101: 59 | T101: 0 | U101: 32 | V101: =U101+T101+S101 -> 91 | W101: 6 | X101: 0 | Y101: 0 | Z101: 0 | AA101: 0 | AB101: 0 | AC101: 0 | AD101: 1 | AE101: 新生儿感染；凝血功能障碍
A102: 0 | B102: 53 | C102: 0 | D102: 气促 | E102: 1 | F102: 0 | G102: 0 | H102: 0 | I102: 4 | J102: 1 | K102: 360 | L102: 3660 | M102: 3.66 | N102: 98 | O102: 31 | P102: 360 | Q102: 0 | R102: 0 | S102: 48 | T102: 0 | U102: 46 | V102: =U102+T102+S102 -> 94 | W102: 9 | X102: 0 | Y102: 0 | Z102: 1 | AA102: 0 | AB102: 0 | AC102: 0 | AD102: 0 | AE102: 肺炎；高胆红素血症

Sheet GDM features（RDS vs nonRDS）
A1: groups(1case 2control) | B1: GDM+PGDM | C1: GDM | D1: PGDM | E1: diagnosed time | F1: OGTT oh | G1: 1h | H1: 2h | I1: control methods | J1: HBIAC at ogtt | K1: HBA1C before delivery | L1: RBG before delivery(mmol/L）
A2: 1 | B2: 1 | C2: 1 | D2: 0 | E2: 12 | F2: 4.0 | G2: 12.1 | H2: 6.5 | I2: 饮食控制 | J2: 4.4 | K2: 5.2 | L2: 7.8
A3: 1 | B3: 0 | C3: 0 | D3: 0 | E3: 无 | F3: 无 | G3: 无 | H3: 无 | I3: 无
A4: 1 | B4: 0 | C4: 0 | D4: 0 | E4: 无 | F4: 无 | G4: 无 | H4: 无 | I4: 无
A5: 1 | B5: 1 | C5: 1 | D5: 0 | E5: 13 | F5: 4.6 | G5: 11.0 | H5: 5.0 | I5: 饮食控制 | J5: 5 | K5: 5.9 | L5: 4.5
A6: 1 | B6: 0 | C6: 0 | D6: 0 | E6: 无 | F6: 无 | G6: 无 | H6: 无 | I6: 无
A7: 1 | B7: 0 | C7: 0 | D7: 0 | E7: 无 | F7: 无 | G7: 无 | H7: 无 | I7: 无
A8: 1 | B8: 1 | C8: 0 | D8: 1 | E8: 7 | F8: 6.0 | G8: 12.0 | H8: 10.0 | I8: 胰岛素 | J8: 6.2 | K8: 5.1 | L8: 4.1
A9: 1 | B9: 0 | C9: 0 | D9: 0 | E9: 无 | F9: 无 | G9: 无 | H9: 无 | I9: 无
A10: 1 | B10: 0 | C10: 0 | D10: 0 | E10: 无 | F10: 无 | G10: 无 | H10: 无 | I10: 无
A11: 1 | B11: 0 | C11: 0 | D11: 0 | E11: 无 | F11: 无 | G11: 无 | H11: 无 | I11: 无
A12: 1 | B12: 1 | C12: 1 | D12: 0 | E12: 24 | F12: 5.1 | G12: 8.5 | H12: 7.9 | I12: 饮食控制 | J12: 无 | K12: 无 | L12: 3.9
A13: 1 | B13: 0 | C13: 0 | D13: 0 | E13: 无 | F13: 无 | G13: 无 | H13: 无 | I13: 无
A14: 1 | B14: 0 | C14: 0 | D14: 0 | E14: 无 | F14: 无 | G14: 无 | H14: 无 | I14: 无
A15: 1 | B15: 0 | C15: 0 | D15: 0 | E15: 无 | F15: 无 | G15: 无 | H15: 无 | I15: 无
A16: 1 | B16: 0 | C16: 0 | D16: 0 | E16: 无 | F16: 无 | G16: 无 | H16: 无 | I16: 无
A17: 1 | B17: 0 | C17: 0 | D17: 0 | E17: 无 | F17: 无 | G17: 无 | H17: 无 | I17: 无
A18: 1 | B18: 0 | C18: 0 | D18: 0 | E18: 无 | F18: 无 | G18: 无 | H18: 无 | I18: 无
A19: 1 | B19: 0 | C19: 0 | D19: 0 | E19: 无 | F19: 无 | G19: 无 | H19: 无 | I19: 无
A20: 1 | B20: 0 | C20: 0 | D20: 0 | E20: 无 | F20: 无 | G20: 无 | H20: 无 | I20: 无
A21: 1 | B21: 0 | C21: 0 | D21: 0 | E21: 无 | F21: 无 | G21: 无 | H21: 无 | I21: 无
A22: 1 | B22: 1 | C22: 1 | D22: 0 | E22: 15 | F22: 5.0 | G22: 10.5 | H22: 7.6 | I22: 饮食控制 | J22: 5.5 | K22: 4.9 | L22: 3.6
A23: 1 | B23: 0 | C23: 0 | D23: 0 | E23: 无 | F23: 无 | G23: 无 | H23: 无 | I23: 无
A24: 1 | B24: 0 | C24: 0 | D24: 0 | E24: 无 | F24: 无 | G24: 无 | H24: 无 | I24: 无
A25: 1 | B25: 0 | C25: 0 | D25: 0 | E25: 无 | F25: 无 | G25: 无 | H25: 无 | I25: 无
A26: 1 | B26: 0 | C26: 0 | D26: 0 | E26: 无 | F26: 无 | G26: 无 | H26: 无 | I26: 无
A27: 1 | B27: 0 | C27: 0 | D27: 0 | E27: 无 | F27: 无 | G27: 无 | H27: 无 | I27: 无
A28: 1 | B28: 0 | C28: 0 | D28: 0 | E28: 无 | F28: 无 | G28: 无 | H28: 无 | I28: 无
A29: 1 | B29: 0 | C29: 0 | D29: 0 | E29: 无 | F29: 无 | G29: 无 | H29: 无 | I29: 无
A30: 1 | B30: 0 | C30: 0 | D30: 0 | E30: 无 | F30: 无 | G30: 无 | H30: 无 | I30: 无
A31: 1 | B31: 0 | C31: 0 | D31: 0 | E31: 无 | F31: 无 | G31: 无 | H31: 无 | I31: 无
A32: 1 | B32: 0 | C32: 0 | D32: 0 | E32: 无 | F32: 无 | G32: 无 | H32: 无 | I32: 无
A33: 1 | B33: 1 | C33: 1 | D33: 0 | E33: 26 | F33: 6.8 | G33: 12.1 | H33: 9.7 | I33: 胰岛素 | J33: 5.4 | K33: 5.8 | L33: 4.1
A34: 1 | B34: 0 | C34: 0 | D34: 0 | E34: 无 | F34: 无 | G34: 无 | H34: 无 | I34: 无
A35: 1 | B35: 1 | C35: 1 | D35: 0 | E35: 25 | F35: 4.8 | G35: 10.5 | H35: 8.8 | I35: 饮食控制 | J35: 4.9 | K35: 4.9 | L35: 5.5
A36: 1 | B36: 1 | C36: 1 | D36: 0 | E36: 13 | F36: 4.4 | G36: 11.1 | H36: 9.5 | I36: 饮食控制 | J36: 无 | K36: 5.2 | L36: 6.6
A37: 1 | B37: 0 | C37: 0 | D37: 0 | E37: 无 | F37: 无 | G37: 无 | H37: 无 | I37: 无
A38: 1 | B38: 0 | C38: 0 | D38: 0 | E38: 无 | F38: 无 | G38: 无 | H38: 无 | I38: 无
A39: 1 | B39: 0 | C39: 0 | D39: 0 | E39: 无 | F39: 无 | G39: 无 | H39: 无 | I39: 无
A40: 1 | B40: 0 | C40: 0 | D40: 0 | E40: 无 | F40: 无 | G40: 无 | H40: 无 | I40: 无
A41: 1 | B41: 0 | C41: 0 | D41: 0 | E41: 无 | F41: 无 | G41: 无 | H41: 无 | I41: 无
A42: 1 | B42: 0 | C42: 0 | D42: 0 | E42: 无 | F42: 无 | G42: 无 | H42: 无 | I42: 无
A43: 1 | B43: 0 | C43: 0 | D43: 0 | E43: 无 | F43: 无 | G43: 无 | H43: 无 | I43: 无
A44: 1 | B44: 0 | C44: 0 | D44: 0 | E44: 无 | F44: 无 | G44: 无 | H44: 无 | I44: 无
A45: 1 | B45: 0 | C45: 0 | D45: 0 | E45: 无 | F45: 无 | G45: 无 | H45: 无 | I45: 无
A46: 1 | B46: 0 | C46: 0 | D46: 0 | E46: 无 | F46: 无 | G46: 无 | H46: 无 | I46: 无
A47: 1 | B47: 0 | C47: 0 | D47: 0 | E47: 无 | F47: 无 | G47: 无 | H47: 无 | I47: 无
A48: 1 | B48: 0 | C48: 0 | D48: 0 | E48: 无 | F48: 无 | G48: 无 | H48: 无 | I48: 无
A49: 1 | B49: 0 | C49: 0 | D49: 0 | E49: 无 | F49: 无 | G49: 无 | H49: 无 | I49: 无
A50: 1 | B50: 0 | C50: 0 | D50: 0 | E50: 无 | F50: 无 | G50: 无 | H50: 无 | I50: 无
A51: 1 | B51: 0 | C51: 0 | D51: 0 | E51: 无 | F51: 无 | G51: 无 | H51: 无 | I51: 无
A52: 1 | B52: 0 | C52: 0 | D52: 0 | E52: 无 | F52: 无 | G52: 无 | H52: 无 | I52: 无
A53: 1 | B53: 0 | C53: 0 | D53: 0 | E53: 无 | F53: 无 | G53: 无 | H53: 无 | I53: 无
A54: 1 | B54: 0 | C54: 0 | D54: 0 | E54: 无 | F54: 无 | G54: 无 | H54: 无 | I54: 无
A55: 1 | B55: 0 | C55: 0 | D55: 0 | E55: 无 | F55: 无 | G55: 无 | H55: 无 | I55: 无
A56: 1 | B56: 0 | C56: 0 | D56: 0 | E56: 无 | F56: 无 | G56: 无 | H56: 无 | I56: 无
A57: 1 | B57: 0 | C57: 0 | D57: 0 | E57: 无 | F57: 无 | G57: 无 | H57: 无 | I57: 无
A58: 1 | B58: 0 | C58: 0 | D58: 0 | E58: 无 | F58: 无 | G58: 无 | H58: 无 | I58: 无
A59: 1 | B59: 1 | C59: 1 | D59: 0 | E59: 18 | F59: 4.2 | G59: 9.4 | H59: 9.3 | I59: 饮食控制 | J59: 4.9 | K59: 4.9 | L59: 4.2
A60: 1 | B60: 0 | C60: 0 | D60: 0 | E60: 无 | F60: 无 | G60: 无 | H60: 无 | I60: 无
A61: 1 | B61: 0 | C61: 0 | D61: 0 | E61: 无 | F61: 无 | G61: 无 | H61: 无 | I61: 无
A62: 1 | B62: 1 | C62: 1 | D62: 0 | E62: 13 | F62: 4.7 | G62: 9.9 | H62: 9.8 | I62: 饮食控制 | J62: 5.1 | K62: 5 | L62: 4.8
A63: 1 | B63: 0 | C63: 0 | D63: 0 | E63: 无 | F63: 无 | G63: 无 | H63: 无 | I63: 无
A64: 1 | B64: 0 | C64: 0 | D64: 0 | E64: 无 | F64: 无 | G64: 无 | H64: 无 | I64: 无
A65: 1 | B65: 0 | C65: 0 | D65: 0 | E65: 无 | F65: 无 | G65: 无 | H65: 无 | I65: 无
A66: 1 | B66: 1 | C66: 1 | D66: 0 | E66: 16 | F66: 4.2 | G66: 11.1 | H66: 9.5 | I66: 饮食控制 | J66: 5 | K66: 5.6 | L66: 5.1
A67: 1 | B67: 1 | C67: 1 | D67: 0 | E67: 16 | F67: 4.2 | G67: 11.1 | H67: 9.5 | I67: 饮食控制 | J67: 5 | K67: 5.6 | L67: 5.1
A68: 1 | B68: 1 | C68: 1 | D68: 0 | E68: 16 | F68: 4.2 | G68: 11.1 | H68: 9.5 | I68: 饮食控制 | J68: 5 | K68: 5.6 | L68: 5.1
A69: 1 | B69: 0 | C69: 0 | D69: 0 | E69: 无 | F69: 无 | G69: 无 | H69: 无 | I69: 无
A70: 1 | B70: 0 | C70: 0 | D70: 0 | E70: 无 | F70: 无 | G70: 无 | H70: 无 | I70: 无
A71: 1 | B71: 0 | C71: 0 | D71: 0 | E71: 无 | F71: 无 | G71: 无 | H71: 无 | I71: 无
A72: 1 | B72: 0 | C72: 0 | D72: 0 | E72: 无 | F72: 无 | G72: 无 | H72: 无 | I72: 无
A73: 1 | B73: 0 | C73: 0 | D73: 0 | E73: 无 | F73: 无 | G73: 无 | H73: 无 | I73: 无
A74: 1 | B74: 0 | C74: 0 | D74: 0 | E74: 无 | F74: 无 | G74: 无 | H74: 无 | I74: 无
A75: 1 | B75: 0 | C75: 0 | D75: 0 | E75: 无 | F75: 无 | G75: 无 | H75: 无 | I75: 无
A76: 1 | B76: 0 | C76: 0 | D76: 0 | E76: 无 | F76: 无 | G76: 无 | H76: 无 | I76: 无
A77: 1 | B77: 0 | C77: 0 | D77: 0 | E77: 无 | F77: 无 | G77: 无 | H77: 无 | I77: 无
A78: 1 | B78: 0 | C78: 0 | D78: 0 | E78: 无 | F78: 无 | G78: 无 | H78: 无 | I78: 无
A79: 1 | B79: 0 | C79: 0 | D79: 0 | E79: 无 | F79: 无 | G79: 无 | H79: 无 | I79: 无
A80: 1 | B80: 0 | C80: 0 | D80: 0 | E80: 无 | F80: 无 | G80: 无 | H80: 无 | I80: 无
A81: 1 | B81: 1 | C81: 1 | D81: 0 | E81: 23 | F81: 5.6 | G81: 8.4 | H81: 5.4 | I81: 饮食控制 | J81: 5.3 | K81: 无 | L81: 5.0
A82: 1 | B82: 0 | C82: 0 | D82: 0 | E82: 无 | F82: 无 | G82: 无 | H82: 无 | I82: 无
A83: 1 | B83: 0 | C83: 0 | D83: 0 | E83: 无 | F83: 无 | G83: 无 | H83: 无 | I83: 无
A84: 1 | B84: 0 | C84: 0 | D84: 0 | E84: 无 | F84: 无 | G84: 无 | H84: 无 | I84: 无
A85: 1 | B85: 0 | C85: 0 | D85: 0 | E85: 无 | F85: 无 | G85: 无 | H85: 无 | I85: 无
A86: 1 | B86: 0 | C86: 0 | D86: 0 | E86: 无 | F86: 无 | G86: 无 | H86: 无 | I86: 无
A87: 1 | B87: 0 | C87: 0 | D87: 0 | E87: 无 | F87: 无 | G87: 无 | H87: 无 | I87: 无
A88: 1 | B88: 1 | C88: 0 | D88: 1 | E88: 无 | F88: 无 | G88: 无 | H88: 无 | I88: 无
A89: 1 | B89: 0 | C89: 0 | D89: 0 | E89: 无 | F89: 无 | G89: 无 | H89: 无 | I89: 无
A90: 1 | B90: 0 | C90: 0 | D90: 0 | E90: 无 | F90: 无 | G90: 无 | H90: 无 | I90: 无
A91: 1 | B91: 0 | C91: 0 | D91: 0 | E91: 无 | F91: 无 | G91: 无 | H91: 无 | I91: 无
A92: 1 | B92: 0 | C92: 0 | D92: 0 | E92: 无 | F92: 无 | G92: 无 | H92: 无 | I92: 无
A93: 1 | B93: 1 | C93: 1 | D93: 0 | E93: 26 | F93: 4.7 | G93: 10.2 | H93: 6.9 | I93: 饮食控制 | J93: 5.3 | K93: 无 | L93: 无
A94: 1 | B94: 0 | C94: 0 | D94: 0 | E94: 无 | F94: 无 | G94: 无 | H94: 无 | I94: 无
A95: 1 | B95: 0 | C95: 0 | D95: 0 | E95: 无 | F95: 无 | G95: 无 | H95: 无 | I95: 无
A96: 1 | B96: 1 | C96: 1 | D96: 0 | E96: 18 | F96: 3.8 | G96: 10.0 | H96: 10.5 | I96: 饮食控制 | J96: 5 | K96: 5 | L96: 6.8
A97: 1 | B97: 0 | C97: 0 | D97: 0 | E97: 无 | F97: 无 | G97: 无 | H97: 无 | I97: 无
A98: 1 | B98: 0 | C98: 0 | D98: 0 | E98: 无 | F98: 无 | G98: 无 | H98: 无 | I98: 无
A99: 1 | B99: 0 | C99: 0 | D99: 0 | E99: 无 | F99: 无 | G99: 无 | H99: 无 | I99: 无
A100: 1 | B100: 0 | C100: 0 | D100: 0 | E100: 无 | F100: 无 | G100: 无 | H100: 无 | I100: 无
A101: 1 | B101: 0 | C101: 0 | D101: 0 | E101: 无 | F101: 无 | G101: 无 | H101: 无 | I101: 无
A102: 0 | B102: 0 | C102: 0 | D102: 0 | E102: 无 | F102: 无 | G102: 无 | H102: 无 | I102: 无
A103: 0 | B103: 0 | C103: 0 | D103: 0 | E103: 无 | F103: 无 | G103: 无 | H103: 无 | I103: 无
A104: 0 | B104: 0 | C104: 0 | D104: 0 | E104: 无 | F104: 无 | G104: 无 | H104: 无 | I104: 无
A105: 0 | B105: 0 | C105: 0 | D105: 0 | E105: 无 | F105: 无 | G105: 无 | H105: 无 | I105: 无
A106: 0 | B106: 0 | C106: 0 | D106: 0 | E106: 无 | F106: 无 | G106: 无 | H106: 无 | I106: 无
A107: 0 | B107: 1 | C107: 1 | D107: 0 | E107: 12 | F107: 5.1 | G107: 7 | H107: 9.5 | I107: 饮食控制 | J107: 无 | K107: 无 | L107: 无
A108: 0 | B108: 0 | C108: 0 | D108: 0 | E108: 无 | F108: 无 | G108: 无 | H108: 无 | I108: 无
A109: 0 | B109: 1 | C109: 1 | D109: 0 | E109: 26 | F109: 5 | G109: 9 | H109: 8.6 | I109: 饮食控制 | J109: 无 | K109: 4.4 | L109: 5.4
A110: 0 | B110: 0 | C110: 0 | D110: 0 | E110: 无 | F110: 无 | G110: 无 | H110: 无 | I110: 无
A111: 0 | B111: 0 | C111: 0 | D111: 0 | E111: 无 | F111: 无 | G111: 无 | H111: 无 | I111: 无
A112: 0 | B112: 1 | C112: 1 | D112: 0 | E112: 26 | F112: 5 | G112: 9 | H112: 8.6 | I112: 饮食控制 | J112: 无 | K112: 4.4 | L112: 5.4
A113: 0 | B113: 1 | C113: 1 | D113: 0 | E113: 26 | F113: 5 | G113: 9 | H113: 8.6 | I113: 饮食控制 | J113: 无 | K113: 4.4 | L113: 5.4
A114: 0 | B114: 0 | C114: 0 | D114: 0 | E114: 无 | F114: 无 | G114: 无 | H114: 无 | I114: 无
A115: 0 | B115: 0 | C115: 0 | D115: 0 | E115: 无 | F115: 无 | G115: 无 | H115: 无 | I115: 无
A116: 0 | B116: 0 | C116: 0 | D116: 0 | E116: 无 | F116: 无 | G116: 无 | H116: 无 | I116: 无
A117: 0 | B117: 0 | C117: 0 | D117: 0 | E117: 无 | F117: 无 | G117: 无 | H117: 无 | I117: 无
A118: 0 | B118: 0 | C118: 0 | D118: 0 | E118: 无 | F118: 无 | G118: 无 | H118: 无 | I118: 无
A119: 0 | B119: 1 | C119: 0 | D119: 1 | E119: 10 | F119: 5.1 | G119: 12.9 | H119: 11.3 | I119: 胰岛素控制 | J119: 5.7 | K119: 5.8 | L119: 7.7
A120: 0 | B120: 0 | C120: 0 | D120: 0 | E120: 无 | F120: 无 | G120: 无 | H120: 无 | I120: 无
A121: 0 | B121: 0 | C121: 0 | D121: 0 | E121: 无 | F121: 无 | G121: 无 | H121: 无 | I121: 无
A122: 0 | B122: 0 | C122: 0 | D122: 0 | E122: 无 | F122: 无 | G122: 无 | H122: 无 | I122: 无
A123: 0 | B123: 1 | C123: 1 | D123: 0 | E123: 19 | F123: 4.9 | G123: 9.3 | H123: 9 | I123: 饮食控制 | J123: 5.5 | K123: 5 | L123: 4.4
A124: 0 | B124: 0 | C124: 0 | D124: 0 | E124: 无 | F124: 无 | G124: 无 | H124: 无 | I124: 无
A125: 0 | B125: 0 | C125: 0 | D125: 0 | E125: 无 | F125: 无 | G125: 无 | H125: 无 | I125: 无
A126: 0 | B126: 1 | C126: 1 | D126: 0 | E126: 19 | F126: 4.9 | G126: 9.3 | H126: 9 | I126: 饮食控制 | J126: 5.5 | K126: 5 | L126: 4.4
A127: 0 | B127: 0 | C127: 0 | D127: 0 | E127: 无 | F127: 无 | G127: 无 | H127: 无 | I127: 无
A128: 0 | B128: 0 | C128: 0 | D128: 0 | E128: 无 | F128: 无 | G128: 无 | H128: 无 | I128: 无
A129: 0 | B129: 0 | C129: 0 | D129: 0 | E129: 无 | F129: 无 | G129: 无 | H129: 无 | I129: 无
A130: 0 | B130: 0 | C130: 0 | D130: 0 | E130: 无 | F130: 无 | G130: 无 | H130: 无 | I130: 无
A131: 0 | B131: 0 | C131: 0 | D131: 0 | E131: 无 | F131: 无 | G131: 无 | H131: 无 | I131: 无
A132: 0 | B132: 0 | C132: 0 | D132: 0 | E132: 无 | F132: 无 | G132: 无 | H132: 无 | I132: 无
A133: 0 | B133: 0 | C133: 0 | D133: 0 | E133: 无 | F133: 无 | G133: 无 | H133: 无 | I133: 无
A134: 0 | B134: 0 | C134: 0 | D134: 0 | E134: 无 | F134: 无 | G134: 无 | H134: 无 | I134: 无
A135: 0 | B135: 0 | C135: 0 | D135: 0 | E135: 无 | F135: 无 | G135: 无 | H135: 无 | I135: 无
A136: 0 | B136: 0 | C136: 0 | D136: 0 | E136: 无 | F136: 无 | G136: 无 | H136: 无 | I136: 无
A137: 0 | B137: 0 | C137: 0 | D137: 0 | E137: 无 | F137: 无 | G137: 无 | H137: 无 | I137: 无
A138: 0 | B138: 0 | C138: 0 | D138: 0 | E138: 无 | F138: 无 | G138: 无 | H138: 无 | I138: 无
A139: 0 | B139: 0 | C139: 0 | D139: 0 | E139: 无 | F139: 无 | G139: 无 | H139: 无 | I139: 无
A140: 0 | B140: 1 | C140: 1 | D140: 0 | E140: 18 | F140: 4.2 | G140: 9.9 | H140: 10.1 | I140: 饮食控制 | J140: 5.3 | K140: 5.7 | L140: 3.9
A141: 0 | B141: 0 | C141: 0 | D141: 0 | E141: 无 | F141: 无 | G141: 无 | H141: 无 | I141: 无
A142: 0 | B142: 0 | C142: 0 | D142: 0 | E142: 无 | F142: 无 | G142: 无 | H142: 无 | I142: 无
A143: 0 | B143: 0 | C143: 0 | D143: 0 | E143: 无 | F143: 无 | G143: 无 | H143: 无 | I143: 无
A144: 0 | B144: 0 | C144: 0 | D144: 0 | E144: 无 | F144: 无 | G144: 无 | H144: 无 | I144: 无
A145: 0 | B145: 0 | C145: 0 | D145: 0 | E145: 无 | F145: 无 | G145: 无 | H145: 无 | I145: 无
A146: 0 | B146: 0 | C146: 0 | D146: 0 | E146: 无 | F146: 无 | G146: 无 | H146: 无 | I146: 无
A147: 0 | B147: 0 | C147: 0 | D147: 0 | E147: 无 | F147: 无 | G147: 无 | H147: 无 | I147: 无
A148: 0 | B148: 0 | C148: 0 | D148: 0 | E148: 无 | F148: 无 | G148: 无 | H148: 无 | I148: 无
A149: 0 | B149: 0 | C149: 0 | D149: 0 | E149: 无 | F149: 无 | G149: 无 | H149: 无 | I149: 无
A150: 0 | B150: 0 | C150: 0 | D150: 0 | E150: 无 | F150: 无 | G150: 无 | H150: 无 | I150: 无
A151: 0 | B151: 0 | C151: 0 | D151: 0 | E151: 无 | F151: 无 | G151: 无 | H151: 无 | I151: 无
A152: 0 | B152: 0 | C152: 0 | D152: 0 | E152: 无 | F152: 无 | G152: 无 | H152: 无 | I152: 无
A153: 0 | B153: 0 | C153: 0 | D153: 0 | E153: 无 | F153: 无 | G153: 无 | H153: 无 | I153: 无
A154: 0 | B154: 0 | C154: 0 | D154: 0 | E154: 无 | F154: 无 | G154: 无 | H154: 无 | I154: 无
A155: 0 | B155: 1 | C155: 1 | D155: 0 | E155: 26 | F155: 4.8 | G155: 10.4 | H155: 8.3 | I155: 饮食控制 | J155: 5.0 | K155: 4.8 | L155: 4.3
A156: 0 | B156: 0 | C156: 0 | D156: 0 | E156: 无 | F156: 无 | G156: 无 | H156: 无 | I156: 无
A157: 0 | B157: 1 | C157: 1 | D157: 0 | E157: 23 | F157: 5.5 | G157: 10.9 | H157: 9.6 | I157: 饮食控制 | J157: 4.9 | K157: 5 | L157: 7.8
A158: 0 | B158: 0 | C158: 0 | D158: 0 | E158: 无 | F158: 无 | G158: 无 | H158: 无 | I158: 无
A159: 0 | B159: 0 | C159: 0 | D159: 0 | E159: 无 | F159: 无 | G159: 无 | H159: 无 | I159: 无
A160: 0 | B160: 0 | C160: 0 | D160: 0 | E160: 无 | F160: 无 | G160: 无 | H160: 无 | I160: 无
A161: 0 | B161: 0 | C161: 0 | D161: 0 | E161: 无 | F161: 无 | G161: 无 | H161: 无 | I161: 无
A162: 0 | B162: 0 | C162: 0 | D162: 0 | E162: 无 | F162: 无 | G162: 无 | H162: 无 | I162: 无
A163: 0 | B163: 0 | C163: 0 | D163: 0 | E163: 无 | F163: 无 | G163: 无 | H163: 无 | I163: 无
A164: 0 | B164: 0 | C164: 0 | D164: 0 | E164: 无 | F164: 无 | G164: 无 | H164: 无 | I164: 无
A165: 0 | B165: 1 | C165: 0 | D165: 1 | E165: 0 | F165: 无 | G165: 无 | H165: 无 | I165: 胰岛素控制 | J165: 6.8 | K165: 无 | L165: 5.3
A166: 0 | B166: 0 | C166: 0 | D166: 0 | E166: 无 | F166: 无 | G166: 无 | H166: 无 | I166: 无
A167: 0 | B167: 1 | C167: 0 | D167: 1 | E167: 22 | F167: 4.8 | G167: 10.4 | H167: 8.3 | I167: 胰岛素控制 | J167: 无 | K167: 无 | L167: 5.2
A168: 0 | B168: 0 | C168: 0 | D168: 0 | E168: 无 | F168: 无 | G168: 无 | H168: 无 | I168: 无
A169: 0 | B169: 0 | C169: 0 | D169: 0 | E169: 无 | F169: 无 | G169: 无 | H169: 无 | I169: 无
A170: 0 | B170: 0 | C170: 0 | D170: 0 | E170: 无 | F170: 无 | G170: 无 | H170: 无 | I170: 无
A171: 0 | B171: 1 | C171: 1 | D171: 0 | E171: 12 | F171: 4 | G171: 9.3 | H171: 8.6 | I171: 饮食控制 | J171: 无 | K171: 4.8 | L171: 3.2
A172: 0 | B172: 0 | C172: 0 | D172: 0 | E172: 无 | F172: 无 | G172: 无 | H172: 无 | I172: 无
A173: 0 | B173: 0 | C173: 0 | D173: 0 | E173: 无 | F173: 无 | G173: 无 | H173: 无 | I173: 无
A174: 0 | B174: 0 | C174: 0 | D174: 0 | E174: 无 | F174: 无 | G174: 无 | H174: 无 | I174: 无
A175: 0 | B175: 1 | C175: 1 | D175: 0 | E175: 11 | F175: 4.8 | G175: 10.1 | H175: 10.4 | I175: 饮食控制 | J175: 5 | K175: 5.7 | L175: 4.5
A176: 0 | B176: 0 | C176: 0 | D176: 0 | E176: 无 | F176: 无 | G176: 无 | H176: 无 | I176: 无
A177: 0 | B177: 0 | C177: 0 | D177: 0 | E177: 无 | F177: 无 | G177: 无 | H177: 无 | I177: 无
A178: 0 | B178: 0 | C178: 0 | D178: 0 | E178: 无 | F178: 无 | G178: 无 | H178: 无 | I178: 无
A179: 0 | B179: 0 | C179: 0 | D179: 0 | E179: 无 | F179: 无 | G179: 无 | H179: 无 | I179: 无
A180: 0 | B180: 0 | C180: 0 | D180: 0 | E180: 无 | F180: 无 | G180: 无 | H180: 无 | I180: 无
A181: 0 | B181: 0 | C181: 0 | D181: 0 | E181: 0 | F181: 无 | G181: 无 | H181: 无 | I181: 无
A182: 0 | B182: 0 | C182: 0 | D182: 0 | E182: 无 | F182: 无 | G182: 无 | H182: 无 | I182: 无
A183: 0 | B183: 0 | C183: 0 | D183: 0 | E183: 0 | F183: 无 | G183: 无 | H183: 无 | I183: 无
A184: 0 | B184: 0 | C184: 0 | D184: 0 | E184: 无 | F184: 无 | G184: 无 | H184: 无 | I184: 无
A185: 0 | B185: 0 | C185: 0 | D185: 0 | E185: 0 | F185: 无 | G185: 无 | H185: 无 | I185: 无
A186: 0 | B186: 0 | C186: 0 | D186: 0 | E186: 0 | F186: 无 | G186: 无 | H186: 无 | I186: 无
A187: 0 | B187: 0 | C187: 0 | D187: 0 | E187: 0 | F187: 无 | G187: 无 | H187: 无 | I187: 无
A188: 0 | B188: 0 | C188: 0 | D188: 0 | E188: 0 | F188: 无 | G188: 无 | H188: 无 | I188: 无
A189: 0 | B189: 0 | C189: 0 | D189: 0 | E189: 0 | F189: 无 | G189: 无 | H189: 无 | I189: 无
A190: 0 | B190: 1 | C190: 1 | D190: 0 | E190: 25 | F190: 5.0 | G190: 8.9 | H190: 9.4 | I190: 饮食控制 | J190: 无 | K190: 5.6 | L190: 3.7
A191: 0 | B191: 0 | C191: 0 | D191: 0 | E191: 0 | F191: 无 | G191: 无 | H191: 无 | I191: 无
A192: 0 | B192: 0 | C192: 0 | D192: 0 | E192: 0 | F192: 无 | G192: 无 | H192: 无 | I192: 无
A193: 0 | B193: 0 | C193: 0 | D193: 0 | E193: 0 | F193: 无 | G193: 无 | H193: 无 | I193: 无
A194: 0 | B194: 0 | C194: 0 | D194: 0 | E194: 0 | F194: 无 | G194: 无 | H194: 无 | I194: 无
A195: 0 | B195: 0 | C195: 0 | D195: 0 | E195: 0 | F195: 无 | G195: 无 | H195: 无 | I195: 无
A196: 0 | B196: 0 | C196: 0 | D196: 0 | E196: 0 | F196: 无 | G196: 无 | H196: 无 | I196: 无
A197: 0 | B197: 0 | C197: 0 | D197: 0 | E197: 0 | F197: 无 | G197: 无 | H197: 无 | I197: 无
A198: 0 | B198: 0 | C198: 0 | D198: 0 | E198: 0 | F198: 无 | G198: 无 | H198: 无 | I198: 无
A199: 0 | B199: 1 | C199: 1 | D199: 0 | E199: 12 | F199: 4.5 | G199: 13.3 | H199: 10.4 | I199: 饮食控制 | J199: 5.7 | K199: 5.6 | L199: 6.1
A200: 0 | B200: 0 | C200: 0 | D200: 0 | E200: 0 | F200: 无 | G200: 无 | H200: 无 | I200: 无
... 2 more rows

Sheet respiratory support
A1: groups（1GDM，0GDM） | B1: hood oxygen | C1: CPAP | D1: MV（GDM） | E1: Total（GDM） | F1: times of PS | H1: GDM（1有0无） | I1: hood oxygen | J1: CPAP | K1: MV（GDM）
A2: 1 | B2: 0 | C2: 92 | D2: 0 | E2: 92 | H2: 1 | I2: 0 | J2: 1 | K2: 1
A3: 1 | B3: 0 | C3: 430 | D3: 0 | E3: 430 | H3: 1 | I3: 0 | J3: 1 | K3: 1
A4: 1 | B4: 0 | C4: 520 | D4: 0 | E4: 520 | H4: 1 | I4: 0 | J4: 1 | K4: 1
A5: 1 | B5: 0 | C5: 640 | D5: 0 | E5: 640 | H5: 1 | I5: 0 | J5: 1 | K5: 1
A6: 1 | B6: 10 | C6: 18 | D6: 0 | E6: 28 | H6: 1 | I6: 1 | J6: 1 | K6: 1
A7: 1 | B7: 2 | C7: 25 | D7: 0 | E7: 27 | H7: 1 | I7: 1 | J7: 1 | K7: 0
A8: 1 | B8: 3 | C8: 63 | D8: 0 | E8: 66 | H8: 1 | I8: 1 | J8: 1 | K8: 0
A9: 1 | B9: 3 | C9: 63 | D9: 0 | E9: 66 | H9: 1 | I9: 1 | J9: 1 | K9: 0
A10: 1 | B10: 108 | C10: 0 | D10: 59 | E10: 167 | H10: 1 | I10: 1 | J10: 1 | K10: 0
A11: 1 | B11: 4 | C11: 61 | D11: 54 | E11: 119 | H11: 1 | I11: 1 | J11: 1 | K11: 0
A12: 1 | B12: 3 | C12: 5 | D12: 22 | E12: 30 | H12: 1 | I12: 1 | J12: 1 | K12: 0
A13: 1 | B13: 5 | C13: 48 | D13: 0 | E13: 53 | H13: 1 | I13: 1 | J13: 1 | K13: 0
A14: 1 | B14: 0 | C14: 84 | D14: 0 | E14: 84 | H14: 1 | I14: 0 | J14: 1 | K14: 0
A15: 1 | B15: 36 | C15: 0 | D15: 12 | E15: 42 | H15: 1 | I15: 1 | J15: 0 | K15: 0
A16: 1 | B16: 2 | C16: 36 | D16: 0 | E16: 38 | H16: 1 | I16: 1 | J16: 0 | K16: 0
A17: 1 | B17: 24 | C17: 0 | D17: 10 | E17: 34 | H17: 1 | I17: 1 | J17: 0 | K17: 0
A18: 0 | B18: 1 | C18: 21 | D18: 0 | E18: 22 | H18: 1 | I18: 0 | J18: 0 | K18: 0
A19: 0 | B19: 0 | C19: 21 | D19: 0 | E19: 21 | H19: 1 | I19: 0 | J19: 0 | K19: 0
A20: 0 | B20: 0 | C20: 97 | D20: 0 | E20: 97 | H20: 0 | I20: 0 | J20: 1 | K20: 1
A21: 0 | B21: 0 | C21: 74 | D21: 26 | E21: 100 | H21: 0 | I21: 0 | J21: 1 | K21: 1
A22: 0 | B22: 135 | C22: 224 | D22: 0 | E22: 359 | H22: 0 | I22: 1 | J22: 1 | K22: 1
A23: 0 | B23: 0 | C23: 281 | D23: 0 | E23: 281 | H23: 0 | I23: 0 | J23: 1 | K23: 1
A24: 0 | B24: 0 | C24: 41 | D24: 0 | E24: 41 | H24: 0 | I24: 0 | J24: 1 | K24: 1
A25: 0 | B25: 0 | C25: 163 | D25: 0 | E25: 163 | H25: 0 | I25: 0 | J25: 1 | K25: 1
A26: 0 | B26: 0 | C26: 25 | D26: 20 | E26: 45 | H26: 0 | I26: 0 | J26: 1 | K26: 1
A27: 0 | B27: 0 | C27: 20 | D27: 0 | E27: 20 | H27: 0 | I27: 0 | J27: 1 | K27: 1
A28: 0 | B28: 0 | C28: 28 | D28: 0 | E28: 28 | H28: 0 | I28: 0 | J28: 1 | K28: 1
A29: 0 | B29: 0 | C29: 10 | D29: 0 | E29: 10 | H29: 0 | I29: 0 | J29: 1 | K29: 1
A30: 0 | B30: 0 | C30: 25 | D30: 20 | E30: 45 | H30: 0 | I30: 0 | J30: 1 | K30: 1
A31: 0 | B31: 0 | C31: 45 | D31: 0 | E31: 45 | H31: 0 | I31: 0 | J31: 1 | K31: 1
A32: 0 | B32: 0 | C32: 45 | D32: 0 | E32: 45 | H32: 0 | I32: 0 | J32: 1 | K32: 1
A33: 0 | B33: 0 | C33: 56 | D33: 0 | E33: 56 | H33: 0 | I33: 0 | J33: 1 | K33: 1
A34: 0 | B34: 4 | C34: 20 | D34: 0 | E34: 24 | H34: 0 | I34: 1 | J34: 1 | K34: 1
A35: 0 | B35: 0 | C35: 15.5 | D35: 20 | E35: 35.5 | H35: 0 | I35: 0 | J35: 1 | K35: 1
A36: 0 | B36: 0 | C36: 141 | D36: 0 | E36: 141 | H36: 0 | I36: 0 | J36: 1 | K36: 1
A37: 0 | B37: 0 | C37: 24 | D37: 0 | E37: 24 | H37: 0 | I37: 0 | J37: 1 | K37: 1
A38: 0 | B38: 0 | C38: 46 | D38: 0 | E38: 46 | H38: 0 | I38: 0 | J38: 1 | K38: 1
A39: 0 | B39: 29 | C39: 0 | D39: 14 | E39: 43 | H39: 0 | I39: 1 | J39: 0 | K39: 1
A40: 0 | B40: 22 | C40: 0 | D40: 49 | E40: 71 | H40: 0 | I40: 1 | J40: 0 | K40: 1
A41: 0 | B41: 0 | C41: 29 | D41: 0 | E41: 29 | H41: 0 | I41: 0 | J41: 1 | K41: 1
A42: 0 | B42: 0 | C42: 44 | D42: 0 | E42: 44 | H42: 0 | I42: 0 | J42: 1 | K42: 1
A43: 0 | B43: 119 | C43: 19 | D43: 0 | E43: 138 | H43: 0 | I43: 1 | J43: 1 | K43: 0
A44: 0 | B44: 3 | C44: 43 | D44: 0 | E44: 46 | H44: 0 | I44: 1 | J44: 1 | K44: 0
A45: 0 | B45: 0 | C45: 55 | D45: 0 | E45: 55 | H45: 0 | I45: 0 | J45: 1 | K45: 0
A46: 0 | B46: 50 | C46: 25 | D46: 57 | E46: 132 | H46: 0 | I46: 1 | J46: 1 | K46: 0
A47: 0 | B47: 0 | C47: 55 | D47: 0 | E47: 55 | H47: 0 | I47: 0 | J47: 1 | K47: 0
A48: 0 | B48: 0 | C48: 22 | D48: 15.5 | E48: 37.5 | H48: 0 | I48: 0 | J48: 1 | K48: 0
A49: 0 | B49: 96 | C49: 19 | D49: 71 | E49: 186 | H49: 0 | I49: 1 | J49: 1 | K49: 0
A50: 0 | B50: 0 | C50: 44 | D50: 0 | E50: 44 | H50: 0 | I50: 0 | J50: 1 | K50: 0
A51: 0 | B51: 4 | C51: 61 | D51: 54 | E51: 119 | H51: 0 | I51: 1 | J51: 1 | K51: 0
A52: 0 | B52: 0 | C52: 18 | D52: 0 | E52: 18 | H52: 0 | I52: 0 | J52: 1 | K52: 0
A53: 0 | B53: 1 | C53: 0 | D53: 109 | E53: 110 | H53: 0 | I53: 1 | J53: 0 | K53: 0
A54: 0 | B54: 1 | C54: 0 | D54: 109 | E54: 110 | H54: 0 | I54: 1 | J54: 0 | K54: 0
A55: 0 | B55: 5 | C55: 16 | D55: 0 | E55: 21 | H55: 0 | I55: 1 | J55: 1 | K55: 0
A56: 0 | B56: 0 | C56: 20 | D56: 0 | E56: 20 | H56: 0 | I56: 0 | J56: 1 | K56: 0
A57: 0 | B57: 0 | C57: 79 | D57: 0 | E57: 79 | H57: 0 | I57: 0 | J57: 1 | K57: 0
A58: 0 | B58: 2 | C58: 36 | D58: 0 | E58: 38 | H58: 0 | I58: 1 | J58: 1 | K58: 0
A59: 0 | B59: 96 | C59: 0 | D59: 9 | E59: 105 | H59: 0 | I59: 1 | J59: 0 | K59: 0
A60: 0 | B60: 178 | C60: 0 | D60: 47 | E60: 225 | H60: 0 | I60: 1 | J60: 0 | K60: 0
A61: 0 | B61: 25 | C61: 0 | D61: 19 | E61: 44 | H61: 0 | I61: 1 | J61: 0 | K61: 0
A62: 0 | B62: 1 | C62: 0 | D62: 109 | E62: 110 | H62: 0 | I62: 1 | J62: 0 | K62: 0
A63: 0 | B63: 91.5 | C63: 35.5 | D63: 151 | E63: 278 | H63: 0 | I63: 1 | J63: 1 | K63: 0
A64: 0 | B64: 47 | C64: 0 | D64: 15 | E64: 62 | H64: 0 | I64: 1 | J64: 0 | K64: 0
A65: 0 | B65: 0 | C65: 20 | D65: 0 | E65: 20 | H65: 0 | I65: 0 | J65: 1 | K65: 0
A66: 0 | B66: 4.5 | C66: 96 | D66: 0 | E66: 100.5 | H66: 0 | I66: 1 | J66: 1 | K66: 0
A67: 0 | B67: 12 | C67: 0 | D67: 46 | E67: 58 | H67: 0 | I67: 1 | J67: 0 | K67: 0
A68: 0 | B68: 0 | C68: 42 | D68: 0 | E68: 42 | H68: 0 | I68: 0 | J68: 1 | K68: 0
A69: 0 | B69: 0 | C69: 47 | D69: 0 | E69: 47 | H69: 0 | I69: 0 | J69: 1 | K69: 0
A70: 0 | B70: 95 | C70: 12 | D70: 5 | E70: 112 | H70: 0 | I70: 1 | J70: 1 | K70: 0
A71: 0 | B71: 29 | C71: 19 | D71: 20 | E71: 68 | H71: 0 | I71: 1 | J71: 1 | K71: 0
A72: 0 | B72: 0 | C72: 117 | D72: 0 | E72: 117 | H72: 0 | I72: 0 | J72: 1 | K72: 0
A73: 0 | B73: 59 | C73: 0 | D73: 32 | E73: 91 | H73: 0 | I73: 1 | J73: 0 | K73: 0
A74: 0 | B74: 48 | C74: 0 | D74: 46 | E74: 94 | H74: 0 | I74: 1 | J74: 0 | K74: 0
H75: 0 | I75: 1 | J75: 1 | K75: 0
H76: 0 | I76: 0 | J76: 1 | K76: 0
H77: 0 | I77: 0 | J77: 0 | K77: 0
H78: 0 | I78: 0 | J78: 0 | K78: 0
H79: 0 | I79: 0 | J79: 0 | K79: 0
H80: 0 | I80: 0 | J80: 0 | K80: 0
H81: 0 | I81: 0 | J81: 0 | K81: 0
H82: 0 | I82: 0 | J82: 0 | K82: 0
H83: 0 | I83: 0 | J83: 0 | K83: 0
H84: 0 | I84: 0 | J84: 0 | K84: 0
H85: 0 | I85: 0 | J85: 0 | K85: 0
H86: 0 | I86: 0 | J86: 0 | K86: 0
H87: 0 | I87: 0 | J87: 0 | K87: 0
H88: 0 | I88: 0 | J88: 0 | K88: 0
H89: 0 | I89: 0 | J89: 0 | K89: 0
H90: 0 | I90: 0 | J90: 0 | K90: 0
H91: 0 | I91: 0 | J91: 0 | K91: 0
H92: 0 | I92: 0 | J92: 0 | K92: 0
H93: 0 | I93: 0 | J93: 0 | K93: 0
H94: 0 | I94: 0 | J94: 0 | K94: 0
H95: 0 | I95: 0 | J95: 0 | K95: 0
H96: 0 | I96: 0 | J96: 0 | K96: 0
H97: 0 | I97: 0 | J97: 0 | K97: 0
H98: 0 | I98: 0 | J98: 0 | K98: 0
H99: 0 | I99: 0 | J99: 0 | K99: 0
H100: 0 | I100: 0 | J100: 0 | K100: 0
H101: 0 | I101: 0 | J101: 0 | K101: 0
H102: 0 | I102: 0 | J102: 0 | K102: 0

Sheet diabetes magement
A1: groups(1case 2control) | B1: dage of diagnosis | C1: control method(1diet&exercise,2insulin) | D1: OGTTas | E1: OGTTbefore | F1: RBG
A2: 1 | B2: 12 | C2: 1 | D2: 1 | E2: 1 | F2: 1
A3: 1 | B3: 13 | C3: 1 | D3: 1 | E3: 1 | F3: 1
A4: 1 | B4: 7 | C4: 2 | D4: 1 | E4: 1 | F4: 1
A5: 1 | B5: 24 | C5: 1 | D5: 1 | E5: 1 | F5: 1
A6: 1 | B6: 15 | C6: 1 | D6: 1 | E6: 1 | F6: 1
A7: 1 | B7: 26 | C7: 2 | D7: 1 | E7: 1 | F7: 1
A8: 1 | B8: 25 | C8: 1 | D8: 1 | E8: 1 | F8: 1
A9: 1 | B9: 13 | C9: 1 | D9: 1 | E9: 1 | F9: 1
A10: 1 | B10: 18 | C10: 1 | D10: 1 | E10: 1 | F10: 1
A11: 1 | B11: 13 | C11: 1 | D11: 1 | E11: 1 | F11: 1
A12: 1 | B12: 16 | C12: 1 | D12: 1 | E12: 1 | F12: 1
A13: 1 | B13: 16 | C13: 1 | D13: 1 | E13: 1 | F13: 1
A14: 1 | B14: 16 | C14: 1 | D14: 1 | E14: 1 | F14: 1
A15: 1 | B15: 23 | C15: 1 | D15: 1 | E15: 0 | F15: 1
A16: 1 | B16: 16 | C16: 1 | D16: 0 | E16: 0 | F16: 1
A17: 1 | B17: 7 | C17: 2 | D17: 0 | E17: 0 | F17: 0
A18: 1 | B18: 26 | C18: 1 | D18: 0 | E18: 0 | F18: 0
A19: 1 | B19: 18 | C19: 1 | D19: 0 | E19: 0 | F19: 0
A20: 0 | B20: 12 | C20: 1 | D20: 1 | E20: 1 | F20: 1
A21: 0 | B21: 26 | C21: 1 | D21: 1 | E21: 1 | F21: 1
A22: 0 | B22: 26 | C22: 1 | D22: 1 | E22: 1 | F22: 1
A23: 0 | B23: 26 | C23: 1 | D23: 1 | E23: 1 | F23: 1
A24: 0 | B24: 10 | C24: 2 | D24: 1 | E24: 1 | F24: 1
A25: 0 | B25: 19 | C25: 1 | D25: 1 | E25: 1 | F25: 1
A26: 0 | B26: 19 | C26: 1 | D26: 1 | E26: 1 | F26: 1
A27: 0 | B27: 18 | C27: 1 | D27: 1 | E27: 1 | F27: 1
A28: 0 | B28: 26 | C28: 1 | D28: 1 | E28: 1 | F28: 1
A29: 0 | B29: 23 | C29: 1 | D29: 0 | E29: 1 | F29: 1
A30: 0 | B30: 22 | C30: 2 | D30: 0 | E30: 1 | F30: 1
A31: 0 | B31: 12 | C31: 2 | D31: 0 | E31: 1 | F31: 1
A32: 0 | B32: 11 | C32: 1 | D32: 0 | E32: 1 | F32: 1
A33: 0 | B33: 25 | C33: 1 | D33: 0 | E33: 0 | F33: 1
A34: 0 | B34: 12 | C34: 1 | D34: 0 | E34: 0 | F34: 1
A35: 0 | C35: 1 | D35: 0 | E35: 0 | F35: 0

Sheet Raw data
A1: Division of hospital | B1: Department | C1: record number | D1: Gendar | E1: birthdate | F1: age | G1: birth weight | H1: admition date | I1: discharge date | J1: hospital duration | K1: diagnosis | L1: diagnosis | M1: diagnosis | N1: diagnosis | O1: diagnosis | P1: diagnosis | Q1: diagnosis | R1: diagnosis | S1: diagnosis | T1: diagnosis | U1: diagnosis | V1: Division of hospital | W1: Department | X1: record number | Y1: Gendar | Z1: age at pregnancy | AA1: gestational age | AB1: admition date | AC1: discharge date | AD1: admition date | AE1: discharge date | AF1: hospital duration | AG1: diagnosis | AH1: diagnosis | AI1: diagnosis | AJ1: diagnosis | AK1: diagnosis | AL1: diagnosis | AM1: diagnosis | AN1: diagnosis | AO1: diagnosis | AP1: diagnosis | AQ1: diagnosis | AR1: Infant1 | AS1: birth date | AT1: delivery methods | AU1: gender | AV1: birthweight | AW1: Infant2 | AX1: birth date | AY1: delivery methods | AZ1: gender | BA1: birthweight
A2: 黄浦 | B2: 新生儿室hp | C2: 1000021-02y | D2: 男 | E2: 20190530 | F2: 5/30 | G2: 3260 | H2: 2019-06-04T09:55:57 | I2: 2019-06-06T08:00:00 | J2: 2 | K2: 新生儿高胆红素血症 | L2: 妊娠糖尿病母亲婴儿 | M2: 试管婴儿（新生儿） | N2: 双胎之小 | O2: NULL | P2: NULL | Q2: NULL | R2: NULL | S2: NULL | T2: NULL | U2: NULL | V2: 黄浦 | W2: 二病房 | X2: 1000021 | Y2: 女 | Z2: 31 | AA2: 37 | AB2: 2 | AC2: 2 | AD2: 2019-05-29T09:45:03 | AE2: 2019-06-04T13:00:00 | AF2: 6 | AG2: 双绒毛膜双羊膜囊双胎 | AH2: 妊娠期糖尿病(A1) | AI2: 臀先露 | AJ2: 妊娠合并低蛋白血症 | AK2: GBS阳性 | AL2: 妊娠合并多囊卵巢综合征 | AM2: 多胎分娩均经剖宫产术 | AN2: 试管婴儿，双胎活产 | AO2: NULL | AP2: NULL | AQ2: NULL | AR2: 1 | AS2: 2019-05-30T10:29:00 | AT2: 剖腹 | AU2: 女 | AV2: 2710 | AW2: 2 | AX2: 2019-05-30T10:30:00 | AY2: 剖腹 | AZ2: 男 | BA2: 3260
A3: 黄浦 | B3: 新生儿室hp | C3: 1000021-02z | D3: 女 | E3: 20190530 | F3: 5/30 | G3: 2710 | H3: 2019-06-04T09:54:42 | I3: 2019-06-06T08:00:00 | J3: 2 | K3: 新生儿高胆红素血症 | L3: 试管婴儿（新生儿） | M3: 双胎之大 | N3: 妊娠糖尿病母亲婴儿 | O3: NULL | P3: NULL | Q3: NULL | R3: NULL | S3: NULL | T3: NULL | U3: NULL | V3: 黄浦 | W3: 二病房 | X3: 1000021 | Y3: 女 | Z3: 31 | AA3: 37 | AB3: 2 | AC3: 2 | AD3: 2019-05-29T09:45:03 | AE3: 2019-06-04T13:00:00 | AF3: 6 | AG3: 双绒毛膜双羊膜囊双胎 | AH3: 妊娠期糖尿病(A1) | AI3: 臀先露 | AJ3: 妊娠合并低蛋白血症 | AK3: GBS阳性 | AL3: 妊娠合并多囊卵巢综合征 | AM3: 多胎分娩均经剖宫产术 | AN3: 试管婴儿，双胎活产 | AO3: NULL | AP3: NULL | AQ3: NULL | AR3: 1 | AS3: 2019-05-30T10:29:00 | AT3: 剖腹 | AU3: 女 | AV3: 2710 | AW3: 2 | AX3: 2019-05-30T10:30:00 | AY3: 剖腹 | AZ3: 男 | BA3: 3260
A4: 杨浦 | B4: 新生儿室（9楼） | C4: 1000232-02z | D4: 男 | E4: 20181106 | F4: 3/30 | G4: 3650 | H4: 2018-11-09T09:38:51 | I4: 2018-11-11T10:00:00 | J4: 1 | K4: 新生儿高胆红素血症 | L4: 染色体异常 | M4: 产伤引起的头颅血肿 | N4: NULL | O4: NULL | P4: NULL | Q4: NULL | R4: NULL | S4: NULL | T4: NULL | U4: NULL | V4: 杨浦 | W4: 25病房 | X4: 1000232 | Y4: 女 | Z4: 29 | AA4: 40 | AB4: 2 | AC4: 1 | AD4: 2018-11-04T09:42:06 | AE4: 2018-11-09T08:00:00 | AF4: 5 | AG4: Ⅰ度房室传导阻滞 | AH4: 妊娠合并人类乳头状瘤病毒感染 | AI4: 产程和分娩并发胎儿应激反应的其他证据 | AJ4: 头位顺产 | AK4: 贫血并发于妊娠、分娩和产褥期 | AL4: 球拍状胎盘 | AM4: 单一活产 | AN4: NULL | AO4: NULL | AP4: NULL | AQ4: NULL | AR4: 1 | AS4: 2018-11-06T13:53:00 | AT4: 自然 | AU4: 男 | AV4: 3650 | AW4: NULL | AX4: NULL | AY4: NULL | AZ4: NULL | BA4: NULL
A5: 杨浦 | B5: 新生儿室（9楼） | C5: 1000366-02Z | D5: 男 | E5: 20181218 | G5: 3060 | H5: 2018-12-18T03:39:54 | I5: 2018-12-18T10:30:00 | J5: 1 | K5: 上消化道先天性畸形 | L5: 新生儿湿肺 | M5: 特发于围生期的其他特指感染 | N5: NULL | O5: NULL | P5: NULL | Q5: NULL | R5: NULL | S5: NULL | T5: NULL | U5: NULL | V5: 杨浦 | W5: 26病房 | X5: 1000366 | Y5: 女 | Z5: 27 | AA5: 37 | AB5: 3 | AC5: 1 | AD5: 2018-12-17T10:05:27 | AE5: 2018-12-20T08:00:00 | AF5: 2 | AG5: 胎膜早破 | AH5: 急性胎儿宫内窘迫 | AI5: 脐带扭转 | AJ5: 低位产钳术 | AK5: 发热 | AL5: 主要为性传播模式感染的病原携带者 | AM5: 妊娠合并宫颈非典型性增生 | AN5: 单一活产 | AO5: NULL | AP5: NULL | AQ5: NULL | AR5: 1 | AS5: 2018-12-18T03:10:00 | AT5: 产钳 | AU5: 男 | AV5: 3060 | AW5: NULL | AX5: NULL | AY5: NULL | AZ5: NULL | BA5: NULL
A6: 杨浦 | B6: 新生儿室（9楼） | C6: 1000418-02z | D6: 男 | E6: 20190402 | F6: 2/30 | G6: 3490 | H6: 2019-04-04T09:29:22 | I6: 2019-04-08T10:00:00 | J6: 4 | K6: 新生儿高胆红素血症 | L6: 胎儿和新生儿的ABO同种免疫 | M6: 新生儿特指感染 | N6: NULL | O6: NULL | P6: NULL | Q6: NULL | R6: NULL | S6: NULL | T6: NULL | U6: NULL | V6: 杨浦 | W6: 23病房 | X6: 1000418 | Y6: 女 | Z6: 32 | AA6: 39 | AB6: 2 | AC6: 1 | AD6: 2019-04-01T23:24:40 | AE6: 2019-04-05T08:00:00 | AF6: 4 | AG6: 胎儿NT(NF)增厚 | AH6: 头位顺产 | AI6: 单一活产 | AJ6: 戊型肝炎抗体阳性 | AK6: NULL | AL6: NULL | AM6: NULL | AN6: NULL | AO6: NULL | AP6: NULL | AQ6: NULL | AR6: 1 | AS6: 2019-04-02T08:17:00 | AT6: 自然 | AU6: 男 | AV6: 3490 | AW6: NULL | AX6: NULL | AY6: NULL | AZ6: NULL | BA6: NULL
A7: 杨浦 | B7: 新生儿室（9楼） | C7: 1001002Z | D7: 男 | E7: 20170802 | F7: 3/30 | G7: 3370 | H7: 2017-08-05T09:46:00 | I7: 2017-08-15T15:00:00 | J7: 9 | K7: 新生儿高胆红素血症 | L7: 新生儿泌尿系感染 | M7: NULL | N7: NULL | O7: NULL | P7: NULL | Q7: NULL | R7: NULL | S7: NULL | T7: NULL | U7: NULL | V7: 杨浦 | W7: 22病房 | X7: 1001002 | Y7: 女 | Z7: 31 | AA7: 40 | AB7: 4 | AC7: 1 | AD7: 2017-08-02T09:47:35 | AE7: 2017-08-05T05:00:00 | AF7: 3 | AG7: 头位顺产 | AH7: 脐带绕颈 | AI7: 分娩时Ⅰ度会阴裂伤 | AJ7: 单胎活产 | AK7: NULL | AL7: NULL | AM7: NULL | AN7: NULL | AO7: NULL | AP7: NULL | AQ7: NULL | AR7: 1 | AS7: 2017-08-02T21:33:00 | AT7: 自然 | AU7: 男 | AV7: 3370 | AW7: NULL | AX7: NULL | AY7: NULL | AZ7: NULL | BA7: NULL
A8: 杨浦 | B8: 新生儿室（9楼） | C8: 1001009Z | D8: 男 | E8: 20171114 | F8: 2/30 | G8: 3320 | H8: 2017-11-16T13:42:00 | I8: 2017-11-20T15:00:00 | J8: 3 | K8: 新生儿特指感染 | L8: 新生儿高胆红素血症 | M8: NULL | N8: NULL | O8: NULL | P8: NULL | Q8: NULL | R8: NULL | S8: NULL | T8: NULL | U8: NULL | V8: 杨浦 | W8: 24病房 | X8: 1001009 | Y8: 女 | Z8: 31 | AA8: 40 | AB8: 1 | AC8: 1 | AD8: 2017-11-13T00:51:06 | AE8: 2017-11-17T08:00:17 | AF8: 4 | AG8: 低位产钳助产分娩 | AH8: 胎儿宫内窘迫 | AI8: 单胎活产 | AJ8: 产伤性宫颈裂伤 | AK8: NULL | AL8: NULL | AM8: NULL | AN8: NULL | AO8: NULL | AP8: NULL | AQ8: NULL | AR8: 1 | AS8: 2017-11-14T09:51:00 | AT8: 产钳 | AU8: 男 | AV8: 3320 | AW8: NULL | AX8: NULL | AY8: NULL | AZ8: NULL | BA8: NULL
A9: 杨浦 | B9: 新生儿室（9楼） | C9: 1001015Z | D9: 女 | E9: 20171007 | F9: 1/30 | G9: 2290 | H9: 2017-10-08T02:01:00 | I9: 2017-10-13T15:00:00 | J9: 5 | K9: 低出生体重儿 | L9: 胎儿生长缓慢 | M9: NULL | N9: NULL | O9: NULL | P9: NULL | Q9: NULL | R9: NULL | S9: NULL | T9: NULL | U9: NULL | V9: 杨浦 | W9: 22病房 | X9: 1001015 | Y9: 女 | Z9: 25 | AA9: 39 | AB9: 2 | AC9: 1 | AD9: 2017-10-05T10:53:11 | AE9: 2017-10-12T05:00:00 | AF9: 6 | AG9: 特指剖宫单胎分娩 | AH9: 妊娠合并高血压病 | AI9: 胎儿生长发育迟缓 | AJ9: 臀先露 | AK9: 胎膜早破 | AL9: 单胎活产 | AM9: NULL | AN9: NULL | AO9: NULL | AP9: NULL | AQ9: NULL | AR9: 1 | AS9: 2017-10-08T00:58:00 | AT9: 剖腹 | AU9: 女 | AV9: 2290 | AW9: NULL | AX9: NULL | AY9: NULL | AZ9: NULL | BA9: NULL
A10: 杨浦 | B10: 新生儿室（4楼） | C10: 1001024Z | D10: 男 | E10: 20170804 | G10: 4600 | H10: 2017-08-04T21:49:00 | I10: 2017-08-07T13:00:00 | J10: 3 | K10: 新生儿湿肺 | L10: 特大婴儿 | M10: 新生儿红细胞增多症 | N10: 新生儿高胆红素血症 | O10: 上臂神经损伤 | P10: NULL | Q10: NULL | R10: NULL | S10: NULL | T10: NULL | U10: NULL | V10: 杨浦 | W10: 22病房 | X10: 1001024 | Y10: 女 | Z10: 34 | AA10: 39 | AB10: 3 | AC10: 1 | AD10: 2017-08-02T12:51:01 | AE10: 2017-08-07T05:00:00 | AF10: 5 | AG10: 头位顺产 | AH10: 妊娠合并高血压病 | AI10: 肩先露难产 | AJ10: 妊娠合并巨大儿 | AK10: 分娩时Ⅰ度会阴裂伤 | AL10: 单胎活产 | AM10: NULL | AN10: NULL | AO10: NULL | AP10: NULL | AQ10: NULL | AR10: 1 | AS10: 2017-08-04T04:33:00 | AT10: 自然 | AU10: 男 | AV10: 4600 | AW10: NULL | AX10: NULL | AY10: NULL | AZ10: NULL | BA10: NULL
A11: 杨浦 | B11: 新生儿室（9楼） | C11: 1001033-02z | D11: 男 | E11: 20190515 | F11: 3/30 | G11: 3080 | H11: 2019-05-18T10:13:47 | I11: 2019-05-20T16:00:00 | J11: 2 | K11: 新生儿高胆红素血症 | L11: 房间隔缺损 | M11: 晚期早产儿 | N11: NULL | O11: NULL | P11: NULL | Q11: NULL | R11: NULL | S11: NULL | T11: NULL | U11: NULL | V11: 杨浦 | W11: 25病房 | X11: 1001033 | Y11: 女 | Z11: 24 | AA11: 35 | AB11: 2 | AC11: 1 | AD11: 2019-04-22T15:17:12 | AE11: 2019-05-19T08:00:00 | AF11: 26 | AG11: 未入产程的胎膜早破，37周后 | AH11: 低置胎盘 | AI11: 早产不伴有自然临产 | AJ11: 脐带绕颈 | AK11: 妊娠合并多囊卵巢综合征 | AL11: 头位顺产 | AM11: 单一活产 | AN11: NULL | AO11: NULL | AP11: NULL | AQ11: NULL | AR11: 1 | AS11: 2019-05-15T12:12:00 | AT11: 剖腹 | AU11: 男 | AV11: 3080 | AW11: NULL | AX11: NULL | AY11: NULL | AZ11: NULL | BA11: NULL
A12: 杨浦 | B12: 新生儿室（9楼） | C12: 1001071Z | D12: 女 | E12: 20170902 | F12: 3/30 | G12: 2700 | H12: 2017-09-05T10:04:00 | I12: 2017-09-07T10:00:00 | J12: 2 | K12: 新生儿高胆红素血症 | L12: NULL | M12: NULL | N12: NULL | O12: NULL | P12: NULL | Q12: NULL | R12: NULL | S12: NULL | T12: NULL | U12: NULL | V12: 杨浦 | W12: 22病房 | X12: 1001071 | Y12: 女 | Z12: 34 | AA12: 37 | AB12: 1 | AC12: 1 | AD12: 2017-09-01T17:56:00 | AE12: 2017-09-06T05:00:00 | AF12: 5 | AG12: 选择性剖宫分娩 | AH12: 胎膜早破 | AI12: 胎儿宫内窘迫 | AJ12: 子痫前期 | AK12: 单胎活产 | AL12: NULL | AM12: NULL | AN12: NULL | AO12: NULL | AP12: NULL | AQ12: NULL | AR12: 1 | AS12: 2017-09-02T04:53:00 | AT12: 剖腹 | AU12: 女 | AV12: 2700 | AW12: NULL | AX12: NULL | AY12: NULL | AZ12: NULL | BA12: NULL
A13: 杨浦 | B13: 新生儿室（9楼） | C13: 1001077Z | D13: 女 | E13: 20170804 | F13: 2/30 | G13: 3410 | H13: 2017-08-06T09:41:00 | I13: 2017-08-09T14:00:00 | J13: 3 | K13: 新生儿高胆红素血症 | L13: 新生儿ABO溶血症 | M13: NULL | N13: NULL | O13: NULL | P13: NULL | Q13: NULL | R13: NULL | S13: NULL | T13: NULL | U13: NULL | V13: 杨浦 | W13: 23病房 | X13: 1001077 | Y13: 女 | Z13: 28 | AA13: 39 | AB13: 1 | AC13: 1 | AD13: 2017-08-03T11:33:00 | AE13: 2017-08-07T05:00:00 | AF13: 4 | AG13: 头位顺产 | AH13: 胎膜早破 | AI13: 球拍状胎盘 | AJ13: 单胎活产 | AK13: NULL | AL13: NULL | AM13: NULL | AN13: NULL | AO13: NULL | AP13: NULL | AQ13: NULL | AR13: 1 | AS13: 2017-08-04T10:59:00 | AT13: 自然 | AU13: 女 | AV13: 3410 | AW13: NULL | AX13: NULL | AY13: NULL | AZ13: NULL | BA13: NULL
A14: 杨浦 | B14: 新生儿室（9楼） | C14: 1001090Z | D14: 女 | E14: 20170817 | F14: 3/30 | G14: 3130 | H14: 2017-08-20T09:15:00 | I14: 2017-08-22T10:00:00 | J14: 1 | K14: 新生儿高胆红素血症 | L14: 产伤致新生儿头颅血肿 | M14: NULL | N14: NULL | O14: NULL | P14: NULL | Q14: NULL | R14: NULL | S14: NULL | T14: NULL | U14: NULL | V14: 杨浦 | W14: 23病房 | X14: 1001090 | Y14: 女 | Z14: 25 | AA14: 40 | AB14: 1 | AC14: 1 | AD14: 2017-08-14T08:29:31 | AE14: 2017-08-20T05:00:00 | AF14: 6 | AG14: 头位顺产 | AH14: 脐带绕颈 | AI14: 球拍状胎盘 | AJ14: 单胎活产 | AK14: NULL | AL14: NULL | AM14: NULL | AN14: NULL | AO14: NULL | AP14: NULL | AQ14: NULL | AR14: 1 | AS14: 2017-08-17T00:48:00 | AT14: 自然 | AU14: 女 | AV14: 3130 | AW14: NULL | AX14: NULL | AY14: NULL | AZ14: NULL | BA14: NULL
A15: 杨浦 | B15: 新生儿室（4楼） | C15: 1001092Z | D15: 男 | E15: 20170810 | G15: 3440 | H15: 2017-08-10T17:54:00 | I15: 2017-08-22T08:00:00 | J15: 12 | K15: 新生儿湿肺 | L15: 新生儿肺炎 | M15: 产伤致新生儿头颅血肿 | N15: NULL | O15: NULL | P15: NULL | Q15: NULL | R15: NULL | S15: NULL | T15: NULL | U15: NULL | V15: 杨浦 | W15: 25病房 | X15: 1001092 | Y15: 女 | Z15: 28 | AA15: 41 | AB15: 1 | AC15: 1 | AD15: 2017-08-03T13:51:59 | AE15: 2017-08-14T14:00:00 | AF15: 11 | AG15: 低位产钳助产分娩 | AH15: 胎儿宫内窘迫 | AI15: 脐带过短 | AJ15: 妊娠合并轻度贫血 | AK15: 单胎活产 | AL15: NULL | AM15: NULL | AN15: NULL | AO15: NULL | AP15: NULL | AQ15: NULL | AR15: 1 | AS15: 2017-08-10T14:41:00 | AT15: 产钳 | AU15: 男 | AV15: 3440 | AW15: NULL | AX15: NULL | AY15: NULL | AZ15: NULL | BA15: NULL
A16: 杨浦 | B16: 新生儿室（9楼） | C16: 1001093Z | D16: 女 | E16: 20170904 | F16: 4/30 | G16: 3600 | H16: 2017-09-08T09:48:00 | I16: 2017-09-10T10:00:00 | J16: 1 | K16: 新生儿高胆红素血症 | L16: 新生儿ABO溶血症 | M16: NULL | N16: NULL | O16: NULL | P16: NULL | Q16: NULL | R16: NULL | S16: NULL | T16: NULL | U16: NULL | V16: 杨浦 | W16: 25病房 | X16: 1001093 | Y16: 女 | Z16: 32 | AA16: 39 | AB16: 1 | AC16: 1 | AD16: 2017-09-02T10:36:29 | AE16: 2017-09-08T05:00:00 | AF16: 6 | AG16: 特指剖宫单胎分娩 | AH16: 单胎活产 | AI16: NULL | AJ16: NULL | AK16: NULL | AL16: NULL | AM16: NULL | AN16: NULL | AO16: NULL | AP16: NULL | AQ16: NULL | AR16: 1 | AS16: 2017-09-04T13:59:00 | AT16: 剖腹 | AU16: 女 | AV16: 3600 | AW16: NULL | AX16: NULL | AY16: NULL | AZ16: NULL | BA16: NULL
A17: 杨浦 | B17: 新生儿室（9楼） | C17: 1001099M | D17: 男 | E17: 20171012 | F17: 6/30 | G17: 4030 | H17: 2017-10-18T16:13:00 | I17: 2017-10-21T10:00:00 | J17: 3 | K17: 新生儿高胆红素血症 | L17: 特大婴儿 | M17: NULL | N17: NULL | O17: NULL | P17: NULL | Q17: NULL | R17: NULL | S17: NULL | T17: NULL | U17: NULL | V17: 杨浦 | W17: 21病房 | X17: 1001099 | Y17: 女 | Z17: 27 | AA17: 40 | AB17: 1 | AC17: 1 | AD17: 2017-10-12T07:03:07 | AE17: 2017-10-14T14:00:00 | AF17: 2 | AG17: 头位顺产 | AH17: 妊娠合并巨大儿 | AI17: 脐带绕颈 | AJ17: 单胎活产 | AK17: 宫颈产科裂伤 | AL17: NULL | AM17: NULL | AN17: NULL | AO17: NULL | AP17: NULL | AQ17: NULL | AR17: 1 | AS17: 2017-10-12T23:27:00 | AT17: 自然 | AU17: 男 | AV17: 4030 | AW17: NULL | AX17: NULL | AY17: NULL | AZ17: NULL | BA17: NULL
A18: 杨浦 | B18: 新生儿室（9楼） | C18: 1001104Z | D18: 男 | E18: 20170804 | F18: 2/30 | G18: 3210 | H18: 2017-08-06T09:52:00 | I18: 2017-08-09T14:00:00 | J18: 3 | K18: 新生儿高胆红素血症 | L18: NULL | M18: NULL | N18: NULL | O18: NULL | P18: NULL | Q18: NULL | R18: NULL | S18: NULL | T18: NULL | U18: NULL | V18: 杨浦 | W18: 23病房 | X18: 1001104 | Y18: 女 | Z18: 35 | AA18: 37 | AB18: 2 | AC18: 1 | AD18: 2017-08-03T20:20:00 | AE18: 2017-08-07T05:00:00 | AF18: 4 | AG18: 头位顺产 | AH18: 脐带绕颈 | AI18: 单胎活产 | AJ18: NULL | AK18: NULL | AL18: NULL | AM18: NULL | AN18: NULL | AO18: NULL | AP18: NULL | AQ18: NULL | AR18: 1 | AS18: 2017-08-04T06:18:00 | AT18: 自然 | AU18: 男 | AV18: 3210 | AW18: NULL | AX18: NULL | AY18: NULL | AZ18: NULL | BA18: NULL
A19: 杨浦 | B19: 新生儿室（9楼） | C19: 1001111Z | D19: 女 | E19: 20170804 | F19: 2/30 | G19: 3400 | H19: 2017-08-06T10:37:00 | I19: 2017-08-08T10:00:00 | J19: 2 | K19: 新生儿高胆红素血症 | L19: 产伤致新生儿头颅血肿 | M19: NULL | N19: NULL | O19: NULL | P19: NULL | Q19: NULL | R19: NULL | S19: NULL | T19: NULL | U19: NULL | V19: 杨浦 | W19: 25病房 | X19: 1001111 | Y19: 女 | Z19: 31 | AA19: 37 | AB19: 5 | AC19: 1 | AD19: 2017-08-04T04:49:00 | AE19: 2017-08-08T14:00:00 | AF19: 4 | AG19: 选择性剖宫分娩 | AH19: 胎膜早破 | AI19: 子宫憩室 | AJ19: 妊娠合并轻度贫血 | AK19: 单胎活产 | AL19: NULL | AM19: NULL | AN19: NULL | AO19: NULL | AP19: NULL | AQ19: NULL | AR19: 1 | AS19: 2017-08-04T08:21:00 | AT19: 剖腹 | AU19: 女 | AV19: 3400 | AW19: NULL | AX19: NULL | AY19: NULL | AZ19: NULL | BA19: NULL
A20: 杨浦 | B20: 新生儿室（9楼） | C20: 1001112Z | D20: 女 | E20: 20170806 | F20: 2/30 | G20: 3540 | H20: 2017-08-08T13:07:00 | I20: 2017-08-12T15:00:00 | J20: 4 | K20: 新生儿特指感染 | L20: 新生儿结膜炎 | M20: NULL | N20: NULL | O20: NULL | P20: NULL | Q20: NULL | R20: NULL | S20: NULL | T20: NULL | U20: NULL | V20: 杨浦 | W20: 24病房 | X20: 1001112 | Y20: 女 | Z20: 24 | AA20: 40 | AB20: 1 | AC20: 1 | AD20: 2017-08-04T08:10:00 | AE20: 2017-08-09T05:00:00 | AF20: 5 | AG20: 头位顺产 | AH20: 胎膜早破 | AI20: 妊娠合并轻度贫血 | AJ20: 单胎活产 | AK20: NULL | AL20: NULL | AM20: NULL | AN20: NULL | AO20: NULL | AP20: NULL | AQ20: NULL | AR20: 1 | AS20: 2017-08-06T19:27:00 | AT20: 自然 | AU20: 女 | AV20: 3540 | AW20: NULL | AX20: NULL | AY20: NULL | AZ20: NULL | BA20: NULL
A21: 杨浦 | B21: 新生儿室（4楼） | C21: 1001117Z | D21: 女 | E21: 20170920 | G21: 1760 | H21: 2017-09-20T11:03:00 | I21: 2017-10-14T08:00:00 | J21: 24 | K21: 足月小样低体重儿 | L21: 低出生体重儿 | M21: 新生儿湿肺 | N21: 新生儿高胆红素血症 | O21: 新生儿结膜炎 | P21: NULL | Q21: NULL | R21: NULL | S21: NULL | T21: NULL | U21: NULL | V21: 杨浦 | W21: 21病房 | X21: 1001117 | Y21: 女 | Z21: 28 | AA21: 37 | AB21: 1 | AC21: 1 | AD21: 2017-09-12T08:07:08 | AE21: 2017-09-25T05:00:00 | AF21: 12 | AG21: 特指剖宫单胎分娩 | AH21: 重度子痫前期 | AI21: 胎儿生长发育迟缓 | AJ21: 脐带绕颈 | AK21: 单胎活产 | AL21: NULL | AM21: NULL | AN21: NULL | AO21: NULL | AP21: NULL | AQ21: NULL | AR21: 1 | AS21: 2017-09-20T10:55:00 | AT21: 剖腹 | AU21: 女 | AV21: 1760 | AW21: NULL | AX21: NULL | AY21: NULL | AZ21: NULL | BA21: NULL
A22: 杨浦 | B22: 新生儿室（9楼） | C22: 1001150-04Z | D22: 男 | E22: 20180312 | F22: 2/30 | G22: 3240 | H22: 2018-03-14T09:21:00 | I22: 2018-03-18T10:00:00 | J22: 3 | K22: 新生儿高胆红素血症 | L22: NULL | M22: NULL | N22: NULL | O22: NULL | P22: NULL | Q22: NULL | R22: NULL | S22: NULL | T22: NULL | U22: NULL | V22: 杨浦 | W22: 25病房 | X22: 1001150 | Y22: 女 | Z22: 30 | AA22: 38 | AB22: 3 | AC22: 1 | AD22: 2018-03-08T13:26:20 | AE22: 2018-03-16T08:00:00 | AF22: 8 | AG22: 经选择性剖宫产术的分娩 | AH22: 妊娠合并甲状腺功能减退 | AI22: 妊娠期糖尿病 | AJ22: 脐带绕颈 | AK22: 单一活产 | AL22: NULL | AM22: NULL | AN22: NULL | AO22: NULL | AP22: NULL | AQ22: NULL | AR22: 1 | AS22: 2018-03-12T11:05:00 | AT22: 剖腹 | AU22: 男 | AV22: 3240 | AW22: NULL | AX22: NULL | AY22: NULL | AZ22: NULL | BA22: NULL
A23: 杨浦 | B23: 新生儿室（9楼） | C23: 1001167Z | D23: 男 | E23: 20170811 | F23: 3/30 | G23: 3080 | H23: 2017-08-14T09:33:00 | I23: 2017-08-16T10:00:00 | J23: 2 | K23: 新生儿高胆红素血症 | L23: NULL | M23: NULL | N23: NULL | O23: NULL | P23: NULL | Q23: NULL | R23: NULL | S23: NULL | T23: NULL | U23: NULL | V23: 杨浦 | W23: 23病房 | X23: 1001167 | Y23: 女 | Z23: 32 | AA23: 40 | AB23: 1 | AC23: 1 | AD23: 2017-08-04T11:56:56 | AE23: 2017-08-14T14:00:00 | AF23: 10 | AG23: 头位顺产 | AH23: 妊娠期糖尿病 | AI23: 发热 | AJ23: 单胎活产 | AK23: NULL | AL23: NULL | AM23: NULL | AN23: NULL | AO23: NULL | AP23: NULL | AQ23: NULL | AR23: 1 | AS23: 2017-08-11T00:24:00 | AT23: 自然 | AU23: 男 | AV23: 3080 | AW23: NULL | AX23: NULL | AY23: NULL | AZ23: NULL | BA23: NULL
A24: 杨浦 | B24: 新生儿室（9楼） | C24: 1001172Z | D24: 女 | E24: 20170810 | G24: 2390 | H24: 2017-08-10T17:09:00 | I24: 2017-08-14T10:00:00 | J24: 4 | K24: 低出生体重儿 | L24: NULL | M24: NULL | N24: NULL | O24: NULL | P24: NULL | Q24: NULL | R24: NULL | S24: NULL | T24: NULL | U24: NULL | V24: 杨浦 | W24: 23病房 | X24: 1001172 | Y24: 女 | Z24: 29 | AA24: 40 | AB24: 1 | AC24: 1 | AD24: 2017-08-04T13:15:23 | AE24: 2017-08-14T05:00:00 | AF24: 10 | AG24: 特指剖宫单胎分娩 | AH24: 羊水过少 | AI24: 羊水污染I度， | AJ24: 妊娠合并小样儿 | AK24: 脐带绕颈 | AL24: 单胎活产 | AM24: NULL | AN24: NULL | AO24: NULL | AP24: NULL | AQ24: NULL | AR24: 1 | AS24: 2017-08-10T16:25:00 | AT24: 剖腹 | AU24: 女 | AV24: 2390 | AW24: NULL | AX24: NULL | AY24: NULL | AZ24: NULL | BA24: NULL
A25: 杨浦 | B25: 新生儿室（9楼） | C25: 1001174Z | D25: 女 | E25: 20170810 | F25: 3/30 | G25: 3080 | H25: 2017-08-13T09:14:00 | I25: 2017-08-15T10:00:00 | J25: 2 | K25: 新生儿高胆红素血症 | L25: NULL | M25: NULL | N25: NULL | O25: NULL | P25: NULL | Q25: NULL | R25: NULL | S25: NULL | T25: NULL | U25: NULL | V25: 杨浦 | W25: 24病房 | X25: 1001174 | Y25: 女 | Z25: 24 | AA25: 39 | AB25: 1 | AC25: 1 | AD25: 2017-08-04T13:50:07 | AE25: 2017-08-13T05:00:00 | AF25: 9 | AG25: 头位顺产 | AH25: 脐带绕颈 | AI25: 单胎活产 | AJ25: NULL | AK25: NULL | AL25: NULL | AM25: NULL | AN25: NULL | AO25: NULL | AP25: NULL | AQ25: NULL | AR25: 1 | AS25: 2017-08-10T14:06:00 | AT25: 自然 | AU25: 女 | AV25: 3080 | AW25: NULL | AX25: NULL | AY25: NULL | AZ25: NULL | BA25: NULL
A26: 杨浦 | B26: 新生儿室（9楼） | C26: 1001176Z | D26: 男 | E26: 20171016 | G26: 3200 | H26: 2017-10-16T15:26:58 | I26: 2017-10-23T10:00:00 | J26: 7 | K26: 新生儿特指感染 | L26: 新生儿结膜炎 | M26: NULL | N26: NULL | O26: NULL | P26: NULL | Q26: NULL | R26: NULL | S26: NULL | T26: NULL | U26: NULL | V26: 杨浦 | W26: 24病房 | X26: 1001176 | Y26: 女 | Z26: 30 | AA26: 39 | AB26: 1 | AC26: 1 | AD26: 2017-10-13T09:04:00 | AE26: 2017-10-17T14:00:00 | AF26: 4 | AG26: 头位顺产 | AH26: 子痫前期 | AI26: 胎膜早破 | AJ26: 分娩时Ⅰ度会阴裂伤 | AK26: 单胎活产 | AL26: NULL | AM26: NULL | AN26: NULL | AO26: NULL | AP26: NULL | AQ26: NULL | AR26: 1 | AS26: 2017-10-14T13:35:00 | AT26: 自然 | AU26: 男 | AV26: 3200 | AW26: NULL | AX26: NULL | AY26: NULL | AZ26: NULL | BA26: NULL
A27: 杨浦 | B27: 新生儿室（4楼） | C27: 1001182Z | D27: 男 | E27: 20170815 | G27: 3040 | H27: 2017-08-15T12:13:00 | I27: 2017-08-19T14:00:00 | J27: 4 | K27: 新生儿湿肺 | L27: 新生儿红细胞增多症 | M27: 新生儿高胆红素血症 | N27: NULL | O27: NULL | P27: NULL | Q27: NULL | R27: NULL | S27: NULL | T27: NULL | U27: NULL | V27: 杨浦 | W27: 22病房 | X27: 1001182 | Y27: 女 | Z27: 30 | AA27: 38 | AB27: 4 | AC27: 1 | AD27: 2017-08-04T15:00:35 | AE27: 2017-08-19T05:00:00 | AF27: 15 | AG27: 特指剖宫单胎分娩 | AH27: 前置胎盘不伴出血 | AI27: 妊娠合并子宫瘢痕 | AJ27: 脐带绕颈 | AK27: 单胎活产 | AL27: 胎盘植入 | AM27: NULL | AN27: NULL | AO27: NULL | AP27: NULL | AQ27: NULL | AR27: 1 | AS27: 2017-08-15T11:01:00 | AT27: 剖腹 | AU27: 男 | AV27: 3040 | AW27: NULL | AX27: NULL | AY27: NULL | AZ27: NULL | BA27: NULL
A28: 杨浦 | B28: 新生儿室（9楼） | C28: 1001189Z | D28: 女 | E28: 20170805 | F28: 1/30 | G28: 2810 | H28: 2017-08-06T02:10:00 | I28: 2017-08-08T15:00:00 | J28: 2 | K28: 可疑疾病观察 | L28: NULL | M28: NULL | N28: NULL | O28: NULL | P28: NULL | Q28: NULL | R28: NULL | S28: NULL | T28: NULL | U28: NULL | V28: 杨浦 | W28: 22病房 | X28: 1001189 | Y28: 女 | Z28: 23 | AA28: 38 | AB28: 2 | AC28: 1 | AD28: 2017-08-05T00:57:00 | AE28: 2017-08-08T05:00:00 | AF28: 2 | AG28: 头位顺产 | AH28: 产程期间发热 | AI28: 妊娠合并高血压病 | AJ28: 脐带绕颈 | AK28: 单胎活产 | AL28: NULL | AM28: NULL | AN28: NULL | AO28: NULL | AP28: NULL | AQ28: NULL | AR28: 1 | AS28: 2017-08-06T01:20:00 | AT28: 自然 | AU28: 女 | AV28: 2810 | AW28: NULL | AX28: NULL | AY28: NULL | AZ28: NULL | BA28: NULL
A29: 杨浦 | B29: 新生儿室（9楼） | C29: 1001200Z | D29: 男 | E29: 20170806 | F29: 2/30 | G29: 3190 | H29: 2017-08-08T13:05:00 | I29: 2017-08-12T15:00:00 | J29: 4 | K29: 新生儿特指感染 | L29: 新生儿高胆红素血症 | M29: 新生儿ABO溶血症 | N29: NULL | O29: NULL | P29: NULL | Q29: NULL | R29: NULL | S29: NULL | T29: NULL | U29: NULL | V29: 杨浦 | W29: 23病房 | X29: 1001200 | Y29: 女 | Z29: 34 | AA29: 38 | AB29: 2 | AC29: 1 | AD29: 2017-08-05T09:01:00 | AE29: 2017-08-09T05:00:00 | AF29: 3 | AG29: 头位顺产 | AH29: 胎膜早破 | AI29: 发热 | AJ29: 胎儿宫内窘迫 | AK29: 单胎活产 | AL29: NULL | AM29: NULL | AN29: NULL | AO29: NULL | AP29: NULL | AQ29: NULL | AR29: 1 | AS29: 2017-08-06T17:33:00 | AT29: 自然 | AU29: 男 | AV29: 3190 | AW29: NULL | AX29: NULL | AY29: NULL | AZ29: NULL | BA29: NULL
A30: 杨浦 | B30: 新生儿室（4楼） | C30: 1001205Z | D30: 男 | E30: 20170804 | F30: 3/30 | G30: 3550 | H30: 2017-08-07T12:00:00 | I30: 2017-08-07T12:00:00 | J30: 1 | K30: 新生儿肺不张 | L30: 新生儿高胆红素血症 | M30: 先天性肺发育不全 | N30: NULL | O30: NULL | P30: NULL | Q30: NULL | R30: NULL | S30: NULL | T30: NULL | U30: NULL | V30: NULL | W30: NULL | X30: NULL | Y30: NULL | Z30: NULL | AA30: NULL | AB30: NULL | AC30: NULL | AD30: NULL | AE30: NULL | AF30: NULL | AG30: NULL | AH30: NULL | AI30: NULL | AJ30: NULL | AK30: NULL | AL30: NULL | AM30: NULL | AN30: NULL | AO30: NULL | AP30: NULL | AQ30: NULL | AR30: NULL | AS30: NULL | AT30: NULL | AU30: NULL | AV30: NULL | AW30: NULL | AX30: NULL | AY30: NULL | AZ30: NULL | BA30: NULL
A31: 杨浦 | B31: 新生儿室（9楼） | C31: 1001206Z | D31: 女 | E31: 20170830 | F31: 3/30 | G31: 2950 | H31: 2017-09-02T11:20:00 | I31: 2017-09-06T10:00:00 | J31: 4 | K31: 新生儿高胆红素血症 | L31: NULL | M31: NULL | N31: NULL | O31: NULL | P31: NULL | Q31: NULL | R31: NULL | S31: NULL | T31: NULL | U31: NULL | V31: 杨浦 | W31: 24病房 | X31: 1001206 | Y31: 女 | Z31: 30 | AA31: 37 | AB31: 1 | AC31: 1 | AD31: 2017-08-29T12:48:22 | AE31: 2017-09-02T12:00:00 | AF31: 4 | AG31: 头位顺产 | AH31: 单胎活产 | AI31: NULL | AJ31: NULL | AK31: NULL | AL31: NULL | AM31: NULL | AN31: NULL | AO31: NULL | AP31: NULL | AQ31: NULL | AR31: 1 | AS31: 2017-08-30T16:24:00 | AT31: 自然 | AU31: 女 | AV31: 2950 | AW31: NULL | AX31: NULL | AY31: NULL | AZ31: NULL | BA31: NULL
A32: 杨浦 | B32: 新生儿室（9楼） | C32: 1001209Z | D32: 男 | E32: 20171014 | F32: 3/30 | G32: 3290 | H32: 2017-10-17T10:09:00 | I32: 2017-10-19T10:00:00 | J32: 2 | K32: 新生儿高胆红素血症 | L32: 新生儿结膜炎 | M32: NULL | N32: NULL | O32: NULL | P32: NULL | Q32: NULL | R32: NULL | S32: NULL | T32: NULL | U32: NULL | V32: 杨浦 | W32: 21病房 | X32: 1001209 | Y32: 女 | Z32: 31 | AA32: 39 | AB32: 2 | AC32: 1 | AD32: 2017-10-12T08:59:12 | AE32: 2017-10-18T05:00:00 | AF32: 6 | AG32: 头位顺产 | AH32: 脐带绕颈 | AI32: 产后尿潴留 | AJ32: 单胎活产 | AK32: NULL | AL32: NULL | AM32: NULL | AN32: NULL | AO32: NULL | AP32: NULL | AQ32: NULL | AR32: 1 | AS32: 2017-10-14T17:44:00 | AT32: 自然 | AU32: 男 | AV32: 3290 | AW32: NULL | AX32: NULL | AY32: NULL | AZ32: NULL | BA32: NULL
A33: 杨浦 | B33: 新生儿室（9楼） | C33: 1001213Z | D33: 男 | E33: 20170806 | F33: 3/30 | G33: 3280 | H33: 2017-08-09T08:58:00 | I33: 2017-08-10T10:30:00 | J33: 1 | K33: 新生儿高胆红素血症 | L33: NULL | M33: NULL | N33: NULL | O33: NULL | P33: NULL | Q33: NULL | R33: NULL | S33: NULL | T33: NULL | U33: NULL | V33: 杨浦 | W33: 25病房 | X33: 1001213 | Y33: 女 | Z33: 29 | AA33: 38 | AB33: 5 | AC33: 1 | AD33: 2017-08-06T02:33:00 | AE33: 2017-08-09T05:00:00 | AF33: 3 | AG33: 头位顺产 | AH33: 胎膜早破 | AI33: 脐带绕颈 | AJ33: 分娩时Ⅰ度会阴裂伤 | AK33: 单胎活产 | AL33: NULL | AM33: NULL | AN33: NULL | AO33: NULL | AP33: NULL | AQ33: NULL | AR33: 1 | AS33: 2017-08-06T08:03:00 | AT33: 自然 | AU33: 男 | AV33: 3280 | AW33: NULL | AX33: NULL | AY33: NULL | AZ33: NULL | BA33: NULL
A34: 杨浦 | B34: 新生儿室（9楼） | C34: 1001218Z | D34: 女 | E34: 20170806 | F34: 2/30 | G34: 2930 | H34: 2017-08-08T12:54:00 | I34: 2017-08-11T10:00:00 | J34: 3 | K34: 新生儿特指感染 | L34: NULL | M34: NULL | N34: NULL | O34: NULL | P34: NULL | Q34: NULL | R34: NULL | S34: NULL | T34: NULL | U34: NULL | V34: 杨浦 | W34: 21病房 | X34: 1001218 | Y34: 女 | Z34: 38 | AA34: 38 | AB34: 3 | AC34: 1 | AD34: 2017-08-06T08:26:28 | AE34: 2017-08-08T14:00:00 | AF34: 2 | AG34: 头位顺产 | AH34: 高龄初产妇妊娠监督 | AI34: 急产 | AJ34: 分娩时Ⅰ度会阴裂伤 | AK34: 妊娠合并尖锐湿疣 | AL34: 单胎活产 | AM34: NULL | AN34: NULL | AO34: NULL | AP34: NULL | AQ34: NULL | AR34: 1 | AS34: 2017-08-06T16:16:00 | AT34: 自然 | AU34: 女 | AV34: 2930 | AW34: NULL | AX34: NULL | AY34: NULL | AZ34: NULL | BA34: NULL
A35: 杨浦 | B35: 新生儿室（4楼） | C35: 1001244Z | D35: 女 | E35: 20170904 | G35: 2570 | H35: 2017-09-04T16:20:00 | I35: 2017-09-11T08:00:00 | J35: 7 | K35: 新生儿湿肺 | L35: 早产儿 | M35: 新生儿高胆红素血症 | N35: NULL | O35: NULL | P35: NULL | Q35: NULL | R35: NULL | S35: NULL | T35: NULL | U35: NULL | V35: 杨浦 | W35: 21病房 | X35: 1001244 | Y35: 女 | Z35: 34 | AA35: 33 | AB35: 3 | AC35: 1 | AD35: 2017-09-04T12:58:00 | AE35: 2017-09-07T14:00:00 | AF35: 3 | AG35: 选择性剖宫分娩 | AH35: 妊娠合并甲状腺机能亢进 | AI35: 妊娠合并宫颈息肉 | AJ35: 胎膜早破 | AK35: 早产不伴自然临产 | AL35: 单胎活产 | AM35: NULL | AN35: NULL | AO35: NULL | AP35: NULL | AQ35: NULL | AR35: 1 | AS35: 2017-09-04T16:13:00 | AT35: 剖腹 | AU35: 女 | AV35: 2570 | AW35: NULL | AX35: NULL | AY35: NULL | AZ35: NULL | BA35: NULL
A36: 杨浦 | B36: 新生儿室（9楼） | C36: 1001247Z | D36: 女 | E36: 20170920 | G36: 3410 | H36: 2017-09-20T21:06:00 | I36: 2017-09-25T14:00:00 | J36: 5 | K36: 新生儿高胆红素血症 | L36: NULL | M36: NULL | N36: NULL | O36: NULL | P36: NULL | Q36: NULL | R36: NULL | S36: NULL | T36: NULL | U36: NULL | V36: 杨浦 | W36: 21病房 | X36: 1001247 | Y36: 女 | Z36: 31 | AA36: 41 | AB36: 1 | AC36: 1 | AD36: 2017-09-18T15:27:59 | AE36: 2017-09-24T05:00:00 | AF36: 6 | AG36: 特指剖宫单胎分娩 | AH36: 发热 | AI36: 羊水污染III度 | AJ36: 妊娠合并中度贫血 | AK36: 单胎活产 | AL36: NULL | AM36: NULL | AN36: NULL | AO36: NULL | AP36: NULL | AQ36: NULL | AR36: 1 | AS36: 2017-09-20T20:03:00 | AT36: 剖腹 | AU36: 女 | AV36: 3410 | AW36: NULL | AX36: NULL | AY36: NULL | AZ36: NULL | BA36: NULL
A37: 杨浦 | B37: 新生儿室（4楼） | C37: 1001304Z | D37: 女 | E37: 20170811 | G37: 2600 | H37: 2017-08-11T12:40:00 | I37: 2017-08-19T08:00:00 | J37: 8 | K37: 新生儿呼吸窘迫综合征 | L37: 新生儿ABO溶血症 | M37: 新生儿特指感染 | N37: 新生儿高胆红素血症 | O37: NULL | P37: NULL | Q37: NULL | R37: NULL | S37: NULL | T37: NULL | U37: NULL | V37: 杨浦 | W37: 22病房 | X37: 1001304 | Y37: 女 | Z37: 32 | AA37: 37 | AB37: 1 | AC37: 2 | AD37: 2017-08-07T10:49:13 | AE37: 2017-08-15T05:00:00 | AF37: 8 | AG37: 多胎剖宫分娩 | AH37: 双胎活产 | AI37: 妊娠蛋白尿 | AJ37: 人工授精 | AK37: 妊娠合并轻度贫血 | AL37: 脐带绕颈 | AM37: NULL | AN37: NULL | AO37: NULL | AP37: NULL | AQ37: NULL | AR37: 1 | AS37: 2017-08-11T09:41:00 | AT37: 剖腹 | AU37: 女 | AV37: 2600 | AW37: 2 | AX37: 2017-08-11T09:42:00 | AY37: 剖腹 | AZ37: 男 | BA37: 2640
A38: 杨浦 | B38: 新生儿室（9楼） | C38: 1001332-02Z | D38: 女 | E38: 20180209 | F38: 4/30 | G38: 3720 | H38: 2018-02-13T10:12:00 | I38: 2018-02-15T10:00:00 | J38: 2 | K38: 新生儿高胆红素血症 | L38: NULL | M38: NULL | N38: NULL | O38: NULL | P38: NULL | Q38: NULL | R38: NULL | S38: NULL | T38: NULL | U38: NULL | V38: 杨浦 | W38: 25病房 | X38: 1001332 | Y38: 女 | Z38: 19 | AA38: 41 | AB38: 1 | AC38: 1 | AD38: 2018-02-06T13:59:41 | AE38: 2018-02-13T08:00:00 | AF38: 7 | AG38: 头位顺产 | AH38: 单一活产 | AI38: NULL | AJ38: NULL | AK38: NULL | AL38: NULL | AM38: NULL | AN38: NULL | AO38: NULL | AP38: NULL | AQ38: NULL | AR38: 1 | AS38: 2018-02-09T13:11:00 | AT38: 自然 | AU38: 女 | AV38: 3720 | AW38: NULL | AX38: NULL | AY38: NULL | AZ38: NULL | BA38: NULL
A39: 杨浦 | B39: 新生儿室（9楼） | C39: 1001335Z | D39: 男 | E39: 20170810 | F39: 3/30 | G39: 3670 | H39: 2017-08-13T10:24:00 | I39: 2017-08-17T10:00:00 | J39: 4 | K39: 新生儿高胆红素血症 | L39: NULL | M39: NULL | N39: NULL | O39: NULL | P39: NULL | Q39: NULL | R39: NULL | S39: NULL | T39: NULL | U39: NULL | V39: 杨浦 | W39: 25病房 | X39: 1001335 | Y39: 女 | Z39: 26 | AA39: 40 | AB39: 1 | AC39: 1 | AD39: 2017-08-08T05:45:08 | AE39: 2017-08-15T05:00:00 | AF39: 7 | AG39: 低位产钳助产分娩 | AH39: 胎儿宫内窘迫 | AI39: 产伤性会阴裂伤 | AJ39: 单胎活产 | AK39: NULL | AL39: NULL | AM39: NULL | AN39: NULL | AO39: NULL | AP39: NULL | AQ39: NULL | AR39: 1 | AS39: 2017-08-10T17:07:00 | AT39: 产钳 | AU39: 男 | AV39: 3670 | AW39: NULL | AX39: NULL | AY39: NULL | AZ39: NULL | BA39: NULL
A40: 杨浦 | B40: 新生儿室（9楼） | C40: 1001350Z | D40: 男 | E40: 20170809 | F40: 2/30 | G40: 3320 | H40: 2017-08-11T10:39:00 | I40: 2017-08-13T10:00:00 | J40: 2 | K40: 新生儿高胆红素血症 | L40: NULL | M40: NULL | N40: NULL | O40: NULL | P40: NULL | Q40: NULL | R40: NULL | S40: NULL | T40: NULL | U40: NULL | V40: 杨浦 | W40: 24病房 | X40: 1001350 | Y40: 女 | Z40: 33 | AA40: 38 | AB40: 3 | AC40: 1 | AD40: 2017-08-08T08:46:22 | AE40: 2017-08-13T05:00:00 | AF40: 5 | AG40: 选择性剖宫分娩 | AH40: 单胎活产 | AI40: 产后即时出血 | AJ40: NULL | AK40: NULL | AL40: NULL | AM40: NULL | AN40: NULL | AO40: NULL | AP40: NULL | AQ40: NULL | AR40: 1 | AS40: 2017-08-09T08:49:00 | AT40: 剖腹 | AU40: 男 | AV40: 3320 | AW40: NULL | AX40: NULL | AY40: NULL | AZ40: NULL | BA40: NULL
A41: 杨浦 | B41: 新生儿室（9楼） | C41: 1001363Z | D41: 女 | E41: 20170810 | F41: 4/30 | G41: 2990 | H41: 2017-08-14T09:28:00 | I41: 2017-08-18T10:00:00 | J41: 4 | K41: 新生儿高胆红素血症 | L41: NULL | M41: NULL | N41: NULL | O41: NULL | P41: NULL | Q41: NULL | R41: NULL | S41: NULL | T41: NULL | U41: NULL | V41: 杨浦 | W41: 21病房 | X41: 1001363 | Y41: 女 | Z41: 34 | AA41: 38 | AB41: 5 | AC41: 1 | AD41: 2017-08-08T10:20:38 | AE41: 2017-08-14T05:00:00 | AF41: 6 | AG41: 选择性剖宫分娩 | AH41: 脐带水肿 | AI41: 单胎活产 | AJ41: NULL | AK41: NULL | AL41: NULL | AM41: NULL | AN41: NULL | AO41: NULL | AP41: NULL | AQ41: NULL | AR41: 1 | AS41: 2017-08-10T09:26:00 | AT41: 剖腹 | AU41: 女 | AV41: 2990 | AW41: NULL | AX41: NULL | AY41: NULL | AZ41: NULL | BA41: NULL
A42: 杨浦 | B42: 新生儿室（9楼） | C42: 1001387Z | D42: 男 | E42: 20171109 | F42: 4/30 | G42: 3290 | H42: 2017-11-13T09:30:00 | I42: 2017-11-15T10:00:00 | J42: 2 | K42: 新生儿高胆红素血症 | L42: NULL | M42: NULL | N42: NULL | O42: NULL | P42: NULL | Q42: NULL | R42: NULL | S42: NULL | T42: NULL | U42: NULL | V42: 杨浦 | W42: 21病房 | X42: 1001387 | Y42: 女 | Z42: 40 | AA42: 40 | AB42: 3 | AC42: 1 | AD42: 2017-11-07T09:14:46 | AE42: 2017-11-14T08:00:00 | AF42: 7 | AG42: 头位顺产 | AH42: 妊娠期糖尿病 | AI42: 分娩时Ⅰ度会阴裂伤 | AJ42: 单胎活产 | AK42: NULL | AL42: NULL | AM42: NULL | AN42: NULL | AO42: NULL | AP42: NULL | AQ42: NULL | AR42: 1 | AS42: 2017-11-09T18:23:00 | AT42: 自然 | AU42: 男 | AV42: 3290 | AW42: NULL | AX42: NULL | AY42: NULL | AZ42: NULL | BA42: NULL
A43: 杨浦 | B43: 新生儿室（4楼） | C43: 1001389Z | D43: 男 | E43: 20170809 | G43: 2360 | H43: 2017-08-09T13:18:00 | I43: 2017-08-15T08:00:00 | J43: 6 | K43: 新生儿湿肺 | L43: 新生儿高胆红素血症 | M43: 早产儿 | N43: 低出生体重儿 | O43: NULL | P43: NULL | Q43: NULL | R43: NULL | S43: NULL | T43: NULL | U43: NULL | V43: 杨浦 | W43: 22病房 | X43: 1001389 | Y43: 女 | Z43: 30 | AA43: 36 | AB43: 2 | AC43: 1 | AD43: 2017-08-08T17:44:10 | AE43: 2017-08-12T05:00:00 | AF43: 4 | AG43: 头位顺产 | AH43: 早产不伴分娩 | AI43: 单胎活产 | AJ43: 妊娠合并室性早搏 | AK43: NULL | AL43: NULL | AM43: NULL | AN43: NULL | AO43: NULL | AP43: NULL | AQ43: NULL | AR43: 1 | AS43: 2017-08-09T12:42:00 | AT43: 自然 | AU43: 男 | AV43: 2360 | AW43: NULL | AX43: NULL | AY43: NULL | AZ43: NULL | BA43: NULL
A44: 杨浦 | B44: 新生儿室（4楼） | C44: 1001397Z | D44: 男 | E44: 20170812 | G44: 3230 | H44: 2017-08-12T12:00:00 | I44: 2017-08-15T12:00:00 | J44: 3 | K44: 新生儿湿肺 | L44: 新生儿高胆红素血症 | M44: NULL | N44: NULL | O44: NULL | P44: NULL | Q44: NULL | R44: NULL | S44: NULL | T44: NULL | U44: NULL | V44: 杨浦 | W44: 21病房 | X44: 1001397 | Y44: 女 | Z44: 31 | AA44: 39 | AB44: 1 | AC44: 1 | AD44: 2017-08-09T03:59:14 | AE44: 2017-08-26T05:00:00 | AF44: 17 | AG44: 特指剖宫单胎分娩 | AH44: 病毒性肝炎病原携带者 | AI44: 胎儿宫内窘迫 | AJ44: 发热 | AK44: 持续性枕横位难产 | AL44: 羊水污染III度 | AM44: 单胎活产 | AN44: NULL | AO44: NULL | AP44: NULL | AQ44: NULL | AR44: 1 | AS44: 2017-08-12T04:30:00 | AT44: 剖腹 | AU44: 男 | AV44: 3230 | AW44: NULL | AX44: NULL | AY44: NULL | AZ44: NULL | BA44: NULL
A45: 杨浦 | B45: 新生儿室（9楼） | C45: 1001411Z | D45: 女 | E45: 20170810 | F45: 4/30 | G45: 2780 | H45: 2017-08-14T09:32:00 | I45: 2017-08-16T10:00:00 | J45: 2 | K45: 新生儿高胆红素血症 | L45: NULL | M45: NULL | N45: NULL | O45: NULL | P45: NULL | Q45: NULL | R45: NULL | S45: NULL | T45: NULL | U45: NULL | V45: 杨浦 | W45: 23病房 | X45: 1001411 | Y45: 女 | Z45: 34 | AA45: 38 | AB45: 2 | AC45: 1 | AD45: 2017-08-09T08:46:02 | AE45: 2017-08-14T05:00:00 | AF45: 5 | AG45: 选择性剖宫分娩 | AH45: 妊娠伴糖尿病 | AI45: 妊娠合并甲状腺机能减退 | AJ45: 副胎盘 | AK45: 单胎活产 | AL45: NULL | AM45: NULL | AN45: NULL | AO45: NULL | AP45: NULL | AQ45: NULL | AR45: 1 | AS45: 2017-08-10T10:29:00 | AT45: 剖腹 | AU45: 女 | AV45: 2780 | AW45: NULL | AX45: NULL | AY45: NULL | AZ45: NULL | BA45: NULL
A46: 杨浦 | B46: 新生儿室（4楼） | C46: 1001412Z | D46: 男 | E46: 20170928 | G46: 2560 | H46: 2017-09-28T12:00:00 | I46: 2017-10-03T12:00:00 | J46: 5 | K46: 早产儿 | L46: 新生儿湿肺 | M46: NULL | N46: NULL | O46: NULL | P46: NULL | Q46: NULL | R46: NULL | S46: NULL | T46: NULL | U46: NULL | V46: 杨浦 | W46: 22病房 | X46: 1001412 | Y46: 女 | Z46: 31 | AA46: 35 | AB46: 5 | AC46: 1 | AD46: 2017-09-19T10:58:45 | AE46: 2017-10-06T05:00:00 | AF46: 17 | AG46: 选择性剖宫分娩 | AH46: 单胎活产 | AI46: 妊娠期糖尿病 | AJ46: NULL | AK46: NULL | AL46: NULL | AM46: NULL | AN46: NULL | AO46: NULL | AP46: NULL | AQ46: NULL | AR46: 1 | AS46: 2017-09-28T08:49:00 | AT46: 剖腹 | AU46: 男 | AV46: 2560 | AW46: NULL | AX46: NULL | AY46: NULL | AZ46: NULL | BA46: NULL
A47: 杨浦 | B47: 新生儿室（9楼） | C47: 1001414Z | D47: 男 | E47: 20171017 | G47: 4100 | H47: 2017-10-17T14:57:00 | I47: 2017-10-22T10:00:00 | J47: 5 | K47: 特大婴儿 | L47: 新生儿高胆红素血症 | M47: 新生儿特指感染 | N47: 新生儿ABO溶血症 | O47: NULL | P47: NULL | Q47: NULL | R47: NULL | S47: NULL | T47: NULL | U47: NULL | V47: 杨浦 | W47: 24病房 | X47: 1001414 | Y47: 女 | Z47: 31 | AA47: 39 | AB47: 1 | AC47: 1 | AD47: 2017-10-17T05:40:50 | AE47: 2017-10-24T08:00:00 | AF47: 7 | AG47: 特指剖宫单胎分娩 | AH47: 发热 | AI47: 胎膜早破 | AJ47: 脐带绕颈 | AK47: 孕产妇高血压 | AL47: 妊娠合并巨大儿 | AM47: 单胎活产 | AN47: NULL | AO47: NULL | AP47: NULL | AQ47: NULL | AR47: 1 | AS47: 2017-10-17T13:26:00 | AT47: 剖腹 | AU47: 男 | AV47: 4100 | AW47: NULL | AX47: NULL | AY47: NULL | AZ47: NULL | BA47: NULL
A48: 杨浦 | B48: 新生儿室（9楼） | C48: 1001449Z | D48: 男 | E48: 20170812 | F48: 3/30 | G48: 2720 | H48: 2017-08-15T09:50:00 | I48: 2017-08-18T10:00:00 | J48: 3 | K48: 新生儿高胆红素血症 | L48: NULL | M48: NULL | N48: NULL | O48: NULL | P48: NULL | Q48: NULL | R48: NULL | S48: NULL | T48: NULL | U48: NULL | V48: 杨浦 | W48: 22病房 | X48: 1001449 | Y48: 女 | Z48: 30 | AA48: 38 | AB48: 2 | AC48: 1 | AD48: 2017-08-10T03:37:00 | AE48: 2017-08-15T05:00:00 | AF48: 5 | AG48: 头位顺产 | AH48: 胎膜早破 | AI48: 脐带绕颈 | AJ48: 胎盘粘连 | AK48: 单胎活产 | AL48: NULL | AM48: NULL | AN48: NULL | AO48: NULL | AP48: NULL | AQ48: NULL | AR48: 1 | AS48: 2017-08-12T16:05:00 | AT48: 自然 | AU48: 男 | AV48: 2720 | AW48: NULL | AX48: NULL | AY48: NULL | AZ48: NULL | BA48: NULL
A49: 杨浦 | B49: 新生儿室（9楼） | C49: 1001476Z | D49: 女 | E49: 20170811 | F49: 3/30 | G49: 3150 | H49: 2017-08-14T09:10:00 | I49: 2017-08-17T14:00:00 | J49: 3 | K49: 新生儿高胆红素血症 | L49: NULL | M49: NULL | N49: NULL | O49: NULL | P49: NULL | Q49: NULL | R49: NULL | S49: NULL | T49: NULL | U49: NULL | V49: 杨浦 | W49: 26病房 | X49: 1001476 | Y49: 女 | Z49: 33 | AA49: 39 | AB49: 1 | AC49: 1 | AD49: 2017-08-10T09:15:29 | AE49: 2017-08-16T05:00:00 | AF49: 6 | AG49: 特指剖宫单胎分娩 | AH49: 妊娠合并子宫体肿瘤 | AI49: 单胎活产 | AJ49: NULL | AK49: NULL | AL49: NULL | AM49: NULL | AN49: NULL | AO49: NULL | AP49: NULL | AQ49: NULL | AR49: 1 | AS49: 2017-08-11T09:25:00 | AT49: 剖腹 | AU49: 女 | AV49: 3150 | AW49: NULL | AX49: NULL | AY49: NULL | AZ49: NULL | BA49: NULL
A50: 杨浦 | B50: 新生儿室（4楼） | C50: 1001498Z | D50: 男 | E50: 20170810 | G50: 1690 | H50: 2017-08-10T12:00:00 | I50: 2017-08-11T12:00:00 | J50: 1 | K50: 新生儿呼吸窘迫综合征 | L50: 早产儿 | M50: 低出生体重儿 | N50: 新生儿中度窒息 | O50: 新生儿低血糖症 | P50: 新生儿酸中毒 | Q50: 新生儿血小板减少 | R50: 新生儿特指感染 | S50: NULL | T50: NULL | U50: NULL | V50: 杨浦 | W50: 22病房 | X50: 1001498 | Y50: 女 | Z50: 28 | AA50: 34 | AB50: 1 | AC50: 1 | AD50: 2017-08-10T12:41:42 | AE50: 2017-08-15T05:00:00 | AF50: 5 | AG50: 特指剖宫单胎分娩 | AH50: 胎儿宫内窘迫 | AI50: 前置胎盘不伴出血 | AJ50: 胎盘植入 | AK50: 单胎活产 | AL50: 羊水过少 | AM50: NULL | AN50: NULL | AO50: NULL | AP50: NULL | AQ50: NULL | AR50: 1 | AS50: 2017-08-10T22:54:00 | AT50: 剖腹 | AU50: 男 | AV50: 1690 | AW50: NULL | AX50: NULL | AY50: NULL | AZ50: NULL | BA50: NULL
A51: 杨浦 | B51: 新生儿室（4楼） | C51: 1001502Z | D51: 男 | E51: 20170815 | G51: 3550 | H51: 2017-08-15T14:40:00 | I51: 2017-08-19T08:00:00 | J51: 4 | K51: 新生儿湿肺 | L51: 新生儿高胆红素血症 | M51: NULL | N51: NULL | O51: NULL | P51: NULL | Q51: NULL | R51: NULL | S51: NULL | T51: NULL | U51: NULL | V51: 杨浦 | W51: 22病房 | X51: 1001502 | Y51: 女 | Z51: 31 | AA51: 40 | AB51: 1 | AC51: 1 | AD51: 2017-08-10T13:43:02 | AE51: 2017-08-19T05:00:00 | AF51: 9 | AG51: 特指剖宫单胎分娩 | AH51: 妊娠合并高血压病 | AI51: 多囊卵巢综合征 | AJ51: 单胎活产 | AK51: NULL | AL51: NULL | AM51: NULL | AN51: NULL | AO51: NULL | AP51: NULL | AQ51: NULL | AR51: 1 | AS51: 2017-08-15T10:18:00 | AT51: 剖腹 | AU51: 男 | AV51: 3550 | AW51: NULL | AX51: NULL | AY51: NULL | AZ51: NULL | BA51: NULL
A52: 杨浦 | B52: 新生儿室（9楼） | C52: 1001517Z | D52: 女 | E52: 20170811 | F52: 2/30 | G52: 3360 | H52: 2017-08-13T13:55:00 | I52: 2017-08-17T15:00:00 | J52: 4 | K52: 新生儿特指感染 | L52: NULL | M52: NULL | N52: NULL | O52: NULL | P52: NULL | Q52: NULL | R52: NULL | S52: NULL | T52: NULL | U52: NULL | V52: 杨浦 | W52: 25病房 | X52: 1001517 | Y52: 女 | Z52: 29 | AA52: 41 | AB52: 2 | AC52: 1 | AD52: 2017-08-10T15:19:06 | AE52: 2017-08-14T14:00:00 | AF52: 4 | AG52: 头位顺产 | AH52: 妊娠合并卵巢囊肿 | AI52: 单胎活产 | AJ52: NULL | AK52: NULL | AL52: NULL | AM52: NULL | AN52: NULL | AO52: NULL | AP52: NULL | AQ52: NULL | AR52: 1 | AS52: 2017-08-11T19:52:00 | AT52: 自然 | AU52: 女 | AV52: 3360 | AW52: NULL | AX52: NULL | AY52: NULL | AZ52: NULL | BA52: NULL
A53: 杨浦 | B53: 新生儿室（4楼） | C53: 1001520Z | D53: 女 | E53: 20170813 | G53: 1850 | H53: 2017-08-13T11:32:00 | I53: 2017-08-31T08:00:00 | J53: 18 | K53: 新生儿呼吸窘迫综合征 | L53: 新生儿呼吸性酸中毒 | M53: 早产儿 | N53: 低出生体重儿 | O53: 新生儿高胆红素血症 | P53: NULL | Q53: NULL | R53: NULL | S53: NULL | T53: NULL | U53: NULL | V53: 杨浦 | W53: 21病房 | X53: 1001520 | Y53: 女 | Z53: 32 | AA53: 32 | AB53: 4 | AC53: 1 | AD53: 2017-08-10T15:58:18 | AE53: 2017-08-16T05:00:00 | AF53: 6 | AG53: 头位顺产 | AH53: 妊娠合并子宫瘢痕 | AI53: 子痫前期 | AJ53: 妊娠期糖尿病 | AK53: 胎儿生长发育迟缓 | AL53: 提前自然临产伴早产 | AM53: 胎膜早破 | AN53: 单胎活产 | AO53: NULL | AP53: NULL | AQ53: NULL | AR53: 1 | AS53: 2017-08-13T11:23:00 | AT53: 自然 | AU53: 女 | AV53: 1850 | AW53: NULL | AX53: NULL | AY53: NULL | AZ53: NULL | BA53: NULL
A54: 杨浦 | B54: 新生儿室（4楼） | C54: 1001524Z | D54: 男 | E54: 20170811 | G54: 4200 | H54: 2017-08-11T21:04:00 | I54: 2017-08-15T14:00:00 | J54: 4 | K54: 新生儿肺炎 | L54: 流产、异位妊娠和葡萄胎妊娠后生殖道和盆腔感染 | M54: NULL | N54: NULL | O54: NULL | P54: NULL | Q54: NULL | R54: NULL | S54: NULL | T54: NULL | U54: NULL | V54: 杨浦 | W54: 25病房 | X54: 1001524 | Y54: 女 | Z54: 27 | AA54: 38 | AB54: 2 | AC54: 1 | AD54: 2017-08-11T02:37:00 | AE54: 2017-08-13T14:00:00 | AF54: 2 | AG54: 头位顺产 | AH54: 发热 | AI54: 妊娠合并巨大儿 | AJ54: 肩先露难产 | AK54: 羊水污染III度 | AL54: 单胎活产 | AM54: 分娩时Ⅰ度会阴裂伤 | AN54: NULL | AO54: NULL | AP54: NULL | AQ54: NULL | AR54: 1 | AS54: 2017-08-11T15:13:00 | AT54: 自然 | AU54: 男 | AV54: 4200 | AW54: NULL | AX54: NULL | AY54: NULL | AZ54: NULL | BA54: NULL
A55: 杨浦 | B55: 新生儿室（9楼） | C55: 1001567Z | D55: 女 | E55: 20170814 | F55: 3/30 | G55: 3800 | H55: 2017-08-17T09:56:00 | I55: 2017-08-19T10:00:00 | J55: 2 | K55: 新生儿高胆红素血症 | L55: 新生儿ABO溶血症 | M55: NULL | N55: NULL | O55: NULL | P55: NULL | Q55: NULL | R55: NULL | S55: NULL | T55: NULL | U55: NULL | V55: 杨浦 | W55: 25病房 | X55: 1001567 | Y55: 女 | Z55: 30 | AA55: 40 | AB55: 1 | AC55: 1 | AD55: 2017-08-11T11:29:37 | AE55: 2017-08-18T05:00:00 | AF55: 7 | AG55: 头位顺产 | AH55: 单胎活产 | AI55: NULL | AJ55: NULL | AK55: NULL | AL55: NULL | AM55: NULL | AN55: NULL | AO55: NULL | AP55: NULL | AQ55: NULL | AR55: 1 | AS55: 2017-08-14T23:30:00 | AT55: 自然 | AU55: 女 | AV55: 3800 | AW55: NULL | AX55: NULL | AY55: NULL | AZ55: NULL | BA55: NULL
A56: 杨浦 | B56: 新生儿室（4楼） | C56: 1001588Z | D56: 女 | E56: 20170829 | G56: 2010 | H56: 2017-08-29T17:26:00 | I56: 2017-09-11T14:00:00 | J56: 13 | K56: 新生儿湿肺 | L56: 早产儿 | M56: 低出生体重儿 | N56: 新生儿呼吸性酸中毒 | O56: 新生儿高胆红素血症 | P56: NULL | Q56: NULL | R56: NULL | S56: NULL | T56: NULL | U56: NULL | V56: 杨浦 | W56: 23病房 | X56: 1001588 | Y56: 女 | Z56: 20 | AA56: 33 | AB56: 1 | AC56: 1 | AD56: 2017-08-29T02:43:00 | AE56: 2017-09-02T05:00:00 | AF56: 4 | AG56: 特指剖宫单胎分娩 | AH56: 早产不伴自然临产 | AI56: 臀先露 | AJ56: 单胎活产 | AK56: NULL | AL56: NULL | AM56: NULL | AN56: NULL | AO56: NULL | AP56: NULL | AQ56: NULL | AR56: 1 | AS56: 2017-08-29T17:15:00 | AT56: 剖腹 | AU56: 女 | AV56: 2010 | AW56: NULL | AX56: NULL | AY56: NULL | AZ56: NULL | BA56: NULL
A57: 杨浦 | B57: 新生儿室（9楼） | C57: 1001593Z | D57: 女 | E57: 20170812 | F57: 4/30 | G57: 2420 | H57: 2017-08-16T08:54:00 | I57: 2017-08-28T15:00:00 | J57: 12 | K57: 新生儿高胆红素血症 | L57: 新生儿酸中毒 | M57: 早产儿 | N57: 低出生体重儿 | O57: 新生儿泌尿系感染 | P57: 早产儿贫血 | Q57: NULL | R57: NULL | S57: NULL | T57: NULL | U57: NULL | V57: 杨浦 | W57: 25病房 | X57: 1001593 | Y57: 女 | Z57: 29 | AA57: 36 | AB57: 1 | AC57: 1 | AD57: 2017-08-12T02:33:00 | AE57: 2017-08-16T05:00:00 | AF57: 4 | AG57: 头位顺产 | AH57: 胎膜早破 | AI57: 提前自然临产伴早产 | AJ57: 胎儿宫内窘迫 | AK57: 脐带绕颈 | AL57: 胎盘早期剥离 | AM57: 单胎活产 | AN57: NULL | AO57: NULL | AP57: NULL | AQ57: NULL | AR57: 1 | AS57: 2017-08-12T00:01:00 | AT57: 自然 | AU57: 女 | AV57: 2420 | AW57: NULL | AX57: NULL | AY57: NULL | AZ57: NULL | BA57: NULL
A58: 杨浦 | B58: 新生儿室（4楼） | C58: 1001609Z | D58: 男 | E58: 20170817 | G58: 1900 | H58: 2017-08-17T12:04:00 | I58: 2017-08-28T14:00:00 | J58: 11 | K58: 新生儿呼吸窘迫综合征 | L58: 早产儿 | M58: 低出生体重儿 | N58: 新生儿高胆红素血症 | O58: NULL | P58: NULL | Q58: NULL | R58: NULL | S58: NULL | T58: NULL | U58: NULL | V58: 杨浦 | W58: 23病房 | X58: 1001609 | Y58: 女 | Z58: 27 | AA58: 32 | AB58: 2 | AC58: 1 | AD58: 2017-08-12T22:47:00 | AE58: 2017-08-20T05:00:00 | AF58: 8 | AG58: 头位顺产 | AH58: 胎膜早破 | AI58: 提前自然临产伴早产 | AJ58: 单胎活产 | AK58: NULL | AL58: NULL | AM58: NULL | AN58: NULL | AO58: NULL | AP58: NULL | AQ58: NULL | AR58: 1 | AS58: 2017-08-17T11:55:00 | AT58: 自然 | AU58: 男 | AV58: 1900 | AW58: NULL | AX58: NULL | AY58: NULL | AZ58: NULL | BA58: NULL
A59: 杨浦 | B59: 新生儿室（9楼） | C59: 1001613Z | D59: 男 | E59: 20170813 | F59: 2/30 | G59: 3780 | H59: 2017-08-15T13:07:00 | I59: 2017-08-18T15:00:00 | J59: 3 | K59: 新生儿特指感染 | L59: 新生儿高胆红素血症 | M59: NULL | N59: NULL | O59: NULL | P59: NULL | Q59: NULL | R59: NULL | S59: NULL | T59: NULL | U59: NULL | V59: 杨浦 | W59: 23病房 | X59: 1001613 | Y59: 女 | Z59: 29 | AA59: 38 | AB59: 2 | AC59: 1 | AD59: 2017-08-13T07:58:38 | AE59: 2017-08-16T05:00:00 | AF59: 3 | AG59: 头位顺产 | AH59: 羊水污染III度 | AI59: 单胎活产 | AJ59: NULL | AK59: NULL | AL59: NULL | AM59: NULL | AN59: NULL | AO59: NULL | AP59: NULL | AQ59: NULL | AR59: 1 | AS59: 2017-08-13T21:21:00 | AT59: 自然 | AU59: 男 | AV59: 3780 | AW59: NULL | AX59: NULL | AY59: NULL | AZ59: NULL | BA59: NULL
A60: 杨浦 | B60: 新生儿室（4楼） | C60: 1001626Z | D60: 男 | E60: 20170814 | G60: 3730 | H60: 2017-08-14T21:52:00 | I60: 2017-08-18T08:00:00 | J60: 4 | K60: 新生儿重度窒息 | L60: 新生儿酸中毒 | M60: 新生儿湿肺 | N60: NULL | O60: NULL | P60: NULL | Q60: NULL | R60: NULL | S60: NULL | T60: NULL | U60: NULL | V60: 杨浦 | W60: 23病房 | X60: 1001626 | Y60: 女 | Z60: 28 | AA60: 40 | AB60: 1 | AC60: 1 | AD60: 2017-08-14T03:10:00 | AE60: 2017-08-17T13:00:00 | AF60: 3 | AG60: 头位顺产 | AH60: 胎膜早破 | AI60: 发热 | AJ60: 胎儿宫内窘迫 | AK60: 肩先露难产 | AL60: 支原体感染 | AM60: 单胎活产 | AN60: NULL | AO60: NULL | AP60: NULL | AQ60: NULL | AR60: 1 | AS60: 2017-08-14T21:43:00 | AT60: 自然 | AU60: 男 | AV60: 3730 | AW60: NULL | AX60: NULL | AY60: NULL | AZ60: NULL | BA60: NULL
A61: 杨浦 | B61: 新生儿室（9楼） | C61: 1001627Z | D61: 女 | E61: 20170814 | F61: 1/30 | G61: 3080 | H61: 2017-08-15T09:47:00 | I61: 2017-08-18T15:00:00 | J61: 3 | K61: 新生儿高胆红素血症 | L61: 产伤致新生儿头颅血肿 | M61: NULL | N61: NULL | O61: NULL | P61: NULL | Q61: NULL | R61: NULL | S61: NULL | T61: NULL | U61: NULL | V61: 杨浦 | W61: 25病房 | X61: 1001627 | Y61: 女 | Z61: 29 | AA61: 39 | AB61: 1 | AC61: 1 | AD61: 2017-08-14T04:45:00 | AE61: 2017-08-17T14:00:00 | AF61: 3 | AG61: 头位顺产 | AH61: 重度子痫前期 | AI61: 人工授精 | AJ61: 球拍状胎盘 | AK61: 单胎活产 | AL61: NULL | AM61: NULL | AN61: NULL | AO61: NULL | AP61: NULL | AQ61: NULL | AR61: 1 | AS61: 2017-08-14T07:43:00 | AT61: 自然 | AU61: 女 | AV61: 3080 | AW61: NULL | AX61: NULL | AY61: NULL | AZ61: NULL | BA61: NULL
A62: 杨浦 | B62: 新生儿室（9楼） | C62: 1001652Z | D62: 男 | E62: 20170814 | F62: 4/30 | G62: 3670 | H62: 2017-08-18T11:02:00 | I62: 2017-08-20T10:00:00 | J62: 2 | K62: 新生儿高胆红素血症 | L62: NULL | M62: NULL | N62: NULL | O62: NULL | P62: NULL | Q62: NULL | R62: NULL | S62: NULL | T62: NULL | U62: NULL | V62: 杨浦 | W62: 23病房 | X62: 1001652 | Y62: 女 | Z62: 32 | AA62: 39 | AB62: 3 | AC62: 1 | AD62: 2017-08-14T08:59:55 | AE62: 2017-08-19T05:00:00 | AF62: 5 | AG62: 选择性剖宫分娩 | AH62: 妊娠合并甲状腺机能减退 | AI62: 单胎活产 | AJ62: NULL | AK62: NULL | AL62: NULL | AM62: NULL | AN62: NULL | AO62: NULL | AP62: NULL | AQ62: NULL | AR62: 1 | AS62: 2017-08-14T12:00:00 | AT62: 剖腹 | AU62: 男 | AV62: 3670 | AW62: NULL | AX62: NULL | AY62: NULL | AZ62: NULL | BA62: NULL
A63: 杨浦 | B63: 新生儿室（9楼） | C63: 1001698Z | D63: 男 | E63: 20170815 | F63: 1/30 | G63: 3590 | H63: 2017-08-16T12:14:00 | I63: 2017-08-20T15:00:00 | J63: 4 | K63: 新生儿特指感染 | L63: 新生儿高胆红素血症 | M63: NULL | N63: NULL | O63: NULL | P63: NULL | Q63: NULL | R63: NULL | S63: NULL | T63: NULL | U63: NULL | V63: 杨浦 | W63: 25病房 | X63: 1001698 | Y63: 女 | Z63: 37 | AA63: 39 | AB63: 3 | AC63: 1 | AD63: 2017-08-14T11:09:55 | AE63: 2017-08-18T05:00:00 | AF63: 4 | AG63: 头位顺产 | AH63: 妊娠期糖尿病 | AI63: 分娩时Ⅰ度会阴裂伤 | AJ63: 单胎活产 | AK63: NULL | AL63: NULL | AM63: NULL | AN63: NULL | AO63: NULL | AP63: NULL | AQ63: NULL | AR63: 1 | AS63: 2017-08-15T08:14:00 | AT63: 自然 | AU63: 男 | AV63: 3590 | AW63: NULL | AX63: NULL | AY63: NULL | AZ63: NULL | BA63: NULL
A64: 杨浦 | B64: 新生儿室（9楼） | C64: 1001699Z | D64: 女 | E64: 20170907 | F64: 4/30 | G64: 3020 | H64: 2017-09-11T09:47:00 | I64: 2017-09-13T10:00:00 | J64: 2 | K64: 新生儿高胆红素血症 | L64: NULL | M64: NULL | N64: NULL | O64: NULL | P64: NULL | Q64: NULL | R64: NULL | S64: NULL | T64: NULL | U64: NULL | V64: 杨浦 | W64: 25病房 | X64: 1001699 | Y64: 女 | Z64: 26 | AA64: 39 | AB64: 1 | AC64: 1 | AD64: 2017-09-04T13:16:31 | AE64: 2017-09-11T05:00:00 | AF64: 7 | AG64: 头位顺产 | AH64: 子痫前期 | AI64: 脐带绕颈 | AJ64: 分娩时Ⅰ度会阴裂伤 | AK64: 单胎活产 | AL64: NULL | AM64: NULL | AN64: NULL | AO64: NULL | AP64: NULL | AQ64: NULL | AR64: 1 | AS64: 2017-09-07T17:25:00 | AT64: 自然 | AU64: 女 | AV64: 3020 | AW64: NULL | AX64: NULL | AY64: NULL | AZ64: NULL | BA64: NULL
A65: 杨浦 | B65: 新生儿室（9楼） | C65: 1001708Z | D65: 男 | E65: 20170820 | F65: 2/30 | G65: 3570 | H65: 2017-08-22T09:55:00 | I65: 2017-08-26T10:00:00 | J65: 4 | K65: 新生儿高胆红素血症 | L65: NULL | M65: NULL | N65: NULL | O65: NULL | P65: NULL | Q65: NULL | R65: NULL | S65: NULL | T65: NULL | U65: NULL | V65: 杨浦 | W65: 21病房 | X65: 1001708 | Y65: 女 | Z65: 37 | AA65: 41 | AB65: 3 | AC65: 1 | AD65: 2017-08-14T12:38:38 | AE65: 2017-08-22T05:00:00 | AF65: 8 | AG65: 头位顺产 | AH65: 胎膜早破 | AI65: 妊娠合并子宫体肿瘤 | AJ65: 胎盘疾病 | AK65: 脐带绕颈 | AL65: 急产 | AM65: 羊水污染II度， | AN65: 分娩时Ⅰ度会阴裂伤 | AO65: 单胎活产 | AP65: NULL | AQ65: NULL | AR65: 1 | AS65: 2017-08-20T01:37:00 | AT65: 自然 | AU65: 男 | AV65: 3570 | AW65: NULL | AX65: NULL | AY65: NULL | AZ65: NULL | BA65: NULL
A66: 杨浦 | B66: 新生儿室（9楼） | C66: 1001709Z | D66: 男 | E66: 20170816 | F66: 1/30 | G66: 3370 | H66: 2017-08-17T10:11:00 | I66: 2017-08-21T10:00:00 | J66: 4 | K66: 新生儿高胆红素血症 | L66: 新生儿ABO溶血症 | M66: NULL | N66: NULL | O66: NULL | P66: NULL | Q66: NULL | R66: NULL | S66: NULL | T66: NULL | U66: NULL | V66: 杨浦 | W66: 21病房 | X66: 1001709 | Y66: 女 | Z66: 30 | AA66: 41 | AB66: 1 | AC66: 1 | AD66: 2017-08-14T13:07:54 | AE66: 2017-08-17T14:00:00 | AF66: 3 | AG66: 头位顺产 | AH66: 胎儿宫内窘迫 | AI66: 单胎活产 | AJ66: NULL | AK66: NULL | AL66: NULL | AM66: NULL | AN66: NULL | AO66: NULL | AP66: NULL | AQ66: NULL | AR66: 1 | AS66: 2017-08-16T03:41:00 | AT66: 自然 | AU66: 男 | AV66: 3370 | AW66: NULL | AX66: NULL | AY66: NULL | AZ66: NULL | BA66: NULL
A67: 杨浦 | B67: 新生儿室（9楼） | C67: 1001710Z | D67: 女 | E67: 20170816 | F67: 1/30 | G67: 3530 | H67: 2017-08-17T09:58:00 | I67: 2017-08-23T10:00:00 | J67: 6 | K67: 新生儿高胆红素血症 | L67: 新生儿ABO溶血症 | M67: NULL | N67: NULL | O67: NULL | P67: NULL | Q67: NULL | R67: NULL | S67: NULL | T67: NULL | U67: NULL | V67: 杨浦 | W67: 25病房 | X67: 1001710 | Y67: 女 | Z67: 26 | AA67: 39 | AB67: 1 | AC67: 1 | AD67: 2017-08-14T13:11:12 | AE67: 2017-08-19T05:00:00 | AF67: 5 | AG67: 头位顺产 | AH67: 胎膜早破 | AI67: 单胎活产 | AJ67: NULL | AK67: NULL | AL67: NULL | AM67: NULL | AN67: NULL | AO67: NULL | AP67: NULL | AQ67: NULL | AR67: 1 | AS67: 2017-08-16T06:02:00 | AT67: 自然 | AU67: 女 | AV67: 3530 | AW67: NULL | AX67: NULL | AY67: NULL | AZ67: NULL | BA67: NULL
A68: 杨浦 | B68: 新生儿室（9楼） | C68: 1001713Z | D68: 女 | E68: 20170818 | G68: 3950 | H68: 2017-08-18T12:00:00 | I68: 2017-08-21T12:00:00 | J68: 3 | K68: 可疑疾病观察 | L68: NULL | M68: NULL | N68: NULL | O68: NULL | P68: NULL | Q68: NULL | R68: NULL | S68: NULL | T68: NULL | U68: NULL | V68: 杨浦 | W68: 22病房 | X68: 1001713 | Y68: 女 | Z68: 28 | AA68: 41 | AB68: 1 | AC68: 1 | AD68: 2017-08-14T14:12:13 | AE68: 2017-08-22T05:00:00 | AF68: 8 | AG68: 特指剖宫单胎分娩 | AH68: 产程期间发热 | AI68: 单胎活产 | AJ68: NULL | AK68: NULL | AL68: NULL | AM68: NULL | AN68: NULL | AO68: NULL | AP68: NULL | AQ68: NULL | AR68: 1 | AS68: 2017-08-18T19:05:00 | AT68: 剖腹 | AU68: 女 | AV68: 3950 | AW68: NULL | AX68: NULL | AY68: NULL | AZ68: NULL | BA68: NULL
A69: 杨浦 | B69: 新生儿室（4楼） | C69: 1001722Z | D69: 男 | E69: 20170816 | G69: 3420 | H69: 2017-08-16T13:09:13 | I69: 2017-08-21T14:00:00 | J69: 5 | K69: 新生儿轻度窒息 | L69: 新生儿湿肺 | M69: 新生儿气胸 | N69: 新生儿高胆红素血症 | O69: 新生儿酸中毒 | P69: NULL | Q69: NULL | R69: NULL | S69: NULL | T69: NULL | U69: NULL | V69: 杨浦 | W69: 26病房 | X69: 1001722 | Y69: 女 | Z69: 31 | AA69: 39 | AB69: 1 | AC69: 1 | AD69: 2017-08-14T15:27:00 | AE69: 2017-08-19T05:00:00 | AF69: 5 | AG69: 头位顺产 | AH69: 妊娠蛋白尿 | AI69: 发热 | AJ69: 胎儿宫内窘迫 | AK69: 脐带绕颈 | AL69: 持续性枕横位难产 | AM69: 单胎活产 | AN69: NULL | AO69: NULL | AP69: NULL | AQ69: NULL | AR69: 1 | AS69: 2017-08-16T12:54:00 | AT69: 自然 | AU69: 男 | AV69: 3420 | AW69: NULL | AX69: NULL | AY69: NULL | AZ69: NULL | BA69: NULL
A70: 杨浦 | B70: 新生儿室（9楼） | C70: 1001728Z | D70: 女 | E70: 20170817 | G70: 3450 | H70: 2017-08-17T18:31:00 | I70: 2017-08-22T15:00:00 | J70: 5 | K70: 新生儿特指感染 | L70: 新生儿高胆红素血症 | M70: NULL | N70: NULL | O70: NULL | P70: NULL | Q70: NULL | R70: NULL | S70: NULL | T70: NULL | U70: NULL | V70: 杨浦 | W70: 26病房 | X70: 1001728 | Y70: 女 | Z70: 31 | AA70: 40 | AB70: 1 | AC70: 1 | AD70: 2017-08-14T16:01:13 | AE70: 2017-08-21T05:00:00 | AF70: 7 | AG70: 低位产钳助产分娩 | AH70: 妊娠蛋白尿 | AI70: 妊娠合并甲状腺机能减退 | AJ70: 子痫前期 | AK70: 发热 | AL70: 胎儿宫内窘迫 | AM70: 单胎活产 | AN70: NULL | AO70: NULL | AP70: NULL | AQ70: NULL | AR70: 1 | AS70: 2017-08-17T17:10:00 | AT70: 产钳 | AU70: 女 | AV70: 3450 | AW70: NULL | AX70: NULL | AY70: NULL | AZ70: NULL | BA70: NULL
A71: 杨浦 | B71: 新生儿室（9楼） | C71: 1001767Z | D71: 男 | E71: 20170904 | G71: 4030 | H71: 2017-09-04T09:27:00 | I71: 2017-09-06T10:00:00 | J71: 2 | K71: 新生儿高胆红素血症 | L71: 新生儿酸中毒 | M71: 特大婴儿 | N71: NULL | O71: NULL | P71: NULL | Q71: NULL | R71: NULL | S71: NULL | T71: NULL | U71: NULL | V71: 杨浦 | W71: 22病房 | X71: 1001767 | Y71: 女 | Z71: 32 | AA71: 39 | AB71: 2 | AC71: 1 | AD71: 2017-08-27T04:05:26 | AE71: 2017-09-04T05:00:00 | AF71: 8 | AG71: 头位顺产 | AH71: 胎膜早破 | AI71: 妊娠蛋白尿 | AJ71: 产程期间发热 | AK71: 脐带绕颈 | AL71: 肩先露难产 | AM71: 妊娠合并巨大儿 | AN71: 病毒性肝炎病原携带者 | AO71: 单胎活产 | AP71: NULL | AQ71: NULL | AR71: 1 | AS71: 2017-08-31T16:38:00 | AT71: 自然 | AU71: 男 | AV71: 4030 | AW71: NULL | AX71: NULL | AY71: NULL | AZ71: NULL | BA71: NULL
A72: 杨浦 | B72: 新生儿室（9楼） | C72: 1001802Z | D72: 男 | E72: 20171113 | F72: 3/30 | G72: 3350 | H72: 2017-11-16T10:03:00 | I72: 2017-11-18T10:00:00 | J72: 1 | K72: 新生儿高胆红素血症 | L72: 新生儿ABO溶血症 | M72: NULL | N72: NULL | O72: NULL | P72: NULL | Q72: NULL | R72: NULL | S72: NULL | T72: NULL | U72: NULL | V72: 杨浦 | W72: 23病房 | X72: 1001802 | Y72: 女 | Z72: 32 | AA72: 38 | AB72: 1 | AC72: 1 | AD72: 2017-11-12T04:29:00 | AE72: 2017-11-17T08:00:00 | AF72: 4 | AG72: 特指剖宫单胎分娩 | AH72: 胎膜早破 | AI72: 妊娠合并甲状腺肿 | AJ72: 引产失败 | AK72: 单胎活产 | AL72: 球拍状胎盘 | AM72: 帆状胎盘 | AN72: NULL | AO72: NULL | AP72: NULL | AQ72: NULL | AR72: 1 | AS72: 2017-11-13T15:16:00 | AT72: 剖腹 | AU72: 男 | AV72: 3350 | AW72: NULL | AX72: NULL | AY72: NULL | AZ72: NULL | BA72: NULL
A73: 杨浦 | B73: 新生儿室（9楼） | C73: 1001805Z | D73: 男 | E73: 20170816 | F73: 4/30 | G73: 3660 | H73: 2017-08-20T09:02:00 | I73: 2017-08-22T10:00:00 | J73: 1 | K73: 新生儿高胆红素血症 | L73: NULL | M73: NULL | N73: NULL | O73: NULL | P73: NULL | Q73: NULL | R73: NULL | S73: NULL | T73: NULL | U73: NULL | V73: 杨浦 | W73: 25病房 | X73: 1001805 | Y73: 女 | Z73: 37 | AA73: 39 | AB73: 4 | AC73: 1 | AD73: 2017-08-15T23:47:16 | AE73: 2017-08-20T05:00:00 | AF73: 5 | AG73: 头位顺产 | AH73: 急产 | AI73: 胎儿宫内窘迫 | AJ73: 单胎活产 | AK73: NULL | AL73: NULL | AM73: NULL | AN73: NULL | AO73: NULL | AP73: NULL | AQ73: NULL | AR73: 1 | AS73: 2017-08-16T13:47:00 | AT73: 自然 | AU73: 男 | AV73: 3660 | AW73: NULL | AX73: NULL | AY73: NULL | AZ73: NULL | BA73: NULL
A74: 杨浦 | B74: 新生儿室（9楼） | C74: 1001806Z | D74: 男 | E74: 20171016 | F74: 3/30 | G74: 3810 | H74: 2017-10-19T10:47:00 | I74: 2017-10-23T10:00:00 | J74: 4 | K74: 新生儿高胆红素血症 | L74: 新生儿ABO溶血症 | M74: NULL | N74: NULL | O74: NULL | P74: NULL | Q74: NULL | R74: NULL | S74: NULL | T74: NULL | U74: NULL | V74: 杨浦 | W74: 22病房 | X74: 1001806 | Y74: 女 | Z74: 25 | AA74: 39 | AB74: 3 | AC74: 1 | AD74: 2017-10-10T10:47:50 | AE74: 2017-10-20T05:00:00 | AF74: 10 | AG74: 选择性剖宫分娩 | AH74: 脐带绕身 | AI74: 单胎活产 | AJ74: NULL | AK74: NULL | AL74: NULL | AM74: NULL | AN74: NULL | AO74: NULL | AP74: NULL | AQ74: NULL | AR74: 1 | AS74: 2017-10-16T16:06:00 | AT74: 剖腹 | AU74: 男 | AV74: 3812 | AW74: NULL | AX74: NULL | AY74: NULL | AZ74: NULL | BA74: NULL
A75: 杨浦 | B75: 新生儿室（9楼） | C75: 1001810Z | D75: 男 | E75: 20170817 | F75: 1/30 | G75: 3270 | H75: 2017-08-18T12:30:00 | I75: 2017-08-23T15:00:00 | J75: 5 | K75: 新生儿特指感染 | L75: 新生儿高胆红素血症 | M75: NULL | N75: NULL | O75: NULL | P75: NULL | Q75: NULL | R75: NULL | S75: NULL | T75: NULL | U75: NULL | V75: 杨浦 | W75: 25病房 | X75: 1001810 | Y75: 女 | Z75: 27 | AA75: 39 | AB75: 1 | AC75: 1 | AD75: 2017-08-16T04:27:00 | AE75: 2017-08-20T14:00:00 | AF75: 4 | AG75: 头位顺产 | AH75: 胎膜早破 | AI75: 脐带绕颈 | AJ75: 单胎活产 | AK75: NULL | AL75: NULL | AM75: NULL | AN75: NULL | AO75: NULL | AP75: NULL | AQ75: NULL | AR75: 1 | AS75: 2017-08-17T11:22:00 | AT75: 自然 | AU75: 男 | AV75: 3270 | AW75: NULL | AX75: NULL | AY75: NULL | AZ75: NULL | BA75: NULL
A76: 杨浦 | B76: 新生儿室（9楼） | C76: 1001859Z | D76: 男 | E76: 20170919 | F76: 3/30 | G76: 3830 | H76: 2017-09-22T10:06:00 | I76: 2017-09-25T15:00:00 | J76: 3 | K76: 新生儿高胆红素血症 | L76: 隐睾 | M76: NULL | N76: NULL | O76: NULL | P76: NULL | Q76: NULL | R76: NULL | S76: NULL | T76: NULL | U76: NULL | V76: 杨浦 | W76: 25病房 | X76: 1001859 | Y76: 女 | Z76: 30 | AA76: 40 | AB76: 2 | AC76: 1 | AD76: 2017-09-14T15:23:49 | AE76: 2017-09-23T05:00:00 | AF76: 9 | AG76: 头位顺产 | AH76: 胎膜早破 | AI76: 宫颈原位癌 | AJ76: 单胎活产 | AK76: NULL | AL76: NULL | AM76: NULL | AN76: NULL | AO76: NULL | AP76: NULL | AQ76: NULL | AR76: 1 | AS76: 2017-09-19T15:03:00 | AT76: 自然 | AU76: 男 | AV76: 3830 | AW76: NULL | AX76: NULL | AY76: NULL | AZ76: NULL | BA76: NULL
A77: 杨浦 | B77: 新生儿室（4楼） | C77: 1001877Z | D77: 男 | E77: 20170914 | G77: 1060 | H77: 2017-09-14T20:14:00 | I77: 2017-09-28T15:00:00 | J77: 14 | K77: 早产儿 | L77: 极低出生体重儿 | M77: 新生儿呼吸窘迫综合征 | N77: 新生儿特指感染 | O77: 新生儿高胆红素血症 | P77: 新生儿轻度窒息 | Q77: 早产儿贫血 | R77: 特指电解质和液体平衡紊乱 | S77: NULL | T77: NULL | U77: NULL | V77: NULL | W77: NULL | X77: NULL | Y77: NULL | Z77: NULL | AA77: NULL | AB77: NULL | AC77: NULL | AD77: NULL | AE77: NULL | AF77: NULL | AG77: NULL | AH77: NULL | AI77: NULL | AJ77: NULL | AK77: NULL | AL77: NULL | AM77: NULL | AN77: NULL | AO77: NULL | AP77: NULL | AQ77: NULL | AR77: NULL | AS77: NULL | AT77: NULL | AU77: NULL | AV77: NULL | AW77: NULL | AX77: NULL | AY77: NULL | AZ77: NULL | BA77: NULL
A78: 杨浦 | B78: 新生儿室（9楼） | C78: 1001882Z | D78: 女 | E78: 20170818 | F78: 2/30 | G78: 3950 | H78: 2017-08-20T08:55:00 | I78: 2017-08-23T10:00:00 | J78: 2 | K78: 新生儿高胆红素血症 | L78: 新生儿ABO溶血症 | M78: 产伤致新生儿头颅血肿 | N78: NULL | O78: NULL | P78: NULL | Q78: NULL | R78: NULL | S78: NULL | T78: NULL | U78: NULL | V78: 杨浦 | W78: 21病房 | X78: 1001882 | Y78: 女 | Z78: 24 | AA78: 40 | AB78: 1 | AC78: 1 | AD78: 2017-08-17T05:40:20 | AE78: 2017-08-20T05:00:00 | AF78: 3 | AG78: 头位顺产 | AH78: 球拍状胎盘 | AI78: 单胎活产 | AJ78: NULL | AK78: NULL | AL78: NULL | AM78: NULL | AN78: NULL | AO78: NULL | AP78: NULL | AQ78: NULL | AR78: 1 | AS78: 2017-08-18T06:17:00 | AT78: 自然 | AU78: 女 | AV78: 3950 | AW78: NULL | AX78: NULL | AY78: NULL | AZ78: NULL | BA78: NULL
A79: 杨浦 | B79: 新生儿室（9楼） | C79: 1001906-02Z | D79: 女 | E79: 20180129 | F79: 3/30 | G79: 3860 | H79: 2018-02-01T09:23:00 | I79: 2018-02-03T10:00:00 | J79: 2 | K79: 新生儿高胆红素血症 | L79: 动脉导管未闭 | M79: NULL | N79: NULL | O79: NULL | P79: NULL | Q79: NULL | R79: NULL | S79: NULL | T79: NULL | U79: NULL | V79: 杨浦 | W79: 21病房 | X79: 1001906 | Y79: 女 | Z79: 30 | AA79: 38 | AB79: 3 | AC79: 1 | AD79: 2018-01-24T15:15:00 | AE79: 2018-02-02T13:00:00 | AF79: 9 | AG79: 经选择性剖宫产术的分娩 | AH79: 原有的糖尿病 | AI79: 孕产妇高血压 | AJ79: 妊娠期阴道炎 | AK79: 脐带绕颈 | AL79: 单一活产 | AM79: NULL | AN79: NULL | AO79: NULL | AP79: NULL | AQ79: NULL | AR79: 1 | AS79: 2018-01-29T08:36:00 | AT79: 剖腹 | AU79: 女 | AV79: 3860 | AW79: NULL | AX79: NULL | AY79: NULL | AZ79: NULL | BA79: NULL
A80: 杨浦 | B80: 新生儿室（9楼） | C80: 1001909M | D80: 女 | E80: 20171005 | F80: 8/30 | G80: 2410 | H80: 2017-10-13T14:54:00 | I80: 2017-10-16T10:00:00 | J80: 3 | K80: 新生儿高胆红素血症 | L80: 低出生体重儿 | M80: NULL | N80: NULL | O80: NULL | P80: NULL | Q80: NULL | R80: NULL | S80: NULL | T80: NULL | U80: NULL | V80: 杨浦 | W80: 22病房 | X80: 1001909 | Y80: 女 | Z80: 30 | AA80: 38 | AB80: 4 | AC80: 1 | AD80: 2017-09-29T15:27:27 | AE80: 2017-10-09T05:00:00 | AF80: 10 | AG80: 特指剖宫单胎分娩 | AH80: 胎儿生长发育迟缓 | AI80: 臀先露 | AJ80: 单胎活产 | AK80: 脐带过短 | AL80: NULL | AM80: NULL | AN80: NULL | AO80: NULL | AP80: NULL | AQ80: NULL | AR80: 1 | AS80: 2017-10-05T10:35:00 | AT80: 剖腹 | AU80: 女 | AV80: 2410 | AW80: NULL | AX80: NULL | AY80: NULL | AZ80: NULL | BA80: NULL
A81: 杨浦 | B81: 新生儿室（9楼） | C81: 1001910Z | D81: 男 | E81: 20170822 | F81: 2/30 | G81: 3660 | H81: 2017-08-24T13:09:00 | I81: 2017-08-28T15:00:00 | J81: 3 | K81: 新生儿特指感染 | L81: 新生儿高胆红素血症 | M81: NULL | N81: NULL | O81: NULL | P81: NULL | Q81: NULL | R81: NULL | S81: NULL | T81: NULL | U81: NULL | V81: 杨浦 | W81: 23病房 | X81: 1001910 | Y81: 女 | Z81: 28 | AA81: 38 | AB81: 1 | AC81: 1 | AD81: 2017-08-17T09:22:51 | AE81: 2017-08-26T05:00:00 | AF81: 9 | AG81: 特指剖宫单胎分娩 | AH81: 孕产妇高血压 | AI81: 持续性枕后位难产 | AJ81: 妊娠合并上呼吸道感染 | AK81: 单胎活产 | AL81: NULL | AM81: NULL | AN81: NULL | AO81: NULL | AP81: NULL | AQ81: NULL | AR81: 1 | AS81: 2017-08-22T20:56:00 | AT81: 剖腹 | AU81: 男 | AV81: 3660 | AW81: NULL | AX81: NULL | AY81: NULL | AZ81: NULL | BA81: NULL
A82: 杨浦 | B82: 新生儿室（9楼） | C82: 1001930Z | D82: 男 | E82: 20170818 | F82: 4/30 | G82: 3800 | H82: 2017-08-22T08:56:00 | I82: 2017-08-24T10:00:00 | J82: 2 | K82: 新生儿高胆红素血症 | L82: 新生儿ABO溶血症 | M82: NULL | N82: NULL | O82: NULL | P82: NULL | Q82: NULL | R82: NULL | S82: NULL | T82: NULL | U82: NULL | V82: 杨浦 | W82: 26病房 | X82: 1001930 | Y82: 女 | Z82: 32 | AA82: 40 | AB82: 2 | AC82: 1 | AD82: 2017-08-17T12:24:28 | AE82: 2017-08-22T05:00:00 | AF82: 5 | AG82: 特指剖宫单胎分娩 | AH82: 妊娠合并室性早搏 | AI82: 单胎活产 | AJ82: NULL | AK82: NULL | AL82: NULL | AM82: NULL | AN82: NULL | AO82: NULL | AP82: NULL | AQ82: NULL | AR82: 1 | AS82: 2017-08-18T08:35:00 | AT82: 剖腹 | AU82: 男 | AV82: 3800 | AW82: NULL | AX82: NULL | AY82: NULL | AZ82: NULL | BA82: NULL
A83: 杨浦 | B83: 新生儿室（4楼） | C83: 1001934Z | D83: 男 | E83: 20170822 | G83: 1370 | H83: 2017-08-22T12:00:00 | I83: 2017-09-23T12:00:00 | J83: 32 | K83: 新生儿呼吸窘迫综合征 | L83: 早产儿 | M83: 极低出生体重儿 | N83: 新生儿高胆红素血症 | O83: 新生儿呼吸暂停 | P83: NULL | Q83: NULL | R83: NULL | S83: NULL | T83: NULL | U83: NULL | V83: 杨浦 | W83: 26病房 | X83: 1001934 | Y83: 女 | Z83: 29 | AA83: 31 | AB83: 1 | AC83: 1 | AD83: 2017-08-17T13:51:57 | AE83: 2017-08-26T05:00:00 | AF83: 9 | AG83: 特指剖宫单胎分娩 | AH83: 重度子痫前期 | AI83: 胎儿宫内窘迫 | AJ83: 妊娠合并梅毒 | AK83: 单胎活产 | AL83: 早产不伴自然临产 | AM83: NULL | AN83: NULL | AO83: NULL | AP83: NULL | AQ83: NULL | AR83: 1 | AS83: 2017-08-22T18:21:00 | AT83: 剖腹 | AU83: 男 | AV83: 1370 | AW83: NULL | AX83: NULL | AY83: NULL | AZ83: NULL | BA83: NULL
A84: 杨浦 | B84: 新生儿室（4楼） | C84: 1001938Z | D84: 男 | E84: 20171222 | G84: 3770 | H84: 2017-12-22T14:41:16 | I84: 2017-12-28T15:00:00 | J84: 6 | K84: 特发于围生期的其他特指感染 | L84: 新生儿湿肺 | M84: NULL | N84: NULL | O84: NULL | P84: NULL | Q84: NULL | R84: NULL | S84: NULL | T84: NULL | U84: NULL | V84: 杨浦 | W84: 23病房 | X84: 1001938 | Y84: 女 | Z84: 29 | AA84: 40 | AB84: 1 | AC84: 1 | AD84: 2017-12-19T09:53:32 | AE84: 2017-12-26T08:00:00 | AF84: 7 | AG84: 经其他剖宫产术的单胎分娩 | AH84: 孕产妇高血压 | AI84: 发热 | AJ84: 单一活产 | AK84: NULL | AL84: NULL | AM84: NULL | AN84: NULL | AO84: NULL | AP84: NULL | AQ84: NULL | AR84: 1 | AS84: 2017-12-22T13:48:00 | AT84: 剖腹 | AU84: 男 | AV84: 3770 | AW84: NULL | AX84: NULL | AY84: NULL | AZ84: NULL | BA84: NULL
A85: 杨浦 | B85: 新生儿室（4楼） | C85: 1001939Z | D85: 男 | E85: 20170923 | F85: 1/30 | G85: 1590 | H85: 2017-09-24T02:18:00 | I85: 2017-10-15T08:00:00 | J85: 21 | K85: 新生儿轻度窒息 | L85: 新生儿呼吸窘迫综合征 | M85: 新生儿酸中毒 | N85: 新生儿呼吸暂停 | O85: 新生儿高胆红素血症 | P85: 早产儿 | Q85: 低出生体重儿 | R85: NULL | S85: NULL | T85: NULL | U85: NULL | V85: 杨浦 | W85: 25病房 | X85: 1001939 | Y85: 女 | Z85: 31 | AA85: 32 | AB85: 1 | AC85: 1 | AD85: 2017-09-20T16:06:44 | AE85: 2017-09-27T05:00:00 | AF85: 7 | AG85: 头位顺产 | AH85: 子痫前期 | AI85: 胎膜早破 | AJ85: 妊娠合并肥胖症 | AK85: 卵巢良性肿瘤 | AL85: 提前自然临产伴早产 | AM85: 单胎活产 | AN85: 分娩时Ⅰ度会阴裂伤 | AO85: NULL | AP85: NULL | AQ85: NULL | AR85: 1 | AS85: 2017-09-24T02:05:00 | AT85: 自然 | AU85: 男 | AV85: 1590 | AW85: NULL | AX85: NULL | AY85: NULL | AZ85: NULL | BA85: NULL
A86: 杨浦 | B86: 新生儿室（9楼） | C86: 1001950Z | D86: 女 | E86: 20171127 | G86: 2250 | H86: 2017-11-27T22:13:00 | I86: 2017-12-04T11:00:00 | J86: 6 | K86: 早产婴儿，其他的 | L86: 低出生体重儿 | M86: 新生儿高胆红素血症 | N86: 产伤引起的头颅血肿 | O86: NULL | P86: NULL | Q86: NULL | R86: NULL | S86: NULL | T86: NULL | U86: NULL | V86: 杨浦 | W86: 25病房 | X86: 1001950 | Y86: 女 | Z86: 36 | AA86: 35 | AB86: 1 | AC86: 1 | AD86: 2017-11-27T12:00:00 | AE86: 2017-11-30T12:00:00 | AF86: 2 | AG86: 头位顺产 | AH86: 提前自然临产伴早产 | AI86: 高龄初产妇妊娠监督 | AJ86: 妊娠合并子宫体肿瘤 | AK86: 单胎活产 | AL86: NULL | AM86: NULL | AN86: NULL | AO86: NULL | AP86: NULL | AQ86: NULL | AR86: 1 | AS86: 2017-11-27T21:59:00 | AT86: 自然 | AU86: 女 | AV86: 2250 | AW86: NULL | AX86: NULL | AY86: NULL | AZ86: NULL | BA86: NULL
A87: 杨浦 | B87: 新生儿室（4楼） | C87: 1001953Z | D87: 男 | E87: 20170821 | G87: 2410 | H87: 2017-08-21T09:54:00 | I87: 2017-08-25T14:00:00 | J87: 4 | K87: 新生儿重度窒息 | L87: 早产儿 | M87: 低出生体重儿 | N87: NULL | O87: NULL | P87: NULL | Q87: NULL | R87: NULL | S87: NULL | T87: NULL | U87: NULL | V87: 杨浦 | W87: 22病房 | X87: 1001953 | Y87: 女 | Z87: 29 | AA87: 36 | AB87: 1 | AC87: 1 | AD87: 2017-08-18T07:43:27 | AE87: 2017-08-25T05:00:00 | AF87: 7 | AG87: 特指剖宫单胎分娩 | AH87: 胎儿宫内窘迫 | AI87: 单胎活产 | AJ87: NULL | AK87: NULL | AL87: NULL | AM87: NULL | AN87: NULL | AO87: NULL | AP87: NULL | AQ87: NULL | AR87: 1 | AS87: 2017-08-21T09:40:00 | AT87: 剖腹 | AU87: 男 | AV87: 2410 | AW87: NULL | AX87: NULL | AY87: NULL | AZ87: NULL | BA87: NULL
A88: 杨浦 | B88: 新生儿室（9楼） | C88: 1001986M | D88: 男 | E88: 20171027 | F88: 5/30 | G88: 3250 | H88: 2017-11-01T16:17:00 | I88: 2017-11-03T15:00:00 | J88: 2 | K88: 新生儿高胆红素血症 | L88: NULL | M88: NULL | N88: NULL | O88: NULL | P88: NULL | Q88: NULL | R88: NULL | S88: NULL | T88: NULL | U88: NULL | V88: 杨浦 | W88: 22病房 | X88: 1001986 | Y88: 女 | Z88: 34 | AA88: 40 | AB88: 3 | AC88: 1 | AD88: 2017-10-23T12:13:39 | AE88: 2017-10-30T05:00:00 | AF88: 7 | AG88: 头位顺产 | AH88: 妊娠期糖尿病 | AI88: 单胎活产 | AJ88: NULL | AK88: NULL | AL88: NULL | AM88: NULL | AN88: NULL | AO88: NULL | AP88: NULL | AQ88: NULL | AR88: 1 | AS88: 2017-10-27T17:48:00 | AT88: 自然 | AU88: 男 | AV88: 3250 | AW88: NULL | AX88: NULL | AY88: NULL | AZ88: NULL | BA88: NULL
A89: 杨浦 | B89: 新生儿室（4楼） | C89: 1002002Z | D89: 女 | E89: 20170823 | G89: 2360 | H89: 2017-08-23T12:42:00 | I89: 2017-08-27T14:00:00 | J89: 4 | K89: 新生儿湿肺 | L89: 足月小样低体重儿 | M89: 低出生体重儿 | N89: 新生儿高胆红素血症 | O89: NULL | P89: NULL | Q89: NULL | R89: NULL | S89: NULL | T89: NULL | U89: NULL | V89: 杨浦 | W89: 25病房 | X89: 1002002 | Y89: 女 | Z89: 36 | AA89: 37 | AB89: 3 | AC89: 1 | AD89: 2017-08-18T10:35:14 | AE89: 2017-08-27T15:00:00 | AF89: 9 | AG89: 选择性剖宫分娩 | AH89: 胎儿生长发育迟缓 | AI89: 臀先露 | AJ89: 病毒性肝炎病原携带者 | AK89: 单胎活产 | AL89: NULL | AM89: NULL | AN89: NULL | AO89: NULL | AP89: NULL | AQ89: NULL | AR89: 1 | AS89: 2017-08-23T12:22:00 | AT89: 剖腹 | AU89: 女 | AV89: 2360 | AW89: NULL | AX89: NULL | AY89: NULL | AZ89: NULL | BA89: NULL
A90: 杨浦 | B90: 新生儿室（9楼） | C90: 1002006M | D90: 女 | E90: 20170824 | F90: 4/30 | G90: 3410 | H90: 2017-08-28T15:11:00 | I90: 2017-08-31T10:00:00 | J90: 3 | K90: 新生儿高胆红素血症 | L90: 产伤致新生儿头颅血肿 | M90: NULL | N90: NULL | O90: NULL | P90: NULL | Q90: NULL | R90: NULL | S90: NULL | T90: NULL | U90: NULL | V90: 杨浦 | W90: 25病房 | X90: 1002006 | Y90: 女 | Z90: 25 | AA90: 40 | AB90: 3 | AC90: 1 | AD90: 2017-08-18T11:16:56 | AE90: 2017-08-26T05:00:00 | AF90: 8 | AG90: 头位顺产 | AH90: 胎膜早破 | AI90: 脐带绕颈 | AJ90: 单胎活产 | AK90: NULL | AL90: NULL | AM90: NULL | AN90: NULL | AO90: NULL | AP90: NULL | AQ90: NULL | AR90: 1 | AS90: 2017-08-24T10:10:00 | AT90: 自然 | AU90: 女 | AV90: 3410 | AW90: NULL | AX90: NULL | AY90: NULL | AZ90: NULL | BA90: NULL
A91: 杨浦 | B91: 新生儿室（9楼） | C91: 1002008Z | D91: 男 | E91: 20170824 | G91: 3610 | H91: 2017-08-24T14:29:00 | I91: 2017-08-29T10:00:00 | J91: 4 | K91: 新生儿高胆红素血症 | L91: NULL | M91: NULL | N91: NULL | O91: NULL | P91: NULL | Q91: NULL | R91: NULL | S91: NULL | T91: NULL | U91: NULL | V91: 杨浦 | W91: 26病房 | X91: 1002008 | Y91: 女 | Z91: 26 | AA91: 41 | AB91: 1 | AC91: 1 | AD91: 2017-08-18T11:22:34 | AE91: 2017-08-27T05:00:00 | AF91: 9 | AG91: 头位顺产 | AH91: 发热 | AI91: 球拍状胎盘 | AJ91: 单胎活产 | AK91: NULL | AL91: NULL | AM91: NULL | AN91: NULL | AO91: NULL | AP91: NULL | AQ91: NULL | AR91: 1 | AS91: 2017-08-24T12:30:00 | AT91: 自然 | AU91: 男 | AV91: 3610 | AW91: NULL | AX91: NULL | AY91: NULL | AZ91: NULL | BA91: NULL
A92: 杨浦 | B92: 新生儿室（9楼） | C92: 1002018-03z | D92: 女 | E92: 20190430 | F92: 4/30 | G92: 3560 | H92: 2019-05-04T09:59:53 | I92: 2019-05-06T10:00:00 | J92: 2 | K92: 新生儿高胆红素血症 | L92: 妊娠糖尿病母亲婴儿 | M92: 试管婴儿（新生儿） | N92: NULL | O92: NULL | P92: NULL | Q92: NULL | R92: NULL | S92: NULL | T92: NULL | U92: NULL | V92: 杨浦 | W92: 21病房 | X92: 1002018 | Y92: 女 | Z92: 25 | AA92: 38 | AB92: 1 | AC92: 1 | AD92: 2019-04-29T14:55:26 | AE92: 2019-05-04T08:00:00 | AF92: 5 | AG92: 臀先露 | AH92: 羊水偏少 | AI92: 妊娠期糖尿病(A1) | AJ92: 经其他剖宫产术的单胎分娩 | AK92: 试管婴儿，单胎活产 | AL92: NULL | AM92: NULL | AN92: NULL | AO92: NULL | AP92: NULL | AQ92: NULL | AR92: 1 | AS92: 2019-04-30T10:11:00 | AT92: 剖腹 | AU92: 女 | AV92: 3560 | AW92: NULL | AX92: NULL | AY92: NULL | AZ92: NULL | BA92: NULL
A93: 杨浦 | B93: 新生儿室（9楼） | C93: 1002023Z | D93: 女 | E93: 20170818 | G93: 2370 | H93: 2017-08-18T18:12:00 | I93: 2017-08-22T10:00:00 | J93: 4 | K93: 足月小样低体重儿 | L93: 低出生体重儿 | M93: NULL | N93: NULL | O93: NULL | P93: NULL | Q93: NULL | R93: NULL | S93: NULL | T93: NULL | U93: NULL | V93: 杨浦 | W93: 25病房 | X93: 1002023 | Y93: 女 | Z93: 35 | AA93: 38 | AB93: 4 | AC93: 1 | AD93: 2017-08-18T12:55:02 | AE93: 2017-08-22T05:00:00 | AF93: 4 | AG93: 特指剖宫单胎分娩 | AH93: 脐带绕颈 | AI93: 单胎活产 | AJ93: NULL | AK93: NULL | AL93: NULL | AM93: NULL | AN93: NULL | AO93: NULL | AP93: NULL | AQ93: NULL | AR93: 1 | AS93: 2017-08-18T17:49:00 | AT93: 剖腹 | AU93: 女 | AV93: 2370 | AW93: NULL | AX93: NULL | AY93: NULL | AZ93: NULL | BA93: NULL
A94: 杨浦 | B94: 新生儿室（9楼） | C94: 1002024Z | D94: 女 | E94: 20170823 | F94: 3/30 | G94: 3560 | H94: 2017-08-26T09:11:00 | I94: 2017-08-29T14:00:00 | J94: 3 | K94: 新生儿高胆红素血症 | L94: NULL | M94: NULL | N94: NULL | O94: NULL | P94: NULL | Q94: NULL | R94: NULL | S94: NULL | T94: NULL | U94: NULL | V94: 杨浦 | W94: 23病房 | X94: 1002024 | Y94: 女 | Z94: 27 | AA94: 37 | AB94: 1 | AC94: 1 | AD94: 2017-08-18T12:58:03 | AE94: 2017-08-26T05:00:00 | AF94: 8 | AG94: 头位顺产 | AH94: 妊娠期糖尿病 | AI94: 子痫前期 | AJ94: 妊娠合并肝损害 | AK94: 脐带绕颈 | AL94: 单胎活产 | AM94: NULL | AN94: NULL | AO94: NULL | AP94: NULL | AQ94: NULL | AR94: 1 | AS94: 2017-08-23T16:25:00 | AT94: 自然 | AU94: 女 | AV94: 3560 | AW94: NULL | AX94: NULL | AY94: NULL | AZ94: NULL | BA94: NULL
A95: 杨浦 | B95: 新生儿室（9楼） | C95: 1002028Z | D95: 男 | E95: 20170820 | F95: 1/30 | G95: 3630 | H95: 2017-08-21T13:36:00 | I95: 2017-08-25T15:00:00 | J95: 4 | K95: 新生儿特指感染 | L95: NULL | M95: NULL | N95: NULL | O95: NULL | P95: NULL | Q95: NULL | R95: NULL | S95: NULL | T95: NULL | U95: NULL | V95: 杨浦 | W95: 21病房 | X95: 1002028 | Y95: 女 | Z95: 28 | AA95: 40 | AB95: 1 | AC95: 1 | AD95: 2017-08-18T13:31:38 | AE95: 2017-08-22T05:00:00 | AF95: 4 | AG95: 头位顺产 | AH95: 肩先露难产 | AI95: 单胎活产 | AJ95: NULL | AK95: NULL | AL95: NULL | AM95: NULL | AN95: NULL | AO95: NULL | AP95: NULL | AQ95: NULL | AR95: 1 | AS95: 2017-08-20 | AT95: 自然 | AU95: 男 | AV95: 3630 | AW95: NULL | AX95: NULL | AY95: NULL | AZ95: NULL | BA95: NULL
A96: 杨浦 | B96: 新生儿室（9楼） | C96: 1002036Z | D96: 男 | E96: 20171019 | F96: 4/30 | G96: 3000 | H96: 2017-10-23T10:07:00 | I96: 2017-10-26T10:00:00 | J96: 3 | K96: 新生儿高胆红素血症 | L96: NULL | M96: NULL | N96: NULL | O96: NULL | P96: NULL | Q96: NULL | R96: NULL | S96: NULL | T96: NULL | U96: NULL | V96: 杨浦 | W96: 25病房 | X96: 1002036 | Y96: 女 | Z96: 33 | AA96: 38 | AB96: 1 | AC96: 1 | AD96: 2017-10-18T11:03:03 | AE96: 2017-10-23T14:00:00 | AF96: 5 | AG96: 头位顺产 | AH96: 脐带绕颈 | AI96: 妊娠期糖尿病 | AJ96: 妊娠合并甲状腺机能减退 | AK96: 脐带真结 | AL96: 发热 | AM96: 单胎活产 | AN96: NULL | AO96: NULL | AP96: NULL | AQ96: NULL | AR96: 1 | AS96: 2017-10-19T18:54:00 | AT96: 自然 | AU96: 男 | AV96: 3000 | AW96: NULL | AX96: NULL | AY96: NULL | AZ96: NULL | BA96: NULL
A97: 杨浦 | B97: 新生儿室（9楼） | C97: 1002042Z | D97: 男 | E97: 20170908 | F97: 3/30 | G97: 3090 | H97: 2017-09-11T10:16:00 | I97: 2017-09-14T15:00:00 | J97: 3 | K97: 新生儿高胆红素血症 | L97: NULL | M97: NULL | N97: NULL | O97: NULL | P97: NULL | Q97: NULL | R97: NULL | S97: NULL | T97: NULL | U97: NULL | V97: 杨浦 | W97: 25病房 | X97: 1002042 | Y97: 女 | Z97: 29 | AA97: 38 | AB97: 2 | AC97: 1 | AD97: 2017-09-07T02:19:00 | AE97: 2017-09-11T05:00:00 | AF97: 4 | AG97: 头位顺产 | AH97: 胎膜早破 | AI97: 妊娠合并子宫体肿瘤 | AJ97: 脐带绕颈 | AK97: 单胎活产 | AL97: NULL | AM97: NULL | AN97: NULL | AO97: NULL | AP97: NULL | AQ97: NULL | AR97: 1 | AS97: 2017-09-08T20:41:00 | AT97: 自然 | AU97: 男 | AV97: 3090 | AW97: NULL | AX97: NULL | AY97: NULL | AZ97: NULL | BA97: NULL
A98: 杨浦 | B98: 新生儿室（9楼） | C98: 1002046Z | D98: 女 | E98: 20170820 | F98: 1/30 | G98: 3740 | H98: 2017-08-21T15:16:00 | I98: 2017-08-25T15:00:00 | J98: 4 | K98: 新生儿湿肺 | L98: 新生儿特指感染 | M98: NULL | N98: NULL | O98: NULL | P98: NULL | Q98: NULL | R98: NULL | S98: NULL | T98: NULL | U98: NULL | V98: 杨浦 | W98: 25病房 | X98: 1002046 | Y98: 女 | Z98: 26 | AA98: 40 | AB98: 1 | AC98: 1 | AD98: 2017-08-19T01:09:27 | AE98: 2017-08-25T05:00:00 | AF98: 6 | AG98: 头位顺产 | AH98: 发热 | AI98: 脐带绕颈 | AJ98: 产后即时出血 | AK98: 产伤性宫颈裂伤 | AL98: 单胎活产 | AM98: NULL | AN98: NULL | AO98: NULL | AP98: NULL | AQ98: NULL | AR98: 1 | AS98: 2017-08-20T20:33:00 | AT98: 自然 | AU98: 女 | AV98: 3740 | AW98: NULL | AX98: NULL | AY98: NULL | AZ98: NULL | BA98: NULL
A99: 杨浦 | B99: 新生儿室（4楼） | C99: 1002047Z | D99: 男 | E99: 20170822 | G99: 3990 | H99: 2017-08-22T23:50:00 | I99: 2017-08-25T14:00:00 | J99: 3 | K99: 新生儿湿肺 | L99: NULL | M99: NULL | N99: NULL | O99: NULL | P99: NULL | Q99: NULL | R99: NULL | S99: NULL | T99: NULL | U99: NULL | V99: 杨浦 | W99: 23病房 | X99: 1002047 | Y99: 女 | Z99: 34 | AA99: 39 | AB99: 1 | AC99: 1 | AD99: 2017-08-19T05:46:24 | AE99: 2017-08-26T05:00:00 | AF99: 7 | AG99: 特指剖宫单胎分娩 | AH99: 羊水过少 | AI99: 羊水污染III度 | AJ99: 单胎活产 | AK99: NULL | AL99: NULL | AM99: NULL | AN99: NULL | AO99: NULL | AP99: NULL | AQ99: NULL | AR99: 1 | AS99: 2017-08-22T12:38:00 | AT99: 剖腹 | AU99: 男 | AV99: 3990 | AW99: NULL | AX99: NULL | AY99: NULL | AZ99: NULL | BA99: NULL
A100: 杨浦 | B100: 新生儿室（9楼） | C100: 1002063Z | D100: 男 | E100: 20170820 | F100: 2/30 | G100: 3960 | H100: 2017-08-22T09:49:00 | I100: 2017-08-26T10:00:00 | J100: 4 | K100: 新生儿高胆红素血症 | L100: 新生儿ABO溶血症 | M100: NULL | N100: NULL | O100: NULL | P100: NULL | Q100: NULL | R100: NULL | S100: NULL | T100: NULL | U100: NULL | V100: 杨浦 | W100: 26病房 | X100: 1002063 | Y100: 女 | Z100: 36 | AA100: 39 | AB100: 1 | AC100: 1 | AD100: 2017-08-19T16:35:00 | AE100: 2017-08-23T05:00:00 | AF100: 4 | AG100: 头位顺产 | AH100: 高龄初产妇妊娠监督 | AI100: 单胎活产 | AJ100: NULL | AK100: NULL | AL100: NULL | AM100: NULL | AN100: NULL | AO100: NULL | AP100: NULL | AQ100: NULL | AR100: 1 | AS100: 2017-08-20T15:29:00 | AT100: 自然 | AU100: 男 | AV100: 3960 | AW100: NULL | AX100: NULL | AY100: NULL | AZ100: NULL | BA100: NULL
A101: 杨浦 | B101: 新生儿室（4楼） | C101: 1002069-05z | D101: 女 | E101: 20180313 | G101: 3790 | H101: 2018-03-13T18:39:28 | I101: 2018-03-18T15:00:00 | J101: 5 | K101: 新生儿湿肺 | L101: 特发于围生期的其他特指感染 | M101: 新生儿高胆红素血症 | N101: NULL | O101: NULL | P101: NULL | Q101: NULL | R101: NULL | S101: NULL | T101: NULL | U101: NULL | V101: 杨浦 | W101: 23病房 | X101: 1002069 | Y101: 女 | Z101: 23 | AA101: 40 | AB101: 1 | AC101: 1 | AD101: 2018-03-08T21:38:50 | AE101: 2018-03-16T08:00:00 | AF101: 8 | AG101: 分娩时Ⅰ度会阴裂伤 | AH101: 头位顺产 | AI101: 单一活产 | AJ101: NULL | AK101: NULL | AL101: NULL | AM101: NULL | AN101: NULL | AO101: NULL | AP101: NULL | AQ101: NULL | AR101: 1 | AS101: 2018-03-13T14:12:00 | AT101: 自然 | AU101: 女 | AV101: 3790 | AW101: NULL | AX101: NULL | AY101: NULL | AZ101: NULL | BA101: NULL
A102: 杨浦 | B102: 新生儿室（4楼） | C102: 1002080Z | D102: 男 | E102: 20170830 | G102: 2710 | H102: 2017-08-30T14:24:00 | I102: 2017-09-18T08:00:00 | J102: 19 | K102: 新生儿特指感染 | L102: 早产儿 | M102: 新生儿高胆红素血症 | N102: 新生儿湿肺 | O102: 支原体感染 | P102: NULL | Q102: NULL | R102: NULL | S102: NULL | T102: NULL | U102: NULL | V102: 杨浦 | W102: 23病房 | X102: 1002080 | Y102: 女 | Z102: 37 | AA102: 35 | AB102: 1 | AC102: 1 | AD102: 2017-08-20T12:00:00 | AE102: 2017-09-04T12:00:00 | AF102: 14 | AG102: 特指剖宫单胎分娩 | AH102: 重症肺炎 | AI102: 噬血细胞综合征 | AJ102: 妊娠期肝内胆汁淤积症 | AK102: 高龄初产妇妊娠监督 | AL102: 胎儿宫内窘迫 | AM102: 早产不伴自然临产 | AN102: 妊娠合并子宫体肿瘤 | AO102: 单胎活产 | AP102: 脐带绕颈 | AQ102: 妊娠合并上呼吸道感染 | AR102: 1 | AS102: 2017-08-30T13:23:00 | AT102: 剖腹 | AU102: 男 | AV102: 2710 | AW102: NULL | AX102: NULL | AY102: NULL | AZ102: NULL | BA102: NULL
A103: 杨浦 | B103: 新生儿室（9楼） | C103: 1002093Z | D103: 女 | E103: 20170821 | F103: 2/30 | G103: 3850 | H103: 2017-08-23T09:19:00 | I103: 2017-08-26T10:00:00 | J103: 3 | K103: 新生儿高胆红素血症 | L103: NULL | M103: NULL | N103: NULL | O103: NULL | P103: NULL | Q103: NULL | R103: NULL | S103: NULL | T103: NULL | U103: NULL | V103: 杨浦 | W103: 25病房 | X103: 1002093 | Y103: 女 | Z103: 31 | AA103: 39 | AB103: 2 | AC103: 1 | AD103: 2017-08-20T17:02:18 | AE103: 2017-08-25T05:00:00 | AF103: 4 | AG103: 头位顺产 | AH103: 分娩时Ⅰ度会阴裂伤 | AI103: 单胎活产 | AJ103: NULL | AK103: NULL | AL103: NULL | AM103: NULL | AN103: NULL | AO103: NULL | AP103: NULL | AQ103: NULL | AR103: 1 | AS103: 2017-08-21T00:45:00 | AT103: 自然 | AU103: 女 | AV103: 3850 | AW103: NULL | AX103: NULL | AY103: NULL | AZ103: NULL | BA103: NULL
A104: 杨浦 | B104: 新生儿室（9楼） | C104: 1002099Z | D104: 女 | E104: 20170821 | G104: 2350 | H104: 2017-08-21T11:38:00 | I104: 2017-08-29T10:00:00 | J104: 8 | K104: 早产儿 | L104: 低出生体重儿 | M104: 新生儿特指感染 | N104: 新生儿高胆红素血症 | O104: NULL | P104: NULL | Q104: NULL | R104: NULL | S104: NULL | T104: NULL | U104: NULL | V104: 杨浦 | W104: 25病房 | X104: 1002099 | Y104: 女 | Z104: 27 | AA104: 35 | AB104: 1 | AC104: 1 | AD104: 2017-08-21T02:38:00 | AE104: 2017-08-24T05:00:00 | AF104: 3 | AG104: 头位顺产 | AH104: 胎膜早破 | AI104: 提前自然临产伴早产 | AJ104: 单胎活产 | AK104: NULL | AL104: NULL | AM104: NULL | AN104: NULL | AO104: NULL | AP104: NULL | AQ104: NULL | AR104: 1 | AS104: 2017-08-21T10:41:00 | AT104: 自然 | AU104: 女 | AV104: 2350 | AW104: NULL | AX104: NULL | AY104: NULL | AZ104: NULL | BA104: NULL
A105: 杨浦 | B105: 新生儿室（9楼） | C105: 1002101Z | D105: 女 | E105: 20170822 | F105: 2/30 | G105: 3060 | H105: 2017-08-24T09:20:00 | I105: 2017-08-28T11:00:00 | J105: 3 | K105: 新生儿高胆红素血症 | L105: 新生儿结膜炎 | M105: NULL | N105: NULL | O105: NULL | P105: NULL | Q105: NULL | R105: NULL | S105: NULL | T105: NULL | U105: NULL | V105: 杨浦 | W105: 23病房 | X105: 1002101 | Y105: 女 | Z105: 33 | AA105: 37 | AB105: 1 | AC105: 1 | AD105: 2017-08-21T06:13:40 | AE105: 2017-08-25T14:00:00 | AF105: 4 | AG105: 头位顺产 | AH105: 妊娠蛋白尿 | AI105: 球拍状胎盘 | AJ105: 单胎活产 | AK105: NULL | AL105: NULL | AM105: NULL | AN105: NULL | AO105: NULL | AP105: NULL | AQ105: NULL | AR105: 1 | AS105: 2017-08-22T15:20:00 | AT105: 自然 | AU105: 女 | AV105: 3060 | AW105: NULL | AX105: NULL | AY105: NULL | AZ105: NULL | BA105: NULL
A106: 杨浦 | B106: 新生儿室（9楼） | C106: 1002141Z | D106: 女 | E106: 20170823 | F106: 3/30 | G106: 3730 | H106: 2017-08-26T10:02:00 | I106: 2017-08-28T10:00:00 | J106: 2 | K106: 新生儿高胆红素血症 | L106: NULL | M106: NULL | N106: NULL | O106: NULL | P106: NULL | Q106: NULL | R106: NULL | S106: NULL | T106: NULL | U106: NULL | V106: 杨浦 | W106: 23病房 | X106: 1002141 | Y106: 女 | Z106: 37 | AA106: 39 | AB106: 1 | AC106: 1 | AD106: 2017-08-21T08:59:17 | AE106: 2017-08-27T05:00:00 | AF106: 6 | AG106: 特指剖宫单胎分娩 | AH106: 轮状胎盘 | AI106: 高龄初产妇妊娠监督 | AJ106: 单胎活产 | AK106: NULL | AL106: NULL | AM106: NULL | AN106: NULL | AO106: NULL | AP106: NULL | AQ106: NULL | AR106: 1 | AS106: 2017-08-23T13:15:00 | AT106: 剖腹 | AU106: 女 | AV106: 3730 | AW106: NULL | AX106: NULL | AY106: NULL | AZ106: NULL | BA106: NULL
A107: 杨浦 | B107: 新生儿室（9楼） | C107: 1002163Z | D107: 男 | E107: 20170823 | F107: 5/30 | G107: 2940 | H107: 2017-08-28T10:16:00 | I107: 2017-08-30T10:00:00 | J107: 2 | K107: 新生儿高胆红素血症 | L107: NULL | M107: NULL | N107: NULL | O107: NULL | P107: NULL | Q107: NULL | R107: NULL | S107: NULL | T107: NULL | U107: NULL | V107: 杨浦 | W107: 21病房 | X107: 1002163 | Y107: 女 | Z107: 24 | AA107: 38 | AB107: 2 | AC107: 1 | AD107: 2017-08-21T09:47:13 | AE107: 2017-08-28T14:00:00 | AF107: 7 | AG107: 选择性剖宫分娩 | AH107: 球拍状胎盘 | AI107: 单胎活产 | AJ107: NULL | AK107: NULL | AL107: NULL | AM107: NULL | AN107: NULL | AO107: NULL | AP107: NULL | AQ107: NULL | AR107: 1 | AS107: 2017-08-23T15:39:00 | AT107: 剖腹 | AU107: 男 | AV107: 2940 | AW107: NULL | AX107: NULL | AY107: NULL | AZ107: NULL | BA107: NULL
A108: 杨浦 | B108: 新生儿室（9楼） | C108: 1002183Z | D108: 男 | E108: 20170910 | F108: 3/30 | G108: 3260 | H108: 2017-09-13T12:00:00 | I108: 2017-09-15T12:00:00 | J108: 2 | K108: 新生儿高胆红素血症 | L108: NULL | M108: NULL | N108: NULL | O108: NULL | P108: NULL | Q108: NULL | R108: NULL | S108: NULL | T108: NULL | U108: NULL | V108: 杨浦 | W108: 24病房 | X108: 1002183 | Y108: 女 | Z108: 32 | AA108: 38 | AB108: 1 | AC108: 1 | AD108: 2017-09-10T03:10:00 | AE108: 2017-09-13T12:00:00 | AF108: 3 | AG108: 头位顺产 | AH108: 胎膜早破 | AI108: 急产 | AJ108: 脐带绕颈 | AK108: 单胎活产 | AL108: NULL | AM108: NULL | AN108: NULL | AO108: NULL | AP108: NULL | AQ108: NULL | AR108: 1 | AS108: 2017-09-10T12:20:00 | AT108: 自然 | AU108: 男 | AV108: 3260 | AW108: NULL | AX108: NULL | AY108: NULL | AZ108: NULL | BA108: NULL
A109: 杨浦 | B109: 新生儿室（9楼） | C109: 1002185Z | D109: 男 | E109: 20170824 | G109: 2840 | H109: 2017-08-24T16:38:00 | I109: 2017-08-29T10:00:00 | J109: 4 | K109: 早产儿 | L109: 新生儿高胆红素血症 | M109: NULL | N109: NULL | O109: NULL | P109: NULL | Q109: NULL | R109: NULL | S109: NULL | T109: NULL | U109: NULL | V109: 杨浦 | W109: 23病房 | X109: 1002185 | Y109: 女 | Z109: 24 | AA109: 34 | AB109: 2 | AC109: 1 | AD109: 2017-08-21T10:56:00 | AE109: 2017-08-29T14:00:00 | AF109: 8 | AG109: 头位顺产 | AH109: 脐带绕颈 | AI109: 副胎盘 | AJ109: 提前自然临产伴早产 | AK109: 单胎活产 | AL109: NULL | AM109: NULL | AN109: NULL | AO109: NULL | AP109: NULL | AQ109: NULL | AR109: 1 | AS109: 2017-08-24T14:56:00 | AT109: 自然 | AU109: 男 | AV109: 2840 | AW109: NULL | AX109: NULL | AY109: NULL | AZ109: NULL | BA109: NULL
A110: 杨浦 | B110: 新生儿室（9楼） | C110: 1002230Z | D110: 男 | E110: 20170826 | F110: 2/30 | G110: 3330 | H110: 2017-08-28T10:00:00 | I110: 2017-08-29T14:30:00 | J110: 1 | K110: 新生儿高胆红素血症 | L110: NULL | M110: NULL | N110: NULL | O110: NULL | P110: NULL | Q110: NULL | R110: NULL | S110: NULL | T110: NULL | U110: NULL | V110: 杨浦 | W110: 25病房 | X110: 1002230 | Y110: 女 | Z110: 36 | AA110: 38 | AB110: 2 | AC110: 1 | AD110: 2017-08-26T07:45:00 | AE110: 2017-08-29T14:00:00 | AF110: 3 | AG110: 头位顺产 | AH110: 胎盘粘连 | AI110: 单胎活产 | AJ110: NULL | AK110: NULL | AL110: NULL | AM110: NULL | AN110: NULL | AO110: NULL | AP110: NULL | AQ110: NULL | AR110: 1 | AS110: 2017-08-26T08:13:00 | AT110: 自然 | AU110: 男 | AV110: 3330 | AW110: NULL | AX110: NULL | AY110: NULL | AZ110: NULL | BA110: NULL
A111: 杨浦 | B111: 新生儿室（9楼） | C111: 1002255-02z | D111: 女 | E111: 20190222 | F111: 3/30 | G111: 3340 | H111: 2019-02-25T09:41:05 | I111: 2019-02-27T10:00:00 | J111: 2 | K111: 新生儿高胆红素血症 | L111: 新生儿阴道出血 | M111: NULL | N111: NULL | O111: NULL | P111: NULL | Q111: NULL | R111: NULL | S111: NULL | T111: NULL | U111: NULL | V111: 杨浦 | W111: 25病房 | X111: 1002255 | Y111: 女 | Z111: 24 | AA111: 38 | AB111: 1 | AC111: 1 | AD111: 2019-02-21T13:06:11 | AE111: 2019-02-25T08:00:00 | AF111: 4 | AG111: 头位顺产 | AH111: 手术后状态，其他特指的 | AI111: 单一活产 | AJ111: NULL | AK111: NULL | AL111: NULL | AM111: NULL | AN111: NULL | AO111: NULL | AP111: NULL | AQ111: NULL | AR111: 1 | AS111: 2019-02-22T02:09:00 | AT111: 自然 | AU111: 女 | AV111: 3340 | AW111: NULL | AX111: NULL | AY111: NULL | AZ111: NULL | BA111: NULL
A112: 杨浦 | B112: 新生儿室（9楼） | C112: 1002263Z | D112: 女 | E112: 20170823 | F112: 3/30 | G112: 3340 | H112: 2017-08-26T09:57:00 | I112: 2017-08-28T10:00:00 | J112: 2 | K112: 新生儿高胆红素血症 | L112: NULL | M112: NULL | N112: NULL | O112: NULL | P112: NULL | Q112: NULL | R112: NULL | S112: NULL | T112: NULL | U112: NULL | V112: 杨浦 | W112: 24病房 | X112: 1002263 | Y112: 女 | Z112: 30 | AA112: 38 | AB112: 2 | AC112: 1 | AD112: 2017-08-22T09:29:30 | AE112: 2017-08-27T05:00:00 | AF112: 5 | AG112: 选择性剖宫分娩 | AH112: 球拍状胎盘 | AI112: 单胎活产 | AJ112: NULL | AK112: NULL | AL112: NULL | AM112: NULL | AN112: NULL | AO112: NULL | AP112: NULL | AQ112: NULL | AR112: 1 | AS112: 2017-08-23T12:43:00 | AT112: 剖腹 | AU112: 女 | AV112: 3340 | AW112: NULL | AX112: NULL | AY112: NULL | AZ112: NULL | BA112: NULL
A113: 杨浦 | B113: 新生儿室（9楼） | C113: 1002306Z | D113: 女 | E113: 20170825 | F113: 3/30 | G113: 3530 | H113: 2017-08-28T10:15:00 | I113: 2017-08-31T14:00:00 | J113: 3 | K113: 新生儿高胆红素血症 | L113: NULL | M113: NULL | N113: NULL | O113: NULL | P113: NULL | Q113: NULL | R113: NULL | S113: NULL | T113: NULL | U113: NULL | V113: 杨浦 | W113: 25病房 | X113: 1002306 | Y113: 女 | Z113: 25 | AA113: 39 | AB113: 1 | AC113: 1 | AD113: 2017-08-22T15:29:57 | AE113: 2017-08-29T05:00:00 | AF113: 7 | AG113: 头位顺产 | AH113: 妊娠期糖尿病 | AI113: 子痫前期 | AJ113: 羊水污染II度， | AK113: 分娩时Ⅱ度会阴裂伤 | AL113: 单胎活产 | AM113: NULL | AN113: NULL | AO113: NULL | AP113: NULL | AQ113: NULL | AR113: 1 | AS113: 2017-08-25T14:13:00 | AT113: 自然 | AU113: 女 | AV113: 3530 | AW113: NULL | AX113: NULL | AY113: NULL | AZ113: NULL | BA113: NULL
A114: 杨浦 | B114: 新生儿室（4楼） | C114: 1002307Z | D114: 女 | E114: 20170824 | G114: 3460 | H114: 2017-08-24T12:00:00 | I114: 2017-08-27T12:00:00 | J114: 2 | K114: 新生儿轻度窒息 | L114: 新生儿湿肺 | M114: NULL | N114: NULL | O114: NULL | P114: NULL | Q114: NULL | R114: NULL | S114: NULL | T114: NULL | U114: NULL | V114: 杨浦 | W114: 25病房 | X114: 1002307 | Y114: 女 | Z114: 22 | AA114: 38 | AB114: 2 | AC114: 1 | AD114: 2017-08-22T15:33:03 | AE114: 2017-08-28T05:00:00 | AF114: 6 | AG114: 选择性剖宫分娩 | AH114: 单胎活产 | AI114: NULL | AJ114: NULL | AK114: NULL | AL114: NULL | AM114: NULL | AN114: NULL | AO114: NULL | AP114: NULL | AQ114: NULL | AR114: 1 | AS114: 2017-08-24T10:27:00 | AT114: 剖腹 | AU114: 女 | AV114: 3460 | AW114: NULL | AX114: NULL | AY114: NULL | AZ114: NULL | BA114: NULL
A115: 杨浦 | B115: 新生儿室（4楼） | C115: 1002317Z | D115: 男 | E115: 20170829 | G115: 1710 | H115: 2017-08-29T20:41:00 | I115: 2017-09-14T08:00:00 | J115: 16 | K115: 早产儿 | L115: 低出生体重儿 | M115: 新生儿呼吸窘迫综合征 | N115: 新生儿高胆红素血症 | O115: NULL | P115: NULL | Q115: NULL | R115: NULL | S115: NULL | T115: NULL | U115: NULL | V115: 杨浦 | W115: 22病房 | X115: 1002317 | Y115: 女 | Z115: 34 | AA115: 32 | AB115: 4 | AC115: 1 | AD115: 2017-08-23T00:45:00 | AE115: 2017-09-01T05:00:00 | AF115: 9 | AG115: 头位顺产 | AH115: 胎膜早破 | AI115: 提前自然临产伴早产 | AJ115: 单胎活产 | AK115: NULL | AL115: NULL | AM115: NULL | AN115: NULL | AO115: NULL | AP115: NULL | AQ115: NULL | AR115: 1 | AS115: 2017-08-29T20:28:00 | AT115: 自然 | AU115: 男 | AV115: 1710 | AW115: NULL | AX115: NULL | AY115: NULL | AZ115: NULL | BA115: NULL
A116: 杨浦 | B116: 新生儿室（4楼） | C116: 1002318z | D116: 男 | E116: 20170823 | G116: 2900 | H116: 2017-08-23T18:25:00 | I116: 2017-08-29T14:00:00 | J116: 6 | K116: 新生儿湿肺 | L116: 早产儿 | M116: 新生儿高胆红素血症 | N116: NULL | O116: NULL | P116: NULL | Q116: NULL | R116: NULL | S116: NULL | T116: NULL | U116: NULL | V116: 杨浦 | W116: 21病房 | X116: 1002318 | Y116: 女 | Z116: 28 | AA116: 35 | AB116: 3 | AC116: 1 | AD116: 2017-08-23T04:31:00 | AE116: 2017-08-29T05:00:00 | AF116: 6 | AG116: 选择性剖宫分娩 | AH116: 妊娠合并盆腔粘连 | AI116: 孕产妇高血压 | AJ116: 单胎活产 | AK116: 早产不伴自然临产 | AL116: NULL | AM116: NULL | AN116: NULL | AO116: NULL | AP116: NULL | AQ116: NULL | AR116: 1 | AS116: 2017-08-23T14:46:00 | AT116: 剖腹 | AU116: 男 | AV116: 2900 | AW116: NULL | AX116: NULL | AY116: NULL | AZ116: NULL | BA116: NULL
A117: 杨浦 | B117: 新生儿室（9楼） | C117: 1002321Z | D117: 女 | E117: 20170824 | F117: 2/30 | G117: 3150 | H117: 2017-08-26T09:20:00 | I117: 2017-08-29T10:00:00 | J117: 3 | K117: 新生儿高胆红素血症 | L117: 新生儿ABO溶血症 | M117: NULL | N117: NULL | O117: NULL | P117: NULL | Q117: NULL | R117: NULL | S117: NULL | T117: NULL | U117: NULL | V117: 杨浦 | W117: 21病房 | X117: 1002321 | Y117: 女 | Z117: 41 | AA117: 40 | AB117: 4 | AC117: 1 | AD117: 2017-08-23T07:33:00 | AE117: 2017-08-26T05:00:00 | AF117: 3 | AG117: 头位顺产 | AH117: 胎膜早破 | AI117: 病毒性肝炎病原携带者 | AJ117: 胎儿宫内窘迫 | AK117: 脐带绕颈 | AL117: 单胎活产 | AM117: NULL | AN117: NULL | AO117: NULL | AP117: NULL | AQ117: NULL | AR117: 1 | AS117: 2017-08-24T11:05:00 | AT117: 自然 | AU117: 女 | AV117: 3150 | AW117: NULL | AX117: NULL | AY117: NULL | AZ117: NULL | BA117: NULL
A118: 杨浦 | B118: 新生儿室（9楼） | C118: 1002327-02Z | D118: 女 | E118: 20180225 | F118: 2/30 | G118: 3600 | H118: 2018-02-27T10:00:00 | I118: 2018-03-01T10:00:00 | J118: 2 | K118: 新生儿高胆红素血症 | L118: NULL | M118: NULL | N118: NULL | O118: NULL | P118: NULL | Q118: NULL | R118: NULL | S118: NULL | T118: NULL | U118: NULL | V118: 杨浦 | W118: 23病房 | X118: 1002327 | Y118: 女 | Z118: 32 | AA118: 39 | AB118: 1 | AC118: 1 | AD118: 2018-02-22T09:13:48 | AE118: 2018-03-01T08:00:00 | AF118: 7 | AG118: 妊娠期糖尿病 | AH118: 发热 | AI118: 为胎盆不称给予的孕产妇医疗 | AJ118: 球拍状胎盘 | AK118: 经其他剖宫产术的单胎分娩 | AL118: 持续性枕后位难产 | AM118: 单一活产 | AN118: NULL | AO118: NULL | AP118: NULL | AQ118: NULL | AR118: 1 | AS118: 2018-02-25T00:34:00 | AT118: 剖腹 | AU118: 女 | AV118: 3600 | AW118: NULL | AX118: NULL | AY118: NULL | AZ118: NULL | BA118: NULL
A119: 杨浦 | B119: 新生儿室（9楼） | C119: 1002358z | D119: 男 | E119: 20170909 | F119: 4/30 | G119: 3150 | H119: 2017-09-13T09:01:00 | I119: 2017-09-15T10:00:00 | J119: 2 | K119: 新生儿高胆红素血症 | L119: 新生儿结膜炎 | M119: NULL | N119: NULL | O119: NULL | P119: NULL | Q119: NULL | R119: NULL | S119: NULL | T119: NULL | U119: NULL | V119: 杨浦 | W119: 23病房 | X119: 1002358 | Y119: 女 | Z119: 28 | AA119: 38 | AB119: 2 | AC119: 1 | AD119: 2017-09-09T00:01:00 | AE119: 2017-09-13T05:00:00 | AF119: 4 | AG119: 头位顺产 | AH119: 妊娠期糖尿病 | AI119: 胎膜早破 | AJ119: 肩先露难产 | AK119: 单胎活产 | AL119: NULL | AM119: NULL | AN119: NULL | AO119: NULL | AP119: NULL | AQ119: NULL | AR119: 1 | AS119: 2017-09-09T20:02:00 | AT119: 自然 | AU119: 男 | AV119: 3150 | AW119: NULL | AX119: NULL | AY119: NULL | AZ119: NULL | BA119: NULL
A120: 杨浦 | B120: 新生儿室（4楼） | C120: 1002366Z | D120: 女 | E120: 20170831 | G120: 3080 | H120: 2017-08-31T23:34:00 | I120: 2017-09-05T08:00:00 | J120: 5 | K120: 新生儿湿肺 | L120: Ⅰ度腭裂 | M120: NULL | N120: NULL | O120: NULL | P120: NULL | Q120: NULL | R120: NULL | S120: NULL | T120: NULL | U120: NULL | V120: 杨浦 | W120: 24病房 | X120: 1002366 | Y120: 女 | Z120: 29 | AA120: 40 | AB120: 1 | AC120: 1 | AD120: 2017-08-29T23:06:15 | AE120: 2017-09-05T05:00:00 | AF120: 7 | AG120: 低位产钳助产分娩 | AH120: 产后即时出血 | AI120: 胎儿宫内窘迫 | AJ120: 产后尿潴留 | AK120: 脐带过短 | AL120: 单胎活产 | AM120: NULL | AN120: NULL | AO120: NULL | AP120: NULL | AQ120: NULL | AR120: 1 | AS120: 2017-08-31T23:11:00 | AT120: 产钳 | AU120: 女 | AV120: 3080 | AW120: NULL | AX120: NULL | AY120: NULL | AZ120: NULL | BA120: NULL
A121: 杨浦 | B121: 新生儿室（9楼） | C121: 1002372Z | D121: 男 | E121: 20170828 | G121: 3490 | H121: 2017-08-28T09:25:00 | I121: 2017-08-31T10:00:00 | J121: 3 | K121: 新生儿高胆红素血症 | L121: 新生儿ABO溶血症 | M121: NULL | N121: NULL | O121: NULL | P121: NULL | Q121: NULL | R121: NULL | S121: NULL | T121: NULL | U121: NULL | V121: 杨浦 | W121: 25病房 | X121: 1002372 | Y121: 女 | Z121: 28 | AA121: 38 | AB121: 1 | AC121: 1 | AD121: 2017-08-23T15:54:40 | AE121: 2017-08-28T14:00:00 | AF121: 5 | AG121: 头位顺产 | AH121: 重度子痫前期 | AI121: 妊娠期糖尿病 | AJ121: 胎儿宫内窘迫 | AK121: 脐带绕颈 | AL121: 单胎活产 | AM121: NULL | AN121: NULL | AO121: NULL | AP121: NULL | AQ121: NULL | AR121: 1 | AS121: 2017-08-25T09:25:00 | AT121: 自然 | AU121: 男 | AV121: 3490 | AW121: NULL | AX121: NULL | AY121: NULL | AZ121: NULL | BA121: NULL
A122: 杨浦 | B122: 新生儿室（9楼） | C122: 1002377Z | D122: 女 | E122: 20170824 | F122: 2/30 | G122: 2410 | H122: 2017-08-26T11:48:00 | I122: 2017-08-31T14:00:00 | J122: 5 | K122: 早产儿 | L122: 低出生体重儿 | M122: 新生儿高胆红素血症 | N122: NULL | O122: NULL | P122: NULL | Q122: NULL | R122: NULL | S122: NULL | T122: NULL | U122: NULL | V122: 杨浦 | W122: 25病房 | X122: 1002377 | Y122: 女 | Z122: 31 | AA122: 36 | AB122: 1 | AC122: 1 | AD122: 2017-08-23T20:30:00 | AE122: 2017-08-27T05:00:00 | AF122: 4 | AG122: 头位顺产 | AH122: 胎膜早破 | AI122: 提前自然临产伴早产 | AJ122: 脐带绕颈 | AK122: 单胎活产 | AL122: NULL | AM122: NULL | AN122: NULL | AO122: NULL | AP122: NULL | AQ122: NULL | AR122: 1 | AS122: 2017-08-24T15:00:00 | AT122: 自然 | AU122: 女 | AV122: 2410 | AW122: NULL | AX122: NULL | AY122: NULL | AZ122: NULL | BA122: NULL
A123: 杨浦 | B123: 新生儿室（4楼） | C123: 1002379Z | D123: 男 | E123: 20170828 | G123: 2010 | H123: 2017-08-28T07:57:00 | I123: 2017-09-09T08:00:00 | J123: 12 | K123: 早产儿 | L123: 低出生体重儿 | M123: 新生儿湿肺 | N123: 新生儿高胆红素血症 | O123: NULL | P123: NULL | Q123: NULL | R123: NULL | S123: NULL | T123: NULL | U123: NULL | V123: 杨浦 | W123: 21病房 | X123: 1002379 | Y123: 女 | Z123: 37 | AA123: 34 | AB123: 2 | AC123: 1 | AD123: 2017-08-25T15:31:00 | AE123: 2017-09-01T05:00:00 | AF123: 7 | AG123: 特指剖宫单胎分娩 | AH123: 子宫内膜异位症 | AI123: 胎盘早期剥离 | AJ123: 孕产妇高血压 | AK123: 早产不伴自然临产 | AL123: 人工授精 | AM123: 子宫腺肌症 | AN123: 单胎活产 | AO123: NULL | AP123: NULL | AQ123: NULL | AR123: 1 | AS123: 2017-08-28T07:43:00 | AT123: 剖腹 | AU123: 男 | AV123: 2010 | AW123: NULL | AX123: NULL | AY123: NULL | AZ123: NULL | BA123: NULL
A124: 杨浦 | B124: 新生儿室（4楼） | C124: 1002380Y | D124: 男 | E124: 20170823 | F124: 1/30 | G124: 2740 | H124: 2017-08-24T04:26:00 | I124: 2017-08-29T15:00:00 | J124: 4 | K124: 新生儿轻度窒息 | L124: 新生儿酸中毒 | M124: 新生儿湿肺 | N124: 早产儿 | O124: 新生儿高胆红素血症 | P124: NULL | Q124: NULL | R124: NULL | S124: NULL | T124: NULL | U124: NULL | V124: NULL | W124: NULL | X124: NULL | Y124: NULL | Z124: NULL | AA124: NULL | AB124: NULL | AC124: NULL | AD124: NULL | AE124: NULL | AF124: NULL | AG124: NULL | AH124: NULL | AI124: NULL | AJ124: NULL | AK124: NULL | AL124: NULL | AM124: NULL | AN124: NULL | AO124: NULL | AP124: NULL | AQ124: NULL | AR124: NULL | AS124: NULL | AT124: NULL | AU124: NULL | AV124: NULL | AW124: NULL | AX124: NULL | AY124: NULL | AZ124: NULL | BA124: NULL
A125: 杨浦 | B125: 新生儿室（4楼） | C125: 1002380Z | D125: 女 | E125: 20170823 | F125: 1/30 | G125: 2270 | H125: 2017-08-24T04:26:00 | I125: 2017-09-05T08:00:00 | J125: 11 | K125: 新生儿湿肺 | L125: 新生儿酸中毒 | M125: 早产儿 | N125: 低出生体重儿 | O125: 新生儿泌尿系感染 | P125: NULL | Q125: NULL | R125: NULL | S125: NULL | T125: NULL | U125: NULL | V125: NULL | W125: NULL | X125: NULL | Y125: NULL | Z125: NULL | AA125: NULL | AB125: NULL | AC125: NULL | AD125: NULL | AE125: NULL | AF125: NULL | AG125: NULL | AH125: NULL | AI125: NULL | AJ125: NULL | AK125: NULL | AL125: NULL | AM125: NULL | AN125: NULL | AO125: NULL | AP125: NULL | AQ125: NULL | AR125: NULL | AS125: NULL | AT125: NULL | AU125: NULL | AV125: NULL | AW125: NULL | AX125: NULL | AY125: NULL | AZ125: NULL | BA125: NULL
A126: 杨浦 | B126: 新生儿室（9楼） | C126: 1002392Z | D126: 女 | E126: 20170825 | G126: 4280 | H126: 2017-08-25T21:27:00 | I126: 2017-08-28T15:00:00 | J126: 3 | K126: 特大婴儿 | L126: NULL | M126: NULL | N126: NULL | O126: NULL | P126: NULL | Q126: NULL | R126: NULL | S126: NULL | T126: NULL | U126: NULL | V126: 杨浦 | W126: 26病房 | X126: 1002392 | Y126: 女 | Z126: 30 | AA126: 39 | AB126: 2 | AC126: 1 | AD126: 2017-08-24T08:33:00 | AE126: 2017-08-30T14:00:00 | AF126: 5 | AG126: 特指剖宫单胎分娩 | AH126: 发热 | AI126: 胎儿宫内窘迫 | AJ126: 胎膜早破 | AK126: 妊娠合并巨大儿 | AL126: 单胎活产 | AM126: 产后即时出血 | AN126: NULL | AO126: NULL | AP126: NULL | AQ126: NULL | AR126: 1 | AS126: 2017-08-25T21:05:00 | AT126: 剖腹 | AU126: 女 | AV126: 4280 | AW126: NULL | AX126: NULL | AY126: NULL | AZ126: NULL | BA126: NULL
A127: 杨浦 | B127: 新生儿室（9楼） | C127: 1002395Z | D127: 男 | E127: 20170825 | F127: 2/30 | G127: 3030 | H127: 2017-08-27T10:54:00 | I127: 2017-08-29T10:00:00 | J127: 2 | K127: 新生儿高胆红素血症 | L127: NULL | M127: NULL | N127: NULL | O127: NULL | P127: NULL | Q127: NULL | R127: NULL | S127: NULL | T127: NULL | U127: NULL | V127: 杨浦 | W127: 22病房 | X127: 1002395 | Y127: 女 | Z127: 29 | AA127: 40 | AB127: 1 | AC127: 1 | AD127: 2017-08-24T08:38:24 | AE127: 2017-08-29T05:00:00 | AF127: 4 | AG127: 低位产钳助产分娩 | AH127: 胎儿宫内窘迫 | AI127: 脐带绕颈 | AJ127: 单胎活产 | AK127: NULL | AL127: NULL | AM127: NULL | AN127: NULL | AO127: NULL | AP127: NULL | AQ127: NULL | AR127: 1 | AS127: 2017-08-25T15:54:00 | AT127: 产钳 | AU127: 男 | AV127: 3030 | AW127: NULL | AX127: NULL | AY127: NULL | AZ127: NULL | BA127: NULL
A128: 杨浦 | B128: 新生儿室（4楼） | C128: 1002408Z | D128: 女 | E128: 20170904 | G128: 2350 | H128: 2017-09-04T16:50:00 | I128: 2017-09-12T08:00:00 | J128: 8 | K128: 早产儿 | L128: 新生儿呼吸窘迫综合征 | M128: 低出生体重儿 | N128: 新生儿酸中毒 | O128: 新生儿高胆红素血症 | P128: 新生儿特指感染 | Q128: NULL | R128: NULL | S128: NULL | T128: NULL | U128: NULL | V128: 杨浦 | W128: 26病房 | X128: 1002408 | Y128: 女 | Z128: 31 | AA128: 33 | AB128: 1 | AC128: 1 | AD128: 2017-08-24T09:09:11 | AE128: 2017-09-09T05:00:00 | AF128: 15 | AG128: 特指剖宫单胎分娩 | AH128: 早产不伴自然临产 | AI128: 前置胎盘伴出血 | AJ128: 产前出血 | AK128: 胎盘植入 | AL128: 单胎活产 | AM128: NULL | AN128: NULL | AO128: NULL | AP128: NULL | AQ128: NULL | AR128: 1 | AS128: 2017-09-04T16:39:00 | AT128: 剖腹 | AU128: 女 | AV128: 2350 | AW128: NULL | AX128: NULL | AY128: NULL | AZ128: NULL | BA128: NULL
A129: 杨浦 | B129: 新生儿室（9楼） | C129: 1002422Z | D129: 男 | E129: 20170921 | F129: 4/30 | G129: 2720 | H129: 2017-09-25T09:52:00 | I129: 2017-09-27T10:00:00 | J129: 2 | K129: 新生儿高胆红素血症 | L129: 早产儿 | M129: NULL | N129: NULL | O129: NULL | P129: NULL | Q129: NULL | R129: NULL | S129: NULL | T129: NULL | U129: NULL | V129: 杨浦 | W129: 25病房 | X129: 1002422 | Y129: 女 | Z129: 29 | AA129: 36 | AB129: 1 | AC129: 1 | AD129: 2017-09-20T10:35:20 | AE129: 2017-09-25T15:00:00 | AF129: 5 | AG129: 头位顺产 | AH129: 提前自然临产伴早产 | AI129: 胎盘早期剥离 | AJ129: 胎儿宫内窘迫 | AK129: 单胎活产 | AL129: NULL | AM129: NULL | AN129: NULL | AO129: NULL | AP129: NULL | AQ129: NULL | AR129: 1 | AS129: 2017-09-21T14:29:00 | AT129: 自然 | AU129: 男 | AV129: 2720 | AW129: NULL | AX129: NULL | AY129: NULL | AZ129: NULL | BA129: NULL
A130: 杨浦 | B130: 新生儿室（9楼） | C130: 1002423Z | D130: 男 | E130: 20170825 | F130: 3/30 | G130: 3310 | H130: 2017-08-28T10:09:00 | I130: 2017-08-31T10:00:00 | J130: 3 | K130: 新生儿高胆红素血症 | L130: NULL | M130: NULL | N130: NULL | O130: NULL | P130: NULL | Q130: NULL | R130: NULL | S130: NULL | T130: NULL | U130: NULL | V130: 杨浦 | W130: 23病房 | X130: 1002423 | Y130: 女 | Z130: 29 | AA130: 39 | AB130: 1 | AC130: 1 | AD130: 2017-08-24T10:09:57 | AE130: 2017-08-29T05:00:00 | AF130: 4 | AG130: 特指剖宫单胎分娩 | AH130: 单胎活产 | AI130: NULL | AJ130: NULL | AK130: NULL | AL130: NULL | AM130: NULL | AN130: NULL | AO130: NULL | AP130: NULL | AQ130: NULL | AR130: 1 | AS130: 2017-08-25T09:59:00 | AT130: 剖腹 | AU130: 男 | AV130: 3310 | AW130: NULL | AX130: NULL | AY130: NULL | AZ130: NULL | BA130: NULL
A131: 杨浦 | B131: 新生儿室（9楼） | C131: 1002424Z | D131: 女 | E131: 20170825 | F131: 2/30 | G131: 2960 | H131: 2017-08-27T09:28:00 | I131: 2017-08-29T10:00:00 | J131: 2 | K131: 新生儿高胆红素血症 | L131: NULL | M131: NULL | N131: NULL | O131: NULL | P131: NULL | Q131: NULL | R131: NULL | S131: NULL | T131: NULL | U131: NULL | V131: 杨浦 | W131: 26病房 | X131: 1002424 | Y131: 女 | Z131: 28 | AA131: 38 | AB131: 2 | AC131: 1 | AD131: 2017-08-24T10:22:58 | AE131: 2017-08-27T14:00:00 | AF131: 2 | AG131: 头位顺产 | AH131: 胎儿单脐动脉 | AI131: 球拍状胎盘 | AJ131: 分娩时Ⅰ度会阴裂伤 | AK131: 单胎活产 | AL131: NULL | AM131: NULL | AN131: NULL | AO131: NULL | AP131: NULL | AQ131: NULL | AR131: 1 | AS131: 2017-08-25T18:12:00 | AT131: 自然 | AU131: 女 | AV131: 2960 | AW131: NULL | AX131: NULL | AY131: NULL | AZ131: NULL | BA131: NULL
A132: 杨浦 | B132: 新生儿室（9楼） | C132: 1002427Z | D132: 女 | E132: 20170901 | F132: 2/30 | G132: 3020 | H132: 2017-09-03T09:33:00 | I132: 2017-09-05T09:00:00 | J132: 2 | K132: 新生儿高胆红素血症 | L132: NULL | M132: NULL | N132: NULL | O132: NULL | P132: NULL | Q132: NULL | R132: NULL | S132: NULL | T132: NULL | U132: NULL | V132: 杨浦 | W132: 23病房 | X132: 1002427 | Y132: 女 | Z132: 31 | AA132: 37 | AB132: 1 | AC132: 1 | AD132: 2017-08-24T11:10:08 | AE132: 2017-09-04T05:00:00 | AF132: 10 | AG132: 头位顺产 | AH132: 子痫前期 | AI132: 分娩时Ⅰ度会阴裂伤 | AJ132: 单胎活产 | AK132: NULL | AL132: NULL | AM132: NULL | AN132: NULL | AO132: NULL | AP132: NULL | AQ132: NULL | AR132: 1 | AS132: 2017-09-01T12:49:00 | AT132: 自然 | AU132: 女 | AV132: 3020 | AW132: NULL | AX132: NULL | AY132: NULL | AZ132: NULL | BA132: NULL
A133: 杨浦 | B133: 新生儿室（4楼） | C133: 1002431Z | D133: 男 | E133: 20170825 | F133: 1/30 | G133: 3550 | H133: 2017-08-26T06:13:00 | I133: 2017-08-30T14:00:00 | J133: 4 | K133: 新生儿湿肺 | L133: 新生儿高胆红素血症 | M133: NULL | N133: NULL | O133: NULL | P133: NULL | Q133: NULL | R133: NULL | S133: NULL | T133: NULL | U133: NULL | V133: 杨浦 | W133: 26病房 | X133: 1002431 | Y133: 女 | Z133: 30 | AA133: 40 | AB133: 1 | AC133: 1 | AD133: 2017-08-24T11:39:39 | AE133: 2017-08-29T05:00:00 | AF133: 4 | AG133: 头位顺产 | AH133: 胎儿宫内窘迫 | AI133: 羊水污染II度， | AJ133: 单胎活产 | AK133: NULL | AL133: NULL | AM133: NULL | AN133: NULL | AO133: NULL | AP133: NULL | AQ133: NULL | AR133: 1 | AS133: 2017-08-25T22:39:00 | AT133: 自然 | AU133: 男 | AV133: 3550 | AW133: NULL | AX133: NULL | AY133: NULL | AZ133: NULL | BA133: NULL
A134: 杨浦 | B134: 新生儿室（9楼） | C134: 1002443Z | D134: 女 | E134: 20170825 | F134: 3/30 | G134: 3490 | H134: 2017-08-28T10:50:00 | I134: 2017-08-30T10:00:00 | J134: 2 | K134: 新生儿高胆红素血症 | L134: NULL | M134: NULL | N134: NULL | O134: NULL | P134: NULL | Q134: NULL | R134: NULL | S134: NULL | T134: NULL | U134: NULL | V134: 杨浦 | W134: 22病房 | X134: 1002443 | Y134: 女 | Z134: 31 | AA134: 41 | AB134: 1 | AC134: 1 | AD134: 2017-08-24T14:32:03 | AE134: 2017-08-28T14:00:00 | AF134: 3 | AG134: 头位顺产 | AH134: 单胎活产 | AI134: NULL | AJ134: NULL | AK134: NULL | AL134: NULL | AM134: NULL | AN134: NULL | AO134: NULL | AP134: NULL | AQ134: NULL | AR134: 1 | AS134: 2017-08-25T11:48:00 | AT134: 自然 | AU134: 女 | AV134: 3490 | AW134: NULL | AX134: NULL | AY134: NULL | AZ134: NULL | BA134: NULL
A135: 杨浦 | B135: 新生儿室（9楼） | C135: 1002444Z | D135: 男 | E135: 20170825 | F135: 1/30 | G135: 4000 | H135: 2017-08-26T12:56:00 | I135: 2017-08-30T15:00:00 | J135: 4 | K135: 新生儿特指感染 | L135: 特大婴儿 | M135: NULL | N135: NULL | O135: NULL | P135: NULL | Q135: NULL | R135: NULL | S135: NULL | T135: NULL | U135: NULL | V135: 杨浦 | W135: 22病房 | X135: 1002444 | Y135: 女 | Z135: 23 | AA135: 40 | AB135: 2 | AC135: 1 | AD135: 2017-08-24T14:39:58 | AE135: 2017-08-28T05:00:00 | AF135: 3 | AG135: 头位顺产 | AH135: 妊娠合并甲状腺机能减退 | AI135: 肩先露难产 | AJ135: 妊娠合并巨大儿 | AK135: 胎儿宫内窘迫 | AL135: 脐带绕颈 | AM135: 单胎活产 | AN135: NULL | AO135: NULL | AP135: NULL | AQ135: NULL | AR135: 1 | AS135: 2017-08-25T06:49:00 | AT135: 自然 | AU135: 男 | AV135: 4000 | AW135: NULL | AX135: NULL | AY135: NULL | AZ135: NULL | BA135: NULL
A136: 杨浦 | B136: 新生儿室（9楼） | C136: 1002453Z | D136: 男 | E136: 20170831 | G136: 2290 | H136: 2017-08-31T12:31:00 | I136: 2017-09-02T10:00:00 | J136: 2 | K136: 低出生体重儿 | L136: NULL | M136: NULL | N136: NULL | O136: NULL | P136: NULL | Q136: NULL | R136: NULL | S136: NULL | T136: NULL | U136: NULL | V136: 杨浦 | W136: 25病房 | X136: 1002453 | Y136: 女 | Z136: 40 | AA136: 38 | AB136: 3 | AC136: 1 | AD136: 2017-08-24T22:46:30 | AE136: 2017-09-02T05:00:00 | AF136: 8 | AG136: 头位顺产 | AH136: 妊娠期糖尿病 | AI136: 孕产妇高血压 | AJ136: 妊娠合并子宫体肿瘤 | AK136: 高龄初产妇妊娠监督 | AL136: 急产 | AM136: 分娩时Ⅰ度会阴裂伤 | AN136: 单胎活产 | AO136: NULL | AP136: NULL | AQ136: NULL | AR136: 1 | AS136: 2017-08-31T11:27:00 | AT136: 自然 | AU136: 男 | AV136: 2290 | AW136: NULL | AX136: NULL | AY136: NULL | AZ136: NULL | BA136: NULL
A137: 杨浦 | B137: 新生儿室（4楼） | C137: 1002455Z | D137: 女 | E137: 20170825 | G137: 3400 | H137: 2017-08-25T08:50:00 | I137: 2017-08-30T14:00:00 | J137: 5 | K137: 新生儿湿肺 | L137: 新生儿特指感染 | M137: 新生儿高胆红素血症 | N137: 产伤致新生儿颅内出血 | O137: NULL | P137: NULL | Q137: NULL | R137: NULL | S137: NULL | T137: NULL | U137: NULL | V137: 杨浦 | W137: 24病房 | X137: 1002455 | Y137: 女 | Z137: 33 | AA137: 38 | AB137: 2 | AC137: 1 | AD137: 2017-08-25 | AE137: 2017-08-28T05:00:00 | AF137: 3 | AG137: 头位顺产 | AH137: 脐带绕颈 | AI137: 急产 | AJ137: 产后即时出血 | AK137: 分娩时Ⅱ度会阴裂伤 | AL137: 单胎活产 | AM137: NULL | AN137: NULL | AO137: NULL | AP137: NULL | AQ137: NULL | AR137: 1 | AS137: 2017-08-25T02:05:00 | AT137: 自然 | AU137: 女 | AV137: 3400 | AW137: NULL | AX137: NULL | AY137: NULL | AZ137: NULL | BA137: NULL
A138: 杨浦 | B138: 新生儿室（9楼） | C138: 1002456Z | D138: 男 | E138: 20170825 | F138: 3/30 | G138: 3000 | H138: 2017-08-28T10:24:00 | I138: 2017-08-31T10:00:00 | J138: 3 | K138: 新生儿高胆红素血症 | L138: 先天性指畸形 | M138: NULL | N138: NULL | O138: NULL | P138: NULL | Q138: NULL | R138: NULL | S138: NULL | T138: NULL | U138: NULL | V138: 杨浦 | W138: 26病房 | X138: 1002456 | Y138: 女 | Z138: 38 | AA138: 37 | AB138: 3 | AC138: 1 | AD138: 2017-08-25T00:13:00 | AE138: 2017-08-29T05:00:00 | AF138: 4 | AG138: 头位顺产 | AH138: 胎儿异常 | AI138: 妊娠合并子宫体肿瘤 | AJ138: 胎盘粘连 | AK138: 分娩时Ⅰ度会阴裂伤 | AL138: 单胎活产 | AM138: NULL | AN138: NULL | AO138: NULL | AP138: NULL | AQ138: NULL | AR138: 1 | AS138: 2017-08-25T01:29:00 | AT138: 自然 | AU138: 男 | AV138: 3000 | AW138: NULL | AX138: NULL | AY138: NULL | AZ138: NULL | BA138: NULL
A139: 杨浦 | B139: 新生儿室（9楼） | C139: 1002457Z | D139: 男 | E139: 20170921 | F139: 2/30 | G139: 3540 | H139: 2017-09-23T12:59:00 | I139: 2017-09-26T15:00:00 | J139: 3 | K139: 新生儿特指感染 | L139: 新生儿高胆红素血症 | M139: NULL | N139: NULL | O139: NULL | P139: NULL | Q139: NULL | R139: NULL | S139: NULL | T139: NULL | U139: NULL | V139: 杨浦 | W139: 21病房 | X139: 1002457 | Y139: 女 | Z139: 31 | AA139: 41 | AB139: 2 | AC139: 1 | AD139: 2017-09-17T12:59:30 | AE139: 2017-09-25T05:00:00 | AF139: 8 | AG139: 低位产钳助产分娩 | AH139: 发热 | AI139: 胎儿宫内窘迫 | AJ139: 单胎活产 | AK139: 产伤性阴道后穹隆裂伤 | AL139: NULL | AM139: NULL | AN139: NULL | AO139: NULL | AP139: NULL | AQ139: NULL | AR139: 1 | AS139: 2017-09-21T23:33:00 | AT139: 产钳 | AU139: 男 | AV139: 3540 | AW139: NULL | AX139: NULL | AY139: NULL | AZ139: NULL | BA139: NULL
A140: 杨浦 | B140: 新生儿室（4楼） | C140: 1002459Z | D140: 男 | E140: 20170826 | G140: 3250 | H140: 2017-08-26T12:24:00 | I140: 2017-08-30T14:00:00 | J140: 4 | K140: 新生儿湿肺 | L140: 新生儿高胆红素血症 | M140: NULL | N140: NULL | O140: NULL | P140: NULL | Q140: NULL | R140: NULL | S140: NULL | T140: NULL | U140: NULL | V140: 杨浦 | W140: 25病房 | X140: 1002459 | Y140: 女 | Z140: 27 | AA140: 39 | AB140: 1 | AC140: 1 | AD140: 2017-08-25T07:22:19 | AE140: 2017-08-30T14:00:00 | AF140: 5 | AG140: 头位顺产 | AH140: 脐带绕颈 | AI140: 单胎活产 | AJ140: NULL | AK140: NULL | AL140: NULL | AM140: NULL | AN140: NULL | AO140: NULL | AP140: NULL | AQ140: NULL | AR140: 1 | AS140: 2017-08-26T07:16:00 | AT140: 自然 | AU140: 男 | AV140: 3250 | AW140: NULL | AX140: NULL | AY140: NULL | AZ140: NULL | BA140: NULL
A141: 杨浦 | B141: 新生儿室（9楼） | C141: 1002490Z | D141: 女 | E141: 20170909 | F141: 1/30 | G141: 3700 | H141: 2017-09-10T01:05:00 | I141: 2017-09-13T15:00:00 | J141: 3 | K141: 新生儿高胆红素血症 | L141: NULL | M141: NULL | N141: NULL | O141: NULL | P141: NULL | Q141: NULL | R141: NULL | S141: NULL | T141: NULL | U141: NULL | V141: 杨浦 | W141: 25病房 | X141: 1002490 | Y141: 女 | Z141: 29 | AA141: 39 | AB141: 1 | AC141: 1 | AD141: 2017-09-08T12:46:18 | AE141: 2017-09-13T05:00:00 | AF141: 4 | AG141: 头位顺产 | AH141: 发热 | AI141: 单胎活产 | AJ141: NULL | AK141: NULL | AL141: NULL | AM141: NULL | AN141: NULL | AO141: NULL | AP141: NULL | AQ141: NULL | AR141: 1 | AS141: 2017-09-10T00:33:00 | AT141: 自然 | AU141: 女 | AV141: 3700 | AW141: NULL | AX141: NULL | AY141: NULL | AZ141: NULL | BA141: NULL
A142: 杨浦 | B142: 新生儿室（9楼） | C142: 1002493M | D142: 男 | E142: 20170826 | F142: 4/30 | G142: 3400 | H142: 2017-08-30T16:00:00 | I142: 2017-09-02T10:00:00 | J142: 3 | K142: 新生儿结膜炎 | L142: 新生儿高胆红素血症 | M142: NULL | N142: NULL | O142: NULL | P142: NULL | Q142: NULL | R142: NULL | S142: NULL | T142: NULL | U142: NULL | V142: 杨浦 | W142: 21病房 | X142: 1002493 | Y142: 女 | Z142: 30 | AA142: 39 | AB142: 1 | AC142: 1 | AD142: 2017-08-25T10:24:22 | AE142: 2017-08-28T14:00:00 | AF142: 3 | AG142: 头位顺产 | AH142: 分娩时Ⅱ度会阴裂伤 | AI142: 脐带绕颈 | AJ142: 单胎活产 | AK142: NULL | AL142: NULL | AM142: NULL | AN142: NULL | AO142: NULL | AP142: NULL | AQ142: NULL | AR142: 1 | AS142: 2017-08-25T20:46:00 | AT142: 自然 | AU142: 男 | AV142: 3400 | AW142: NULL | AX142: NULL | AY142: NULL | AZ142: NULL | BA142: NULL
A143: 杨浦 | B143: 新生儿室（9楼） | C143: 1002515Z | D143: 男 | E143: 20170827 | F143: 3/30 | G143: 3590 | H143: 2017-08-30T09:34:00 | I143: 2017-09-02T14:00:00 | J143: 3 | K143: 新生儿高胆红素血症 | L143: 产伤致新生儿头颅血肿 | M143: NULL | N143: NULL | O143: NULL | P143: NULL | Q143: NULL | R143: NULL | S143: NULL | T143: NULL | U143: NULL | V143: 杨浦 | W143: 25病房 | X143: 1002515 | Y143: 女 | Z143: 24 | AA143: 39 | AB143: 2 | AC143: 1 | AD143: 2017-08-25T14:48:59 | AE143: 2017-08-31T05:00:00 | AF143: 6 | AG143: 低位产钳助产分娩 | AH143: 胎膜早破 | AI143: 脐带绕颈 | AJ143: 单胎活产 | AK143: NULL | AL143: NULL | AM143: NULL | AN143: NULL | AO143: NULL | AP143: NULL | AQ143: NULL | AR143: 1 | AS143: 2017-08-27T22:26:00 | AT143: 产钳 | AU143: 男 | AV143: 3590 | AW143: NULL | AX143: NULL | AY143: NULL | AZ143: NULL | BA143: NULL
A144: 杨浦 | B144: 新生儿室（4楼） | C144: 1002516Z | D144: 男 | E144: 20170920 | G144: 2500 | H144: 2017-09-20T13:18:00 | I144: 2017-09-23T14:00:00 | J144: 3 | K144: 新生儿轻度窒息 | L144: 新生儿湿肺 | M144: 新生儿高胆红素血症 | N144: NULL | O144: NULL | P144: NULL | Q144: NULL | R144: NULL | S144: NULL | T144: NULL | U144: NULL | V144: 杨浦 | W144: 22病房 | X144: 1002516 | Y144: 女 | Z144: 33 | AA144: 38 | AB144: 3 | AC144: 1 | AD144: 2017-09-17T09:12:34 | AE144: 2017-09-23T05:00:00 | AF144: 6 | AG144: 头位顺产 | AH144: 单胎活产 | AI144: 分娩时Ⅱ度会阴裂伤 | AJ144: NULL | AK144: NULL | AL144: NULL | AM144: NULL | AN144: NULL | AO144: NULL | AP144: NULL | AQ144: NULL | AR144: 1 | AS144: 2017-09-20T13:00:00 | AT144: 自然 | AU144: 男 | AV144: 2500 | AW144: NULL | AX144: NULL | AY144: NULL | AZ144: NULL | BA144: NULL
A145: 杨浦 | B145: 新生儿室（4楼） | C145: 1002517Z | D145: 女 | E145: 20171207 | G145: 3900 | H145: 2017-12-07T12:00:00 | I145: 2017-12-08T12:00:00 | J145: 1 | K145: 新生儿湿肺 | L145: 新生儿呼吸窘迫综合征 | M145: 继发性肺动脉高压，其他的 | N145: 特发于围生期的其他特指感染 | O145: NULL | P145: NULL | Q145: NULL | R145: NULL | S145: NULL | T145: NULL | U145: NULL | V145: 杨浦 | W145: 21病房 | X145: 1002517 | Y145: 女 | Z145: 28 | AA145: 38 | AB145: 1 | AC145: 1 | AD145: 2017-12-06T12:04:26 | AE145: 2017-12-11T08:00:00 | AF145: 5 | AG145: 经其他剖宫产术的单胎分娩 | AH145: 轻度子痫前期 | AI145: 人工授精 | AJ145: 单一活产 | AK145: NULL | AL145: NULL | AM145: NULL | AN145: NULL | AO145: NULL | AP145: NULL | AQ145: NULL | AR145: 1 | AS145: 2017-12-07T09:43:00 | AT145: 剖腹 | AU145: 女 | AV145: 3900 | AW145: NULL | AX145: NULL | AY145: NULL | AZ145: NULL | BA145: NULL
A146: 杨浦 | B146: 新生儿室（9楼） | C146: 1002520Z | D146: 男 | E146: 20171016 | F146: 3/30 | G146: 2630 | H146: 2017-10-19T10:15:00 | I146: 2017-10-21T10:00:00 | J146: 2 | K146: 新生儿高胆红素血症 | L146: 早产儿 | M146: NULL | N146: NULL | O146: NULL | P146: NULL | Q146: NULL | R146: NULL | S146: NULL | T146: NULL | U146: NULL | V146: 杨浦 | W146: 24病房 | X146: 1002520 | Y146: 女 | Z146: 29 | AA146: 35 | AB146: 1 | AC146: 1 | AD146: 2017-10-15T23:44:01 | AE146: 2017-10-19T05:00:00 | AF146: 4 | AG146: 头位顺产 | AH146: 脐带绕颈 | AI146: 提前自然临产伴早产 | AJ146: 胎膜早破 | AK146: 妊娠期糖尿病 | AL146: 病毒性肝炎病原携带者 | AM146: 单胎活产 | AN146: NULL | AO146: NULL | AP146: NULL | AQ146: NULL | AR146: 1 | AS146: 2017-10-16T06:40:00 | AT146: 自然 | AU146: 男 | AV146: 2630 | AW146: NULL | AX146: NULL | AY146: NULL | AZ146: NULL | BA146: NULL
A147: 杨浦 | B147: 新生儿室（9楼） | C147: 1002523Z | D147: 男 | E147: 20170827 | F147: 3/30 | G147: 2820 | H147: 2017-08-30T09:00:00 | I147: 2017-09-02T14:00:00 | J147: 3 | K147: 新生儿高胆红素血症 | L147: 早产儿 | M147: NULL | N147: NULL | O147: NULL | P147: NULL | Q147: NULL | R147: NULL | S147: NULL | T147: NULL | U147: NULL | V147: 杨浦 | W147: 24病房 | X147: 1002523 | Y147: 女 | Z147: 38 | AA147: 35 | AB147: 1 | AC147: 1 | AD147: 2017-08-26T00:15:00 | AE147: 2017-08-30T05:00:00 | AF147: 4 | AG147: 头位顺产 | AH147: 提前自然临产伴早产 | AI147: 胎膜早破 | AJ147: 高龄初产妇妊娠监督 | AK147: 单胎活产 | AL147: NULL | AM147: NULL | AN147: NULL | AO147: NULL | AP147: NULL | AQ147: NULL | AR147: 1 | AS147: 2017-08-27T02:50:00 | AT147: 自然 | AU147: 男 | AV147: 2820 | AW147: NULL | AX147: NULL | AY147: NULL | AZ147: NULL | BA147: NULL
A148: 杨浦 | B148: 新生儿室（4楼） | C148: 1002527z | D148: 女 | E148: 20170826 | F148: 1/30 | G148: 2030 | H148: 2017-08-27T02:11:00 | I148: 2017-09-05T08:00:00 | J148: 9 | K148: 早产儿 | L148: 低出生体重儿 | M148: 新生儿湿肺 | N148: 新生儿高胆红素血症 | O148: 新生儿ABO溶血症 | P148: NULL | Q148: NULL | R148: NULL | S148: NULL | T148: NULL | U148: NULL | V148: 杨浦 | W148: 25病房 | X148: 1002527 | Y148: 女 | Z148: 34 | AA148: 33 | AB148: 2 | AC148: 1 | AD148: 2017-08-26T03:35:00 | AE148: 2017-08-30T05:00:00 | AF148: 4 | AG148: 头位顺产 | AH148: 胎膜早破 | AI148: 提前自然临产伴早产 | AJ148: 急产 | AK148: 妊娠合并子宫瘢痕 | AL148: 分娩时Ⅰ度会阴裂伤 | AM148: 单胎活产 | AN148: NULL | AO148: NULL | AP148: NULL | AQ148: NULL | AR148: 1 | AS148: 2017-08-27T02:01:00 | AT148: 自然 | AU148: 女 | AV148: 2030 | AW148: NULL | AX148: NULL | AY148: NULL | AZ148: NULL | BA148: NULL
A149: 杨浦 | B149: 新生儿室（9楼） | C149: 1002544Z | D149: 男 | E149: 20170827 | F149: 1/30 | G149: 3320 | H149: 2017-08-28T02:32:00 | I149: 2017-09-01T15:00:00 | J149: 4 | K149: 新生儿特指感染 | L149: NULL | M149: NULL | N149: NULL | O149: NULL | P149: NULL | Q149: NULL | R149: NULL | S149: NULL | T149: NULL | U149: NULL | V149: 杨浦 | W149: 25病房 | X149: 1002544 | Y149: 女 | Z149: 34 | AA149: 38 | AB149: 4 | AC149: 1 | AD149: 2017-08-26T17:14:00 | AE149: 2017-08-31T05:00:00 | AF149: 5 | AG149: 头位顺产 | AH149: 妊娠合并子宫瘢痕 | AI149: 急产 | AJ149: 发热 | AK149: 分娩时Ⅰ度会阴裂伤 | AL149: 单胎活产 | AM149: NULL | AN149: NULL | AO149: NULL | AP149: NULL | AQ149: NULL | AR149: 1 | AS149: 2017-08-28T02:03:00 | AT149: 自然 | AU149: 男 | AV149: 3320 | AW149: NULL | AX149: NULL | AY149: NULL | AZ149: NULL | BA149: NULL
A150: 杨浦 | B150: 新生儿室（9楼） | C150: 1002545Y | D150: 男 | E150: 20170908 | G150: 2480 | H150: 2017-09-08T15:56:00 | I150: 2017-09-13T10:00:00 | J150: 4 | K150: 新生儿高胆红素血症 | L150: 低出生体重儿 | M150: NULL | N150: NULL | O150: NULL | P150: NULL | Q150: NULL | R150: NULL | S150: NULL | T150: NULL | U150: NULL | V150: 杨浦 | W150: 26病房 | X150: 1002545 | Y150: 女 | Z150: 29 | AA150: 37 | AB150: 1 | AC150: 2 | AD150: 2017-08-26T23:52:36 | AE150: 2017-09-12T05:00:00 | AF150: 17 | AG150: 多胎剖宫分娩 | AH150: 臀先露 | AI150: 双胎活产 | AJ150: NULL | AK150: NULL | AL150: NULL | AM150: NULL | AN150: NULL | AO150: NULL | AP150: NULL | AQ150: NULL | AR150: 1 | AS150: 2017-09-08T08:31:00 | AT150: 剖腹 | AU150: 女 | AV150: 2140 | AW150: 2 | AX150: 2017-09-08T08:33:00 | AY150: 剖腹 | AZ150: 男 | BA150: 2480
A151: 杨浦 | B151: 新生儿室（9楼） | C151: 1002545Z | D151: 女 | E151: 20170908 | G151: 2140 | H151: 2017-09-08T09:46:00 | I151: 2017-09-12T10:00:00 | J151: 4 | K151: 足月小样低体重儿 | L151: 新生儿呼吸性酸中毒 | M151: NULL | N151: NULL | O151: NULL | P151: NULL | Q151: NULL | R151: NULL | S151: NULL | T151: NULL | U151: NULL | V151: 杨浦 | W151: 26病房 | X151: 1002545 | Y151: 女 | Z151: 29 | AA151: 37 | AB151: 1 | AC151: 2 | AD151: 2017-08-26T23:52:36 | AE151: 2017-09-12T05:00:00 | AF151: 17 | AG151: 多胎剖宫分娩 | AH151: 臀先露 | AI151: 双胎活产 | AJ151: NULL | AK151: NULL | AL151: NULL | AM151: NULL | AN151: NULL | AO151: NULL | AP151: NULL | AQ151: NULL | AR151: 1 | AS151: 2017-09-08T08:31:00 | AT151: 剖腹 | AU151: 女 | AV151: 2140 | AW151: 2 | AX151: 2017-09-08T08:33:00 | AY151: 剖腹 | AZ151: 男 | BA151: 2480
A152: 杨浦 | B152: 新生儿室（4楼） | C152: 1002547Z | D152: 男 | E152: 20170914 | G152: 3660 | H152: 2017-09-14T10:25:00 | I152: 2017-09-21T08:00:00 | J152: 7 | K152: 新生儿湿肺 | L152: 新生儿特指感染 | M152: 新生儿高胆红素血症 | N152: NULL | O152: NULL | P152: NULL | Q152: NULL | R152: NULL | S152: NULL | T152: NULL | U152: NULL | V152: 杨浦 | W152: 24病房 | X152: 1002547 | Y152: 女 | Z152: 34 | AA152: 38 | AB152: 4 | AC152: 1 | AD152: 2017-09-13T09:49:27 | AE152: 2017-09-18T05:00:00 | AF152: 5 | AG152: 选择性剖宫分娩 | AH152: 单胎活产 | AI152: NULL | AJ152: NULL | AK152: NULL | AL152: NULL | AM152: NULL | AN152: NULL | AO152: NULL | AP152: NULL | AQ152: NULL | AR152: 1 | AS152: 2017-09-14T09:22:00 | AT152: 剖腹 | AU152: 男 | AV152: 3660 | AW152: NULL | AX152: NULL | AY152: NULL | AZ152: NULL | BA152: NULL
A153: 杨浦 | B153: 新生儿室（9楼） | C153: 1002550Z | D153: 女 | E153: 20170828 | F153: 3/30 | G153: 2760 | H153: 2017-08-31T10:17:00 | I153: 2017-09-04T10:00:00 | J153: 4 | K153: 新生儿高胆红素血症 | L153: 新生儿ABO溶血症 | M153: 新生儿红细胞增多症 | N153: 早产儿 | O153: NULL | P153: NULL | Q153: NULL | R153: NULL | S153: NULL | T153: NULL | U153: NULL | V153: 杨浦 | W153: 22病房 | X153: 1002550 | Y153: 女 | Z153: 24 | AA153: 36 | AB153: 1 | AC153: 1 | AD153: 2017-08-27T07:33:00 | AE153: 2017-09-02T05:00:00 | AF153: 6 | AG153: 头位顺产 | AH153: 提前自然临产伴早产 | AI153: 胎膜早破 | AJ153: 妊娠合并卵巢囊肿 | AK153: 分娩时Ⅰ度会阴裂伤 | AL153: 脐带绕颈 | AM153: 单胎活产 | AN153: NULL | AO153: NULL | AP153: NULL | AQ153: NULL | AR153: 1 | AS153: 2017-08-28T13:34:00 | AT153: 自然 | AU153: 女 | AV153: 2760 | AW153: NULL | AX153: NULL | AY153: NULL | AZ153: NULL | BA153: NULL
A154: 杨浦 | B154: 新生儿室（4楼） | C154: 1002570Y | D154: 男 | E154: 20170829 | G154: 2860 | H154: 2017-08-29T11:45:00 | I154: 2017-09-07T14:00:00 | J154: 9 | K154: 新生儿湿肺 | L154: 新生儿酸中毒 | M154: 新生儿高胆红素血症 | N154: NULL | O154: NULL | P154: NULL | Q154: NULL | R154: NULL | S154: NULL | T154: NULL | U154: NULL | V154: 杨浦 | W154: 24病房 | X154: 1002570 | Y154: 女 | Z154: 28 | AA154: 37 | AB154: 1 | AC154: 2 | AD154: 2017-08-27T15:08:00 | AE154: 2017-09-02T05:00:00 | AF154: 6 | AG154: 多胎剖宫分娩 | AH154: 臀先露 | AI154: 人工授精 | AJ154: 双胎活产 | AK154: NULL | AL154: NULL | AM154: NULL | AN154: NULL | AO154: NULL | AP154: NULL | AQ154: NULL | AR154: 1 | AS154: 2017-08-29T10:16:00 | AT154: 剖腹 | AU154: 男 | AV154: 3200 | AW154: 2 | AX154: 2017-08-29T10:18:00 | AY154: 剖腹 | AZ154: 男 | BA154: 2860
A155: 杨浦 | B155: 新生儿室（9楼） | C155: 1002574M | D155: 女 | E155: 20170829 | F155: 9/30 | G155: 3670 | H155: 2017-09-07T16:31:00 | I155: 2017-09-10T15:00:00 | J155: 3 | K155: 新生儿高胆红素血症 | L155: NULL | M155: NULL | N155: NULL | O155: NULL | P155: NULL | Q155: NULL | R155: NULL | S155: NULL | T155: NULL | U155: NULL | V155: 杨浦 | W155: 21病房 | X155: 1002574 | Y155: 女 | Z155: 27 | AA155: 40 | AB155: 1 | AC155: 1 | AD155: 2017-08-28T05:41:00 | AE155: 2017-09-01T14:00:00 | AF155: 4 | AG155: 头位顺产 | AH155: 发热 | AI155: 单胎活产 | AJ155: NULL | AK155: NULL | AL155: NULL | AM155: NULL | AN155: NULL | AO155: NULL | AP155: NULL | AQ155: NULL | AR155: 1 | AS155: 2017-08-29T19:05:00 | AT155: 自然 | AU155: 女 | AV155: 3670 | AW155: NULL | AX155: NULL | AY155: NULL | AZ155: NULL | BA155: NULL
A156: 杨浦 | B156: 新生儿室（4楼） | C156: 1002576Z | D156: 男 | E156: 20170830 | F156: 1/30 | G156: 3640 | H156: 2017-08-31T12:00:00 | I156: 2017-08-31T12:00:00 | J156: 1 | K156: 新生儿胎粪吸入综合征 | L156: 新生儿特指感染 | M156: 新生儿呼吸性酸中毒 | N156: 原发性肺动脉高压 | O156: NULL | P156: NULL | Q156: NULL | R156: NULL | S156: NULL | T156: NULL | U156: NULL | V156: 杨浦 | W156: 26病房 | X156: 1002576 | Y156: 女 | Z156: 33 | AA156: 40 | AB156: 1 | AC156: 1 | AD156: 2017-08-28T06:14:14 | AE156: 2017-09-02T05:00:00 | AF156: 5 | AG156: 头位顺产 | AH156: 胎儿宫内窘迫 | AI156: 妊娠合并子宫体肿瘤 | AJ156: 妊娠合并卵巢囊肿 | AK156: 脐带绕颈 | AL156: 单胎活产 | AM156: NULL | AN156: NULL | AO156: NULL | AP156: NULL | AQ156: NULL | AR156: 1 | AS156: 2017-08-30T22:29:00 | AT156: 自然 | AU156: 男 | AV156: 3640 | AW156: NULL | AX156: NULL | AY156: NULL | AZ156: NULL | BA156: NULL
A157: 杨浦 | B157: 新生儿室（9楼） | C157: 1002578M | D157: 女 | E157: 20170828 | F157: 4/30 | G157: 3340 | H157: 2017-09-01T14:47:00 | I157: 2017-09-04T10:00:00 | J157: 3 | K157: 新生儿高胆红素血症 | L157: NULL | M157: NULL | N157: NULL | O157: NULL | P157: NULL | Q157: NULL | R157: NULL | S157: NULL | T157: NULL | U157: NULL | V157: 杨浦 | W157: 22病房 | X157: 1002578 | Y157: 女 | Z157: 28 | AA157: 40 | AB157: 1 | AC157: 1 | AD157: 2017-08-28T07:48:00 | AE157: 2017-08-31T05:00:00 | AF157: 3 | AG157: 特指剖宫单胎分娩 | AH157: 羊水污染II度， | AI157: 单胎活产 | AJ157: NULL | AK157: NULL | AL157: NULL | AM157: NULL | AN157: NULL | AO157: NULL | AP157: NULL | AQ157: NULL | AR157: 1 | AS157: 2017-08-28T11:40:00 | AT157: 剖腹 | AU157: 女 | AV157: 3340 | AW157: NULL | AX157: NULL | AY157: NULL | AZ157: NULL | BA157: NULL
A158: 杨浦 | B158: 新生儿室（9楼） | C158: 1002640Z | D158: 男 | E158: 20170906 | F158: 2/30 | G158: 3950 | H158: 2017-09-08T12:48:00 | I158: 2017-09-12T15:00:00 | J158: 4 | K158: 新生儿特指感染 | L158: NULL | M158: NULL | N158: NULL | O158: NULL | P158: NULL | Q158: NULL | R158: NULL | S158: NULL | T158: NULL | U158: NULL | V158: 杨浦 | W158: 25病房 | X158: 1002640 | Y158: 女 | Z158: 28 | AA158: 41 | AB158: 1 | AC158: 1 | AD158: 2017-08-28T10:18:15 | AE158: 2017-09-11T05:00:00 | AF158: 14 | AG158: 特指剖宫单胎分娩 | AH158: 胎儿宫内窘迫 | AI158: 脐带绕颈 | AJ158: 发热 | AK158: 单胎活产 | AL158: NULL | AM158: NULL | AN158: NULL | AO158: NULL | AP158: NULL | AQ158: NULL | AR158: 1 | AS158: 2017-09-07T15:36:00 | AT158: 剖腹 | AU158: 男 | AV158: 3950 | AW158: NULL | AX158: NULL | AY158: NULL | AZ158: NULL | BA158: NULL
A159: 杨浦 | B159: 新生儿室（9楼） | C159: 1002642Z | D159: 男 | E159: 20170829 | F159: 2/30 | G159: 3180 | H159: 2017-08-31T09:55:00 | I159: 2017-09-03T10:00:00 | J159: 3 | K159: 新生儿高胆红素血症 | L159: NULL | M159: NULL | N159: NULL | O159: NULL | P159: NULL | Q159: NULL | R159: NULL | S159: NULL | T159: NULL | U159: NULL | V159: 杨浦 | W159: 26病房 | X159: 1002642 | Y159: 女 | Z159: 41 | AA159: 38 | AB159: 3 | AC159: 1 | AD159: 2017-08-28T10:25:50 | AE159: 2017-09-02T05:00:00 | AF159: 5 | AG159: 特指剖宫单胎分娩 | AH159: 臀先露 | AI159: 羊水污染III度 | AJ159: 高龄初产妇妊娠监督 | AK159: 脐带绕颈 | AL159: 单胎活产 | AM159: NULL | AN159: NULL | AO159: NULL | AP159: NULL | AQ159: NULL | AR159: 1 | AS159: 2017-08-29T15:22:00 | AT159: 剖腹 | AU159: 男 | AV159: 3180 | AW159: NULL | AX159: NULL | AY159: NULL | AZ159: NULL | BA159: NULL
A160: 杨浦 | B160: 新生儿室（9楼） | C160: 1002717M | D160: 男 | E160: 20170829 | F160: 6/30 | G160: 3420 | H160: 2017-09-04T15:45:00 | I160: 2017-09-07T10:00:00 | J160: 3 | K160: 新生儿高胆红素血症 | L160: 产伤致新生儿头颅血肿 | M160: NULL | N160: NULL | O160: NULL | P160: NULL | Q160: NULL | R160: NULL | S160: NULL | T160: NULL | U160: NULL | V160: 杨浦 | W160: 21病房 | X160: 1002717 | Y160: 女 | Z160: 28 | AA160: 38 | AB160: 2 | AC160: 1 | AD160: 2017-08-28T10:19:00 | AE160: 2017-08-31T05:00:00 | AF160: 3 | AG160: 头位顺产 | AH160: 胎膜早破 | AI160: 单胎活产 | AJ160: NULL | AK160: NULL | AL160: NULL | AM160: NULL | AN160: NULL | AO160: NULL | AP160: NULL | AQ160: NULL | AR160: 1 | AS160: 2017-08-29T15:33:00 | AT160: 自然 | AU160: 男 | AV160: 3420 | AW160: NULL | AX160: NULL | AY160: NULL | AZ160: NULL | BA160: NULL
A161: 杨浦 | B161: 新生儿室（4楼） | C161: 1002742Z | D161: 男 | E161: 20170830 | G161: 3810 | H161: 2017-08-30T13:19:00 | I161: 2017-09-03T14:00:00 | J161: 4 | K161: 新生儿呼吸窘迫综合征 | L161: 新生儿高胆红素血症 | M161: NULL | N161: NULL | O161: NULL | P161: NULL | Q161: NULL | R161: NULL | S161: NULL | T161: NULL | U161: NULL | V161: 杨浦 | W161: 23病房 | X161: 1002742 | Y161: 女 | Z161: 32 | AA161: 38 | AB161: 3 | AC161: 1 | AD161: 2017-08-28T13:15:48 | AE161: 2017-09-03T05:00:00 | AF161: 6 | AG161: 选择性剖宫分娩 | AH161: 妊娠期糖尿病 | AI161: 单胎活产 | AJ161: NULL | AK161: NULL | AL161: NULL | AM161: NULL | AN161: NULL | AO161: NULL | AP161: NULL | AQ161: NULL | AR161: 1 | AS161: 2017-08-30T09:32:00 | AT161: 剖腹 | AU161: 男 | AV161: 3810 | AW161: NULL | AX161: NULL | AY161: NULL | AZ161: NULL | BA161: NULL
A162: 黄浦 | B162: 新生儿室hp | C162: 1002751-02a | D162: 男 | E162: 20180714 | G162: 3720 | H162: 2018-07-14T10:58:00 | I162: 2018-07-15T12:10:00 | J162: 1 | K162: 先天性梅毒 | L162: 特发于围生期的感染 | M162: NULL | N162: NULL | O162: NULL | P162: NULL | Q162: NULL | R162: NULL | S162: NULL | T162: NULL | U162: NULL | V162: 黄浦 | W162: 一病房 | X162: 1002751 | Y162: 女 | Z162: 27 | AA162: 40 | AB162: 1 | AC162: 1 | AD162: 2018-07-14T02:33:39 | AE162: 2018-07-16T13:00:00 | AF162: 2 | AG162: 妊娠合并梅毒 | AH162: 头位顺产 | AI162: 羊水污染Ⅲ度 | AJ162: 分娩时Ⅰ度会阴裂伤 | AK162: 单一活产 | AL162: NULL | AM162: NULL | AN162: NULL | AO162: NULL | AP162: NULL | AQ162: NULL | AR162: 1 | AS162: 2018-07-14T10:58:00 | AT162: 自然 | AU162: 男 | AV162: 3720 | AW162: NULL | AX162: NULL | AY162: NULL | AZ162: NULL | BA162: NULL
A163: 杨浦 | B163: 新生儿室（9楼） | C163: 1002760Z | D163: 女 | E163: 20170928 | F163: 2/30 | G163: 3560 | H163: 2017-09-30T09:54:00 | I163: 2017-10-02T15:00:00 | J163: 2 | K163: 新生儿高胆红素血症 | L163: 新生儿结膜炎 | M163: NULL | N163: NULL | O163: NULL | P163: NULL | Q163: NULL | R163: NULL | S163: NULL | T163: NULL | U163: NULL | V163: 杨浦 | W163: 25病房 | X163: 1002760 | Y163: 女 | Z163: 31 | AA163: 41 | AB163: 3 | AC163: 1 | AD163: 2017-09-27T17:54:42 | AE163: 2017-10-01T05:00:00 | AF163: 4 | AG163: 头位顺产 | AH163: 脐带绕颈 | AI163: 单胎活产 | AJ163: NULL | AK163: NULL | AL163: NULL | AM163: NULL | AN163: NULL | AO163: NULL | AP163: NULL | AQ163: NULL | AR163: 1 | AS163: 2017-09-28T08:33:00 | AT163: 自然 | AU163: 女 | AV163: 3560 | AW163: NULL | AX163: NULL | AY163: NULL | AZ163: NULL | BA163: NULL
A164: 杨浦 | B164: 新生儿室（9楼） | C164: 1002763Z | D164: 男 | E164: 20170903 | F164: 3/30 | G164: 2840 | H164: 2017-09-06T09:52:00 | I164: 2017-09-10T10:00:00 | J164: 4 | K164: 新生儿高胆红素血症 | L164: NULL | M164: NULL | N164: NULL | O164: NULL | P164: NULL | Q164: NULL | R164: NULL | S164: NULL | T164: NULL | U164: NULL | V164: 杨浦 | W164: 24病房 | X164: 1002763 | Y164: 女 | Z164: 31 | AA164: 40 | AB164: 1 | AC164: 1 | AD164: 2017-08-28T18:49:08 | AE164: 2017-09-06T05:00:00 | AF164: 9 | AG164: 头位顺产 | AH164: 妊娠期糖尿病 | AI164: 妊娠合并上呼吸道感染 | AJ164: 急产 | AK164: 分娩时Ⅱ度会阴裂伤 | AL164: 单胎活产 | AM164: NULL | AN164: NULL | AO164: NULL | AP164: NULL | AQ164: NULL | AR164: 1 | AS164: 2017-09-03T12:49:00 | AT164: 自然 | AU164: 男 | AV164: 2840 | AW164: NULL | AX164: NULL | AY164: NULL | AZ164: NULL | BA164: NULL
A165: 杨浦 | B165: 新生儿室（9楼） | C165: 1002764Z | D165: 男 | E165: 20170829 | F165: 3/30 | G165: 3360 | H165: 2017-09-01T09:28:00 | I165: 2017-09-05T08:00:00 | J165: 4 | K165: 新生儿高胆红素血症 | L165: NULL | M165: NULL | N165: NULL | O165: NULL | P165: NULL | Q165: NULL | R165: NULL | S165: NULL | T165: NULL | U165: NULL | V165: 杨浦 | W165: 25病房 | X165: 1002764 | Y165: 女 | Z165: 21 | AA165: 37 | AB165: 4 | AC165: 1 | AD165: 2017-08-28T21:15:04 | AE165: 2017-09-01T05:00:00 | AF165: 4 | AG165: 头位顺产 | AH165: 脐带绕颈 | AI165: 分娩时Ⅰ度会阴裂伤 | AJ165: 单胎活产 | AK165: NULL | AL165: NULL | AM165: NULL | AN165: NULL | AO165: NULL | AP165: NULL | AQ165: NULL | AR165: 1 | AS165: 2017-08-29T10:18:00 | AT165: 自然 | AU165: 男 | AV165: 3360 | AW165: NULL | AX165: NULL | AY165: NULL | AZ165: NULL | BA165: NULL
A166: 杨浦 | B166: 新生儿室（9楼） | C166: 1002765Z | D166: 女 | E166: 20170829 | F166: 2/30 | G166: 3050 | H166: 2017-08-31T10:43:00 | I166: 2017-09-02T10:00:00 | J166: 2 | K166: 新生儿高胆红素血症 | L166: NULL | M166: NULL | N166: NULL | O166: NULL | P166: NULL | Q166: NULL | R166: NULL | S166: NULL | T166: NULL | U166: NULL | V166: 杨浦 | W166: 25病房 | X166: 1002765 | Y166: 女 | Z166: 34 | AA166: 37 | AB166: 4 | AC166: 1 | AD166: 2017-08-28T21:56:00 | AE166: 2017-09-01T05:00:00 | AF166: 4 | AG166: 头位顺产 | AH166: 胎膜早破 | AI166: 胎儿宫内窘迫 | AJ166: 脐带绕颈 | AK166: 单胎活产 | AL166: NULL | AM166: NULL | AN166: NULL | AO166: NULL | AP166: NULL | AQ166: NULL | AR166: 1 | AS166: 2017-09-01T04:41:00 | AT166: 自然 | AU166: 女 | AV166: 3050 | AW166: NULL | AX166: NULL | AY166: NULL | AZ166: NULL | BA166: NULL
A167: 杨浦 | B167: 新生儿室（9楼） | C167: 1002768Z | D167: 男 | E167: 20171028 | F167: 2/30 | G167: 3680 | H167: 2017-10-30T10:16:00 | I167: 2017-11-05T10:00:00 | J167: 6 | K167: 新生儿高胆红素血症 | L167: 新生儿ABO溶血症 | M167: NULL | N167: NULL | O167: NULL | P167: NULL | Q167: NULL | R167: NULL | S167: NULL | T167: NULL | U167: NULL | V167: 杨浦 | W167: 23病房 | X167: 1002768 | Y167: 女 | Z167: 32 | AA167: 39 | AB167: 1 | AC167: 1 | AD167: 2017-10-28T07:01:37 | AE167: 2017-10-31T05:00:00 | AF167: 3 | AG167: 头位顺产 | AH167: 分娩时Ⅱ度会阴裂伤 | AI167: 胎膜早破 | AJ167: 单胎活产 | AK167: NULL | AL167: NULL | AM167: NULL | AN167: NULL | AO167: NULL | AP167: NULL | AQ167: NULL | AR167: 1 | AS167: 2017-10-28T13:16:00 | AT167: 自然 | AU167: 男 | AV167: 3680 | AW167: NULL | AX167: NULL | AY167: NULL | AZ167: NULL | BA167: NULL
A168: 杨浦 | B168: 新生儿室（4楼） | C168: 1002805Z | D168: 男 | E168: 20170905 | G168: 4200 | H168: 2017-09-05T15:45:00 | I168: 2017-09-09T14:30:00 | J168: 4 | K168: 新生儿轻度窒息 | L168: 新生儿湿肺 | M168: 新生儿酸中毒 | N168: 特大婴儿 | O168: 新生儿高胆红素血症 | P168: NULL | Q168: NULL | R168: NULL | S168: NULL | T168: NULL | U168: NULL | V168: 杨浦 | W168: 22病房 | X168: 1002805 | Y168: 女 | Z168: 28 | AA168: 40 | AB168: 1 | AC168: 1 | AD168: 2017-08-29T10:15:07 | AE168: 2017-09-08T05:00:00 | AF168: 10 | AG168: 头位顺产 | AH168: 肩先露难产 | AI168: 妊娠期糖尿病 | AJ168: 妊娠合并巨大儿 | AK168: 脐带绕颈 | AL168: 单胎活产 | AM168: NULL | AN168: NULL | AO168: NULL | AP168: NULL | AQ168: NULL | AR168: 1 | AS168: 2017-09-05T15:34:00 | AT168: 自然 | AU168: 男 | AV168: 4200 | AW168: NULL | AX168: NULL | AY168: NULL | AZ168: NULL | BA168: NULL
A169: 杨浦 | B169: 新生儿室（4楼） | C169: 1002827Z | D169: 女 | E169: 20170902 | G169: 1250 | H169: 2017-09-02T12:30:00 | I169: 2017-10-24T14:00:00 | J169: 52 | K169: 新生儿呼吸窘迫综合征 | L169: 早产儿 | M169: 极低出生体重儿 | N169: 新生儿酸中毒 | O169: 新生儿高胆红素血症 | P169: 早产儿贫血 | Q169: NULL | R169: NULL | S169: NULL | T169: NULL | U169: NULL | V169: 杨浦 | W169: 25病房 | X169: 1002827 | Y169: 女 | Z169: 33 | AA169: 32 | AB169: 1 | AC169: 1 | AD169: 2017-08-29T13:55:16 | AE169: 2017-09-07T05:00:00 | AF169: 9 | AG169: 特指剖宫单胎分娩 | AH169: 重度子痫前期 | AI169: 早产不伴自然临产 | AJ169: 胎儿生长发育迟缓 | AK169: 胎儿宫内窘迫 | AL169: 单胎活产 | AM169: NULL | AN169: NULL | AO169: NULL | AP169: NULL | AQ169: NULL | AR169: 1 | AS169: 2017-09-02T12:18:00 | AT169: 剖腹 | AU169: 女 | AV169: 1250 | AW169: NULL | AX169: NULL | AY169: NULL | AZ169: NULL | BA169: NULL
A170: 杨浦 | B170: 新生儿室（9楼） | C170: 1002832-06M | D170: 男 | E170: 20180421 | F170: 6/30 | G170: 3220 | H170: 2018-04-27T16:35:32 | I170: 2018-04-30T10:00:00 | J170: 3 | K170: 新生儿高胆红素血症 | L170: NULL | M170: NULL | N170: NULL | O170: NULL | P170: NULL | Q170: NULL | R170: NULL | S170: NULL | T170: NULL | U170: NULL | V170: 杨浦 | W170: 21病房 | X170: 1002832 | Y170: 女 | Z170: 35 | AA170: 37 | AB170: 3 | AC170: 1 | AD170: 2018-04-08T14:15:26 | AE170: 2018-04-25T08:00:00 | AF170: 17 | AG170: 妊娠期发生的糖尿病 | AH170: 胎膜早破 | AI170: 头位顺产 | AJ170: 分娩时Ⅰ度会阴裂伤 | AK170: 单一活产 | AL170: NULL | AM170: NULL | AN170: NULL | AO170: NULL | AP170: NULL | AQ170: NULL | AR170: 1 | AS170: 2018-04-21T09:33:00 | AT170: 自然 | AU170: 男 | AV170: 3220 | AW170: NULL | AX170: NULL | AY170: NULL | AZ170: NULL | BA170: NULL
A171: 杨浦 | B171: 新生儿室（9楼） | C171: 1002833Z | D171: 男 | E171: 20171024 | G171: 2120 | H171: 2017-10-24T12:21:00 | I171: 2017-10-29T14:00:00 | J171: 4 | K171: 新生儿高胆红素血症 | L171: 低出生体重儿 | M171: NULL | N171: NULL | O171: NULL | P171: NULL | Q171: NULL | R171: NULL | S171: NULL | T171: NULL | U171: NULL | V171: 杨浦 | W171: 24病房 | X171: 1002833 | Y171: 女 | Z171: 30 | AA171: 38 | AB171: 1 | AC171: 1 | AD171: 2017-10-17T12:06:55 | AE171: 2017-10-28T05:00:00 | AF171: 11 | AG171: 特指剖宫单胎分娩 | AH171: 妊娠期糖尿病 | AI171: 胎儿生长发育迟缓 | AJ171: 妊娠蛋白尿 | AK171: 妊娠合并低体重儿 | AL171: 脐带扭转 | AM171: 单胎活产 | AN171: NULL | AO171: NULL | AP171: NULL | AQ171: NULL | AR171: 1 | AS171: 2017-10-24T11:12:00 | AT171: 剖腹 | AU171: 男 | AV171: 2120 | AW171: NULL | AX171: NULL | AY171: NULL | AZ171: NULL | BA171: NULL
A172: 杨浦 | B172: 新生儿室（9楼） | C172: 1002843Z | D172: 女 | E172: 20170919 | F172: 4/30 | G172: 3070 | H172: 2017-09-23T10:06:00 | I172: 2017-09-25T10:00:00 | J172: 2 | K172: 新生儿高胆红素血症 | L172: NULL | M172: NULL | N172: NULL | O172: NULL | P172: NULL | Q172: NULL | R172: NULL | S172: NULL | T172: NULL | U172: NULL | V172: 杨浦 | W172: 22病房 | X172: 1002843 | Y172: 女 | Z172: 29 | AA172: 37 | AB172: 2 | AC172: 1 | AD172: 2017-09-18T21:51:26 | AE172: 2017-09-23T05:00:00 | AF172: 5 | AG172: 选择性剖宫分娩 | AH172: 单胎活产 | AI172: NULL | AJ172: NULL | AK172: NULL | AL172: NULL | AM172: NULL | AN172: NULL | AO172: NULL | AP172: NULL | AQ172: NULL | AR172: 1 | AS172: 2017-09-19T11:17:00 | AT172: 剖腹 | AU172: 女 | AV172: 3070 | AW172: NULL | AX172: NULL | AY172: NULL | AZ172: NULL | BA172: NULL
A173: 杨浦 | B173: 新生儿室（9楼） | C173: 1002860M | D173: 男 | E173: 20170901 | F173: 5/30 | G173: 3310 | H173: 2017-09-06T12:00:00 | I173: 2017-09-09T12:00:00 | J173: 3 | K173: 新生儿高胆红素血症 | L173: NULL | M173: NULL | N173: NULL | O173: NULL | P173: NULL | Q173: NULL | R173: NULL | S173: NULL | T173: NULL | U173: NULL | V173: 杨浦 | W173: 21病房 | X173: 1002860 | Y173: 女 | Z173: 40 | AA173: 39 | AB173: 4 | AC173: 1 | AD173: 2017-08-30T09:04:32 | AE173: 2017-09-05T05:00:00 | AF173: 6 | AG173: 选择性剖宫分娩 | AH173: 妊娠期糖尿病 | AI173: 单胎活产 | AJ173: NULL | AK173: NULL | AL173: NULL | AM173: NULL | AN173: NULL | AO173: NULL | AP173: NULL | AQ173: NULL | AR173: 1 | AS173: 2017-09-01T10:20:00 | AT173: 剖腹 | AU173: 男 | AV173: 3310 | AW173: NULL | AX173: NULL | AY173: NULL | AZ173: NULL | BA173: NULL
A174: 杨浦 | B174: 新生儿室（4楼） | C174: 1002865Z | D174: 男 | E174: 20170901 | G174: 2870 | H174: 2017-09-01T12:32:00 | I174: 2017-09-04T08:00:00 | J174: 3 | K174: 新生儿重度窒息 | L174: 新生儿湿肺 | M174: 新生儿酸中毒 | N174: NULL | O174: NULL | P174: NULL | Q174: NULL | R174: NULL | S174: NULL | T174: NULL | U174: NULL | V174: 杨浦 | W174: 23病房 | X174: 1002865 | Y174: 女 | Z174: 40 | AA174: 38 | AB174: 3 | AC174: 1 | AD174: 2017-08-30T09:44:25 | AE174: 2017-09-04T05:00:00 | AF174: 5 | AG174: 头位顺产 | AH174: 子痫前期 | AI174: 妊娠期糖尿病 | AJ174: 球拍状胎盘 | AK174: 胎儿宫内窘迫 | AL174: 急产 | AM174: 分娩时Ⅰ度会阴裂伤 | AN174: 单胎活产 | AO174: NULL | AP174: NULL | AQ174: NULL | AR174: 1 | AS174: 2017-09-01T12:19:00 | AT174: 自然 | AU174: 男 | AV174: 2870 | AW174: NULL | AX174: NULL | AY174: NULL | AZ174: NULL | BA174: NULL
A175: 杨浦 | B175: 新生儿室（9楼） | C175: 1002866Z | D175: 女 | E175: 20170901 | F175: 3/30 | G175: 3010 | H175: 2017-09-04T09:40:00 | I175: 2017-09-06T10:00:00 | J175: 2 | K175: 新生儿高胆红素血症 | L175: NULL | M175: NULL | N175: NULL | O175: NULL | P175: NULL | Q175: NULL | R175: NULL | S175: NULL | T175: NULL | U175: NULL | V175: 杨浦 | W175: 25病房 | X175: 1002866 | Y175: 女 | Z175: 27 | AA175: 39 | AB175: 1 | AC175: 1 | AD175: 2017-08-30T09:52:45 | AE175: 2017-09-04T14:00:00 | AF175: 5 | AG175: 头位顺产 | AH175: 孕产妇高血压 | AI175: 急产 | AJ175: 脐带绕颈 | AK175: 分娩时Ⅰ度会阴裂伤 | AL175: 单胎活产 | AM175: NULL | AN175: NULL | AO175: NULL | AP175: NULL | AQ175: NULL | AR175: 1 | AS175: 2017-09-01T12:40:00 | AT175: 自然 | AU175: 女 | AV175: 3010 | AW175: NULL | AX175: NULL | AY175: NULL | AZ175: NULL | BA175: NULL
A176: 杨浦 | B176: 新生儿室（9楼） | C176: 1002889-02Z | D176: 女 | E176: 20180401 | F176: 3/30 | G176: 3050 | H176: 2018-04-04T09:50:45 | I176: 2018-04-06T10:00:00 | J176: 2 | K176: 新生儿高胆红素血症 | L176: NULL | M176: NULL | N176: NULL | O176: NULL | P176: NULL | Q176: NULL | R176: NULL | S176: NULL | T176: NULL | U176: NULL | V176: 杨浦 | W176: 26病房 | X176: 1002889 | Y176: 女 | Z176: 29 | AA176: 39 | AB176: 1 | AC176: 1 | AD176: 2018-03-30T21:14:38 | AE176: 2018-04-04T08:00:00 | AF176: 5 | AG176: 胎膜早破 | AH176: 脐带绕颈 | AI176: 头位顺产 | AJ176: 单一活产 | AK176: NULL | AL176: NULL | AM176: NULL | AN176: NULL | AO176: NULL | AP176: NULL | AQ176: NULL | AR176: 1 | AS176: 2018-04-01T21:59:00 | AT176: 自然 | AU176: 女 | AV176: 3050 | AW176: NULL | AX176: NULL | AY176: NULL | AZ176: NULL | BA176: NULL
A177: 杨浦 | B177: 新生儿室（9楼） | C177: 1002896Z | D177: 女 | E177: 20170831 | F177: 1/30 | G177: 3790 | H177: 2017-09-01T11:20:00 | I177: 2017-09-06T10:00:00 | J177: 5 | K177: 新生儿高胆红素血症 | L177: 新生儿ABO溶血症 | M177: 新生儿贫血 | N177: 新生儿结膜炎 | O177: NULL | P177: NULL | Q177: NULL | R177: NULL | S177: NULL | T177: NULL | U177: NULL | V177: 杨浦 | W177: 22病房 | X177: 1002896 | Y177: 女 | Z177: 32 | AA177: 38 | AB177: 2 | AC177: 1 | AD177: 2017-08-30T14:44:11 | AE177: 2017-09-04T05:00:00 | AF177: 5 | AG177: 选择性剖宫分娩 | AH177: 羊水污染I度， | AI177: 单胎活产 | AJ177: NULL | AK177: NULL | AL177: NULL | AM177: NULL | AN177: NULL | AO177: NULL | AP177: NULL | AQ177: NULL | AR177: 1 | AS177: 2017-08-31T09:50:00 | AT177: 剖腹 | AU177: 女 | AV177: 3790 | AW177: NULL | AX177: NULL | AY177: NULL | AZ177: NULL | BA177: NULL
A178: 杨浦 | B178: 新生儿室（9楼） | C178: 1002905Z | D178: 男 | E178: 20170908 | F178: 2/30 | G178: 2660 | H178: 2017-09-10T09:35:00 | I178: 2017-09-12T10:00:00 | J178: 2 | K178: 新生儿高胆红素血症 | L178: NULL | M178: NULL | N178: NULL | O178: NULL | P178: NULL | Q178: NULL | R178: NULL | S178: NULL | T178: NULL | U178: NULL | V178: 杨浦 | W178: 23病房 | X178: 1002905 | Y178: 女 | Z178: 30 | AA178: 38 | AB178: 2 | AC178: 1 | AD178: 2017-08-30T17:10:46 | AE178: 2017-09-11T05:00:00 | AF178: 12 | AG178: 头位顺产 | AH178: 妊娠期糖尿病 | AI178: 孕产妇高血压 | AJ178: 发热 | AK178: 单胎活产 | AL178: NULL | AM178: NULL | AN178: NULL | AO178: NULL | AP178: NULL | AQ178: NULL | AR178: 1 | AS178: 2017-09-08T09:32:00 | AT178: 自然 | AU178: 男 | AV178: 2660 | AW178: NULL | AX178: NULL | AY178: NULL | AZ178: NULL | BA178: NULL
A179: 杨浦 | B179: 新生儿室（4楼） | C179: 1002917Z | D179: 男 | E179: 20170901 | G179: 2720 | H179: 2017-09-01T10:53:00 | I179: 2017-09-05T14:00:00 | J179: 4 | K179: 早产儿 | L179: 新生儿湿肺 | M179: 新生儿高胆红素血症 | N179: NULL | O179: NULL | P179: NULL | Q179: NULL | R179: NULL | S179: NULL | T179: NULL | U179: NULL | V179: 杨浦 | W179: 23病房 | X179: 1002917 | Y179: 女 | Z179: 26 | AA179: 36 | AB179: 1 | AC179: 2 | AD179: 2017-08-31T09:04:40 | AE179: 2017-09-05T05:00:00 | AF179: 5 | AG179: 多胎剖宫分娩 | AH179: 早产不伴自然临产 | AI179: 双胎活产 | AJ179: NULL | AK179: NULL | AL179: NULL | AM179: NULL | AN179: NULL | AO179: NULL | AP179: NULL | AQ179: NULL | AR179: 1 | AS179: 2017-09-01T09:41:00 | AT179: 剖腹 | AU179: 男 | AV179: 2720 | AW179: 2 | AX179: 2017-09-01T09:42:00 | AY179: 剖腹 | AZ179: 男 | BA179: 2910
A180: 杨浦 | B180: 新生儿室（9楼） | C180: 1002929Z | D180: 男 | E180: 20170906 | F180: 3/30 | G180: 3840 | H180: 2017-09-09T10:06:00 | I180: 2017-09-13T10:00:00 | J180: 4 | K180: 新生儿高胆红素血症 | L180: NULL | M180: NULL | N180: NULL | O180: NULL | P180: NULL | Q180: NULL | R180: NULL | S180: NULL | T180: NULL | U180: NULL | V180: 杨浦 | W180: 21病房 | X180: 1002929 | Y180: 女 | Z180: 27 | AA180: 38 | AB180: 1 | AC180: 1 | AD180: 2017-08-31T10:27:14 | AE180: 2017-09-09T14:00:00 | AF180: 9 | AG180: 头位顺产 | AH180: 妊娠蛋白尿 | AI180: 发热 | AJ180: 单胎活产 | AK180: NULL | AL180: NULL | AM180: NULL | AN180: NULL | AO180: NULL | AP180: NULL | AQ180: NULL | AR180: 1 | AS180: 2017-09-06T19:42:00 | AT180: 自然 | AU180: 男 | AV180: 3840 | AW180: NULL | AX180: NULL | AY180: NULL | AZ180: NULL | BA180: NULL
A181: 杨浦 | B181: 新生儿室（9楼） | C181: 1002932Z | D181: 女 | E181: 20170904 | F181: 3/30 | G181: 3660 | H181: 2017-09-07T10:09:00 | I181: 2017-09-10T15:00:00 | J181: 3 | K181: 新生儿高胆红素血症 | L181: NULL | M181: NULL | N181: NULL | O181: NULL | P181: NULL | Q181: NULL | R181: NULL | S181: NULL | T181: NULL | U181: NULL | V181: 杨浦 | W181: 24病房 | X181: 1002932 | Y181: 女 | Z181: 34 | AA181: 39 | AB181: 4 | AC181: 1 | AD181: 2017-08-31T10:58:02 | AE181: 2017-09-08T14:00:00 | AF181: 8 | AG181: 选择性剖宫分娩 | AH181: 子宫腺肌症 | AI181: 单胎活产 | AJ181: NULL | AK181: NULL | AL181: NULL | AM181: NULL | AN181: NULL | AO181: NULL | AP181: NULL | AQ181: NULL | AR181: 1 | AS181: 2017-09-04T14:45:00 | AT181: 剖腹 | AU181: 女 | AV181: 3660 | AW181: NULL | AX181: NULL | AY181: NULL | AZ181: NULL | BA181: NULL
A182: 杨浦 | B182: 新生儿室（9楼） | C182: 1002934Z | D182: 男 | E182: 20170915 | F182: 2/30 | G182: 2640 | H182: 2017-09-17T09:46:00 | I182: 2017-09-20T14:00:00 | J182: 3 | K182: 新生儿高胆红素血症 | L182: 新生儿ABO溶血症 | M182: NULL | N182: NULL | O182: NULL | P182: NULL | Q182: NULL | R182: NULL | S182: NULL | T182: NULL | U182: NULL | V182: 杨浦 | W182: 26病房 | X182: 1002934 | Y182: 女 | Z182: 27 | AA182: 37 | AB182: 1 | AC182: 1 | AD182: 2017-09-14T08:20:46 | AE182: 2017-09-18T05:00:00 | AF182: 4 | AG182: 头位顺产 | AH182: 子宫颈鳞状上皮不典型增生 | AI182: 脐带绕颈 | AJ182: 分娩时Ⅰ度会阴裂伤 | AK182: 单胎活产 | AL182: NULL | AM182: NULL | AN182: NULL | AO182: NULL | AP182: NULL | AQ182: NULL | AR182: 1 | AS182: 2017-09-15T01:51:00 | AT182: 自然 | AU182: 男 | AV182: 2640 | AW182: NULL | AX182: NULL | AY182: NULL | AZ182: NULL | BA182: NULL
A183: 杨浦 | B183: 新生儿室（9楼） | C183: 1002937Z | D183: 女 | E183: 20170901 | F183: 4/30 | G183: 3250 | H183: 2017-09-05T09:56:00 | I183: 2017-09-09T10:00:00 | J183: 4 | K183: 新生儿高胆红素血症 | L183: NULL | M183: NULL | N183: NULL | O183: NULL | P183: NULL | Q183: NULL | R183: NULL | S183: NULL | T183: NULL | U183: NULL | V183: 杨浦 | W183: 23病房 | X183: 1002937 | Y183: 女 | Z183: 34 | AA183: 38 | AB183: 2 | AC183: 1 | AD183: 2017-08-31T11:44:09 | AE183: 2017-09-05T05:00:00 | AF183: 5 | AG183: 选择性剖宫分娩 | AH183: 脐带绕颈 | AI183: 单胎活产 | AJ183: NULL | AK183: NULL | AL183: NULL | AM183: NULL | AN183: NULL | AO183: NULL | AP183: NULL | AQ183: NULL | AR183: 1 | AS183: 2017-09-01T13:01:00 | AT183: 剖腹 | AU183: 女 | AV183: 3250 | AW183: NULL | AX183: NULL | AY183: NULL | AZ183: NULL | BA183: NULL
A184: 杨浦 | B184: 新生儿室（9楼） | C184: 1002952-02Z | D184: 女 | E184: 20180222 | F184: 2/30 | G184: 3710 | H184: 2018-02-24T15:58:00 | I184: 2018-02-27T10:00:00 | J184: 3 | K184: 新生儿高胆红素血症 | L184: 胎儿和新生儿的ABO同种免疫 | M184: NULL | N184: NULL | O184: NULL | P184: NULL | Q184: NULL | R184: NULL | S184: NULL | T184: NULL | U184: NULL | V184: 杨浦 | W184: 25病房 | X184: 1002952 | Y184: 女 | Z184: 33 | AA184: 40 | AB184: 2 | AC184: 1 | AD184: 2018-02-21T08:24:16 | AE184: 2018-02-25T08:00:00 | AF184: 4 | AG184: 脐带绕身 | AH184: 头位顺产 | AI184: 分娩时Ⅰ度会阴裂伤 | AJ184: 单一活产 | AK184: NULL | AL184: NULL | AM184: NULL | AN184: NULL | AO184: NULL | AP184: NULL | AQ184: NULL | AR184: 1 | AS184: 2018-02-22T04:52:00 | AT184: 自然 | AU184: 女 | AV184: 3710 | AW184: NULL | AX184: NULL | AY184: NULL | AZ184: NULL | BA184: NULL
A185: 杨浦 | B185: 新生儿室（9楼） | C185: 1002958Z | D185: 男 | E185: 20170901 | F185: 1/30 | G185: 3740 | H185: 2017-09-02T15:38:00 | I185: 2017-09-06T10:00:00 | J185: 4 | K185: 新生儿高胆红素血症 | L185: 新生儿特指感染 | M185: NULL | N185: NULL | O185: NULL | P185: NULL | Q185: NULL | R185: NULL | S185: NULL | T185: NULL | U185: NULL | V185: 杨浦 | W185: 24病房 | X185: 1002958 | Y185: 女 | Z185: 31 | AA185: 40 | AB185: 3 | AC185: 1 | AD185: 2017-09-01T03:29:41 | AE185: 2017-09-04T05:00:00 | AF185: 3 | AG185: 头位顺产 | AH185: 羊水污染II度， | AI185: 单胎活产 | AJ185: NULL | AK185: NULL | AL185: NULL | AM185: NULL | AN185: NULL | AO185: NULL | AP185: NULL | AQ185: NULL | AR185: 1 | AS185: 2017-09-01T17:09:00 | AT185: 自然 | AU185: 男 | AV185: 3740 | AW185: NULL | AX185: NULL | AY185: NULL | AZ185: NULL | BA185: NULL
A186: 杨浦 | B186: 新生儿室（9楼） | C186: 1003015Z | D186: 女 | E186: 20170903 | F186: 2/30 | G186: 2810 | H186: 2017-09-05T09:51:00 | I186: 2017-09-09T10:00:00 | J186: 4 | K186: 新生儿高胆红素血症 | L186: NULL | M186: NULL | N186: NULL | O186: NULL | P186: NULL | Q186: NULL | R186: NULL | S186: NULL | T186: NULL | U186: NULL | V186: 杨浦 | W186: 23病房 | X186: 1003015 | Y186: 女 | Z186: 30 | AA186: 41 | AB186: 2 | AC186: 1 | AD186: 2017-09-01T12:00:00 | AE186: 2017-09-05T12:00:00 | AF186: 4 | AG186: 头位顺产 | AH186: 脐带绕颈 | AI186: 单胎活产 | AJ186: NULL | AK186: NULL | AL186: NULL | AM186: NULL | AN186: NULL | AO186: NULL | AP186: NULL | AQ186: NULL | AR186: 1 | AS186: 2017-09-03T00:28:00 | AT186: 自然 | AU186: 女 | AV186: 2810 | AW186: NULL | AX186: NULL | AY186: NULL | AZ186: NULL | BA186: NULL
A187: 杨浦 | B187: 新生儿室（4楼） | C187: 1003026Z | D187: 男 | E187: 20170901 | F187: 1/30 | G187: 450 | H187: 2017-09-02T12:00:00 | I187: 2017-09-02T12:00:00 | J187: 1 | K187: 新生儿死亡 | L187: 新生儿重度窒息 | M187: 新生儿呼吸窘迫综合征 | N187: 新生儿酸中毒 | O187: 极低出生体重儿 | P187: NULL | Q187: NULL | R187: NULL | S187: NULL | T187: NULL | U187: NULL | V187: NULL | W187: NULL | X187: NULL | Y187: NULL | Z187: NULL | AA187: NULL | AB187: NULL | AC187: NULL | AD187: NULL | AE187: NULL | AF187: NULL | AG187: NULL | AH187: NULL | AI187: NULL | AJ187: NULL | AK187: NULL | AL187: NULL | AM187: NULL | AN187: NULL | AO187: NULL | AP187: NULL | AQ187: NULL | AR187: NULL | AS187: NULL | AT187: NULL | AU187: NULL | AV187: NULL | AW187: NULL | AX187: NULL | AY187: NULL | AZ187: NULL | BA187: NULL
A188: 杨浦 | B188: 新生儿室（9楼） | C188: 1003028Z | D188: 男 | E188: 20170902 | F188: 1/30 | G188: 3480 | H188: 2017-09-03T09:11:00 | I188: 2017-09-05T08:00:00 | J188: 2 | K188: 新生儿高胆红素血症 | L188: 新生儿ABO溶血症 | M188: NULL | N188: NULL | O188: NULL | P188: NULL | Q188: NULL | R188: NULL | S188: NULL | T188: NULL | U188: NULL | V188: 杨浦 | W188: 24病房 | X188: 1003028 | Y188: 女 | Z188: 30 | AA188: 40 | AB188: 2 | AC188: 1 | AD188: 2017-09-01T23:42:00 | AE188: 2017-09-06T05:00:00 | AF188: 5 | AG188: 头位顺产 | AH188: 胎膜早破 | AI188: 分娩时Ⅰ度会阴裂伤 | AJ188: 单胎活产 | AK188: NULL | AL188: NULL | AM188: NULL | AN188: NULL | AO188: NULL | AP188: NULL | AQ188: NULL | AR188: 1 | AS188: 2017-09-02T11:38:00 | AT188: 自然 | AU188: 男 | AV188: 3480 | AW188: NULL | AX188: NULL | AY188: NULL | AZ188: NULL | BA188: NULL
A189: 杨浦 | B189: 新生儿室（9楼） | C189: 1003038-03Z | D189: 女 | E189: 20181029 | F189: 3/30 | G189: 3380 | H189: 2018-11-01T09:50:27 | I189: 2018-11-03T10:00:00 | J189: 2 | K189: 新生儿高胆红素血症 | L189: NULL | M189: NULL | N189: NULL | O189: NULL | P189: NULL | Q189: NULL | R189: NULL | S189: NULL | T189: NULL | U189: NULL | V189: 杨浦 | W189: 21病房 | X189: 1003038 | Y189: 女 | Z189: 42 | AA189: 38 | AB189: 2 | AC189: 1 | AD189: 2018-10-28T14:28:38 | AE189: 2018-11-01T08:00:00 | AF189: 4 | AG189: 轻度子痫前期 | AH189: 低位产钳术 | AI189: 胎膜早破 | AJ189: 产程和分娩的其他特指并发症 | AK189: 单一活产 | AL189: NULL | AM189: NULL | AN189: NULL | AO189: NULL | AP189: NULL | AQ189: NULL | AR189: 1 | AS189: 2018-10-29T15:04:00 | AT189: 产钳 | AU189: 女 | AV189: 3380 | AW189: NULL | AX189: NULL | AY189: NULL | AZ189: NULL | BA189: NULL
A190: 杨浦 | B190: 新生儿室（9楼） | C190: 1003048Z | D190: 男 | E190: 20170908 | F190: 3/30 | G190: 3870 | H190: 2017-09-11T09:59:00 | I190: 2017-09-13T10:00:00 | J190: 2 | K190: 新生儿高胆红素血症 | L190: 产伤致新生儿头颅血肿 | M190: NULL | N190: NULL | O190: NULL | P190: NULL | Q190: NULL | R190: NULL | S190: NULL | T190: NULL | U190: NULL | V190: 杨浦 | W190: 25病房 | X190: 1003048 | Y190: 女 | Z190: 29 | AA190: 39 | AB190: 1 | AC190: 1 | AD190: 2017-09-02T15:12:39 | AE190: 2017-09-11T14:00:00 | AF190: 9 | AG190: 头位顺产 | AH190: 肩先露难产 | AI190: 单胎活产 | AJ190: NULL | AK190: NULL | AL190: NULL | AM190: NULL | AN190: NULL | AO190: NULL | AP190: NULL | AQ190: NULL | AR190: 1 | AS190: 2017-09-08T12:08:00 | AT190: 自然 | AU190: 男 | AV190: 3870 | AW190: NULL | AX190: NULL | AY190: NULL | AZ190: NULL | BA190: NULL
A191: 杨浦 | B191: 新生儿室（9楼） | C191: 1003053Z | D191: 女 | E191: 20170904 | F191: 3/30 | G191: 4090 | H191: 2017-09-07T10:53:00 | I191: 2017-09-09T14:00:00 | J191: 2 | K191: 新生儿高胆红素血症 | L191: 新生儿ABO溶血症 | M191: 特大婴儿 | N191: NULL | O191: NULL | P191: NULL | Q191: NULL | R191: NULL | S191: NULL | T191: NULL | U191: NULL | V191: 杨浦 | W191: 24病房 | X191: 1003053 | Y191: 女 | Z191: 31 | AA191: 38 | AB191: 1 | AC191: 1 | AD191: 2017-09-03T02:17:20 | AE191: 2017-09-07T12:00:00 | AF191: 4 | AG191: 头位顺产 | AH191: 发热 | AI191: 妊娠合并巨大儿 | AJ191: 孕产妇高血压 | AK191: 单胎活产 | AL191: NULL | AM191: NULL | AN191: NULL | AO191: NULL | AP191: NULL | AQ191: NULL | AR191: 1 | AS191: 2017-09-04T13:20:00 | AT191: 自然 | AU191: 女 | AV191: 4090 | AW191: NULL | AX191: NULL | AY191: NULL | AZ191: NULL | BA191: NULL
A192: 杨浦 | B192: 新生儿室（9楼） | C192: 1003054Z | D192: 女 | E192: 20170903 | F192: 3/30 | G192: 2650 | H192: 2017-09-06T09:41:00 | I192: 2017-09-06T13:00:00 | J192: 1 | K192: 新生儿高胆红素血症 | L192: NULL | M192: NULL | N192: NULL | O192: NULL | P192: NULL | Q192: NULL | R192: NULL | S192: NULL | T192: NULL | U192: NULL | V192: 杨浦 | W192: 24病房 | X192: 1003054 | Y192: 女 | Z192: 34 | AA192: 37 | AB192: 2 | AC192: 1 | AD192: 2017-09-03T02:23:00 | AE192: 2017-09-07T05:00:00 | AF192: 4 | AG192: 特指剖宫单胎分娩 | AH192: 胎膜早破 | AI192: 妊娠期糖尿病 | AJ192: 妊娠合并单角子宫 | AK192: 妊娠合并泌尿生殖系统疾病 | AL192: 单胎活产 | AM192: NULL | AN192: NULL | AO192: NULL | AP192: NULL | AQ192: NULL | AR192: 1 | AS192: 2017-09-03T06:58:00 | AT192: 剖腹 | AU192: 女 | AV192: 2650 | AW192: NULL | AX192: NULL | AY192: NULL | AZ192: NULL | BA192: NULL
A193: 杨浦 | B193: 新生儿室（9楼） | C193: 1003055Z | D193: 女 | E193: 20170903 | F193: 4/30 | G193: 3320 | H193: 2017-09-07T09:46:00 | I193: 2017-09-10T15:00:00 | J193: 3 | K193: 新生儿高胆红素血症 | L193: NULL | M193: NULL | N193: NULL | O193: NULL | P193: NULL | Q193: NULL | R193: NULL | S193: NULL | T193: NULL | U193: NULL | V193: 杨浦 | W193: 24病房 | X193: 1003055 | Y193: 女 | Z193: 29 | AA193: 38 | AB193: 1 | AC193: 1 | AD193: 2017-09-03T03:05:00 | AE193: 2017-09-07T05:00:00 | AF193: 4 | AG193: 特指剖宫单胎分娩 | AH193: 胎膜早破 | AI193: 单胎活产 | AJ193: NULL | AK193: NULL | AL193: NULL | AM193: NULL | AN193: NULL | AO193: NULL | AP193: NULL | AQ193: NULL | AR193: 1 | AS193: 2017-09-03T14:10:00 | AT193: 剖腹 | AU193: 女 | AV193: 3320 | AW193: NULL | AX193: NULL | AY193: NULL | AZ193: NULL | BA193: NULL
A194: 杨浦 | B194: 新生儿室（9楼） | C194: 1003070Z | D194: 男 | E194: 20170906 | F194: 3/30 | G194: 3300 | H194: 2017-09-09T09:50:00 | I194: 2017-09-11T10:00:00 | J194: 2 | K194: 新生儿高胆红素血症 | L194: NULL | M194: NULL | N194: NULL | O194: NULL | P194: NULL | Q194: NULL | R194: NULL | S194: NULL | T194: NULL | U194: NULL | V194: 杨浦 | W194: 24病房 | X194: 1003070 | Y194: 女 | Z194: 26 | AA194: 38 | AB194: 2 | AC194: 1 | AD194: 2017-09-03T10:19:11 | AE194: 2017-09-11T09:00:00 | AF194: 8 | AG194: 选择性剖宫分娩 | AH194: 单胎活产 | AI194: NULL | AJ194: NULL | AK194: NULL | AL194: NULL | AM194: NULL | AN194: NULL | AO194: NULL | AP194: NULL | AQ194: NULL | AR194: 1 | AS194: 2017-09-06T09:46:00 | AT194: 剖腹 | AU194: 男 | AV194: 3300 | AW194: NULL | AX194: NULL | AY194: NULL | AZ194: NULL | BA194: NULL
A195: 杨浦 | B195: 新生儿室（9楼） | C195: 1003076Z | D195: 男 | E195: 20170904 | F195: 6/30 | G195: 3290 | H195: 2017-09-10T09:59:00 | I195: 2017-09-12T10:00:00 | J195: 2 | K195: 新生儿高胆红素血症 | L195: NULL | M195: NULL | N195: NULL | O195: NULL | P195: NULL | Q195: NULL | R195: NULL | S195: NULL | T195: NULL | U195: NULL | V195: 杨浦 | W195: 23病房 | X195: 1003076 | Y195: 女 | Z195: 27 | AA195: 39 | AB195: 1 | AC195: 1 | AD195: 2017-09-03T22:05:00 | AE195: 2017-09-10T05:00:00 | AF195: 7 | AG195: 头位顺产 | AH195: 胎膜早破 | AI195: 单胎活产 | AJ195: NULL | AK195: NULL | AL195: NULL | AM195: NULL | AN195: NULL | AO195: NULL | AP195: NULL | AQ195: NULL | AR195: 1 | AS195: 2017-09-04T16:18:00 | AT195: 自然 | AU195: 男 | AV195: 3290 | AW195: NULL | AX195: NULL | AY195: NULL | AZ195: NULL | BA195: NULL
A196: 杨浦 | B196: 新生儿室（9楼） | C196: 1003093-02Z | D196: 女 | E196: 20180323 | F196: 3/30 | G196: 4150 | H196: 2018-03-26T09:48:39 | I196: 2018-03-28T10:00:00 | J196: 2 | K196: 新生儿高胆红素血症 | L196: 产伤引起的头颅血肿 | M196: 特大婴儿 | N196: NULL | O196: NULL | P196: NULL | Q196: NULL | R196: NULL | S196: NULL | T196: NULL | U196: NULL | V196: 杨浦 | W196: 25病房 | X196: 1003093 | Y196: 女 | Z196: 27 | AA196: 41 | AB196: 1 | AC196: 1 | AD196: 2018-03-20T15:22:13 | AE196: 2018-03-27T08:00:00 | AF196: 7 | AG196: 妊娠合并巨大儿 | AH196: 经其他剖宫产术的单胎分娩 | AI196: 为胎盆不称给予的孕产妇医疗 | AJ196: 先兆子痫 | AK196: 产后即时出血 | AL196: 妊娠合并中度贫血 | AM196: 持续性枕横位难产 | AN196: 单一活产 | AO196: NULL | AP196: NULL | AQ196: NULL | AR196: 1 | AS196: 2018-03-23T11:21:00 | AT196: 剖腹 | AU196: 女 | AV196: 4150 | AW196: NULL | AX196: NULL | AY196: NULL | AZ196: NULL | BA196: NULL
A197: 杨浦 | B197: 新生儿室（9楼） | C197: 1003154Z | D197: 男 | E197: 20170905 | F197: 4/30 | G197: 3940 | H197: 2017-09-09T09:00:00 | I197: 2017-09-11T10:00:00 | J197: 2 | K197: 新生儿高胆红素血症 | L197: NULL | M197: NULL | N197: NULL | O197: NULL | P197: NULL | Q197: NULL | R197: NULL | S197: NULL | T197: NULL | U197: NULL | V197: 杨浦 | W197: 26病房 | X197: 1003154 | Y197: 女 | Z197: 33 | AA197: 38 | AB197: 4 | AC197: 1 | AD197: 2017-09-04T08:15:44 | AE197: 2017-09-09T05:00:00 | AF197: 5 | AG197: 选择性剖宫分娩 | AH197: 妊娠期糖尿病 | AI197: 单胎活产 | AJ197: NULL | AK197: NULL | AL197: NULL | AM197: NULL | AN197: NULL | AO197: NULL | AP197: NULL | AQ197: NULL | AR197: 1 | AS197: 2017-09-05T08:44:00 | AT197: 剖腹 | AU197: 男 | AV197: 3940 | AW197: NULL | AX197: NULL | AY197: NULL | AZ197: NULL | BA197: NULL
